Workbook

Sheet Obsah

Sheet procesní schéma

Sheet zdroje dle stř.
C2: pozice/středisko/ činnost
B3: obchodní fáze | C3: 11 ks | D3: maloobchodní pobočky | E3: =SUM(E41:E51) -> 22 | F3: vzorkovna, počítač, mobilní telefon, tiskárna, kancelářské vybavení, automobil | G3: systém CAG, web CN, Premier, MS Office, know-how | H3: vlastní kapitál, krátkodobý odběratelský úvěr (zálohové faktury) či dodavatelský úvěr (doba splatnost faktur)
C4: 319 | D4: velkoobchod | E4: 1 | F4: počítač, mobilní telefon, tiskárna, kancelářské vybavení, automobil
C5: ext. | D5: zaměřovací technik | E5: 2 | F5: počítač, mobilní telefon, vybavení pro zaměření: laserový metr a úhloměr | G5: MS Office, know-how | Q5: VYSVĚTLIVKY | R5: lidské | T5: hmotné
C6: 301 | D6: zadávací centrum výroby | E6: 4 | F6: kancelář, počítač, mobilní telefon, tiskárna, kancelářské vybavení | G6: systém CAG, web CN, Premier, MS Office, know-how | R6: finanční | T6: nehmotné
B7: výrobní fáze | C7: 111 | D7: výroba dveří | E7: 12 | F7: výrobní hala, formátovací pily, olepovačka, CNC stroje, bruska, spodní fréza, ruční nástroje, dílenské vybavení
C8: 113 | D8: zasklívání | E8: 4 | F8: ruční nástroje, dílenské vybavení
C9: 114 | D9: výroba skříní | E9: 5 | F9: výrobní hala, formátovací pila, olepovačka, ruční nářadí, dílenské vybavení
C10: 121 | D10: lakovna PU, AC, H20 | E10: 4 | F10: lakovací box, ruční nástroje, vybavené pro lakování
C11: 122 | D11: lakovna dýha | E11: 1 | F11: bruska pásová, kašírovací stroj, lakovací box, dílenské vybavení
C12: 130 | D12: výroba zárubní | E12: 15 | F12: výrobní hala, formátovací, pokosová, nářezová pila, fréza, vrtačka, bruska, obalovačka, olepovačka, dlabačka, lis, ruční nástroje, dílenské vybavení
C13: 131 | D13: lisovna | E13: 4 | F13: prostor ve výrobní hale, nanášecí stroj, lis etážový
B14: expediční fáze | C14: 313 | D14: expedice | E14: 2 | F14: kancelář, počítač, mobilní telefon, tiskárna, kancelářské vybavení | G14: Flaveo, systém CAG, web CN, Premier, MS Office, know-how
C15: 310 | D15: sklad dveří + sklad zárubní | E15: 5 | F15: skladovací prostory, vysokozdvižný vozík, kancelář, počítač, mobilní telefon, tiskárna, kancelářské vybavení
C16: 150 | D16: rozvozový řidiči | E16: 3 | F16: nákladní automobil, mobil | G16: know-how
C17: ext. | D17: montážníci | E17: 15 | F17: automobil, nástroje a vybavení pro montáž
C19: pozice/středisko/ činnost
B20: VPN činnosti | C20: 110 | D20: dřevovýroba | E20: 1 | F20: ruční nástroje a dílenské vybavení | H20: vlastní kapitál, krátkodobý odběratelský úvěr (zálohové faktury) či dodavatelský úvěr (doba splatnost faktur)
C21: 120 | D21: výroba rámečků | E21: 3 | F21: ruční nástroje, dílenské vybavení
C22: 230 | D22: brusírna | E22: 1 | F22: bruska, ruční nástroje a dílenské vybavení
C23: 210 | D23: kovodílna | E23: 5 | F23: hala, jednoúčelové nástroje: lakovací box, ruční nářadí, dílenské vybavení
B24: ostatní nepřímo přiřaditelné činnosti | C24: 200 | D24: IT oddělení | E24: 3 | F24: kancelář, počítač, mobil, tiskárna, kancelářské vybavení, speciální hardware, automobil | G24: systém CAG, web CN, Premier, MS Office, CAD, spec. software pro programování, know-how
D25: výzkum a vývoj
C26: 300 | D26: uklízečka | E26: 1
D27: marketing | E27: 2 | F27: kancelář, počítač, mobil, tiskárna, kancelářské vybavení, automobil | G27: systém CAG, web CN, Premier, MS Office, know-how
D28: účetní oddělení | E28: 3
D29: obchodní ředitel | E29: 1
D30: asistentka OŘ | E30: 1
C31: 301 | D31: reklamační oddělení | E31: 2
C32: 11 | D32: vedení výroby dveří | E32: 5
C33: 13 | D33: vedení výroby zárubní | E33: 2
C34: 9 | D34: ekonomické oddělení | E34: 3
D35: technické kreslení | E35: 1
D36: vedoucí výroby | E36: 1
D37: právní oddělení | E37: 1
D38: vedení společnosti | E38: 2
C40: středisko
B41: maloobchodní pobočky | C41: 303 | D41: vzorkovna Kytín | E41: 2
C42: 321 | D42: vzorkovna Písek | E42: 2
C43: 330 | D43: vzorkovna České Budějovice | E43: 1
C44: 340 | D44: vzorkovna Příbram | E44: 2
C45: 341 | D45: vzorkovna Horoměřice | E45: 2
C46: 351 | D46: vzorkovna Praha 9 | E46: 2
C47: 353 | D47: vzorkovna Praha 4 | E47: 2
C48: 370 | D48: vzorkovna Plzeň | E48: 2
C49: 382 | D49: vzorkovna Brno | E49: 3
C50: 390 | D50: vzorkovna Pardubice | E50: 2
C51: 395 | D51: vzorkovna Liberec | E51: 2

Sheet zdroje dle výrob. oper.
B2: stř. | C2: výrobní operace | D2: zam. | E2: hmotné vybavení | F2: ks | H2: stř. | I2: výrobní operace | J2: zam. | K2: hmotné vybavení | L2: ks
B3: 131 | C3: lisování | D3: 4 | E3: nanášecí stroj, lis etážový | F3: 2 | H3: 114 | I3: řezání | J3: 5 | K3: formátovací pila | L3: 2
B4: 111 | C4: formátování | D4: 2 | E4: dvoustranný formátovací stroj | F4: 1 | I4: olepování | K4: olepovačka hran | L4: 1
C5: olepování | D5: 2 | E5: olepovačka hran | F5: 1 | I5: čištění | K5: ruční nástroje, dílenské vybavení | L5: 1
C6: opracování na CNC | D6: 2 | E6: CNC stroj - 1x 5 osá, 1x 3 osá | F6: 2 | I6: opracování na CNC | K6: CNC stroj (stř. 111) | M6: vrtání, frézování, dlabání, formátování
C7: výroba Triumf + Kitty | D7: 2 | E7: spodní fréza | F7: 1 | I7: rozvrtání/lamelování | K7: výrobní přípravek | L7: 1
B8: 122 | C8: broušení | D8: 1 | E8: bruska pásová | F8: 1 | I8: kompletování | K8: ruční nástroje, dílenské vybavení
C9: kartáčování | E9: kartáčovací stroj | F9: 1 | I9: balení
C10: moření | E10: ruční nástroje, dílenské vybavení | I10: výstupní kontrola
C11: lakování/olejovoskování | E11: lakovací box, vybavení pro lakování | F11: 1 | H11: 130 | I11: řezání proužků na obložky | J11: 1 | K11: nářezová pila | L11: 1
B12: 121 | C12: čištění | D12: 4 | E12: ruční nástroje, dílenské vybavení | I12: lepení středů a boků | J12: 1.5 | K12: olepovačka | L12: 1
C13: broušení | I13: obalování obložek | J13: 1 | K13: obalovací stroj | L13: 1
C14: základní nástřik | E14: lakovací box, vybavení pro lakování | F14: 2 | I14: krácení + vrtání excentrů | J14: 1 | K14: pokosová pila, vrtačka | L14: 2
C15: vrchní nástřik | I15: opracování na CNC | K15: CNC stroj (stř. 111)
B16: 113 | C16: zasklívání | D16: 4 | E16: ruční nástroje, dílenské vybavení | I16: broušení hran obložek | J16: 1 | K16: ruční nástroje, dílenské vybavení
B17: 111 | C17: čištění | D17: 3 | E17: ruční nástroje, dílenské vybavení | I17: fréz., dlab., vrtání P+P | J17: 1 | K17: ruční fréza, dlabačka, vrtačka | L17: 4
C18: kompletování | I18: řezání základních formátů | J18: 1 | K18: ruční elekrická pila | L18: 1
C19: balení | I19: lisování ostění | J19: 2 | K19: nanášecí stroj, lis | L19: 2
C20: výstupní kontrola | D20: 1 | I20: řezání + krácení ostění | J20: 2 | K20: formátovací pila | L20: 1
B21: 11 | C21: výrobní mistr | I21: olepování + fréz. ostění | K21: olepovačka hran s frézováním | L21: 1
C22: manipulace mater. a zboží | D22: 1 | E22: 2x vysokozdvižný vozík | F22: 2 | I22: čištění + broušení hran | J22: 0.5 | K22: ruční nástroje, dílenské vybavení
C23: úklid | D23: 1 | E23: ruční nástroje | I23: sponkování | J23: 3 | K23: sponkovačka | L23: 1
C24: technická podpora výroby | D24: 1 | E24: kancelář, počítač, mobil, tiskárna, kancelářské vybavení, automobil | I24: kompletování | K24: ruční nástroje, dílenské vybavení
C25: vedoucí výroby dveří | D25: 1 | I25: balení
B26: 110 | C26: dřevovýroba (VPN) | D26: 1 | E26: ruční nástroje, dílenské vybavení | I26: výstupní kontrola
B27: 120 | C27: řezání | D27: 3 | E27: pokosová pila | F27: 4 | H27: 13 | I27: technická podpora výroby | J27: 1 | K27: kancelář, počítač, mobil, tiskárna, kancelářské vybavení, automobil
C28: úpravy dřevěné/alumi | I28: vedoucí výroby zárubní | J28: 1
C29: kompletování | E29: ruční nástroje, dílenské vybavení | H29: 230 | I29: brusírna (VPN) | J29: 1 | K29: specializované brusky | L29: 3
C30: broušení | H30: 210 | I30: kovodílna (VPN) | J30: 5 | K30: 2x soustruh, 2x fréza, stojanová vrtačka, ohybačka | L30: 6
C31: lakování
P64: zodpovědnost za koordinaci, implementaci a rozvoj obchodní a prodejní strategie, rozhodování o využití interních zdrojů, strategické řízení, ovlivňování vývojových a inovačních procesů, vytváření a udržování obchodních vztahů a jednání s partnery, vedení a kontrola zaměstnanců, rozdělování úkolů a následná kontrola jejich plnění, motivace a hodnocení těchto zaměstnanců
P65: stanovování finanční strategie a postupů, tvorba ročních plánů a rozpočtů, hodnocení rizikovosti projektů, analýza finančních ukazatelů, poskytování finančních analýz a doporučení, reprezentace organizace na jednáních, organizace a koordinování činnosti podřízených manažerů, zajištění efektivnosti hospodaření organizace, dotační management
P66: zpracovávání účetních dokladů, oceňování majetku, vedení daňové evidence nebo účetnictví, komunikace s úřady a jinými institucemi, výpočet srážek a odvodů, vedení evidence, kontrola správnosti faktur, sestavování účetních výkazů, provádění pravidelných kontrol

Sheet kapac. zdrojů
C2: pozice/středisko/ činnost | F2: hrubý počet hodin/den | G2: čistý počet dnů/rok | H2: čistý počet hodin/rok | I2: omezující faktor
B3: obchodní fáze | C3: 11x | D3: maloobchodní pobočky | E3: ='zdroje dle stř.'!$E3 -> 22 | F3: 8 | G3: =E3*$M$27 -> 4840 | H3: =G3*F3 -> 38720
C4: 319 | D4: velkoobchod | E4: ='zdroje dle stř.'!$E4 -> 1 | F4: 8 | G4: 220 | H4: =G4*F4 -> 1760
C5: ext. | D5: zaměřovací technik | E5: ='zdroje dle stř.'!$E5 -> 2 | F5: 8 | G5: 440 | H5: 3520
C6: 301 | D6: technik zadávacího centra výroby | E6: ='zdroje dle stř.'!$E6 -> 4 | F6: 8 | G6: 880 | H6: 7040
B7: výrobní fáze | C7: 111 | D7: výroba dveří | E7: ='zdroje dle stř.'!$E7 -> 12 | F7: 8 | G7: 2640 | H7: 21120
C8: 113 | D8: zasklívání | E8: ='zdroje dle stř.'!$E8 -> 4 | F8: 8 | G8: 880 | H8: 7040
C9: 114 | D9: výroba skříní | E9: ='zdroje dle stř.'!$E9 -> 5 | F9: 8 | G9: 1100 | H9: 8800
C10: 121 | D10: lakovna PU, AC, H20 | E10: ='zdroje dle stř.'!$E10 -> 4 | F10: 8 | G10: 880 | H10: 7040
C11: 122 | D11: lakovna dýha | E11: ='zdroje dle stř.'!$E11 -> 1 | F11: 8 | G11: 220 | H11: 1760
C12: 130 | D12: výroba zárubní | E12: ='zdroje dle stř.'!$E12 -> 15 | F12: 8 | G12: 3300 | H12: 26400
C13: 131 | D13: lisovna | E13: ='zdroje dle stř.'!$E13 -> 4 | F13: 8 | G13: 880 | H13: 7040
B14: expediční fáze | C14: 313 | D14: expedice | E14: ='zdroje dle stř.'!$E14 -> 2 | F14: 8 | G14: 440 | H14: 3520
C15: 310 | D15: sklad dveří + sklad zárubní | E15: ='zdroje dle stř.'!$E15 -> 5 | F15: 8 | G15: 1100 | H15: 8800
C16: 150 | D16: rozvozový řidiči | E16: ='zdroje dle stř.'!$E16 -> 3 | F16: 8 | G16: 660 | H16: 5280
C17: ext. | D17: montážníci | E17: ='zdroje dle stř.'!$E17 -> 15 | F17: 8 | G17: 3300 | H17: 26400
B18: VPN činnosti | C18: 110 | D18: ='zdroje dle stř.'!D20 -> dřevovýroba | E18: ='zdroje dle stř.'!$E20 -> 1 | F18: 8 | G18: 220 | H18: =G18*F18 -> 1760
C19: 120 | D19: ='zdroje dle stř.'!D21 -> výroba rámečků | E19: ='zdroje dle stř.'!$E21 -> 3 | F19: 8 | G19: 660 | H19: 5280 | K19: Postup výpočtu kapacitního plánu [den]
C20: 230 | D20: ='zdroje dle stř.'!D22 -> brusírna | E20: ='zdroje dle stř.'!$E22 -> 1 | F20: 8 | G20: 220 | H20: 1760 | M20: Pracovník | N20: Zařízení
C21: 210 | D21: ='zdroje dle stř.'!D23 -> kovodílna | E21: ='zdroje dle stř.'!$E23 -> 5 | F21: 8 | G21: 1100 | H21: 8800 | K21: celkem | M21: 250 | N21: 250
B22: ostatní nepřímo přiřaditelné činnosti (ONPČ) | C22: 200 | D22: ='zdroje dle stř.'!D24 -> IT oddělení | E22: ='zdroje dle stř.'!$E24 -> 3 | F22: 8 | G22: 660 | H22: =F22*G22 -> 5280 | K22: dovolená | M22: 15 | N22: -
D23: ='zdroje dle stř.'!D25 -> výzkum a vývoj | K23: celozávodní dovolená | M23: 5 | N23: 5
C24: 300 | D24: ='zdroje dle stř.'!D26 -> uklízečka | E24: ='zdroje dle stř.'!$E26 -> 1 | F24: 8 | G24: =E24*$M$27 -> 220 | H24: 1760 | K24: školení | M24: 5 | N24: -
D25: ='zdroje dle stř.'!D27 -> marketing | E25: ='zdroje dle stř.'!$E27 -> 2 | F25: 8 | G25: 440 | H25: 3520 | K25: nemoc | M25: 5 | N25: -
D26: ='zdroje dle stř.'!D28 -> účetní oddělení | E26: ='zdroje dle stř.'!$E28 -> 3 | F26: 8 | G26: 660 | H26: 5280 | K26: údržba strojů | M26: - | N26: 5
D27: ='zdroje dle stř.'!D29 -> obchodní ředitel | E27: ='zdroje dle stř.'!$E29 -> 1 | F27: 8 | G27: 220 | H27: 1760 | K27: roční časový fond | M27: 220 | N27: 240
D28: ='zdroje dle stř.'!D30 -> asistentka OŘ | E28: ='zdroje dle stř.'!$E30 -> 1 | F28: 8 | G28: 220 | H28: 1760
C29: 301 | D29: ='zdroje dle stř.'!D31 -> reklamační oddělení | E29: ='zdroje dle stř.'!$E31 -> 2 | F29: 8 | G29: 440 | H29: 3520
C30: 11 | D30: ='zdroje dle stř.'!D32 -> vedení výroby dveří | E30: ='zdroje dle stř.'!$E32 -> 5 | F30: 8 | G30: 1100 | H30: 8800
C31: 13 | D31: ='zdroje dle stř.'!D33 -> vedení výroby zárubní | E31: ='zdroje dle stř.'!$E33 -> 2 | F31: 8 | G31: 440 | H31: 3520
C32: 9 | D32: ='zdroje dle stř.'!D34 -> ekonomické oddělení | E32: ='zdroje dle stř.'!$E34 -> 3 | F32: 8 | G32: 660 | H32: 5280
D33: ='zdroje dle stř.'!D35 -> technické kreslení | E33: ='zdroje dle stř.'!$E35 -> 1 | F33: 8 | G33: 220 | H33: 1760
D34: ='zdroje dle stř.'!D36 -> vedoucí výroby | E34: ='zdroje dle stř.'!$E36 -> 1 | F34: 8 | G34: 220 | H34: 1760
D35: ='zdroje dle stř.'!D37 -> právní oddělení | E35: ='zdroje dle stř.'!$E37 -> 1 | F35: 8 | G35: 220 | H35: 1760
D36: ='zdroje dle stř.'!D38 -> vedení společnosti | E36: ='zdroje dle stř.'!$E38 -> 2 | F36: 8 | G36: 440 | H36: 3520
C38: obchodní středisko | F38: hrubý počet hodin/den | G38: čistý počet dnů/rok | H38: čistý počet hodin/rok | I38: omezující faktor
B39: maloobchodní pobočky | C39: 303 | D39: vzorkovna Kytín | E39: ='zdroje dle stř.'!$E41 -> 2 | F39: 8 | G39: =E39*$M$27 -> 440 | H39: 3520
C40: 321 | D40: vzorkovna Písek | E40: ='zdroje dle stř.'!$E42 -> 2 | F40: 8 | G40: 440 | H40: 3520
C41: 330 | D41: vzorkovna České Buděj. | E41: ='zdroje dle stř.'!$E43 -> 1 | F41: 8 | G41: 220 | H41: 1760
C42: 340 | D42: vzorkovna Příbram | E42: ='zdroje dle stř.'!$E44 -> 2 | F42: 8 | G42: 440 | H42: 3520
C43: 341 | D43: vzorkovna Horoměřice | E43: ='zdroje dle stř.'!$E45 -> 2 | F43: 8 | G43: 440 | H43: 3520
C44: 351 | D44: vzorkovna Praha 9 | E44: ='zdroje dle stř.'!$E46 -> 2 | F44: 8 | G44: 440 | H44: 3520
C45: 353 | D45: vzorkovna Praha 4 | E45: ='zdroje dle stř.'!$E47 -> 2 | F45: 8 | G45: 440 | H45: 3520
C46: 370 | D46: vzorkovna Plzeň | E46: ='zdroje dle stř.'!$E48 -> 2 | F46: 8 | G46: 440 | H46: 3520
C47: 382 | D47: vzorkovna Brno | E47: ='zdroje dle stř.'!$E49 -> 3 | F47: 8 | G47: 660 | H47: 5280
C48: 390 | D48: vzorkovna Pardubice | E48: ='zdroje dle stř.'!$E50 -> 2 | F48: 8 | G48: 440 | H48: 3520
C49: 395 | D49: vzorkovna Liberec | E49: ='zdroje dle stř.'!$E51 -> 2 | F49: 8 | G49: 440 | H49: 3520
C52: výrobní operace/středisko | F52: hrubý počet hodin/den | G52: čistý počet dnů/rok | H52: čistý počet hodin/rok | J52: hrubý počet hodin/den | K52: čistý počet dnů/rok | L52: čistý počet hodin/rok | M52: omezující faktor
B53: výrobní fáze | C53: 131 | D53: lisování | E53: ='zdroje dle výrob. oper.'!D3 -> 4 | F53: 8 | G53: =E53*$M$27 -> 880 | H53: =F53*G53 -> 7040 | I53: ='zdroje dle výrob. oper.'!F3 -> 2 | J53: 8 | K53: =I53*$N$27 -> 480 | L53: =K53*J53 -> 3840
C54: 111 | D54: formátování | E54: ='zdroje dle výrob. oper.'!D4 -> 2 | F54: 8 | G54: 440 | H54: 3520 | I54: ='zdroje dle výrob. oper.'!F4 -> 1 | J54: 8 | K54: 240 | L54: =K54*J54 -> 1920
D55: olepování | E55: 2 | F55: 8 | G55: 440 | H55: 3520 | I55: ='zdroje dle výrob. oper.'!F5 -> 1 | J55: 8 | K55: 240 | L55: 1920
D56: opracování na CNC | E56: 2 | F56: 8 | G56: 440 | H56: 3520 | I56: ='zdroje dle výrob. oper.'!F6 -> 2 | J56: 8 | K56: 480 | L56: 3840
D57: výroba Triumf + Kitty | E57: 2 | F57: 8 | G57: 440 | H57: 3520 | I57: ='zdroje dle výrob. oper.'!F7 -> 1 | J57: 8 | K57: 240 | L57: 1920
C58: 122 | D58: broušení | E58: 1 | F58: 8 | G58: 220 | H58: 1760 | I58: ='zdroje dle výrob. oper.'!F8 -> 1 | J58: 8 | K58: 240 | L58: 1920
D59: kartáčování | F59: 8 | G59: 0 | H59: 0 | I59: ='zdroje dle výrob. oper.'!F9 -> 1 | J59: 8 | K59: 240 | L59: 1920
D60: moření | F60: 8 | G60: 0 | H60: 0 | J60: 8 | L60: 0
D61: lakování/olejovoskování | F61: 8 | G61: 0 | H61: 0 | I61: ='zdroje dle výrob. oper.'!F11 -> 1 | J61: 8 | K61: =I61*$N$27 -> 240 | L61: 1920
C62: 121 | D62: čištění | E62: 4 | F62: 8 | G62: 880 | H62: 7040
D63: broušení | F63: 8 | G63: 0 | H63: 0
D64: základní nástřik | F64: 8 | G64: 0 | H64: 0 | I64: ='zdroje dle výrob. oper.'!F14 -> 2 | J64: 8 | K64: =I64*$N$27 -> 480 | L64: =J64*$N$27 -> 1920
D65: vrchní nástřik | F65: 8 | G65: 0 | H65: 0
C66: 113 | D66: zasklívání | E66: 4 | F66: 8 | G66: 880 | H66: 7040
C67: 111 | D67: čištění | E67: 3 | F67: 8 | G67: 660 | H67: 5280
D68: kompletování | F68: 8 | G68: 0 | H68: 0
D69: balení | F69: 8 | G69: 0 | H69: 0
D70: výstupní kontrola | E70: 1 | F70: 8 | G70: 220 | H70: 1760
B71: ONPČ | C71: 11 | D71: výrobní mistr | F71: 8 | G71: 0 | H71: 0
D72: manipulace mater. a zboží | E72: 1 | F72: 8 | G72: 220 | H72: 1760 | I72: ='zdroje dle výrob. oper.'!F22 -> 2 | J72: 8 | K72: =I72*$N$27 -> 480 | L72: =K72*J72 -> 3840
D73: úklid | E73: 1 | F73: 8 | G73: 220 | H73: 1760
D74: technická podpora výroby | E74: 1 | F74: 8 | G74: 220 | H74: 1760
D75: vedoucí výroby dveří | E75: 1 | F75: 8 | G75: 220 | H75: 1760
B76: výrobní fáze | C76: 114 | D76: řezání | E76: 5 | F76: 8 | G76: 1100 | H76: 8800 | I76: ='zdroje dle výrob. oper.'!L3 -> 2 | J76: 8 | K76: =I76*$N$27 -> 480 | L76: =K76*J76 -> 3840
D77: olepování | F77: 8 | G77: 0 | H77: 0 | I77: ='zdroje dle výrob. oper.'!L4 -> 1 | J77: 8 | K77: =I77*$N$27 -> 240 | L77: =K77*J77 -> 1920
D78: čištění | F78: 8 | G78: 0 | H78: 0 | I78: ='zdroje dle výrob. oper.'!L5 -> 1 | J78: 8 | K78: =I78*$N$27 -> 240 | L78: =K78*J78 -> 1920
D79: opracování na CNC | F79: 8 | G79: 0 | H79: 0
D80: rozvrtání/lamelování | F80: 8 | G80: 0 | H80: 0 | I80: ='zdroje dle výrob. oper.'!L7 -> 1 | J80: 8 | K80: =I80*$N$27 -> 240 | L80: =K80*J80 -> 1920
D81: kompletování | F81: 8 | G81: 0 | H81: 0
D82: balení | F82: 8 | G82: 0 | H82: 0
D83: výstupní kontrola | F83: 8 | G83: 0 | H83: 0
C84: 130 | D84: řezání proužků na obložky | E84: 1 | F84: 8 | G84: 220 | H84: 1760 | I84: ='zdroje dle výrob. oper.'!L11 -> 1 | J84: 8 | K84: =I84*$N$27 -> 240 | L84: =K84*J84 -> 1920
D85: lepení středů a boků | E85: 1.5 | F85: 8 | G85: =E85*$M$27 -> 330 | H85: =F85*G85 -> 2640 | I85: ='zdroje dle výrob. oper.'!L12 -> 1 | J85: 8 | K85: =I85*$N$27 -> 240 | L85: =K85*J85 -> 1920
D86: obalování obložek | E86: 1 | F86: 8 | G86: 220 | H86: 1760 | I86: ='zdroje dle výrob. oper.'!L13 -> 1 | J86: 8 | K86: =I86*$N$27 -> 240 | L86: =K86*J86 -> 1920
D87: krácení + vrtání excentrů | E87: 1 | F87: 8 | G87: 220 | H87: 1760 | I87: ='zdroje dle výrob. oper.'!L14 -> 2 | J87: 8 | K87: =I87*$N$27 -> 480 | L87: =K87*J87 -> 3840
D88: opracování na CNC | F88: 8 | G88: 0 | H88: 0
D89: broušení hran obložek | E89: 1 | F89: 8 | G89: 220 | H89: 1760
D90: fréz., dlab., vrtání P+P | E90: 1 | F90: 8 | G90: 220 | H90: 1760 | I90: ='zdroje dle výrob. oper.'!L17 -> 4 | J90: 8 | K90: =I90*$N$27 -> 960 | L90: =K90*J90 -> 7680
D91: řezání základních formátů | E91: 1 | F91: 8 | G91: 220 | H91: 1760 | I91: ='zdroje dle výrob. oper.'!L18 -> 1 | J91: 8 | K91: =I91*$N$27 -> 240 | L91: =K91*J91 -> 1920
D92: lisování ostění | E92: 2 | F92: 8 | G92: 440 | H92: 3520 | I92: ='zdroje dle výrob. oper.'!L19 -> 2 | J92: 8 | K92: =I92*$N$27 -> 480 | L92: =K92*J92 -> 3840
D93: řezání + krácení ostění | E93: 2 | F93: 8 | G93: 440 | H93: 3520 | I93: ='zdroje dle výrob. oper.'!L20 -> 1 | J93: 8 | K93: =I93*$N$27 -> 240 | L93: =K93*J93 -> 1920
D94: olepování + fréz. ostění | F94: 8 | G94: 0 | H94: 0 | I94: ='zdroje dle výrob. oper.'!L21 -> 1 | J94: 8 | K94: =I94*$N$27 -> 240 | L94: =K94*J94 -> 1920
D95: čištění + broušení hran | E95: 0.5 | F95: 8 | G95: 110 | H95: 880
D96: sponkování | E96: 3 | F96: 8 | G96: 660 | H96: 5280 | I96: ='zdroje dle výrob. oper.'!L23 -> 1 | J96: 8 | K96: =I96*$N$27 -> 240 | L96: =K96*J96 -> 1920
D97: kompletování | F97: 8 | G97: 0 | H97: 0
D98: balení | F98: 8 | G98: 0 | H98: 0
D99: výstupní kontrola | F99: 8 | G99: 0 | H99: 0
B100: ONPČ | C100: 13 | D100: technická podpora výroby | E100: 1 | F100: 8 | G100: 220 | H100: 1760
D101: vedoucí výroby zárubní | E101: 1 | F101: 8 | G101: 220 | H101: 1760
B102: VPN činnosti | C102: 110 | D102: dřevovýroba (VPN) | E102: 1 | F102: 8 | G102: 220 | H102: 1760
C103: 120 | D103: řezání | E103: 3 | F103: 8 | G103: 660 | H103: 5280 | I103: ='zdroje dle výrob. oper.'!F27 -> 4 | J103: 8 | K103: =I103*$N$27 -> 960 | L103: =K103*J103 -> 7680
D104: úpravy dřevěné/alumi | F104: 8 | G104: 0 | H104: 0
D105: kompletování | F105: 8 | G105: 0 | H105: 0
D106: broušení | F106: 8 | G106: 0 | H106: 0
D107: lakování | F107: 8 | G107: 0 | H107: 0
C108: 230 | D108: brusírna (VPN) | E108: 1 | F108: 8 | G108: 220 | H108: 1760 | I108: ='zdroje dle výrob. oper.'!L29 -> 3 | J108: 8 | K108: =I108*$N$27 -> 720 | L108: =K108*J108 -> 5760
C109: 210 | D109: kovodílna (VPN) | E109: 5 | F109: 8 | G109: 1100 | H109: 8800 | I109: ='zdroje dle výrob. oper.'!L30 -> 6 | J109: 8 | K109: =I109*$N$27 -> 1440 | L109: =J109*K109 -> 11520
F110: 8 | G110: 0 | H110: 0

Sheet Provoz. rozp. - výrob. činnosti (hidden)
C2: Provozní rozpočet - výrobních činnosti | D2: řezání surového materiálu [Kč] | E2: broušení [Kč] | F2: kompletace obložek [Kč] | G2: olepení obložek [Kč] | H2: ohranění ostění [Kč] | I2: lakování [Kč] | J2: osazení protiplechu a pantů [Kč] | K2: osazení příslušenství [Kč] | L2: kompletace zárubní [Kč] | M2: IT - přenastavování CNC | N2: řízení jednotl. výr. oddělení | O2: řízení výroby | P2: ∑ nákladů
B3: 1 | C3: Celkové osobní náklady | D3: =SUM(D4:D7) ->  | P3: =SUM(D3:O3) -> 
C4: Osobní N | D4: =35000*12*'zdroje dle stř.'!#REF!*D34 ->  | E4: =35000*12*'zdroje dle stř.'!#REF!*E34 ->  | F4: =35000*12*'zdroje dle stř.'!#REF!*F34 ->  | G4: =35000*12*'zdroje dle stř.'!#REF!*G34 ->  | H4: =35000*12*'zdroje dle stř.'!#REF!*H34 ->  | I4: =35000*12*'zdroje dle stř.'!#REF!*I34 ->  | J4: =35000*12*'zdroje dle stř.'!#REF!*J34 ->  | K4: =35000*12*'zdroje dle stř.'!#REF!*K34 ->  | L4: =35000*12*'zdroje dle stř.'!#REF!*L34 ->  | M4: =35000*12*'zdroje dle stř.'!#REF!*M34 ->  | N4: =35000*12*'zdroje dle stř.'!#REF!*N34 ->  | O4: =35000*12*'zdroje dle stř.'!#REF!*O34 ->  | P4: =SUM(D4:O4) -> 
C5: Odměny, bonusy | D5: =3050*12*'zdroje dle stř.'!#REF!*D34 ->  | E5: =3050*12*'zdroje dle stř.'!#REF!*E34 ->  | F5: =3050*12*'zdroje dle stř.'!#REF!*F34 ->  | G5: =3050*12*'zdroje dle stř.'!#REF!*G34 ->  | H5: =3050*12*'zdroje dle stř.'!#REF!*H34 ->  | I5: =3050*12*'zdroje dle stř.'!#REF!*I34 ->  | J5: =3050*12*'zdroje dle stř.'!#REF!*J34 ->  | K5: =3050*12*'zdroje dle stř.'!#REF!*K34 ->  | L5: =3050*12*'zdroje dle stř.'!#REF!*L34 ->  | M5: =3050*12*'zdroje dle stř.'!#REF!*M34 ->  | N5: =3050*12*'zdroje dle stř.'!#REF!*N34 ->  | O5: =3050*12*'zdroje dle stř.'!#REF!*O34 -> 
C6: N na školení | D6: =500*12*'zdroje dle stř.'!#REF!*D34 ->  | E6: =500*12*'zdroje dle stř.'!#REF!*E34 ->  | F6: =500*12*'zdroje dle stř.'!#REF!*F34 ->  | G6: =500*12*'zdroje dle stř.'!#REF!*G34 ->  | H6: =500*12*'zdroje dle stř.'!#REF!*H34 ->  | I6: =500*12*'zdroje dle stř.'!#REF!*I34 ->  | J6: =500*12*'zdroje dle stř.'!#REF!*J34 ->  | K6: =500*12*'zdroje dle stř.'!#REF!*K34 ->  | L6: =500*12*'zdroje dle stř.'!#REF!*L34 ->  | M6: =500*12*'zdroje dle stř.'!#REF!*M34 ->  | N6: =500*12*'zdroje dle stř.'!#REF!*N34 ->  | O6: =500*12*'zdroje dle stř.'!#REF!*O34 -> 
C7: N na osobní prac. vybavení | D7: =390*12*'zdroje dle stř.'!#REF!*D34 ->  | E7: =390*12*'zdroje dle stř.'!#REF!*E34 ->  | F7: =390*12*'zdroje dle stř.'!#REF!*F34 ->  | G7: =390*12*'zdroje dle stř.'!#REF!*G34 ->  | H7: =390*12*'zdroje dle stř.'!#REF!*H34 ->  | I7: =390*12*'zdroje dle stř.'!#REF!*I34 ->  | J7: =390*12*'zdroje dle stř.'!#REF!*J34 ->  | K7: =390*12*'zdroje dle stř.'!#REF!*K34 ->  | L7: =390*12*'zdroje dle stř.'!#REF!*L34 ->  | M7: =390*12*'zdroje dle stř.'!#REF!*M34 ->  | N7: =390*12*'zdroje dle stř.'!#REF!*N34 ->  | O7: =390*12*'zdroje dle stř.'!#REF!*O34 -> 
B8: 2a | C8: Náklady na vybavení HW a SW | D8: =SUM(D9:D12) -> 
C9: N na odpisy HW | D9: =2155*12*'zdroje dle stř.'!#REF!*D34 ->  | E9: =2155*12*'zdroje dle stř.'!#REF!*E34 ->  | F9: =2155*12*'zdroje dle stř.'!#REF!*F34 ->  | G9: =2155*12*'zdroje dle stř.'!#REF!*G34 ->  | H9: =2155*12*'zdroje dle stř.'!#REF!*H34 ->  | I9: =2155*12*'zdroje dle stř.'!#REF!*I34 ->  | J9: =2155*12*'zdroje dle stř.'!#REF!*J34 ->  | K9: =2155*12*'zdroje dle stř.'!#REF!*K34 ->  | L9: =2155*12*'zdroje dle stř.'!#REF!*L34 ->  | M9: =2155*12*'zdroje dle stř.'!#REF!*M34 ->  | N9: =2155*12*'zdroje dle stř.'!#REF!*N34 ->  | O9: =2155*12*'zdroje dle stř.'!#REF!*O34 -> 
C10: N na údržbu HW | D10: =536*12*'zdroje dle stř.'!#REF!*D34 ->  | E10: =536*12*'zdroje dle stř.'!#REF!*E34 ->  | F10: =536*12*'zdroje dle stř.'!#REF!*F34 ->  | G10: =536*12*'zdroje dle stř.'!#REF!*G34 ->  | H10: =536*12*'zdroje dle stř.'!#REF!*H34 ->  | I10: =536*12*'zdroje dle stř.'!#REF!*I34 ->  | J10: =536*12*'zdroje dle stř.'!#REF!*J34 ->  | K10: =536*12*'zdroje dle stř.'!#REF!*K34 ->  | L10: =536*12*'zdroje dle stř.'!#REF!*L34 ->  | M10: =536*12*'zdroje dle stř.'!#REF!*M34 ->  | N10: =536*12*'zdroje dle stř.'!#REF!*N34 ->  | O10: =536*12*'zdroje dle stř.'!#REF!*O34 -> 
C11: N na pořízení a aktivaci HW | D11: =488*12*'zdroje dle stř.'!#REF!*D34 ->  | E11: =488*12*'zdroje dle stř.'!#REF!*E34 ->  | F11: =488*12*'zdroje dle stř.'!#REF!*F34 ->  | G11: =488*12*'zdroje dle stř.'!#REF!*G34 ->  | H11: =488*12*'zdroje dle stř.'!#REF!*H34 ->  | I11: =488*12*'zdroje dle stř.'!#REF!*I34 ->  | J11: =488*12*'zdroje dle stř.'!#REF!*J34 ->  | K11: =488*12*'zdroje dle stř.'!#REF!*K34 ->  | L11: =488*12*'zdroje dle stř.'!#REF!*L34 ->  | M11: =488*12*'zdroje dle stř.'!#REF!*M34 ->  | N11: =488*12*'zdroje dle stř.'!#REF!*N34 ->  | O11: =488*12*'zdroje dle stř.'!#REF!*O34 -> 
C12: N na režijní materiál HW | D12: =732*12*'zdroje dle stř.'!#REF!*D34 ->  | E12: =732*12*'zdroje dle stř.'!#REF!*E34 ->  | F12: =732*12*'zdroje dle stř.'!#REF!*F34 ->  | G12: =732*12*'zdroje dle stř.'!#REF!*G34 ->  | H12: =732*12*'zdroje dle stř.'!#REF!*H34 ->  | I12: =732*12*'zdroje dle stř.'!#REF!*I34 ->  | J12: =732*12*'zdroje dle stř.'!#REF!*J34 ->  | K12: =732*12*'zdroje dle stř.'!#REF!*K34 ->  | L12: =732*12*'zdroje dle stř.'!#REF!*L34 ->  | M12: =732*12*'zdroje dle stř.'!#REF!*M34 ->  | N12: =732*12*'zdroje dle stř.'!#REF!*N34 ->  | O12: =732*12*'zdroje dle stř.'!#REF!*O34 -> 
B13: 2b | C13: Náklady na stroj. vybavení | D13: =SUM(D14:D17) -> 
C14: N na odpisy | D14: =4000*12*'zdroje dle stř.'!#REF!*D34 ->  | E14: =4000*12*'zdroje dle stř.'!#REF!*E34 ->  | F14: =4000*12*'zdroje dle stř.'!#REF!*F34 ->  | G14: =4000*12*'zdroje dle stř.'!#REF!*G34 ->  | H14: =4000*12*'zdroje dle stř.'!#REF!*H34 ->  | I14: =4000*12*'zdroje dle stř.'!#REF!*I34 ->  | J14: =4000*12*'zdroje dle stř.'!#REF!*J34 ->  | K14: =4000*12*'zdroje dle stř.'!#REF!*K34 ->  | L14: =4000*12*'zdroje dle stř.'!#REF!*L34 ->  | M14: =4000*12*'zdroje dle stř.'!#REF!*M34 -> 
C15: N na el. energii | D15: =862*12*'zdroje dle stř.'!#REF!*D34 ->  | E15: =862*12*'zdroje dle stř.'!#REF!*E34 ->  | F15: =862*12*'zdroje dle stř.'!#REF!*F34 ->  | G15: =862*12*'zdroje dle stř.'!#REF!*G34 ->  | H15: =862*12*'zdroje dle stř.'!#REF!*H34 ->  | I15: =862*12*'zdroje dle stř.'!#REF!*I34 ->  | J15: =862*12*'zdroje dle stř.'!#REF!*J34 ->  | K15: =862*12*'zdroje dle stř.'!#REF!*K34 ->  | L15: =862*12*'zdroje dle stř.'!#REF!*L34 ->  | M15: =862*12*'zdroje dle stř.'!#REF!*M34 -> 
C16: N na údržbu | D16: =469*12*'zdroje dle stř.'!#REF!*D34 ->  | E16: =469*12*'zdroje dle stř.'!#REF!*E34 ->  | F16: =469*12*'zdroje dle stř.'!#REF!*F34 ->  | G16: =469*12*'zdroje dle stř.'!#REF!*G34 ->  | H16: =469*12*'zdroje dle stř.'!#REF!*H34 ->  | I16: =469*12*'zdroje dle stř.'!#REF!*I34 ->  | J16: =469*12*'zdroje dle stř.'!#REF!*J34 ->  | K16: =469*12*'zdroje dle stř.'!#REF!*K34 ->  | L16: =469*12*'zdroje dle stř.'!#REF!*L34 ->  | M16: =469*12*'zdroje dle stř.'!#REF!*M34 -> 
C17: N na režijní materiál | D17: =155*12*'zdroje dle stř.'!#REF!*D34 ->  | E17: =155*12*'zdroje dle stř.'!#REF!*E34 ->  | F17: =155*12*'zdroje dle stř.'!#REF!*F34 ->  | G17: =155*12*'zdroje dle stř.'!#REF!*G34 ->  | H17: =155*12*'zdroje dle stř.'!#REF!*H34 ->  | I17: =155*12*'zdroje dle stř.'!#REF!*I34 ->  | J17: =155*12*'zdroje dle stř.'!#REF!*J34 ->  | K17: =155*12*'zdroje dle stř.'!#REF!*K34 ->  | L17: =155*12*'zdroje dle stř.'!#REF!*L34 ->  | M17: =155*12*'zdroje dle stř.'!#REF!*M34 -> 
B18: 3 | C18: Náklady na automobily | M18: =SUM(M19:M23) -> 126472.2056 | N18: =SUM(N19:N23) -> 127274.1388 | O18: =SUM(O19:O23) -> 128076.072 | P18: 381822.4164
C19: N na leasing | M19: 72083.47315 | N19: 70997.42594 | O19: 69911.37873 | P19: 212992.2778
C20: N na pohonné hmoty | M20: 42737.5018 | N20: 44698.06671 | O20: 46658.63162 | P20: 134094.2001
C21: N na údržbu | M21: 7274.734066 | N21: 7268.088145 | O21: 7261.442225 | P21: 21804.26444
C22: N na pojištění | M22: 3346.732682 | N22: 3296.309061 | O22: 3245.885441 | P22: 9888.927184
C23: Ostatní N | M23: 1029.763902 | N23: 1014.248942 | O23: 998.7339818 | P23: 3042.746826
B24: 4 | C24: Náklady na prostory | D24: =SUM(D25:D29) -> 64466.72355 | E24: 40828.92491 | F24: 47275.59727 | G24: 51573.37884 | H24: 38680.03413 | I24: 53722.26962 | J24: 64466.72355 | K24: 75211.17747 | L24: 47275.59727 | M24: 27935.5802 | N24: 21488.90785 | O24: 50706.66667 | P24: 583631.5813
C25: N na odpisy budovy | D25: ='Prostory - výpočet nákladů'!C12 -> 35593.00341 | E25: ='Prostory - výpočet nákladů'!D12 -> 22542.23549 | F25: ='Prostory - výpočet nákladů'!E12 -> 26101.53584 | G25: ='Prostory - výpočet nákladů'!F12 -> 28474.40273 | H25: ='Prostory - výpočet nákladů'!G12 -> 21355.80205 | I25: ='Prostory - výpočet nákladů'!H12 -> 29660.83618 | J25: ='Prostory - výpočet nákladů'!I12 -> 35593.00341 | K25: ='Prostory - výpočet nákladů'!J12 -> 41525.17065 | L25: ='Prostory - výpočet nákladů'!K12 -> 26101.53584 | M25: ='Prostory - výpočet nákladů'!L12 -> 15423.63481 | N25: ='Prostory - výpočet nákladů'!M12 -> 11864.33447 | O25: ='Prostory - výpočet nákladů'!N12 -> 28840 | P25: 323075.4949
C26: N na opravy a údržbu bud. | D26: ='Prostory - výpočet nákladů'!C13 -> 4095.56314 | E26: ='Prostory - výpočet nákladů'!D13 -> 2593.856655 | F26: ='Prostory - výpočet nákladů'!E13 -> 3003.412969 | G26: ='Prostory - výpočet nákladů'!F13 -> 3276.450512 | H26: ='Prostory - výpočet nákladů'!G13 -> 2457.337884 | I26: ='Prostory - výpočet nákladů'!H13 -> 3412.969283 | J26: ='Prostory - výpočet nákladů'!I13 -> 4095.56314 | K26: ='Prostory - výpočet nákladů'!J13 -> 4778.156997 | L26: ='Prostory - výpočet nákladů'!K13 -> 3003.412969 | M26: ='Prostory - výpočet nákladů'!L13 -> 1774.744027 | N26: ='Prostory - výpočet nákladů'!M13 -> 1365.187713 | O26: ='Prostory - výpočet nákladů'!N13 -> 4533.333333 | P26: 38389.98862
C27: N na vytápění | D27: ='Prostory - výpočet nákladů'!C14 -> 15358.36177 | E27: ='Prostory - výpočet nákladů'!D14 -> 9726.962457 | F27: ='Prostory - výpočet nákladů'!E14 -> 11262.79863 | G27: ='Prostory - výpočet nákladů'!F14 -> 12286.68942 | H27: ='Prostory - výpočet nákladů'!G14 -> 9215.017065 | I27: ='Prostory - výpočet nákladů'!H14 -> 12798.63481 | J27: ='Prostory - výpočet nákladů'!I14 -> 15358.36177 | K27: ='Prostory - výpočet nákladů'!J14 -> 17918.08874 | L27: ='Prostory - výpočet nákladů'!K14 -> 11262.79863 | M27: ='Prostory - výpočet nákladů'!L14 -> 6655.290102 | N27: ='Prostory - výpočet nákladů'!M14 -> 5119.453925 | O27: ='Prostory - výpočet nákladů'!N14 -> 7466.666667 | P27: 134429.124
C28: N na el. energii | D28: ='Prostory - výpočet nákladů'!C15 -> 7372.013652 | E28: ='Prostory - výpočet nákladů'!D15 -> 4668.94198 | F28: ='Prostory - výpočet nákladů'!E15 -> 5406.143345 | G28: ='Prostory - výpočet nákladů'!F15 -> 5897.610922 | H28: ='Prostory - výpočet nákladů'!G15 -> 4423.208191 | I28: ='Prostory - výpočet nákladů'!H15 -> 6143.34471 | J28: ='Prostory - výpočet nákladů'!I15 -> 7372.013652 | K28: ='Prostory - výpočet nákladů'!J15 -> 8600.682594 | L28: ='Prostory - výpočet nákladů'!K15 -> 5406.143345 | M28: ='Prostory - výpočet nákladů'!L15 -> 3194.539249 | N28: ='Prostory - výpočet nákladů'!M15 -> 2457.337884 | O28: ='Prostory - výpočet nákladů'!N15 -> 6666.666667 | P28: 67608.64619
C29: N na obsluhu budovy | D29: ='Prostory - výpočet nákladů'!C16 -> 2047.78157 | E29: ='Prostory - výpočet nákladů'!D16 -> 1296.928328 | F29: ='Prostory - výpočet nákladů'!E16 -> 1501.706485 | G29: ='Prostory - výpočet nákladů'!F16 -> 1638.225256 | H29: ='Prostory - výpočet nákladů'!G16 -> 1228.668942 | I29: ='Prostory - výpočet nákladů'!H16 -> 1706.484642 | J29: ='Prostory - výpočet nákladů'!I16 -> 2047.78157 | K29: ='Prostory - výpočet nákladů'!J16 -> 2389.078498 | L29: ='Prostory - výpočet nákladů'!K16 -> 1501.706485 | M29: ='Prostory - výpočet nákladů'!L16 -> 887.3720137 | N29: ='Prostory - výpočet nákladů'!M16 -> 682.5938567 | O29: ='Prostory - výpočet nákladů'!N16 -> 3200 | P29: 20128.32765
B30: 5 | C30: Náklady spojů | D30: =SUM(D31:D32) -> 
C31: N na internet | D31: =250*12*'zdroje dle stř.'!#REF!*D34 ->  | E31: =250*12*'zdroje dle stř.'!#REF!*E34 ->  | F31: =250*12*'zdroje dle stř.'!#REF!*F34 ->  | G31: =250*12*'zdroje dle stř.'!#REF!*G34 ->  | H31: =250*12*'zdroje dle stř.'!#REF!*H34 ->  | I31: =250*12*'zdroje dle stř.'!#REF!*I34 ->  | J31: =250*12*'zdroje dle stř.'!#REF!*J34 ->  | K31: =250*12*'zdroje dle stř.'!#REF!*K34 ->  | L31: =250*12*'zdroje dle stř.'!#REF!*L34 ->  | M31: =250*12*'zdroje dle stř.'!#REF!*M34 ->  | N31: =250*12*'zdroje dle stř.'!#REF!*N34 ->  | O31: =250*12*'zdroje dle stř.'!#REF!*O34 -> 
C32: N na mobilní telefony | D32: =199*12*'zdroje dle stř.'!#REF!*D34 ->  | E32: =199*12*'zdroje dle stř.'!#REF!*E34 ->  | F32: =199*12*'zdroje dle stř.'!#REF!*F34 ->  | G32: =199*12*'zdroje dle stř.'!#REF!*G34 ->  | H32: =199*12*'zdroje dle stř.'!#REF!*H34 ->  | I32: =199*12*'zdroje dle stř.'!#REF!*I34 ->  | J32: =199*12*'zdroje dle stř.'!#REF!*J34 ->  | K32: =199*12*'zdroje dle stř.'!#REF!*K34 ->  | L32: =199*12*'zdroje dle stř.'!#REF!*L34 ->  | M32: =199*12*'zdroje dle stř.'!#REF!*M34 ->  | N32: =199*12*'zdroje dle stř.'!#REF!*N34 ->  | O32: =199*12*'zdroje dle stř.'!#REF!*O34 -> 
B33: ∑ | C33: Celkové náklady | D33: =D3+D8+D13+D18+D24+D30 -> 
D34: 1.06 | E34: 0.98 | F34: 0.77 | G34: 1.03 | H34: 1.11 | I34: 1.26 | J34: 0.84 | K34: 0.93 | L34: 0.87 | M34: 1.23 | N34: 1.86 | O34: 2.56

Sheet Provoz. rozp. - ostat. činnosti (hidden)
C2: Provozní rozpočet - podle činností | D2: Obch. Asistent [Kč] | E2: Zaměřovací technik [Kč] | F2: Technik zadávání [Kč] | G2: oprava a údržba strojů [Kč] | H2: úklid [Kč] | I2: broušení nástrojů [Kč] | J2: úprava pantů a příslušenství [Kč] | K2: Sklad [Kč] | L2: Montáž [Kč] | M2: Účetní [Kč] | N2: ∑ nákladů
B3: 1 | C3: Celkové osobní náklady | D3: =SUM(D4:D7) ->  | G3: =SUM(G4:G7) ->  | H3: =SUM(H4:H7) ->  | I3: =SUM(I4:I7) ->  | J3: =SUM(J4:J7) ->  | N3: =SUM(D3:M3) -> 
C4: Osobní náklady | D4: =45000*12*'zdroje dle stř.'!#REF!*$D$34 ->  | E4: =40000*12*'zdroje dle stř.'!#REF!*$E$34 ->  | F4: =38000*12*'zdroje dle stř.'!#REF!*$F$34 ->  | G4: =35000*12*'zdroje dle stř.'!#REF!*$G$34 ->  | H4: =35000*12*'zdroje dle stř.'!#REF!*$H$34 ->  | I4: =35000*12*'zdroje dle stř.'!#REF!*$I$34 ->  | J4: =35000*12*'zdroje dle stř.'!#REF!*$J$34 ->  | K4: =34000*12*'zdroje dle stř.'!#REF!*$K$34 ->  | L4: =42000*12*'zdroje dle stř.'!#REF!*$L$34 ->  | M4: =40000*12*'zdroje dle stř.'!#REF!*$M$34 ->  | N4: =SUM(D4:M4) -> 
C5: Odměny, bonusy | D5: =3500*12*'zdroje dle stř.'!#REF!*$D$34 ->  | E5: =1200*12*'zdroje dle stř.'!#REF!*$E$34 ->  | F5: =2500*12*'zdroje dle stř.'!#REF!*$F$34 ->  | G5: =1100*12*'zdroje dle stř.'!#REF!*$G$34 ->  | H5: =1100*12*'zdroje dle stř.'!#REF!*$H$34 ->  | I5: =1100*12*'zdroje dle stř.'!#REF!*$I$34 ->  | J5: =1100*12*'zdroje dle stř.'!#REF!*$J$34 ->  | K5: =1250*12*'zdroje dle stř.'!#REF!*$K$34 ->  | L5: =2000*12*'zdroje dle stř.'!#REF!*$L$34 ->  | M5: =3500*12*'zdroje dle stř.'!#REF!*$M$34 -> 
C6: Náklady na školení | D6: =430*12*'zdroje dle stř.'!#REF!*$D$34 ->  | E6: =1500*12*'zdroje dle stř.'!#REF!*$E$34 ->  | F6: =420*12*'zdroje dle stř.'!#REF!*$F$34 ->  | G6: =390*12*'zdroje dle stř.'!#REF!*$G$34 ->  | H6: =390*12*'zdroje dle stř.'!#REF!*$H$34 ->  | I6: =560*12*'zdroje dle stř.'!#REF!*$I$34 ->  | J6: =399*12*'zdroje dle stř.'!#REF!*$J$34 ->  | K6: =399*12*'zdroje dle stř.'!#REF!*$K$34 ->  | L6: =577*12*'zdroje dle stř.'!#REF!*$L$34 ->  | M6: =412*12*'zdroje dle stř.'!#REF!*$M$34 -> 
C7: Náklady na osobní prac. vybavení | D7: =450*12*'zdroje dle stř.'!#REF!*$D$34 ->  | E7: =560*12*'zdroje dle stř.'!#REF!*$E$34 ->  | F7: =380*12*'zdroje dle stř.'!#REF!*$F$34 ->  | G7: =350*12*'zdroje dle stř.'!#REF!*$G$34 ->  | H7: =350*12*'zdroje dle stř.'!#REF!*$H$34 ->  | I7: =350*12*'zdroje dle stř.'!#REF!*$I$34 ->  | J7: =350*12*'zdroje dle stř.'!#REF!*$J$34 ->  | K7: =340*12*'zdroje dle stř.'!#REF!*$K$34 ->  | L7: =420*12*'zdroje dle stř.'!#REF!*$L$34 ->  | M7: =400*12*'zdroje dle stř.'!#REF!*$M$34 -> 
B8: 2a | C8: Náklady na vybavení HW a SW | D8: =SUM(D9:D12) -> 52000 | E8: 26300.08042 | F8: 52000 | G8: =SUM(G9:G12) -> 52000 | H8: =SUM(H9:H12) -> 28000 | I8: =SUM(I9:I12) -> 57961.60974 | J8: =SUM(J9:J12) -> 30000 | K8: 28000 | L8: 57961.60974 | M8: 30000 | N8: 414223.2999
C9: Náklady na odpisy HW | D9: 20000 | E9: 9987.372312 | F9: 20000 | G9: 20000 | H9: 10000 | I9: 22010.73788 | J9: 12000 | K9: 10000 | L9: 22010.73788 | M9: 12000 | N9: 158008.8481
C10: Náklady na údržbu HW | D10: 10000 | E10: 5659.510977 | F10: 10000 | G10: 10000 | H10: 6000 | I10: 12472.75146 | J10: 6000 | K10: 6000 | L10: 12472.75146 | M10: 6000 | N10: 84605.0139
C11: Náklady na pořízení a aktivaci HW | D11: 12000 | E11: 5126.85112 | F11: 12000 | G11: 12000 | H11: 7000 | I11: 11298.84544 | J11: 7000 | K11: 7000 | L11: 11298.84544 | M11: 7000 | N11: 91724.54201
C12: Náklady na režijní materiál HW | D12: 10000 | E12: 5526.346013 | F12: 10000 | G12: 10000 | H12: 5000 | I12: 12179.27496 | J12: 5000 | K12: 5000 | L12: 12179.27496 | M12: 5000 | N12: 79884.89593
B13: 2b | C13: Náklady na strojní vybavení | D13: =SUM(D14:D17) -> 
C14: Náklady na odpisy | G14: =4000*12*'zdroje dle stř.'!#REF!*G34 ->  | H14: =4000*12*'zdroje dle stř.'!#REF!*H34 ->  | I14: =4000*12*'zdroje dle stř.'!#REF!*I34 ->  | J14: =4000*12*'zdroje dle stř.'!#REF!*J34 -> 
C15: Náklady na el. energii | D15: =158*12*'zdroje dle stř.'!#REF!*D34 ->  | E15: =158*12*'zdroje dle stř.'!#REF!*E34 ->  | F15: =158*12*'zdroje dle stř.'!#REF!*F34 ->  | G15: =862*12*'zdroje dle stř.'!#REF!*G34 ->  | H15: =862*12*'zdroje dle stř.'!#REF!*H34 ->  | I15: =862*12*'zdroje dle stř.'!#REF!*I34 ->  | J15: =862*12*'zdroje dle stř.'!#REF!*J34 ->  | K15: =789*12*'zdroje dle stř.'!#REF!*D34 ->  | L15: =158*12*'zdroje dle stř.'!#REF!*E34 ->  | M15: =158*12*'zdroje dle stř.'!#REF!*F34 -> 
C16: Náklady na údržbu | D16: =125*12*'zdroje dle stř.'!#REF!*D34 ->  | E16: =125*12*'zdroje dle stř.'!#REF!*E34 ->  | F16: =125*12*'zdroje dle stř.'!#REF!*F34 ->  | G16: =469*12*'zdroje dle stř.'!#REF!*G34 ->  | H16: =469*12*'zdroje dle stř.'!#REF!*H34 ->  | I16: =469*12*'zdroje dle stř.'!#REF!*I34 ->  | J16: =469*12*'zdroje dle stř.'!#REF!*J34 ->  | K16: =541*12*'zdroje dle stř.'!#REF!*D34 ->  | L16: =541*12*'zdroje dle stř.'!#REF!*E34 ->  | M16: =541*12*'zdroje dle stř.'!#REF!*F34 -> 
C17: Náklady na režijní materiál | D17: =99*12*'zdroje dle stř.'!#REF!*D34 ->  | E17: =99*12*'zdroje dle stř.'!#REF!*E34 ->  | F17: =99*12*'zdroje dle stř.'!#REF!*F34 ->  | G17: =155*12*'zdroje dle stř.'!#REF!*G34 ->  | H17: =155*12*'zdroje dle stř.'!#REF!*H34 ->  | I17: =155*12*'zdroje dle stř.'!#REF!*I34 ->  | J17: =155*12*'zdroje dle stř.'!#REF!*J34 ->  | K17: =199*12*'zdroje dle stř.'!#REF!*D34 ->  | L17: =199*12*'zdroje dle stř.'!#REF!*E34 ->  | M17: =199*12*'zdroje dle stř.'!#REF!*F34 -> 
B18: 3 | C18: Náklady na automobily | D18: =SUM(D19:D23) -> 436329.1093 | E18: =SUM(E19:E23) -> 127274.1388 | L18: =SUM(L19:L23) -> 343320.0351 | M18: =SUM(M19:M23) -> 124600 | N18: 1031523.283
C19: Náklady na leasing | D19: =72083.473151275*3*D34 -> 248687.9824 | E19: 70997.42594 | L19: 191002.2708 | M19: 84000 | N19: 594687.6791
C20: Náklady na pohonné hmoty | D20: =42737.5018031131*3*D34 -> 147444.3812 | E20: 44698.06671 | L20: 123667.4236 | M20: 28000 | N20: 343809.8715
C21: Náklady na údržbu | D21: =7274.73406592603*3*D34 -> 25097.83253 | E21: 7268.088145 | L21: 17053.77418 | M21: 7500 | N21: 56919.69485
C22: Náklady na pojištění | D22: =3346.73268202348*3*D34 -> 11546.22775 | E22: 3296.309061 | L22: 8867.962575 | M22: 3900 | N22: 27610.49939
C23: Ostatní náklady | D23: =1029.76390216107*3*D34 -> 3552.685462 | E23: 1014.248942 | L23: 2728.603869 | M23: 1200 | N23: 8495.538274
B24: 4 | C24: Náklady na prostory | D24: =SUM(D25:D29) -> 50706.66667 | E24: 12676.66667 | F24: 50706.66667 | G24: 32233.36177 | H24: 23637.79863 | I24: 40828.92491 | J24: 32233.36177 | K24: 148250 | M24: =SUM(M25:M29) -> 25353.33333 | N24: 416626.7804
C25: Náklady na odpisy budovy | D25: ='Prostory - výpočet nákladů'!C20 -> 28840 | E25: ='Prostory - výpočet nákladů'!D20 -> 7210 | F25: ='Prostory - výpočet nákladů'!E20 -> 28840 | G25: ='Prostory - výpočet nákladů'!F20 -> 17796.50171 | H25: ='Prostory - výpočet nákladů'!G20 -> 13050.76792 | I25: ='Prostory - výpočet nákladů'!H20 -> 22542.23549 | J25: ='Prostory - výpočet nákladů'!I20 -> 17796.50171 | K25: ='Prostory - výpočet nákladů'!J20 -> 77250 | M25: ='Prostory - výpočet nákladů'!L20 -> 14420 | N25: 227746.0068
C26: Náklady na opravy a údržbu bud. | D26: ='Prostory - výpočet nákladů'!C21 -> 4533.333333 | E26: ='Prostory - výpočet nákladů'!D21 -> 1133.333333 | F26: ='Prostory - výpočet nákladů'!E21 -> 4533.333333 | G26: ='Prostory - výpočet nákladů'!F21 -> 2047.78157 | H26: ='Prostory - výpočet nákladů'!G21 -> 1501.706485 | I26: ='Prostory - výpočet nákladů'!H21 -> 2593.856655 | J26: ='Prostory - výpočet nákladů'!I21 -> 2047.78157 | K26: ='Prostory - výpočet nákladů'!J21 -> 7000 | M26: ='Prostory - výpočet nákladů'!L21 -> 2266.666667 | N26: 27657.79295
C27: Náklady na vytápění | D27: ='Prostory - výpočet nákladů'!C22 -> 7466.666667 | E27: ='Prostory - výpočet nákladů'!D22 -> 1866.666667 | F27: ='Prostory - výpočet nákladů'!E22 -> 7466.666667 | G27: ='Prostory - výpočet nákladů'!F22 -> 7679.180887 | H27: ='Prostory - výpočet nákladů'!G22 -> 5631.399317 | I27: ='Prostory - výpočet nákladů'!H22 -> 9726.962457 | J27: ='Prostory - výpočet nákladů'!I22 -> 7679.180887 | K27: ='Prostory - výpočet nákladů'!J22 -> 27000 | M27: ='Prostory - výpočet nákladů'!L22 -> 3733.333333 | N27: 78250.05688
C28: Náklady na el. energii | D28: ='Prostory - výpočet nákladů'!C23 -> 6666.666667 | E28: ='Prostory - výpočet nákladů'!D23 -> 1666.666667 | F28: ='Prostory - výpočet nákladů'!E23 -> 6666.666667 | G28: ='Prostory - výpočet nákladů'!F23 -> 3686.006826 | H28: ='Prostory - výpočet nákladů'!G23 -> 2703.071672 | I28: ='Prostory - výpočet nákladů'!H23 -> 4668.94198 | J28: ='Prostory - výpočet nákladů'!I23 -> 3686.006826 | K28: ='Prostory - výpočet nákladů'!J23 -> 32000 | M28: ='Prostory - výpočet nákladů'!L23 -> 3333.333333 | N28: 65077.36064
C29: Náklady na obsluhu budovy | D29: ='Prostory - výpočet nákladů'!C24 -> 3200 | E29: ='Prostory - výpočet nákladů'!D24 -> 800 | F29: ='Prostory - výpočet nákladů'!E24 -> 3200 | G29: ='Prostory - výpočet nákladů'!F24 -> 1023.890785 | H29: ='Prostory - výpočet nákladů'!G24 -> 750.8532423 | I29: ='Prostory - výpočet nákladů'!H24 -> 1296.928328 | J29: ='Prostory - výpočet nákladů'!I24 -> 1023.890785 | K29: ='Prostory - výpočet nákladů'!J24 -> 5000 | M29: ='Prostory - výpočet nákladů'!L24 -> 1600 | N29: 17895.56314
B30: 5 | C30: Náklady spojů | D30: =SUM(D31:D32) -> 
C31: Náklady na internet | D31: =350*12*'zdroje dle stř.'!#REF!*$D$34 ->  | E31: =350*12*'zdroje dle stř.'!#REF!*$E$34 ->  | F31: =350*12*'zdroje dle stř.'!#REF!*$F$34 ->  | G31: =250*12*'zdroje dle stř.'!#REF!*$G$34 ->  | H31: =250*12*'zdroje dle stř.'!#REF!*$H$34 ->  | I31: =250*12*'zdroje dle stř.'!#REF!*$I$34 ->  | J31: =250*12*'zdroje dle stř.'!#REF!*$J$34 ->  | K31: =250*12*'zdroje dle stř.'!#REF!*$K$34 ->  | L31: =250*12*'zdroje dle stř.'!#REF!*$L$34 ->  | M31: =350*12*'zdroje dle stř.'!#REF!*$M$34 -> 
C32: Náklady na mobilní telefony | D32: =199*12*'zdroje dle stř.'!#REF!*D34 ->  | E32: =199*12*'zdroje dle stř.'!#REF!*E34 ->  | F32: =199*12*'zdroje dle stř.'!#REF!*F34 ->  | G32: =199*12*'zdroje dle stř.'!#REF!*G34 ->  | H32: =199*12*'zdroje dle stř.'!#REF!*H34 ->  | I32: =199*12*'zdroje dle stř.'!#REF!*I34 ->  | J32: =199*12*'zdroje dle stř.'!#REF!*J34 ->  | K32: =199*12*'zdroje dle stř.'!#REF!*K34 ->  | L32: =199*12*'zdroje dle stř.'!#REF!*L34 ->  | M32: =199*12*'zdroje dle stř.'!#REF!*M34 -> 
B33: ∑ | C33: Celkové náklady | D33: =SUM(D3,D8,D13,D18,D24,D30) -> 
D34: 1.15 | E34: 1.06 | F34: 1.04 | G34: 0.91 | H34: 0.72 | I34: 0.84 | J34: 0.86 | K34: 0.95 | L34: 1.05 | M34: 1.03

Sheet rozpočet středisek
B2: Položka/středisko | C2: ='kapac. zdrojů'!C30 -> 11 | D2: ='kapac. zdrojů'!C18 -> 110 | E2: ='kapac. zdrojů'!C7 -> 111 | F2: ='kapac. zdrojů'!C8 -> 113 | G2: ='zdroje dle výrob. oper.'!H3 -> 114 | H2: ='kapac. zdrojů'!C19 -> 120 | I2: ='kapac. zdrojů'!C10 -> 121 | J2: ='zdroje dle výrob. oper.'!B8 -> 122 | K2: ='kapac. zdrojů'!C13 -> 131 | L2: ='kapac. zdrojů'!C20 -> 230 | M2: ='kapac. zdrojů'!C31 -> 13 | N2: ='kapac. zdrojů'!C12 -> 130 | O2: ='kapac. zdrojů'!C24 -> 300 | P2: ='kapac. zdrojů'!C4 -> 319 | Q2: ='kapac. zdrojů'!C39 -> 303 | R2: ='kapac. zdrojů'!C40 -> 321 | S2: ='kapac. zdrojů'!C41 -> 330 | T2: ='kapac. zdrojů'!C42 -> 340 | U2: ='kapac. zdrojů'!C43 -> 341 | V2: ='kapac. zdrojů'!C44 -> 351 | W2: ='kapac. zdrojů'!C45 -> 353 | X2: ='kapac. zdrojů'!C46 -> 370 | Y2: ='kapac. zdrojů'!C47 -> 382 | Z2: ='kapac. zdrojů'!C48 -> 390 | AA2: ='kapac. zdrojů'!C49 -> 395 | AB2: ='kapac. zdrojů'!C14 -> 313 | AC2: ='kapac. zdrojů'!C15 -> 310 | AD2: ='kapac. zdrojů'!C16 -> 150 | AE2: ='kapac. zdrojů'!C6 -> 301 | AF2: ='kapac. zdrojů'!C22 -> 200 | AG2: ='kapac. zdrojů'!C21 -> 210 | AH2: ='kapac. zdrojů'!C32 -> 9 | AI2: ∑ za položku
B3: Mzdové nákl. fixní | C3: 93820 | D3: 0 | E3: 49780 | F3: 22780 | G3: 40780 | H3: 13400 | I3: 0 | J3: 0 | K3: 16000 | L3: 18780 | M3: 52260 | N3: 31305 | O3: 161470 | P3: 24120 | Q3: 32160 | R3: 25580 | S3: 26800 | T3: 38860 | U3: 36850 | V3: 34840 | W3: 32160 | X3: 40200 | Y3: 50920 | Z3: 38860 | AA3: 29440 | AB3: 16080 | AC3: 53600 | AD3: 40200 | AE3: 133330 | AF3: 123976 | AG3: 163850 | AH3: 325215 | AI3: =SUM(C3:AH3) -> 1767416
B4: Mzdové nákl. var. | C4: 38210 | D4: 0 | E4: 10220 | F4: 15000 | G4: 3450 | H4: 0 | I4: 6500 | J4: 0 | K4: 0 | L4: 10520 | M4: 28200 | N4: 0 | O4: 119733 | P4: 18000 | Q4: 45715 | R4: 23500 | S4: 21600 | T4: 44050 | U4: 45000 | V4: 45000 | W4: 58000 | X4: 57500 | Y4: 76400 | Z4: 39600 | AA4: 28900 | AB4: 0 | AC4: 29100 | AD4: 81700 | AE4: 86710 | AF4: 0 | AG4: 0 | AH4: 86475 | AI4: =SUM(C4:AH4) -> 1019083
B5: Cestovní náhrady | C5: 19200 | D5: 0 | E5: 0 | F5: 4000 | G5: 0 | H5: 0 | I5: 0 | J5: 0 | K5: 0 | L5: 0 | M5: 9000 | N5: 17000 | O5: 49696 | P5: 5000 | Q5: 5000 | R5: 0 | S5: 0 | T5: 6000 | U5: 5000 | V5: 0 | W5: 0 | X5: 0 | Y5: 4000 | Z5: 0 | AA5: 0 | AB5: 2000 | AC5: 0 | AD5: 0 | AE5: 24500 | AF5: 5000 | AG5: 9600 | AH5: 39050 | AI5: 204046
B6: Telefon | C6: 700 | D6: 350 | E6: 850 | F6: 350 | G6: 700 | H6: 350 | I6: 350 | J6: 0 | K6: 0 | L6: 0 | M6: 700 | N6: 700 | O6: 7200 | P6: 700 | Q6: 800 | R6: 1050 | S6: 600 | T6: 1200 | U6: 1400 | V6: 1800 | W6: 800 | X6: 1700 | Y6: 2700 | Z6: 1700 | AA6: 1200 | AB6: 450 | AC6: 800 | AD6: 1200 | AE6: 2100 | AF6: 800 | AG6: 800 | AH6: 12665 | AI6: 46715
B7: Nájem prostor | C7: 0 | D7: 10000 | E7: 0 | F7: 0 | G7: 0 | H7: 0 | I7: 20000 | J7: 0 | K7: 0 | L7: 0 | M7: 0 | N7: 0 | O7: 16000 | P7: 0 | Q7: 0 | R7: 12000 | S7: 15500 | T7: 18000 | U7: 13600 | V7: 0 | W7: 28000 | X7: 28000 | Y7: 44900 | Z7: 18000 | AA7: 8000 | AB7: 0 | AC7: 16000 | AD7: 0 | AE7: 0 | AF7: 0 | AG7: 9000 | AH7: 2680 | AI7: 259680
B8: Leasing | C8: 0 | D8: 0 | E8: 0 | F8: 0 | G8: 0 | H8: 0 | I8: 0 | J8: 0 | K8: 0 | L8: 0 | M8: 0 | N8: 0 | O8: 0 | P8: 8000 | Q8: 0 | R8: 0 | S8: 0 | T8: 0 | U8: 0 | V8: 0 | W8: 0 | X8: 0 | Y8: 8000 | Z8: 0 | AA8: 0 | AB8: 0 | AC8: 0 | AD8: 0 | AE8: 0 | AF8: 0 | AG8: 0 | AH8: 0 | AI8: 16000
B9: PHM | C9: 0 | D9: 0 | E9: 4500 | F9: 0 | G9: 0 | H9: 0 | I9: 0 | J9: 0 | K9: 0 | L9: 0 | M9: 0 | N9: 3500 | O9: 4300 | P9: 2300 | Q9: 4000 | R9: 0 | S9: 0 | T9: 0 | U9: 10000 | V9: 0 | W9: 0 | X9: 0 | Y9: 4000 | Z9: 0 | AA9: 0 | AB9: 0 | AC9: 400 | AD9: 67200 | AE9: 0 | AF9: 0 | AG9: 12350 | AH9: 9400 | AI9: 121950
B10: Pojištění auta | C10: 0 | D10: 0 | E10: 300 | F10: 0 | G10: 1800 | H10: 0 | I10: 0 | J10: 0 | K10: 0 | L10: 0 | M10: 0 | N10: 45 | O10: 1200 | P10: 0 | Q10: 1308 | R10: 0 | S10: 0 | T10: 0 | U10: 2400 | V10: 0 | W10: 0 | X10: 0 | Y10: 0 | Z10: 0 | AA10: 1326 | AB10: 0 | AC10: 0 | AD10: 8400 | AE10: 0 | AF10: 0 | AG10: 802 | AH10: 3000 | AI10: 20581
B11: Pojištění ostatní | C11: 0 | D11: 0 | E11: 0 | F11: 0 | G11: 0 | H11: 0 | I11: 0 | J11: 0 | K11: 0 | L11: 0 | M11: 0 | N11: 1865 | O11: 0 | P11: 0 | Q11: 0 | R11: 0 | S11: 0 | T11: 0 | U11: 0 | V11: 0 | W11: 0 | X11: 0 | Y11: 0 | Z11: 0 | AA11: 500 | AB11: 0 | AC11: 0 | AD11: 0 | AE11: 0 | AF11: 0 | AG11: 0 | AH11: 34400 | AI11: 36765
B12: Drobné výdaje | C12: 2000 | D12: 500 | E12: 4000 | F12: 1000 | G12: 3000 | H12: 1000 | I12: 1000 | J12: 1000 | K12: 1000 | L12: 0 | M12: 0 | N12: 5000 | O12: 0 | P12: 10000 | Q12: 3000 | R12: 500 | S12: 0 | T12: 2000 | U12: 2000 | V12: 1500 | W12: 2000 | X12: 1500 | Y12: 3000 | Z12: 2000 | AA12: 1200 | AB12: 0 | AC12: 0 | AD12: 7500 | AE12: 0 | AF12: 0 | AG12: 0 | AH12: 0 | AI12: 55700
B13: Údržba strojů, aut Ext | C13: 0 | D13: 0 | E13: 8450 | F13: 0 | G13: 0 | H13: 0 | I13: 0 | J13: 0 | K13: 0 | L13: 0 | M13: 0 | N13: 23300 | O13: 31000 | P13: 0 | Q13: 0 | R13: 0 | S13: 0 | T13: 0 | U13: 2000 | V13: 0 | W13: 0 | X13: 0 | Y13: 0 | Z13: 0 | AA13: 0 | AB13: 0 | AC13: 3000 | AD13: 12800 | AE13: 0 | AF13: 0 | AG13: 18200 | AH13: 13200 | AI13: 111950
B14: Údržba strojů, aut | C14: 0 | D14: 1000 | E14: 10000 | F14: 4000 | G14: 2000 | H14: 5000 | I14: 1500 | J14: 500 | K14: 6000 | L14: 1000 | M14: 0 | N14: 10000 | O14: 0 | P14: 0 | Q14: 0 | R14: 0 | S14: 0 | T14: 0 | U14: 0 | V14: 0 | W14: 0 | X14: 0 | Y14: 0 | Z14: 0 | AA14: 0 | AB14: 0 | AC14: 2000 | AD14: 0 | AE14: 3000 | AF14: 0 | AG14: 0 | AH14: 0 | AI14: 46000
B15: Správa SŘJ | C15: 4500 | D15: 500 | E15: 1500 | F15: 1000 | G15: 0 | H15: 1000 | I15: 500 | J15: 500 | K15: 2000 | L15: 1000 | M15: 7110 | N15: 3000 | O15: 18000 | P15: 3000 | Q15: 3250 | R15: 1000 | S15: 1000 | T15: 1000 | U15: 1000 | V15: 1000 | W15: 1000 | X15: 1000 | Y15: 1000 | Z15: 1000 | AA15: 1000 | AB15: 0 | AC15: 1000 | AD15: 0 | AE15: 2000 | AF15: 0 | AG15: 0 | AH15: 70516 | AI15: 130376
B16: Vnitro doprava | C16: 0 | D16: 0 | E16: 0 | F16: 0 | G16: 0 | H16: 7200 | I16: 0 | J16: 0 | K16: 0 | L16: 0 | M16: 0 | N16: 7500 | O16: 0 | P16: 0 | Q16: 0 | R16: 0 | S16: 0 | T16: 0 | U16: 0 | V16: 0 | W16: 0 | X16: 0 | Y16: 0 | Z16: 0 | AA16: 6000 | AB16: 0 | AC16: 2000 | AD16: 0 | AE16: 0 | AF16: 0 | AG16: 2000 | AH16: 0 | AI16: 24700
B17: Energie - elektro | C17: 0 | D17: 6000 | E17: 5000 | F17: 2000 | G17: 4000 | H17: 14000 | I17: 2900 | J17: 2000 | K17: 7500 | L17: 0 | M17: 0 | N17: 2500 | O17: 0 | P17: 0 | Q17: 0 | R17: 7000 | S17: 1000 | T17: 2000 | U17: 1300 | V17: 2300 | W17: 4000 | X17: 2250 | Y17: 3500 | Z17: 1100 | AA17: 2000 | AB17: 0 | AC17: 1500 | AD17: 0 | AE17: 0 | AF17: 0 | AG17: 4000 | AH17: 0 | AI17: 77850
B18: Energie - plyn | C18: 0 | D18: 0 | E18: 0 | F18: 0 | G18: 0 | H18: 0 | I18: 0 | J18: 0 | K18: 9000 | L18: 0 | M18: 0 | N18: 10000 | O18: 0 | P18: 0 | Q18: 0 | R18: 0 | S18: 0 | T18: 3000 | U18: 800 | V18: 0 | W18: 1000 | X18: 1900 | Y18: 0 | Z18: 0 | AA18: 0 | AB18: 0 | AC18: 0 | AD18: 0 | AE18: 0 | AF18: 0 | AG18: 0 | AH18: 0 | AI18: 25700
B19: Energie - voda | C19: 0 | D19: 0 | E19: 3000 | F19: 0 | G19: 0 | H19: 0 | I19: 0 | J19: 0 | K19: 4000 | L19: 0 | M19: 0 | N19: 3000 | O19: 350 | P19: 0 | Q19: 0 | R19: 200 | S19: 200 | T19: 100 | U19: 180 | V19: 500 | W19: 200 | X19: 100 | Y19: 400 | Z19: 0 | AA19: 0 | AB19: 0 | AC19: 0 | AD19: 0 | AE19: 0 | AF19: 0 | AG19: 0 | AH19: 0 | AI19: 12230
B20: Marketing | C20: 0 | D20: 0 | E20: 0 | F20: 0 | G20: 0 | H20: 0 | I20: 0 | J20: 0 | K20: 0 | L20: 0 | M20: 0 | N20: 0 | O20: 290000 | P20: 3000 | Q20: 2000 | R20: 6000 | S20: 0 | T20: 6000 | U20: 0 | V20: 5000 | W20: 0 | X20: 4000 | Y20: 3000 | Z20: 3000 | AA20: 4000 | AB20: 0 | AC20: 0 | AD20: 0 | AE20: 0 | AF20: 0 | AG20: 0 | AH20: 3800 | AI20: 329800
B21: Ost.sl.ext + odpad | C21: 0 | D21: 0 | E21: 7750 | F21: 0 | G21: 1000 | H21: 1000 | I21: 6500 | J21: 0 | K21: 0 | L21: 0 | M21: 0 | N21: 2400 | O21: 17000 | P21: 0 | Q21: 2000 | R21: 0 | S21: 0 | T21: 3000 | U21: 0 | V21: 1100 | W21: 4000 | X21: 4000 | Y21: 3000 | Z21: 100 | AA21: 100 | AB21: 0 | AC21: 13000 | AD21: 1854 | AE21: 0 | AF21: 0 | AG21: 4074 | AH21: 180500 | AI21: 252378
B22: Ost. režie / Holdig.nákl | C22: 5000 | D22: 0 | E22: 0 | F22: 0 | G22: 0 | H22: 0 | I22: 0 | J22: 0 | K22: 0 | L22: 0 | M22: 1000 | N22: 0 | O22: 0 | P22: 0 | Q22: 0 | R22: 0 | S22: 0 | T22: 0 | U22: 0 | V22: 0 | W22: 0 | X22: 0 | Y22: 0 | Z22: 0 | AA22: 0 | AB22: 0 | AC22: 0 | AD22: 0 | AE22: 0 | AF22: 0 | AG22: 0 | AH22: 50000 | AI22: 56000
B23: Údržba budov | C23: 0 | D23: 800 | E23: 5100 | F23: 0 | G23: 0 | H23: 1000 | I23: 1500 | J23: 0 | K23: 1000 | L23: 0 | M23: 0 | N23: 2000 | O23: 0 | P23: 0 | Q23: 0 | R23: 0 | S23: 0 | T23: 0 | U23: 0 | V23: 0 | W23: 0 | X23: 0 | Y23: 0 | Z23: 0 | AA23: 0 | AB23: 0 | AC23: 0 | AD23: 0 | AE23: 0 | AF23: 0 | AG23: 0 | AH23: 10500 | AI23: 21900
B24: Bankovní popl. | C24: 0 | D24: 0 | E24: 0 | F24: 0 | G24: 0 | H24: 0 | I24: 0 | J24: 0 | K24: 0 | L24: 0 | M24: 0 | N24: 0 | O24: 0 | P24: 0 | Q24: 0 | R24: 0 | S24: 0 | T24: 0 | U24: 0 | V24: 0 | W24: 0 | X24: 0 | Y24: 0 | Z24: 0 | AA24: 0 | AB24: 0 | AC24: 0 | AD24: 0 | AE24: 0 | AF24: 0 | AG24: 0 | AH24: 14800 | AI24: 14800
B25: Energie ve V1 | C25: 0 | D25: 5000 | E25: 71000 | F25: 0 | G25: 0 | H25: 0 | I25: 0 | J25: 0 | K25: 11000 | L25: 0 | M25: 0 | N25: 30000 | O25: 0 | P25: 0 | Q25: 0 | R25: 0 | S25: 0 | T25: 0 | U25: 0 | V25: 0 | W25: 0 | X25: 0 | Y25: 0 | Z25: 0 | AA25: 0 | AB25: 0 | AC25: 0 | AD25: 0 | AE25: 0 | AF25: 0 | AG25: 0 | AH25: 0 | AI25: 117000
B26: ∑ za středisko/měsíc | C26: =SUM(C3:C25) -> 163430 | D26: =SUM(D3:D25) -> 24150 | E26: 181450 | F26: 50130 | G26: 56730 | H26: 43950 | I26: 40750 | J26: 4000 | K26: 57500 | L26: 31300 | M26: 98270 | N26: 153115 | O26: 715949 | P26: 74120 | Q26: 99233 | R26: 76830 | S26: 66700 | T26: 125210 | U26: 121530 | V26: 93040 | W26: 131160 | X26: 142150 | Y26: 204820 | Z26: 105360 | AA26: 83666 | AB26: 18530 | AC26: 122400 | AD26: 220854 | AE26: 251640 | AF26: 129776 | AG26: 224676 | AH26: 856201 | AI26: 4768620

Sheet celk. rozpočet podniku
C2: Celkový provozní rozpočet podniku | D2: Náklady [Kč]
B3: 1 | C3: Celkové osobní náklady | D3: =SUM(D4:D6) -> 35886540
C4: Osobní náklady (fixní) | D4: ='rozpočet středisek'!AI3*12 -> 21208992
C5: Osobní náklady (variabilní) | D5: ='rozpočet středisek'!AI4*12 -> 12228996
C6: Cestovní náhrady | D6: ='rozpočet středisek'!AI5*12 -> 2448552
B7: 2 | C7: Náklady na vybavení HW, SW a stroje | D7: =SUM(D8:D10) -> 4473810.6
C8: Náklady na odpisy | D8: =odpisy!D3+odpisy!D4+odpisy!D10+odpisy!D11+odpisy!D13+odpisy!D14+odpisy!D15+SUM(odpisy!D17:D42) -> 2426430.6
C9: Náklady na údržbu | D9: ='rozpočet středisek'!AI13*12+'rozpočet středisek'!AI23*12 -> 1606200
C10: Náklady na ostatní pojištění | D10: ='rozpočet středisek'!AI11*12 -> 441180
B11: 3 | C11: Náklady na automobily | D11: =SUM(D12:D15) -> 2454372
C12: Náklady na leasing | D12: ='rozpočet středisek'!AI8*12 -> 192000
C13: Náklady na pohonné hmoty | D13: ='rozpočet středisek'!AI9*12 -> 1463400
C14: Náklady na údržbu | D14: ='rozpočet středisek'!AI14*12 -> 552000
C15: Náklady na pojištění | D15: ='rozpočet středisek'!AI10*12 -> 246972
B16: 4 | C16: Náklady na prostory | D16: =SUM(D17:D22) -> 7244320
C17: Náklady na odpisy | D17: =odpisy!D5+odpisy!D6+odpisy!D7+odpisy!D8+odpisy!D9+odpisy!D12+odpisy!D16 -> 1174288
C18: Náklady na nájemné | D18: ='rozpočet středisek'!AI7*12 -> 3116160
C19: Náklady na SŘJ | D19: ='rozpočet středisek'!AI15*12 -> 1564512
C20: Náklady na vodu | D20: ='rozpočet středisek'!AI19*12 -> 146760
C21: Náklady na el. energii | D21: ='rozpočet středisek'!AI17*12 -> 934200
C22: Náklady na plyn | D22: ='rozpočet středisek'!AI18*12 -> 308400
B23: 5 | C23: Náklady spojů | D23: =SUM(D24) -> 560580
C24: Náklady na mobilní telefony a internet | D24: ='rozpočet středisek'!AI6*12 -> 560580
B25: 6 | C25: Ostatní náklady | D25: =SUM(D26:D32) -> 10204536
C26: ='rozpočet středisek'!B12 -> Drobné výdaje | D26: ='rozpočet středisek'!AI12*12 -> 668400
C27: ='rozpočet středisek'!B16 -> Vnitro doprava | D27: ='rozpočet středisek'!AI16*12 -> 296400
C28: ='rozpočet středisek'!B20 -> Marketing | D28: ='rozpočet středisek'!AI20*12 -> 3957600
C29: ='rozpočet středisek'!B21 -> Ost.sl.ext + odpad | D29: ='rozpočet středisek'!AI21*12 -> 3028536
C30: ='rozpočet středisek'!B22 -> Ost. režie / Holdig.nákl | D30: ='rozpočet středisek'!AI22*12 -> 672000
C31: ='rozpočet středisek'!B24 -> Bankovní popl. | D31: ='rozpočet středisek'!AI24*12 -> 177600
C32: ='rozpočet středisek'!B25 -> Energie ve V1 | D32: ='rozpočet středisek'!AI25*12 -> 1404000
B33: ∑ | C33: Celkové roční náklady | D33: =D3+D7+D11+D16+D23+D25 -> 60824158.6

Sheet odpisy
B2: Inv. číslo | C2: Název | D2: Daňový odpis | E2: stř
B3: 7 | C3: Přípojka vody | D3: 2498 | E3: 9
B4: 8 | C4: Plynovod | D4: 4379 | E4: 9
B5: 10 | C5: Budova - truhlárna | D5: 28417 | E5: 130
B6: 11 | C6: Budova - truhlárna-domeček1965/49 | D6: 27642 | E6: 9
B7: 17 | C7: Hala plechová - sklad | D7: 9000 | E7: 9
B8: 26 | C8: Truhlárna stř.11 | D8: 72370 | E8: 111
B9: 27 | C9: drobné stavby, přístřešky | D9: 5200 | E9: 9
B10: 45 | C10: Plynový kotel | D10: 1679.6 | E10: 11
B11: 47 | C11: Kotel na ústřední vytápění ATMOS s příslušenstvím | D11: 6305 | E11: 111
B12: 48 | C12: Hala - truhlárna na pozemku 1965/178 | D12: 676289 | E12: 9
B13: 71 | C13: Citroen Jumper 1SZ 28 65 | D13: 121531 | E13: 111
B14: 72 | C14: JCB 3CX- zemní stroj | D14: 55625 | E14: 312
B15: 73 | C15: Citroen Berlingo 1,6 SPZ 1SZ 2733 | D15: 52332 | E15: 220
B16: 75 | C16: Nebytová jednotka 1181/721 | D16: 355370 | E16: 9
B17: 76 | C17: Citroen Hatchack SPZ 2SE 1861 | D17: 67029 | E17: 330
B18: 78 | C18: Formátovací pila Lazzari-Tekna3200 | D18: 50646 | E18: 11
B19: 79 | C19: Citroen Berlingo 1,6 modrá SPZ 2SH 5393 | D19: 65638 | E19: 351
B20: 81 | C20: osobní automobil Superb SPZ 1SZ 0098 | D20: 93450 | E20: 30
B21: 82 | C21: osobní auto IBIZA ST combi SPZ 2SH 4765 | D21: 34920 | E21: 341
B22: 83 | C22: nákladní auto OPEL Mováno | D22: 44500 | E22: 150
B23: 84 | C23: Škoda SuperB combi L&K TDI 125kW 4x4 SPZ 2SJ 1027 | D23: 135689 | E23: 9
B24: 85 | C24: olepovací stroj BIMATIC | D24: 86330 | E24: 11
B25: 86 | C25: Citroen Berlingo kombi 3SA9766 | D25: 65978 | E25: 9
B26: 87 | C26: CNC centrum Morbidelli, typ Universal X5 HD 36 | D26: 652326 | E26: 11
B27: 88 | C27: server HP ML350pT08 SFF CTO Chassis, | D27: 115934 | E27: 200
B28: 89 | C28: Trakturek PARK PRO | D28: 20796 | E28: 141
B29: 90 | C29: Elekto-pneumatická dvoulistá pokosová pila | D29: 63524 | E29: 120
B30: 91 | C30: Nákladní automobil DuCATO 3ST2112 | D30: 93807 | E30: 114
B31: 92 | C31: Ducato -nákladní automobil - Fiat - 2999 cm3 | D31: 144509 | E31: 150
B32: 93 | C32: Kartáčovací stroj | D32: 34522 | E32: 11
B33: 94 | C33: Kotel na vytápění lisu | D33: 6440 | E33: 9
B34: 97 | C34: Škoda Rapid hatchback | D34: 62491 | E34: 351
B35: 98 | C35: Seat Leon kombi, SPZ 5M8 9701 | D35: 111250 | E35: 9
B36: 99 | C36: Vysokzdižný vozík čelní | D36: 45650 | E36: 130
B37: 100 | C37: 6AL 2487 Fiat Ducato Maxi 2,3 mtj EURO 6, 177 k 35 L3 - 2287 cm3 | D37: 68786 | E37: 150
B38: 101 | C38: stroj kartáčovací | D38: 39990 | E38: 11
B39: 102 | C39: Kotel Bergen Calenta | D39: 6708 | E39: 11
B40: 103 | C40: SW HP 5y 6h 24x7 CTR Pro Liant ML 350 HW Supp | D40: 20794 | E40: 250
B41: 103 | C41: šroubový kompresor Atmos, Albert E.170 KVS | D41: 9141 | E41: 11
B42: 104 | C42: formátovací pila Kappa 400 X - Motion | D42: 41233 | E42: 13

Sheet HNS
C2: pozice/středisko/ činnost | F2: střediskové náklady [Kč/měsíc] | G2: N na ostatní hmotné zdroje [Kč/měsíc] | H2: ∑ N [Kč/měsíc] | I2: Celková kapacita [hod/měsíc] | J2: HNS [Kč/hod]
B3: obchodní fáze | C3: 11x | D3: ='kapac. zdrojů'!D3 -> maloobchodní pobočky | E3: ='zdroje dle stř.'!$E3 -> 22 | F3: =F50 -> 1249699 | G3: =G50 -> 19173.16667 | H3: =F3+G3 -> 1268872.167 | I3: ='kapac. zdrojů'!H3/12 -> 3226.666667 | J3: =H3/I3 -> 393.2455062
C4: 319 | D4: ='kapac. zdrojů'!D4 -> velkoobchod | E4: ='zdroje dle stř.'!$E4 -> 1 | F4: ='rozpočet středisek'!P26 -> 74120 | H4: 74120 | I4: ='kapac. zdrojů'!H4/12 -> 146.6666667 | J4: 505.3636364
C5: ext. | D5: ='kapac. zdrojů'!D5 -> zaměřovací technik | E5: ='zdroje dle stř.'!$E5 -> 2 | F5: 116625 | H5: 116625 | I5: ='kapac. zdrojů'!H5/12 -> 293.3333333 | J5: 397.5852273
C6: 301 | D6: ='kapac. zdrojů'!D6 -> technik zadávacího centra výroby | E6: ='zdroje dle stř.'!$E6 -> 4 | F6: ='rozpočet středisek'!AE26*0.6 -> 150984 | H6: 150984 | I6: ='kapac. zdrojů'!H6/12 -> 586.6666667 | J6: 257.3590909
B7: výrobní fáze | C7: 111 | D7: ='kapac. zdrojů'!D7 -> výroba dveří | E7: ='zdroje dle stř.'!$E7 -> 12 | F7: ='rozpočet středisek'!E26 -> 181450 | G7: =200206/12 -> 16683.83333 | H7: 198133.8333 | I7: ='kapac. zdrojů'!H7/12 -> 1760 | J7: 112.5760417
C8: 113 | D8: ='kapac. zdrojů'!D8 -> zasklívání | E8: ='zdroje dle stř.'!$E8 -> 4 | F8: ='rozpočet středisek'!F26 -> 50130 | H8: 50130 | I8: ='kapac. zdrojů'!H8/12 -> 586.6666667 | J8: 85.44886364
C9: 114 | D9: ='kapac. zdrojů'!D9 -> výroba skříní | E9: ='zdroje dle stř.'!$E9 -> 5 | F9: ='rozpočet středisek'!G26 -> 56730 | G9: =93807/12 -> 7817.25 | H9: 64547.25 | I9: ='kapac. zdrojů'!H9/12 -> 733.3333333 | J9: 88.01897727
C10: 121 | D10: ='kapac. zdrojů'!D10 -> lakovna PU, AC, H20 | E10: ='zdroje dle stř.'!$E10 -> 4 | F10: ='rozpočet středisek'!I26 -> 40750 | H10: 40750 | I10: ='kapac. zdrojů'!H10/12 -> 586.6666667 | J10: 69.46022727
C11: 122 | D11: ='kapac. zdrojů'!D11 -> lakovna dýha | E11: ='zdroje dle stř.'!$E11 -> 1 | F11: ='rozpočet středisek'!J26 -> 4000 | H11: 4000 | I11: ='kapac. zdrojů'!H11/12 -> 146.6666667 | J11: 27.27272727
C12: 130 | D12: ='kapac. zdrojů'!D12 -> výroba zárubní | E12: ='zdroje dle stř.'!$E12 -> 15 | F12: ='rozpočet středisek'!N26 -> 153115 | G12: =74067/12 -> 6172.25 | H12: 159287.25 | I12: ='kapac. zdrojů'!H12/12 -> 2200 | J12: 72.40329545
C13: 131 | D13: ='kapac. zdrojů'!D13 -> lisovna | E13: ='zdroje dle stř.'!$E13 -> 4 | F13: ='rozpočet středisek'!K26 -> 57500 | H13: 57500 | I13: ='kapac. zdrojů'!H13/12 -> 586.6666667 | J13: 98.01136364
B14: expediční fáze | C14: 313 | D14: ='kapac. zdrojů'!D14 -> expedice | E14: ='zdroje dle stř.'!$E14 -> 2 | F14: ='rozpočet středisek'!AB26 -> 18530 | H14: 18530 | I14: ='kapac. zdrojů'!H14/12 -> 293.3333333 | J14: 63.17045455
C15: 310 | D15: ='kapac. zdrojů'!D15 -> sklad dveří + sklad zárubní | E15: ='zdroje dle stř.'!$E15 -> 5 | F15: ='rozpočet středisek'!AC26 -> 122400 | H15: 122400 | I15: ='kapac. zdrojů'!H15/12 -> 733.3333333 | J15: 166.9090909
C16: 150 | D16: ='kapac. zdrojů'!D16 -> rozvozový řidiči | E16: ='zdroje dle stř.'!$E16 -> 3 | F16: ='rozpočet středisek'!AD26 -> 220854 | G16: =257795/12 -> 21482.91667 | H16: 242336.9167 | I16: ='kapac. zdrojů'!H16/12 -> 440 | J16: 550.7657197
C17: ext. | D17: ='kapac. zdrojů'!D17 -> montážníci | E17: ='zdroje dle stř.'!$E17 -> 15 | F17: 603683 | H17: 603683 | I17: ='kapac. zdrojů'!H17/12 -> 2200 | J17: 274.4013636
B18: VPN činnosti | C18: 110 | D18: ='kapac. zdrojů'!D18 -> dřevovýroba | E18: ='zdroje dle stř.'!$E20 -> 1 | F18: ='rozpočet středisek'!D26 -> 24150 | H18: 24150 | I18: ='kapac. zdrojů'!H18/12 -> 146.6666667 | J18: 164.6590909
C19: 120 | D19: ='kapac. zdrojů'!D19 -> výroba rámečků | E19: ='zdroje dle stř.'!$E21 -> 3 | F19: ='rozpočet středisek'!H26 -> 43950 | G19: =63524/12 -> 5293.666667 | H19: 49243.66667 | I19: ='kapac. zdrojů'!H19/12 -> 440 | J19: 111.9174242
C20: 230 | D20: ='kapac. zdrojů'!D20 -> brusírna | E20: ='zdroje dle stř.'!$E22 -> 1 | F20: ='rozpočet středisek'!L26 -> 31300 | H20: 31300 | I20: ='kapac. zdrojů'!H20/12 -> 146.6666667 | J20: 213.4090909
C21: 210 | D21: ='kapac. zdrojů'!D21 -> kovodílna | E21: ='zdroje dle stř.'!$E23 -> 5 | F21: ='rozpočet středisek'!AG26 -> 224676 | G21: =52332/12 -> 4361 | H21: 229037 | I21: ='kapac. zdrojů'!H21/12 -> 733.3333333 | J21: 312.3231818
B22: ostatní nepřímo přiřaditelné činnosti (ONPČ) | C22: 200 | D22: ='kapac. zdrojů'!D22 -> IT oddělení | E22: ='zdroje dle stř.'!$E24 -> 3 | F22: ='rozpočet středisek'!AF26 -> 129776 | G22: =115934/12 -> 9661.166667 | H22: =F22+G22 -> 139437.1667 | I22: ='kapac. zdrojů'!H22/12 -> 440 | J22: =H22/I22 -> 316.9026515
D23: ='kapac. zdrojů'!D23 -> výzkum a vývoj
C24: 300 | D24: ='kapac. zdrojů'!D24 -> uklízečka | E24: ='zdroje dle stř.'!E26 -> 1 | F24: ='rozpočet středisek'!O26 -> 715949 | G24: =(93450+55625)/12 -> 12422.91667 | H24: =F24+G24 -> 728371.9167 | I24: =(SUM('kapac. zdrojů'!H24:H28))/12 -> 1173.333333 | J24: =H24/I24 -> 620.7715199
D25: ='kapac. zdrojů'!D25 -> marketing | E25: ='zdroje dle stř.'!E27 -> 2
D26: ='kapac. zdrojů'!D26 -> účetní oddělení | E26: ='zdroje dle stř.'!E28 -> 3
D27: ='kapac. zdrojů'!D27 -> obchodní ředitel | E27: ='zdroje dle stř.'!E29 -> 1
D28: ='kapac. zdrojů'!D28 -> asistentka OŘ | E28: ='zdroje dle stř.'!E30 -> 1
C29: 301 | D29: ='kapac. zdrojů'!D29 -> reklamační oddělení | E29: ='zdroje dle stř.'!$E31 -> 2 | F29: ='rozpočet středisek'!AE26*0.4 -> 100656 | H29: =F29+G29 -> 100656 | I29: ='kapac. zdrojů'!H29/12 -> 293.3333333 | J29: =H29/I29 -> 343.1454545
C30: 11 | D30: ='kapac. zdrojů'!D30 -> vedení výroby dveří | E30: ='zdroje dle stř.'!$E32 -> 5 | F30: ='rozpočet středisek'!C26 -> 163430 | G30: =881343/12 -> 73445.25 | H30: =F30+G30 -> 236875.25 | I30: ='kapac. zdrojů'!H30/12 -> 733.3333333 | J30: =H30/I30 -> 323.0117045
C31: 13 | D31: ='kapac. zdrojů'!D31 -> vedení výroby zárubní | E31: ='zdroje dle stř.'!$E33 -> 2 | F31: ='rozpočet středisek'!M26 -> 98270 | G31: =41233/12 -> 3436.083333 | H31: =F31+G31 -> 101706.0833 | I31: ='kapac. zdrojů'!H31/12 -> 293.3333333 | J31: =H31/I31 -> 346.7252841
C32: 9 | D32: ='kapac. zdrojů'!D32 -> ekonomické oddělení | E32: ='zdroje dle stř.'!E34 -> 3 | F32: ='rozpočet středisek'!AH26 -> 856201 | G32: =1399735/12 -> 116644.5833 | H32: =F32+G32 -> 972845.5833 | I32: =SUM('kapac. zdrojů'!H32:H36)/12 -> 1173.333333 | J32: =H32/I32 -> 829.1297585
D33: ='kapac. zdrojů'!D33 -> technické kreslení | E33: ='zdroje dle stř.'!E35 -> 1
D34: ='kapac. zdrojů'!D34 -> vedoucí výroby | E34: ='zdroje dle stř.'!E36 -> 1
D35: ='kapac. zdrojů'!D35 -> právní oddělení | E35: ='zdroje dle stř.'!E37 -> 1
D36: ='kapac. zdrojů'!D36 -> vedení společnosti | E36: ='zdroje dle stř.'!E38 -> 2
C38: obchodní středisko | F38: střediskové náklady [Kč/měsíc] | G38: N na ostatní hmotné zdroje [Kč/měsíc] | H38: ∑ N [Kč/měsíc] | I38: Celková kapacita [hod/měsíc] | J38: HNS [Kč/hod]
B39: maloobchodní pobočky | C39: 303 | D39: ='kapac. zdrojů'!D39 -> vzorkovna Kytín | E39: ='zdroje dle stř.'!$E41 -> 2 | F39: ='rozpočet středisek'!Q26 -> 99233 | H39: =F39+G39 -> 99233 | I39: ='kapac. zdrojů'!H39/12 -> 293.3333333 | J39: =H39/I39 -> 338.2943182
C40: 321 | D40: ='kapac. zdrojů'!D40 -> vzorkovna Písek | E40: ='zdroje dle stř.'!$E42 -> 2 | F40: ='rozpočet středisek'!R26 -> 76830 | H40: =F40+G40 -> 76830 | I40: ='kapac. zdrojů'!H40/12 -> 293.3333333 | J40: =H40/I40 -> 261.9204545
C41: 330 | D41: ='kapac. zdrojů'!D41 -> vzorkovna České Buděj. | E41: ='zdroje dle stř.'!$E43 -> 1 | F41: ='rozpočet středisek'!S26 -> 66700 | G41: =67029/12 -> 5585.75 | H41: 72285.75 | I41: ='kapac. zdrojů'!H41/12 -> 146.6666667 | J41: 492.8573864
C42: 340 | D42: ='kapac. zdrojů'!D42 -> vzorkovna Příbram | E42: ='zdroje dle stř.'!$E44 -> 2 | F42: ='rozpočet středisek'!T26 -> 125210 | H42: 125210 | I42: ='kapac. zdrojů'!H42/12 -> 293.3333333 | J42: 426.8522727
C43: 341 | D43: ='kapac. zdrojů'!D43 -> vzorkovna Horoměřice | E43: ='zdroje dle stř.'!$E45 -> 2 | F43: ='rozpočet středisek'!U26 -> 121530 | G43: =34920/12 -> 2910 | H43: 124440 | I43: ='kapac. zdrojů'!H43/12 -> 293.3333333 | J43: 424.2272727
C44: 351 | D44: ='kapac. zdrojů'!D44 -> vzorkovna Praha 9 | E44: ='zdroje dle stř.'!$E46 -> 2 | F44: ='rozpočet středisek'!V26 -> 93040 | G44: =128129/12 -> 10677.41667 | H44: 103717.4167 | I44: ='kapac. zdrojů'!H44/12 -> 293.3333333 | J44: 353.5821023
C45: 353 | D45: ='kapac. zdrojů'!D45 -> vzorkovna Praha 4 | E45: ='zdroje dle stř.'!$E47 -> 2 | F45: ='rozpočet středisek'!W26 -> 131160 | H45: 131160 | I45: ='kapac. zdrojů'!H45/12 -> 293.3333333 | J45: 447.1363636
C46: 370 | D46: ='kapac. zdrojů'!D46 -> vzorkovna Plzeň | E46: ='zdroje dle stř.'!$E48 -> 2 | F46: ='rozpočet středisek'!X26 -> 142150 | H46: 142150 | I46: ='kapac. zdrojů'!H46/12 -> 293.3333333 | J46: 484.6022727
C47: 382 | D47: ='kapac. zdrojů'!D47 -> vzorkovna Brno | E47: ='zdroje dle stř.'!$E49 -> 3 | F47: ='rozpočet středisek'!Y26 -> 204820 | H47: 204820 | I47: ='kapac. zdrojů'!H47/12 -> 440 | J47: 465.5
C48: 390 | D48: ='kapac. zdrojů'!D48 -> vzorkovna Pardubice | E48: ='zdroje dle stř.'!$E50 -> 2 | F48: ='rozpočet středisek'!Z26 -> 105360 | H48: 105360 | I48: ='kapac. zdrojů'!H48/12 -> 293.3333333 | J48: 359.1818182
C49: 395 | D49: ='kapac. zdrojů'!D49 -> vzorkovna Liberec | E49: ='zdroje dle stř.'!$E51 -> 2 | F49: ='rozpočet středisek'!AA26 -> 83666 | H49: 83666 | I49: ='kapac. zdrojů'!H49/12 -> 293.3333333 | J49: 285.225
C50: ∑ | D50: maloobchodní pobočky | E50: =SUM(E39:E49) -> 22 | F50: =SUM(F39:F49) -> 1249699 | G50: =SUM(G39:G49) -> 19173.16667 | H50: =SUM(H39:H49) -> 1268872.167 | I50: =SUM(I39:I49) -> 3226.666667 | J50: =H50/I50 -> 393.2455062
C53: výrobní operace/středisko | F53: střediskové náklady [Kč/měsíc] | G53: variabilní složka mzdy [Kč/měsíc] | H53: N na ostatní hmotné zdroje [Kč/měsíc] | I53: VPN N [Kč/měsíc] | J53: ∑ N [Kč/měsíc] | K53: Celková kapacita [hod/měsíc] | L53: HNS [Kč/hod]
B54: výrobní fáze | C54: 131 | D54: lisování | E54: ='zdroje dle výrob. oper.'!D3 -> 4 | F54: ='rozpočet středisek'!K26 -> 57500
C55: 111 | D55: formátování | E55: ='zdroje dle výrob. oper.'!D4 -> 2
D56: olepování | E56: 2
D57: opracování na CNC | E57: 2
D58: výroba Triumf + Kitty | E58: 2
C59: 122 | D59: broušení | E59: 1
D60: kartáčování
D61: moření
D62: lakování/olejovoskování
C63: 121 | D63: čištění | E63: 4
D64: broušení
D65: základní nástřik
D66: vrchní nástřik
C67: 113 | D67: zasklívání | E67: 4
C68: 111 | D68: čištění | E68: 3
D69: kompletování
D70: balení
D71: výstupní kontrola | E71: 1
B72: ONPČ | C72: 11 | D72: výrobní mistr
D73: manipulace mater. a zboží | E73: 1
D74: úklid | E74: 1
D75: technická podpora výroby | E75: 1
D76: vedoucí výroby dveří | E76: 1
B77: výrobní fáze | C77: 114 | D77: řezání | E77: 5
D78: olepování
D79: čištění
D80: opracování na CNC
D81: rozvrtání/lamelování
D82: kompletování
D83: balení
D84: výstupní kontrola
C85: 130 | D85: řezání proužků na obložky | E85: 1
D86: lepení středů a boků | E86: 1.5
D87: obalování obložek | E87: 1
D88: krácení + vrtání excentrů | E88: 1
D89: opracování na CNC
D90: broušení hran obložek | E90: 1
D91: fréz., dlab., vrtání P+P | E91: 1
D92: řezání základních formátů | E92: 1
D93: lisování ostění | E93: 2
D94: řezání + krácení ostění | E94: 2
D95: olepování + fréz. ostění
D96: čištění + broušení hran | E96: 0.5
D97: sponkování | E97: 3
D98: kompletování
D99: balení
D100: výstupní kontrola
B101: ONPČ | C101: 13 | D101: technická podpora výroby | E101: 1
D102: vedoucí výroby zárubní | E102: 1
B103: VPN činnosti | C103: 110 | D103: dřevovýroba (VPN) | E103: 1 | F103: ='rozpočet středisek'!D26 -> 24150
C104: 120 | D104: řezání | E104: 3 | F104: ='rozpočet středisek'!H26 -> 43950
D105: úpravy dřevěné/alumi
D106: kompletování
D107: broušení
D108: lakování
C109: 230 | D109: brusírna (VPN) | E109: 1 | F109: ='rozpočet středisek'!L26 -> 31300
C110: 210 | D110: kovodílna (VPN) | E110: 5 | F110: ='rozpočet středisek'!AG26 -> 224676

Sheet Kapacita + tržby (hidden)
B2: měsíc | C2: zárubeň - laminát [ks] | E2: Tržba zárubeň - laminát [Kč] (skutečnost) | F2: kapacita [ks] | I2: zárubeň - lakovaná [ks] | K2: Tržba zárubeň - lakovaná [Kč] (skutečnost) | L2: kapacita [ks] | O2: zárubeň - dýhovaná [ks] | Q2: Tržba zárubeň - dýhovaná [Kč] (skutečnost) | R2: kapacita [ks]
C3: plán | D3: skutečnost | F3: max. | G3: skutečná | I3: plán | J3: skutečnost | L3: max. | M3: skutečná | O3: plán | P3: skutečnost | R3: max. | S3: skutečná
B4: leden | C4: 693 | D4: 734.58 | E4: =D4*'Kalkulační vzorec'!$H$5 -> 4889473.797 | F4: 1000 | G4: =D4/(F4/100)/100 -> 0.73458 | I4: 461 | J4: 442.56 | K4: =J4*'Kalkulační vzorec'!$AA$5 -> 2310261.444 | L4: 650 | M4: =J4/(L4/100)/100 -> 0.6808615385 | O4: 210 | P4: 195.3 | Q4: =P4*'Kalkulační vzorec'!$BO$5 -> 841748.1328 | R4: 280 | S4: =P4/(R4/100)/100 -> 0.6975
B5: únor | C5: 706 | D5: 691.88 | E5: =D5*'Kalkulační vzorec'!$H$5 -> 4605256.242 | F5: 1000 | G5: =D5/(F5/100)/100 -> 0.69188 | I5: 473 | J5: 534.49 | K5: =J5*'Kalkulační vzorec'!$AA$5 -> 2790156.451 | L5: 650 | M5: =J5/(L5/100)/100 -> 0.8222923077 | O5: 216 | P5: 233.28 | Q5: =P5*'Kalkulační vzorec'!$BO$5 -> 1005442.931 | R5: 280 | S5: =P5/(R5/100)/100 -> 0.8331428571
B6: březen | C6: 796 | D6: 740.28 | E6: =D6*'Kalkulační vzorec'!$H$5 -> 4927413.845 | F6: 1000 | G6: 0.74028 | I6: 533 | J6: 564.98 | K6: =J6*'Kalkulační vzorec'!$AA$5 -> 2949321.02 | L6: 650 | M6: 0.8692 | O6: 236 | P6: 250.16 | Q6: =P6*'Kalkulační vzorec'!$BO$5 -> 1078196.175 | R6: 280 | S6: 0.8934285714
B7: duben | C7: 840 | D7: 865.2 | E7: =D7*'Kalkulační vzorec'!$H$5 -> 5758899.955 | F7: 1000 | G7: 0.8652 | I7: 563 | J7: 523.59 | K7: =J7*'Kalkulační vzorec'!$AA$5 -> 2733256.031 | L7: 650 | M7: 0.8055230769 | O7: 249 | P7: 244.02 | Q7: =P7*'Kalkulační vzorec'!$BO$5 -> 1051732.613 | R7: 280 | S7: 0.8715
B8: květen | C8: 831 | D8: 922.41 | E8: =D8*'Kalkulační vzorec'!$H$5 -> 6139698.229 | F8: 1000 | G8: 0.92241 | I8: 557 | J8: 518.01 | K8: =J8*'Kalkulační vzorec'!$AA$5 -> 2704127.193 | L8: 650 | M8: 0.7969384615 | O8: 246 | P8: 263.22 | Q8: =P8*'Kalkulační vzorec'!$BO$5 -> 1134485.118 | R8: 280 | S8: 0.9400714286
B9: červen | C9: 774 | D9: 975.24 | E9: =D9*'Kalkulační vzorec'!$H$5 -> 6491342.571 | F9: 1000 | G9: 0.97524 | I9: 519 | J9: 560.52 | K9: =J9*'Kalkulační vzorec'!$AA$5 -> 2926038.83 | L9: 650 | M9: 0.8623384615 | O9: 229 | P9: 235.87 | Q9: =P9*'Kalkulační vzorec'!$BO$5 -> 1016605.899 | R9: 280 | S9: 0.8423928571
B10: červenec | C10: 752 | D10: 631.68 | E10: =D10*'Kalkulační vzorec'!$H$5 -> 4204556.084 | F10: 1000 | G10: 0.63168 | I10: 504 | J10: 534.24 | K10: =J10*'Kalkulační vzorec'!$AA$5 -> 2788851.396 | L10: 650 | M10: 0.8219076923 | O10: 223 | P10: 218.54 | Q10: =P10*'Kalkulační vzorec'!$BO$5 -> 941913.1436 | R10: 280 | S10: 0.7805
B11: srpen | C11: 751 | D11: 848.63 | E11: =D11*'Kalkulační vzorec'!$H$5 -> 5648607.569 | F11: 1000 | G11: 0.84863 | I11: 504 | J11: 559.44 | K11: =J11*'Kalkulační vzorec'!$AA$5 -> 2920400.99 | L11: 650 | M11: 0.8606769231 | O11: 222 | P11: 206.46 | Q11: =P11*'Kalkulační vzorec'!$BO$5 -> 889848.0262 | R11: 280 | S11: 0.7373571429
B12: září | C12: 861 | D12: 912.66 | E12: =D12*'Kalkulační vzorec'!$H$5 -> 6074800.778 | F12: 1000 | G12: 0.91266 | I12: 577 | J12: 617.39 | K12: =J12*'Kalkulační vzorec'!$AA$5 -> 3222912.854 | L12: 650 | M12: 0.9498307692 | O12: 255 | P12: 244.8 | Q12: =P12*'Kalkulační vzorec'!$BO$5 -> 1055094.434 | R12: 280 | S12: 0.8742857143
B13: říjen | C13: 909 | D13: 845.37 | E13: =D13*'Kalkulační vzorec'!$H$5 -> 5626908.524 | F13: 1000 | G13: 0.84537 | I13: 609 | J13: 627.27 | K13: =J13*'Kalkulační vzorec'!$AA$5 -> 3274488.647 | L13: 650 | M13: 0.9650307692 | O13: 269 | P13: 303.97 | Q13: =P13*'Kalkulační vzorec'!$BO$5 -> 1310118.689 | R13: 280 | S13: 1.085607143
B14: listopad | C14: 958 | D14: 833.46 | E14: =D14*'Kalkulační vzorec'!$H$5 -> 5547633.791 | F14: 1000 | G14: 0.83346 | I14: 645 | J14: 632.1 | K14: =J14*'Kalkulační vzorec'!$AA$5 -> 3299702.32 | L14: 650 | M14: 0.9724615385 | O14: 273 | P14: 289.38 | Q14: =P14*'Kalkulační vzorec'!$BO$5 -> 1247235.405 | R14: 280 | S14: 1.0335
B15: prosinec | C15: 893 | D15: 964.44 | E15: =D15*'Kalkulační vzorec'!$H$5 -> 6419456.163 | F15: 1000 | G15: 0.96444 | I15: 598 | J15: 556.14 | K15: =J15*'Kalkulační vzorec'!$AA$5 -> 2903174.257 | L15: 650 | M15: 0.8556 | O15: 265 | P15: 246.45 | Q15: =P15*'Kalkulační vzorec'!$BO$5 -> 1062205.977 | R15: 280 | S15: 0.8801785714
B16: Celkem / rok | C16: =SUM(C4:C15) -> 9764 | D16: =SUM(D4:D15) -> 9965.83 | E16: 66334047.55 | F16: =SUM(F4:F15) -> 12000 | G16: =AVERAGE(G4:G15) -> 0.8304858333 | I16: 6543 | J16: 6670.73 | K16: 34822691.43 | L16: =SUM(L4:L15) -> 7800 | M16: =AVERAGE(M4:M15) -> 0.8552217949 | O16: 2893 | P16: 2931.45 | Q16: =SUM(Q4:Q15) -> 12634626.54 | R16: =SUM(R4:R15) -> 3360 | S16: =AVERAGE(S4:S15) -> 0.8724553571
T18: Bez investice
T19: celková roční kapacita [ks] | U19: =F16+L16+R16 -> 23160
B20: Datum: | C20: leden | D20: únor | E20: březen | F20: duben | G20: květen | H20: červen | I20: červenec | J20: srpen | K20: září | L20: říjen | M20: listopad | N20: prosinec | T20: roční plán [ks] | U20: =C16+I16+O16 -> 19200
B21: DVEŘE STANDARDNÍ | C21: 892 | D21: 802 | E21: 817 | F21: 752 | G21: 1060 | H21: 796 | I21: 1101 | J21: 1194 | K21: 668 | L21: 890 | M21: 1029 | N21: 386 | T21: roční skutečnost [ks] | U21: =D16+J16+P16 -> 19568.01
B22: Dveře bazar | C22: 0 | D22: 0 | E22: 0 | F22: 0 | G22: 0 | H22: 0 | I22: 0 | J22: 0 | K22: 0 | L22: 0 | M22: 0 | N22: 0 | T22: denní produkce plán [ks] | U22: =U20/#REF! -> 
B23: DVEŘE RAL | C23: 133 | D23: 101 | E23: 101 | F23: 163 | G23: 119 | H23: 164 | I23: 121 | J23: 160 | K23: 119 | L23: 106 | M23: 142 | N23: 127 | T23: denní produkce skut. [ks] | U23: =U21/#REF! -> 
B24: TRIUMF II. | C24: 20 | D24: 7 | E24: 23 | F24: 10 | G24: 5 | H24: 0 | I24: 9 | J24: 0 | K24: 7 | L24: 8 | M24: 4 | N24: 2 | T24: Náklady/rok [Kč] | U24: ='Kalkulační vzorec'!HH23+'Kalkulační vzorec'!#REF!+'Kalkulační vzorec'!HH38+'Kalkulační vzorec'!HH44+'Kalkulační vzorec'!HH50+'Kalkulační vzorec'!HH62 -> 
B25: DVEŘE S DTD VÝPLNÍ | C25: 620 | D25: 489 | E25: 467 | F25: 580 | G25: 642 | H25: 654 | I25: 423 | J25: 910 | K25: 539 | L25: 761 | M25: 835 | N25: 428 | T25: Celkem tržba/rok [Kč] | U25: ='Kalkulační vzorec'!HH5 -> 217063499.4
B26: DVEŘE PROTIPOŽÁRNÍ | C26: 162 | D26: 208 | E26: 226 | F26: 142 | G26: 203 | H26: 269 | I26: 270 | J26: 346 | K26: 170 | L26: 251 | M26: 249 | N26: 171 | T26: Zisk (EBT) [Kč] | U26: =U25-U24 -> 
B27: DVEŘE BEZPEČNOSTNÍ B2 | C27: 114 | D27: 133 | E27: 104 | F27: 192 | G27: 125 | H27: 155 | I27: 82 | J27: 116 | K27: 81 | L27: 86 | M27: 84 | N27: 74
B28: DVEŘE BEZPEČNOSTNÍ B3 | C28: 53 | D28: 9 | E28: 16 | F28: 33 | G28: 34 | H28: 32 | I28: 8 | J28: 18 | K28: 15 | L28: 15 | M28: 14 | N28: 6
B29: DVEŘE BEZFALCOVÉ | C29: 22 | D29: 14 | E29: 23 | F29: 48 | G29: 15 | H29: 19 | I29: 28 | J29: 24 | K29: 31 | L29: 15 | M29: 31 | N29: 15
B30: DVEŘE POSUVNÉ | C30: 142 | D30: 174 | E30: 173 | F30: 138 | G30: 176 | H30: 207 | I30: 136 | J30: 230 | K30: 132 | L30: 179 | M30: 226 | N30: 96
B31: ATYP | C31: 248 | D31: 206 | E31: 250 | F31: 208 | G31: 227 | H31: 245 | I31: 181 | J31: 295 | K31: 187 | L31: 309 | M31: 305 | N31: 134
B32: DVOUKŘÍDLO | C32: 26 | D32: 31 | E32: 28 | F32: 40 | G32: 30 | H32: 36 | I32: 22 | J32: 36 | K32: 20 | L32: 40 | M32: 64 | N32: 14
B33: TRIUMF I. | C33: 23 | D33: 11 | E33: 25 | F33: 11 | G33: 15 | H33: 11 | I33: 14 | J33: 23 | K33: 11 | L33: 17 | M33: 20 | N33: 3
B34: KLASIK PVC | C34: 0 | D34: 0 | E34: 0 | F34: 0 | G34: 0 | H34: 0 | I34: 0 | J34: 0 | K34: 0 | L34: 0 | M34: 0 | N34: 0
B35: CELKEM: | C35: 2322 | D35: 2084 | E35: 2152 | F35: 2154 | G35: 2532 | H35: 2424 | I35: 2274 | J35: 3192 | K35: 1861 | L35: 2571 | M35: 2861 | N35: 1329
B38: DVEŘE RAL - PB, DTD | C38: 73 | D38: 31 | E38: 74 | F38: 90 | G38: 86 | H38: 100 | I38: 79 | J38: 122 | K38: 94 | L38: 125 | M38: 111 | N38: 41

Sheet tržby + kapacita
B2: ='Kalkulační vzorec'!H2&" [ks]" -> OP 1 -Triumf + Kitty [ks] | K2: Tržby [Kč] (skutečnost) | L2: kapacita [ks]
B3: model/rok | C3: 2012 | D3: 2013 | E3: 2014 | F3: 2015 | G3: 2016 | H3: 2017 | I3: plán 2018 | J3: skutečnost 2018 | L3: max. | M3: skutečná
B4: ='Dveře V1'!B3 -> Triumf I | C4: ='Dveře V1'!AO3 -> 809 | D4: ='Dveře V1'!AP3 -> 643 | E4: ='Dveře V1'!AQ3 -> 399 | F4: ='Dveře V1'!AR3 -> 442 | G4: ='Dveře V1'!AS3 -> 335 | H4: ='Dveře V1'!AT3 -> 278 | I4: =L4*0.8 -> 454.4 | J4: =H4*1.07 -> 297.46 | K4: =J4*'Dveře V1'!AL3 -> 1859125 | L4: =R4 -> 568 | M4: =J4/L4 -> 0.5236971831 | O4: =SUM(C4:H4)/6 -> 484.3333333 | P4: =O4/(SUM($C$20:$H$20)/6) -> 0.3537000974 | Q4: =$J$182*P4 -> 567.5909886 | R4: =CEILING(Q4,1) -> 568
B5: ='Dveře V1'!B4 -> Triumf II | C5: ='Dveře V1'!AO4 -> 268 | D5: ='Dveře V1'!AP4 -> 340 | E5: ='Dveře V1'!AQ4 -> 248 | F5: ='Dveře V1'!AR4 -> 154 | G5: ='Dveře V1'!AS4 -> 178 | H5: ='Dveře V1'!AT4 -> 141 | I5: =L5*0.8 -> 208 | J5: =H5*1.07 -> 150.87 | K5: =J5*'Dveře V1'!AL4 -> 879572.1 | L5: =R5 -> 260 | M5: =J5/L5 -> 0.5802692308 | O5: =SUM(C5:H5)/6 -> 221.5 | P5: =O5/(SUM($C$20:$H$20)/6) -> 0.1617575463 | Q5: 259.5761954 | R5: =CEILING(Q5,1) -> 260
B6: ='Dveře V1'!B5 -> Triumf III | C6: ='Dveře V1'!AO5 -> 0 | D6: ='Dveře V1'!AP5 -> 96 | E6: ='Dveře V1'!AQ5 -> 96 | F6: ='Dveře V1'!AR5 -> 33 | G6: ='Dveře V1'!AS5 -> 80 | H6: ='Dveře V1'!AT5 -> 92 | I6: 62.4 | J6: 98.44 | K6: =J6*'Dveře V1'!AL5 -> 603437.2 | L6: 78 | M6: 1.262051282 | O6: =SUM(D6:H6)/5 -> 79.4 | P6: =O6/(SUM($C$20:$H$20)/5) -> 0.04832035054 | Q6: 77.54081984 | R6: 78
B7: ='Dveře V1'!B6 -> Triumf IV | C7: ='Dveře V1'!AO6 -> 0 | D7: ='Dveře V1'!AP6 -> 37 | E7: ='Dveře V1'!AQ6 -> 143 | F7: ='Dveře V1'!AR6 -> 161 | G7: ='Dveře V1'!AS6 -> 183 | H7: ='Dveře V1'!AT6 -> 95 | I7: 96.8 | J7: 101.65 | K7: =J7*'Dveře V1'!AL6 -> 623114.5 | L7: 121 | M7: 0.8400826446 | O7: =SUM(D7:H7)/5 -> 123.8 | P7: 0.07534079844 | Q7: 120.9011775 | R7: 121
B8: ='Dveře V1'!B7 -> Triumf V | C8: ='Dveře V1'!AO7 -> 0 | D8: ='Dveře V1'!AP7 -> 120 | E8: ='Dveře V1'!AQ7 -> 23 | F8: ='Dveře V1'!AR7 -> 24 | G8: ='Dveře V1'!AS7 -> 90 | H8: ='Dveře V1'!AT7 -> 43 | I8: 47.2 | J8: 46.01 | K8: =J8*'Dveře V1'!AL7 -> 239252 | L8: 59 | M8: 0.7798305085 | O8: 60 | P8: 0.03651411879 | Q8: 58.59507797 | R8: 59
B9: ='Dveře V1'!B8 -> Kitty I | C9: ='Dveře V1'!AO8 -> 0 | D9: ='Dveře V1'!AP8 -> 110 | E9: ='Dveře V1'!AQ8 -> 135 | F9: ='Dveře V1'!AR8 -> 92 | G9: ='Dveře V1'!AS8 -> 176 | H9: ='Dveře V1'!AT8 -> 135 | I9: 101.6 | J9: 144.45 | K9: =J9*'Dveře V1'!AL8 -> 937480.5 | L9: 127 | M9: 1.137401575 | O9: 129.6 | P9: 0.07887049659 | Q9: 126.5653684 | R9: 127
B10: ='Dveře V1'!B9 -> Kitty II | C10: ='Dveře V1'!AO9 -> 0 | D10: ='Dveře V1'!AP9 -> 94 | E10: ='Dveře V1'!AQ9 -> 160 | F10: ='Dveře V1'!AR9 -> 215 | G10: ='Dveře V1'!AS9 -> 279 | H10: ='Dveře V1'!AT9 -> 247 | I10: 156 | J10: 264.29 | K10: =J10*'Dveře V1'!AL9 -> 1715242.1 | L10: 195 | M10: 1.355333333 | O10: 199 | P10: 0.1211051607 | Q10: 194.3403419 | R10: 195
B11: ='Dveře V1'!B10 -> Kitty III | C11: ='Dveře V1'!AO10 -> 0 | D11: ='Dveře V1'!AP10 -> 811 | E11: ='Dveře V1'!AQ10 -> 23 | F11: ='Dveře V1'!AR10 -> 73 | G11: ='Dveře V1'!AS10 -> 84 | H11: ='Dveře V1'!AT10 -> 24 | I11: 159.2 | J11: 25.68 | K11: =J11*'Dveře V1'!AL10 -> 166663.2 | L11: 199 | M11: 0.1290452261 | O11: 203 | P11: 0.1235394352 | Q11: 198.2466805 | R11: 199
B12: ='Dveře V1'!B11 -> Kitty IV | C12: ='Dveře V1'!AO11 -> 0 | D12: ='Dveře V1'!AP11 -> 0 | E12: ='Dveře V1'!AQ11 -> 7 | F12: ='Dveře V1'!AR11 -> 0 | G12: ='Dveře V1'!AS11 -> 0 | H12: ='Dveře V1'!AT11 -> 0 | I12: 1.6 | J12: 0 | K12: =J12*'Dveře V1'!AL11 -> 0 | L12: 2 | M12: 0 | O12: 1.4 | P12: 0.0008519961052 | Q12: 1.367218486 | R12: 2 | S12: laminát | T12: 0 | U12: 0.55 | V12: 0.75 | W12: =$V$12*U12 -> 0.4125
B13: děr.DTD | C13: ='Dveře V1'!AO12 -> 0 | D13: ='Dveře V1'!AP12 -> 97 | E13: ='Dveře V1'!AQ12 -> 37 | F13: ='Dveře V1'!AR12 -> 42 | G13: ='Dveře V1'!AS12 -> 45 | H13: ='Dveře V1'!AT12 -> 26 | I13: =SUM(D13:H13)/5 -> 49.4 | J13: 27.82 | K13: =J13*T13 -> 12519 | S13: děr.DTD | T13: 450
B14: plná DTD | C14: ='Dveře V1'!AO13 -> 0 | D14: ='Dveře V1'!AP13 -> 0 | E14: ='Dveře V1'!AQ13 -> 1 | F14: ='Dveře V1'!AR13 -> 0 | G14: ='Dveře V1'!AS13 -> 0 | H14: ='Dveře V1'!AT13 -> 0 | I14: =SUM(D14:H14)/5 -> 0.2 | J14: 0 | K14: =J14*T14 -> 0 | S14: plná DTD | T14: 900
B15: lam.reliéf | C15: 0 | D15: =D20*$W$15 -> 422.0625 | E15: =E20*$W$15 -> 231.375 | F15: =F20*$W$15 -> 223.875 | G15: =G20*$W$15 -> 263.4375 | H15: =H20*$W$15 -> 197.8125 | I15: =SUM(D15:H15)/5 -> 267.7125 | J15: 211.659375 | K15: 42331.875 | S15: reliéf | T15: 200 | U15: 0.25 | V15: 0.7 | W15: =$V$12*U15 -> 0.1875
B16: lam.real | C16: 0 | D16: =D20*$W$16 -> 337.65 | E16: =E20*$W$16 -> 185.1 | F16: =F20*$W$16 -> 179.1 | G16: =G20*$W$16 -> 210.75 | H16: =H20*$W$16 -> 158.25 | I16: 214.17 | J16: 169.3275 | K16: 110062.875 | S16: real | T16: 650 | U16: 0.2 | W16: =$V$12*U16 -> 0.15
B17: lak PU x AC | C17: 0 | D17: =SUM(D4:D8)*$W$17 -> 247.2 | E17: =SUM(E4:E8)*$W$17 -> 181.8 | F17: =SUM(F4:F8)*$W$17 -> 162.8 | G17: =SUM(G4:G8)*$W$17 -> 173.2 | H17: =SUM(H4:H8)*$W$17 -> 129.8 | I17: 178.96 | J17: 138.886 | K17: 83331.6 | S17: lak PU/AC | T17: 600 | U17: 0.8 | V17: 0.25 | W17: =U17*$V$17 -> 0.2
B18: Artemis AC | C18: 0 | D18: =SUM(D4:D8)*$W$18 -> 61.8 | E18: =SUM(E4:E8)*$W$18 -> 45.45 | F18: =SUM(F4:F8)*$W$18 -> 40.7 | G18: =SUM(G4:G8)*$W$18 -> 43.3 | H18: =SUM(H4:H8)*$W$18 -> 32.45 | I18: 44.74 | J18: 34.7215 | K18: 45137.95 | S18: Artemis AC | T18: 1300 | U18: 0.2 | W18: =U18*$V$17 -> 0.05
B19: dýha | C19: 0 | D19: 0 | E19: 0 | F19: 0 | G19: =SUM(G4:G8)*$W$19 -> 43.3 | H19: =SUM(H4:H8)*$W$19 -> 32.45 | I19: =SUM(G19:H19)/2 -> 37.875 | J19: 34.7215 | K19: 196523.69 | S19: dýha | T19: 5660 | U19: 0.05 | W19: =U19 -> 0.05
B20: ∑ OP 1 | C20: =SUM(C4:C12) -> 1077 | D20: =SUM(D4:D12) -> 2251 | E20: 1234 | F20: 1194 | G20: 1405 | H20: 1055 | I20: =SUM(I4:I13) -> 1336.6 | J20: 1128.85 | K20: =SUM(K4:K19) -> 7513793.59 | L20: =SUM(L4:L12) -> 1609 | M20: 0.7015848353
B22: ='Kalkulační vzorec'!AA2&" [ks]" -> OP 2 - BEPEWE [ks] | K22: Tržby [Kč] (skutečnost) | L22: kapacita [ks]
B23: model/rok | C23: 2012 | D23: 2013 | E23: 2014 | F23: 2015 | G23: 2016 | H23: 2017 | I23: plán 2018 | J23: skutečnost 2018 | L23: max. | M23: skutečná
B24: ='Dveře V1'!B56 -> Betty P2N | C24: ='Dveře V1'!AO56 -> 197 | D24: ='Dveře V1'!AP56 -> 79 | E24: ='Dveře V1'!AQ56 -> 45 | F24: ='Dveře V1'!AR56 -> 108 | G24: ='Dveře V1'!AS56 -> 96 | H24: ='Dveře V1'!AT56 -> 100 | I24: =L24*0.8 -> 96 | J24: =H24*1.07 -> 107 | K24: =J24*'Dveře V1'!AL56 -> 459030 | L24: =R24 -> 120 | M24: =J24/L24 -> 0.8916666667 | O24: 104.1666667 | P24: =O24/(SUM($C$61:$H$61)/6) -> 0.1058604336 | Q24: =$J$183*P24 -> 119.8977141 | R24: =CEILING(Q24,1) -> 120
B25: ='Dveře V1'!B57 -> Betty AN | C25: ='Dveře V1'!AO57 -> 19 | D25: ='Dveře V1'!AP57 -> 6 | E25: ='Dveře V1'!AQ57 -> 13 | F25: ='Dveře V1'!AR57 -> 21 | G25: ='Dveře V1'!AS57 -> 40 | H25: ='Dveře V1'!AT57 -> 18 | I25: =L25*0.8 -> 18.4 | J25: =H25*1.07 -> 19.26 | K25: =J25*'Dveře V1'!AL57 -> 94759.2 | L25: =R25 -> 23 | M25: =J25/L25 -> 0.8373913043 | O25: 19.5 | P25: 0.01981707317 | Q25: 22.44485209 | R25: =CEILING(Q25,1) -> 23
B26: ='Dveře V1'!B58 -> Betty BN | C26: ='Dveře V1'!AO58 -> 48 | D26: ='Dveře V1'!AP58 -> 37 | E26: ='Dveře V1'!AQ58 -> 37 | F26: ='Dveře V1'!AR58 -> 52 | G26: ='Dveře V1'!AS58 -> 56 | H26: ='Dveře V1'!AT58 -> 37 | I26: 41.6 | J26: 39.59 | K26: =J26*'Dveře V1'!AL58 -> 219724.5 | L26: 52 | M26: 0.7613461538 | O26: 44.5 | P26: 0.04522357724 | Q26: 51.22030348 | R26: 52
B27: ='Dveře V1'!B59 -> Betty P1N | C27: ='Dveře V1'!AO59 -> 0 | D27: ='Dveře V1'!AP59 -> 31 | E27: ='Dveře V1'!AQ59 -> 23 | F27: ='Dveře V1'!AR59 -> 33 | G27: ='Dveře V1'!AS59 -> 45 | H27: ='Dveře V1'!AT59 -> 81 | I27: 32.8 | J27: 86.67 | K27: =J27*'Dveře V1'!AL59 -> 337146.3 | L27: 41 | M27: 2.113902439 | O27: 35.5 | P27: 0.03607723577 | Q27: 40.86114098 | R27: 41
B28: ='Dveře V1'!B60 -> Betty E | C28: ='Dveře V1'!AO60 -> 229 | D28: ='Dveře V1'!AP60 -> 178 | E28: ='Dveře V1'!AQ60 -> 92 | F28: ='Dveře V1'!AR60 -> 70 | G28: ='Dveře V1'!AS60 -> 67 | H28: ='Dveře V1'!AT60 -> 62 | I28: 107.2 | J28: 66.34 | K28: =J28*'Dveře V1'!AL60 -> 368187 | L28: 134 | M28: 0.4950746269 | O28: 116.3333333 | P28: 0.1182249322 | Q28: 133.9017671 | R28: 134
B29: ='Dveře V1'!B61 -> Betty D | C29: ='Dveře V1'!AO61 -> 56 | D29: ='Dveře V1'!AP61 -> 46 | E29: ='Dveře V1'!AQ61 -> 35 | F29: ='Dveře V1'!AR61 -> 71 | G29: ='Dveře V1'!AS61 -> 98 | H29: ='Dveře V1'!AT61 -> 97 | I29: 62.4 | J29: 103.79 | K29: =J29*'Dveře V1'!AL61 -> 503381.5 | L29: 78 | M29: 1.330641026 | O29: 67.16666667 | P29: 0.06825880759 | Q29: 77.31004607 | R29: 78
B30: ='Dveře V1'!B62 -> Betty P2K | C30: ='Dveře V1'!AO62 -> 148 | D30: ='Dveře V1'!AP62 -> 83 | E30: ='Dveře V1'!AQ62 -> 65 | F30: ='Dveře V1'!AR62 -> 66 | G30: ='Dveře V1'!AS62 -> 24 | H30: ='Dveře V1'!AT62 -> 41 | I30: 65.6 | J30: 43.87 | K30: =J30*'Dveře V1'!AL62 -> 229440.1 | L30: 82 | M30: 0.535 | O30: 71.16666667 | P30: 0.07232384824 | Q30: 81.9141183 | R30: 82
B31: ='Dveře V1'!B63 -> Betty AK | C31: ='Dveře V1'!AO63 -> 21 | D31: ='Dveře V1'!AP63 -> 15 | E31: ='Dveře V1'!AQ63 -> 23 | F31: ='Dveře V1'!AR63 -> 7 | G31: ='Dveře V1'!AS63 -> 9 | H31: ='Dveře V1'!AT63 -> 9 | I31: 13.6 | J31: 9.63 | K31: =J31*'Dveře V1'!AL63 -> 54505.8 | L31: 17 | M31: 0.5664705882 | O31: 14 | P31: 0.01422764228 | Q31: 16.11425278 | R31: 17
B32: ='Dveře V1'!B64 -> Betty BK | C32: ='Dveře V1'!AO64 -> 48 | D32: ='Dveře V1'!AP64 -> 35 | E32: ='Dveře V1'!AQ64 -> 24 | F32: ='Dveře V1'!AR64 -> 30 | G32: ='Dveře V1'!AS64 -> 5 | H32: ='Dveře V1'!AT64 -> 35 | I32: 27.2 | J32: 37.45 | K32: =J32*'Dveře V1'!AL64 -> 220580.5 | L32: 34 | M32: 1.101470588 | O32: 29.5 | P32: 0.0299796748 | Q32: 33.95503264 | R32: 34
B33: ='Dveře V1'!B65 -> Betty P1K | C33: ='Dveře V1'!AO65 -> 0 | D33: ='Dveře V1'!AP65 -> 29 | E33: ='Dveře V1'!AQ65 -> 35 | F33: ='Dveře V1'!AR65 -> 19 | G33: ='Dveře V1'!AS65 -> 11 | H33: ='Dveře V1'!AT65 -> 21 | I33: 18.4 | J33: 22.47 | K33: =J33*'Dveře V1'!AL65 -> 109878.3 | L33: 23 | M33: 0.9769565217 | O33: 19.16666667 | P33: 0.01947831978 | Q33: 22.0611794 | R33: 23
B34: ='Dveře V1'!B66 -> Peggy P2N | C34: ='Dveře V1'!AO66 -> 53 | D34: ='Dveře V1'!AP66 -> 31 | E34: ='Dveře V1'!AQ66 -> 33 | F34: ='Dveře V1'!AR66 -> 25 | G34: ='Dveře V1'!AS66 -> 26 | H34: ='Dveře V1'!AT66 -> 29 | I34: 30.4 | J34: 31.03 | K34: =J34*'Dveře V1'!AL66 -> 145530.7 | L34: 38 | M34: 0.8165789474 | O34: 32.83333333 | P34: 0.03336720867 | Q34: 37.7917595 | R34: 38
B35: ='Dveře V1'!B67 -> Peggy AN | C35: ='Dveře V1'!AO67 -> 14 | D35: ='Dveře V1'!AP67 -> 12 | E35: ='Dveře V1'!AQ67 -> 12 | F35: ='Dveře V1'!AR67 -> 14 | G35: ='Dveře V1'!AS67 -> 3 | H35: ='Dveře V1'!AT67 -> 1 | I35: 8.8 | J35: 1.07 | K35: =J35*'Dveře V1'!AL67 -> 5938.5 | L35: 11 | M35: 0.09727272727 | O35: 9.333333333 | P35: 0.009485094851 | Q35: 10.74283519 | R35: 11
B36: ='Dveře V1'!B68 -> Peggy BN | C36: ='Dveře V1'!AO68 -> 60 | D36: ='Dveře V1'!AP68 -> 47 | E36: ='Dveře V1'!AQ68 -> 55 | F36: ='Dveře V1'!AR68 -> 28 | G36: ='Dveře V1'!AS68 -> 8 | H36: ='Dveře V1'!AT68 -> 1 | I36: 31.2 | J36: 1.07 | K36: =J36*'Dveře V1'!AL68 -> 6580.5 | L36: 39 | M36: 0.02743589744 | O36: 33.16666667 | P36: 0.03370596206 | Q36: 38.17543218 | R36: 39
B37: ='Dveře V1'!B69 -> Peggy P1N | C37: ='Dveře V1'!AO69 -> 0 | D37: ='Dveře V1'!AP69 -> 5 | E37: ='Dveře V1'!AQ69 -> 8 | F37: ='Dveře V1'!AR69 -> 8 | G37: ='Dveře V1'!AS69 -> 62 | H37: ='Dveře V1'!AT69 -> 10 | I37: 14.4 | J37: 10.7 | K37: =J37*'Dveře V1'!AL69 -> 46973 | L37: 18 | M37: 0.5944444444 | O37: 15.5 | P37: 0.01575203252 | Q37: 17.84077986 | R37: 18
B38: ='Dveře V1'!B70 -> Peggy E | C38: ='Dveře V1'!AO70 -> 53 | D38: ='Dveře V1'!AP70 -> 39 | E38: ='Dveře V1'!AQ70 -> 30 | F38: ='Dveře V1'!AR70 -> 28 | G38: ='Dveře V1'!AS70 -> 20 | H38: ='Dveře V1'!AT70 -> 24 | I38: 30.4 | J38: 25.68 | K38: =J38*'Dveře V1'!AL70 -> 148687.2 | L38: 38 | M38: 0.6757894737 | O38: 32.33333333 | P38: 0.03285907859 | Q38: 37.21625047 | R38: 38
B39: ='Dveře V1'!B71 -> Peggy D | C39: ='Dveře V1'!AO71 -> 9 | D39: ='Dveře V1'!AP71 -> 3 | E39: ='Dveře V1'!AQ71 -> 1 | F39: ='Dveře V1'!AR71 -> 11 | G39: ='Dveře V1'!AS71 -> 37 | H39: ='Dveře V1'!AT71 -> 2 | I39: 10.4 | J39: 2.14 | K39: =J39*'Dveře V1'!AL71 -> 11106.6 | L39: 13 | M39: 0.1646153846 | O39: 10.5 | P39: 0.01067073171 | Q39: 12.08568958 | R39: 13
B40: ='Dveře V1'!B72 -> Peggy P2K | C40: ='Dveře V1'!AO72 -> 79 | D40: ='Dveře V1'!AP72 -> 28 | E40: ='Dveře V1'!AQ72 -> 23 | F40: ='Dveře V1'!AR72 -> 32 | G40: ='Dveře V1'!AS72 -> 30 | H40: ='Dveře V1'!AT72 -> 18 | I40: 32.8 | J40: 19.26 | K40: =J40*'Dveře V1'!AL72 -> 109589.4 | L40: 41 | M40: 0.4697560976 | O40: 35 | P40: 0.03556910569 | Q40: 40.28563195 | R40: 41
B41: ='Dveře V1'!B73 -> Peggy AK | C41: ='Dveře V1'!AO73 -> 5 | D41: ='Dveře V1'!AP73 -> 3 | E41: ='Dveře V1'!AQ73 -> 2 | F41: ='Dveře V1'!AR73 -> 0 | G41: ='Dveře V1'!AS73 -> 3 | H41: ='Dveře V1'!AT73 -> 0 | I41: 2.4 | J41: 0 | K41: =J41*'Dveře V1'!AL73 -> 0 | L41: 3 | M41: 0 | O41: 2.166666667 | P41: 0.002201897019 | Q41: 2.493872454 | R41: 3
B42: ='Dveře V1'!B74 -> Peggy BK | C42: ='Dveře V1'!AO74 -> 72 | D42: ='Dveře V1'!AP74 -> 24 | E42: ='Dveře V1'!AQ74 -> 12 | F42: ='Dveře V1'!AR74 -> 27 | G42: ='Dveře V1'!AS74 -> 27 | H42: ='Dveře V1'!AT74 -> 28 | I42: 29.6 | J42: 29.96 | K42: =J42*'Dveře V1'!AL74 -> 193242 | L42: 37 | M42: 0.8097297297 | O42: 31.66666667 | P42: 0.03218157182 | Q42: 36.4489051 | R42: 37
B43: ='Dveře V1'!B75 -> Peggy P1K | C43: ='Dveře V1'!AO75 -> 0 | D43: ='Dveře V1'!AP75 -> 4 | E43: ='Dveře V1'!AQ75 -> 5 | F43: ='Dveře V1'!AR75 -> 12 | G43: ='Dveře V1'!AS75 -> 6 | H43: ='Dveře V1'!AT75 -> 7 | I43: 5.6 | J43: 7.49 | K43: =J43*'Dveře V1'!AL75 -> 39172.7 | L43: 7 | M43: 1.07 | O43: 5.666666667 | P43: 0.005758807588 | Q43: 6.522435649 | R43: 7
B44: ='Dveře V1'!B76 -> Wendy P2N | C44: ='Dveře V1'!AO76 -> 127 | D44: ='Dveře V1'!AP76 -> 53 | E44: ='Dveře V1'!AQ76 -> 77 | F44: ='Dveře V1'!AR76 -> 11 | G44: ='Dveře V1'!AS76 -> 34 | H44: ='Dveře V1'!AT76 -> 37 | I44: 52.8 | J44: 39.59 | K44: =J44*'Dveře V1'!AL76 -> 185677.1 | L44: 66 | M44: 0.5998484848 | O44: 56.5 | P44: 0.05741869919 | Q44: 65.03252015 | R44: 66
B45: ='Dveře V1'!B77 -> Wendy AN | C45: ='Dveře V1'!AO77 -> 36 | D45: ='Dveře V1'!AP77 -> 13 | E45: ='Dveře V1'!AQ77 -> 16 | F45: ='Dveře V1'!AR77 -> 3 | G45: ='Dveře V1'!AS77 -> 13 | H45: ='Dveře V1'!AT77 -> 6 | I45: 13.6 | J45: 6.42 | K45: =J45*'Dveře V1'!AL77 -> 35631 | L45: 17 | M45: 0.3776470588 | O45: 14.5 | P45: 0.01473577236 | Q45: 16.68976181 | R45: 17
B46: ='Dveře V1'!B78 -> Wendy BN | C46: ='Dveře V1'!AO78 -> 70 | D46: ='Dveře V1'!AP78 -> 22 | E46: ='Dveře V1'!AQ78 -> 67 | F46: ='Dveře V1'!AR78 -> 21 | G46: ='Dveře V1'!AS78 -> 38 | H46: ='Dveře V1'!AT78 -> 24 | I46: 37.6 | J46: 25.68 | K46: =J46*'Dveře V1'!AL78 -> 157932 | L46: 47 | M46: 0.5463829787 | O46: 40.33333333 | P46: 0.04098915989 | Q46: 46.42439491 | R46: 47
B47: ='Dveře V1'!B79 -> Wendy P1N | C47: ='Dveře V1'!AO79 -> 0 | D47: ='Dveře V1'!AP79 -> 13 | E47: ='Dveře V1'!AQ79 -> 27 | F47: ='Dveře V1'!AR79 -> 9 | G47: ='Dveře V1'!AS79 -> 10 | H47: ='Dveře V1'!AT79 -> 6 | I47: 10.4 | J47: 6.42 | K47: =J47*'Dveře V1'!AL79 -> 28183.8 | L47: 13 | M47: 0.4938461538 | O47: 10.83333333 | P47: 0.01100948509 | Q47: 12.46936227 | R47: 13
B48: ='Dveře V1'!B80 -> Wendy E | C48: ='Dveře V1'!AO80 -> 68 | D48: ='Dveře V1'!AP80 -> 58 | E48: ='Dveře V1'!AQ80 -> 27 | F48: ='Dveře V1'!AR80 -> 40 | G48: ='Dveře V1'!AS80 -> 18 | H48: ='Dveře V1'!AT80 -> 22 | I48: 36 | J48: 23.54 | K48: =J48*'Dveře V1'!AL80 -> 136296.6 | L48: 45 | M48: 0.5231111111 | O48: 38.83333333 | P48: 0.03946476965 | Q48: 44.69786783 | R48: 45
B49: ='Dveře V1'!B81 -> Wendy D | C49: ='Dveře V1'!AO81 -> 48 | D49: ='Dveře V1'!AP81 -> 6 | E49: ='Dveře V1'!AQ81 -> 4 | F49: ='Dveře V1'!AR81 -> 4 | G49: ='Dveře V1'!AS81 -> 13 | H49: ='Dveře V1'!AT81 -> 2 | I49: 12 | J49: 2.14 | K49: =J49*'Dveře V1'!AL81 -> 11106.6 | L49: 15 | M49: 0.1426666667 | O49: 12.83333333 | P49: 0.01304200542 | Q49: 14.77139838 | R49: 15
B50: ='Dveře V1'!B82 -> Wendy P2K | C50: ='Dveře V1'!AO82 -> 101 | D50: ='Dveře V1'!AP82 -> 43 | E50: ='Dveře V1'!AQ82 -> 30 | F50: ='Dveře V1'!AR82 -> 17 | G50: ='Dveře V1'!AS82 -> 14 | H50: ='Dveře V1'!AT82 -> 11 | I50: 33.6 | J50: 11.77 | K50: =J50*'Dveře V1'!AL82 -> 66971.3 | L50: 42 | M50: 0.2802380952 | O50: 36 | P50: 0.03658536585 | Q50: 41.43665001 | R50: 42
B51: ='Dveře V1'!B83 -> Wendy AK | C51: ='Dveře V1'!AO83 -> 23 | D51: ='Dveře V1'!AP83 -> 15 | E51: ='Dveře V1'!AQ83 -> 11 | F51: ='Dveře V1'!AR83 -> 2 | G51: ='Dveře V1'!AS83 -> 11 | H51: ='Dveře V1'!AT83 -> 9 | I51: 11.2 | J51: 9.63 | K51: =J51*'Dveře V1'!AL83 -> 59609.7 | L51: 14 | M51: 0.6878571429 | O51: 11.83333333 | P51: 0.01202574526 | Q51: 13.62038033 | R51: 14
B52: ='Dveře V1'!B84 -> Wendy BK | C52: ='Dveře V1'!AO84 -> 54 | D52: ='Dveře V1'!AP84 -> 28 | E52: ='Dveře V1'!AQ84 -> 10 | F52: ='Dveře V1'!AR84 -> 20 | G52: ='Dveře V1'!AS84 -> 20 | H52: ='Dveře V1'!AT84 -> 7 | I52: 21.6 | J52: 7.49 | K52: =J52*'Dveře V1'!AL84 -> 48310.5 | L52: 27 | M52: 0.2774074074 | O52: 23.16666667 | P52: 0.02354336043 | Q52: 26.66525162 | R52: 27
B53: ='Dveře V1'!B85 -> Wendy P1K | C53: ='Dveře V1'!AO85 -> 0 | D53: ='Dveře V1'!AP85 -> 11 | E53: ='Dveře V1'!AQ85 -> 10 | F53: ='Dveře V1'!AR85 -> 11 | G53: ='Dveře V1'!AS85 -> 9 | H53: ='Dveře V1'!AT85 -> 19 | I53: 9.6 | J53: 20.33 | K53: =J53*'Dveře V1'!AL85 -> 106325.9 | L53: 12 | M53: 1.694166667 | O53: 10 | P53: 0.01016260163 | Q53: 11.51018056 | R53: 12 | S53: laminát | T53: 0 | U53: 0.55 | V53: 0.65 | W53: =V53*U53 -> 0.3575
B54: =S54 -> děr.DTD | C54: ='Dveře V1'!AO86 -> 0 | D54: ='Dveře V1'!AP86 -> 34 | E54: ='Dveře V1'!AQ86 -> 47 | F54: ='Dveře V1'!AR86 -> 78 | G54: ='Dveře V1'!AS86 -> 124 | H54: ='Dveře V1'!AT86 -> 95 | I54: =SUM(D54:H54)/5 -> 75.6 | J54: 101.65 | K54: =J54*T54 -> 45742.5 | S54: děr.DTD | T54: 450
B55: =S55 -> plná DTD | C55: ='Dveře V1'!AO87 -> 0 | D55: ='Dveře V1'!AP87 -> 5 | E55: ='Dveře V1'!AQ87 -> 9 | F55: ='Dveře V1'!AR87 -> 16 | G55: ='Dveře V1'!AS87 -> 9 | H55: ='Dveře V1'!AT87 -> 12 | I55: =SUM(D55:H55)/5 -> 10.2 | J55: 12.84 | K55: =J55*T55 -> 11556 | S55: plná DTD | T55: 900
B56: folie | C56: =C61*$W$56 -> 327.6 | D56: =D61*$W$56 -> 199.4 | E56: 170.4 | F56: 160 | G56: 170.6 | H56: 152.8 | I56: =SUM(C56:H56)/6 -> 196.8 | J56: 163.496 | K56: -171670.8 | S56: folie | T56: -1050 | U56: 0.2 | W56: =U56 -> 0.2
B57: reliéf | C57: 0 | D57: =D61*$W$57 -> 162.0125 | E57: =E61*$W$57 -> 138.45 | F57: 130 | G57: 138.6125 | H57: 124.15 | I57: 138.645 | J57: 132.8405 | K57: 26568.1 | S57: reliéf | T57: 200 | U57: 0.25 | V57: =V53 -> 0.65 | W57: =V57*U57 -> 0.1625
B58: real | C58: 0 | D58: =D61*$W$58 -> 129.61 | E58: =E61*$W$58 -> 110.76 | F58: 104 | G58: 110.89 | H58: 99.32 | I58: 110.916 | J58: 106.2724 | K58: 69077.06 | S58: real | T58: 650 | U58: 0.2 | W58: =V57*U58 -> 0.13
B59: lak H20 | C59: =C61*$W$59 -> 245.7 | D59: =D61*$W$59 -> 149.55 | E59: 127.8 | F59: 120 | G59: 127.95 | H59: 114.6 | I59: =SUM(C59:H59)/6 -> 147.6 | J59: 122.622 | K59: 73573.2 | S59: lak H20 | T59: 600 | U59: 0.6 | V59: 0.15 | W59: =U59*$V$17 -> 0.15
B60: lak PU/AC | C60: 0 | D60: =D61*$W$60 -> 59.82 | E60: =E61*$W$60 -> 51.12 | F60: 48 | G60: 51.18 | H60: 45.84 | I60: 51.192 | J60: 49.0488 | K60: 73082.712 | S60: lak PU/AC | T60: 1490 | U60: 0.4 | W60: =U60*V59 -> 0.06
B61: ∑ OP 2 | C61: =SUM(C24:C53) -> 1638 | D61: =SUM(D24:D53) -> 997 | E61: 852 | F61: 800 | G61: 853 | H61: 764 | I61: 917.6 | J61: 817.48 | K61: =SUM(K24:K60) -> 4267427.072 | L61: 1147 | M61: =J61/L61 -> 0.7127114211
B63: ='Kalkulační vzorec'!BO2&" [ks]" -> OP 3 - STD výřezy [ks] | K63: Tržby [Kč] (skutečnost) | L63: kapacita [ks]
B64: model/rok | C64: 2012 | D64: 2013 | E64: 2014 | F64: 2015 | G64: 2016 | H64: 2017 | I64: plán 2018 | J64: skutečnost 2018 | L64: max. | M64: skutečná
B65: ='Dveře V1'!B29 -> Primum 2/3 | C65: ='Dveře V1'!AO29 -> 1152 | D65: ='Dveře V1'!AP29 -> 1013 | E65: ='Dveře V1'!AQ29 -> 926 | F65: ='Dveře V1'!AR29 -> 1069 | G65: ='Dveře V1'!AS29 -> 949 | H65: ='Dveře V1'!AT29 -> 1105 | I65: =L65*0.8 -> 963.2 | J65: =H65*1.07 -> 1182.35 | K65: =J65*'Dveře V1'!AL29 -> 3606167.5 | L65: =R65 -> 1204 | M65: =J65/L65 -> 0.9820182724 | O65: 1035.666667 | P65: =O65/(SUM($C$98:$H$98)/6) -> 0.1520170267 | Q65: =$J$184*P65 -> 1203.49877 | R65: =CEILING(Q65,1) -> 1204
B66: ='Dveře V1'!B30 -> Primum 3/3 | C66: ='Dveře V1'!AO30 -> 1062 | D66: ='Dveře V1'!AP30 -> 628 | E66: ='Dveře V1'!AQ30 -> 709 | F66: ='Dveře V1'!AR30 -> 728 | G66: ='Dveře V1'!AS30 -> 653 | H66: ='Dveře V1'!AT30 -> 692 | I66: =L66*0.8 -> 693.6 | J66: =H66*1.07 -> 740.44 | K66: =J66*'Dveře V1'!AL30 -> 2732223.6 | L66: =R66 -> 867 | M66: =J66/L66 -> 0.8540253749 | O66: 745.3333333 | P66: 0.1094013749 | Q66: 866.1162693 | R66: =CEILING(Q66,1) -> 867
B67: ='Dveře V1'!B31 -> Maxim zaskl. | C67: ='Dveře V1'!AO31 -> 945 | D67: ='Dveře V1'!AP31 -> 834 | E67: ='Dveře V1'!AQ31 -> 842 | F67: ='Dveře V1'!AR31 -> 872 | G67: ='Dveře V1'!AS31 -> 909 | H67: ='Dveře V1'!AT31 -> 785 | I67: 804 | J67: 839.95 | K67: =J67*'Dveře V1'!AL31 -> 3166611.5 | L67: 1005 | M67: 0.8357711443 | O67: 864.5 | P67: 0.1268928737 | Q67: 1004.594161 | R67: 1005
B68: ='Dveře V1'!B32 -> Maxim kazet. | C68: ='Dveře V1'!AO32 -> 117 | D68: ='Dveře V1'!AP32 -> 97 | E68: ='Dveře V1'!AQ32 -> 80 | F68: ='Dveře V1'!AR32 -> 38 | G68: ='Dveře V1'!AS32 -> 39 | H68: ='Dveře V1'!AT32 -> 44 | I68: 64.8 | J68: 47.08 | K68: =J68*'Dveře V1'!AL32 -> 177491.6 | L68: 81 | M68: 0.5812345679 | O68: 69.16666667 | P68: 0.01015240844 | Q68: 80.37527991 | R68: 81
B69: ='Dveře V1'!B33 -> Fénix I, zaskl. | C69: ='Dveře V1'!AO33 -> 1618 | D69: ='Dveře V1'!AP33 -> 1501 | E69: ='Dveře V1'!AQ33 -> 1101 | F69: ='Dveře V1'!AR33 -> 1401 | G69: ='Dveře V1'!AS33 -> 1708 | H69: ='Dveře V1'!AT33 -> 1492 | I69: 1367.2 | J69: 1596.44 | K69: =J69*'Dveře V1'!AL33 -> 5890863.6 | L69: 1709 | M69: 0.9341369222 | O69: 1470.166667 | P69: 0.2157937226 | Q69: 1708.410468 | R69: 1709
B70: ='Dveře V1'!B34 -> Fénix I, kazet. | C70: ='Dveře V1'!AO34 -> 109 | D70: ='Dveře V1'!AP34 -> 108 | E70: ='Dveře V1'!AQ34 -> 70 | F70: ='Dveře V1'!AR34 -> 94 | G70: ='Dveře V1'!AS34 -> 42 | H70: ='Dveře V1'!AT34 -> 75 | I70: 77.6 | J70: 80.25 | K70: =J70*'Dveře V1'!AL34 -> 296122.5 | L70: 97 | M70: 0.8273195876 | O70: 83 | P70: 0.01218289013 | Q70: 96.45033589 | R70: 97
B71: ='Dveře V1'!B35 -> Fénix II, zaskl. | C71: ='Dveře V1'!AO35 -> 208 | D71: ='Dveře V1'!AP35 -> 228 | E71: ='Dveře V1'!AQ35 -> 246 | F71: ='Dveře V1'!AR35 -> 246 | G71: ='Dveře V1'!AS35 -> 408 | H71: ='Dveře V1'!AT35 -> 217 | I71: 240.8 | J71: 232.19 | K71: =J71*'Dveře V1'!AL35 -> 856781.1 | L71: 301 | M71: 0.7713953488 | O71: 258.8333333 | P71: 0.03799202486 | Q71: 300.7778547 | R71: 301
B72: ='Dveře V1'!B36 -> Fénix II, kazet. | C72: ='Dveře V1'!AO36 -> 14 | D72: ='Dveře V1'!AP36 -> 7 | E72: ='Dveře V1'!AQ36 -> 24 | F72: ='Dveře V1'!AR36 -> 6 | G72: ='Dveře V1'!AS36 -> 12 | H72: ='Dveře V1'!AT36 -> 1 | I72: 10.4 | J72: 1.07 | K72: =J72*'Dveře V1'!AL36 -> 3948.3 | L72: 13 | M72: 0.08230769231 | O72: 10.66666667 | P72: 0.001565672628 | Q72: 12.39522389 | R72: 13
B73: ='Dveře V1'!B37 -> Mada F ZZ | C73: ='Dveře V1'!AO37 -> 0 | D73: ='Dveře V1'!AP37 -> 56 | E73: ='Dveře V1'!AQ37 -> 65 | F73: ='Dveře V1'!AR37 -> 118 | G73: ='Dveře V1'!AS37 -> 89 | H73: ='Dveře V1'!AT37 -> 101 | I73: 67.2 | J73: 108.07 | K73: =J73*'Dveře V1'!AL37 -> 463620.3 | L73: 84 | M73: 1.286547619 | O73: 71.5 | P73: 0.01049489933 | Q73: 83.08673513 | R73: 84
B74: ='Dveře V1'!B38 -> Mada M ZZ | C74: ='Dveře V1'!AO38 -> 57 | D74: ='Dveře V1'!AP38 -> 215 | E74: ='Dveře V1'!AQ38 -> 187 | F74: ='Dveře V1'!AR38 -> 121 | G74: ='Dveře V1'!AS38 -> 170 | H74: ='Dveře V1'!AT38 -> 207 | I74: 148.8 | J74: 221.49 | K74: =J74*'Dveře V1'!AL38 -> 1021068.9 | L74: 186 | M74: 1.190806452 | O74: 159.5 | P74: 0.02341169851 | Q74: 185.3473322 | R74: 186
B75: ='Dveře V1'!B39 -> Mada U ZZ | C75: ='Dveře V1'!AO39 -> 0 | D75: ='Dveře V1'!AP39 -> 112 | E75: ='Dveře V1'!AQ39 -> 145 | F75: ='Dveře V1'!AR39 -> 110 | G75: ='Dveře V1'!AS39 -> 90 | H75: ='Dveře V1'!AT39 -> 130 | I75: 91.2 | J75: 139.1 | K75: =J75*'Dveře V1'!AL39 -> 713583 | L75: 114 | M75: 1.220175439 | O75: 97.83333333 | P75: 0.01436015363 | Q75: 113.6874441 | R75: 114
B76: ='Dveře V1'!B40 -> Alex III , zaskl. | C76: ='Dveře V1'!AO40 -> 40 | D76: ='Dveře V1'!AP40 -> 23 | E76: ='Dveře V1'!AQ40 -> 31 | F76: ='Dveře V1'!AR40 -> 6 | G76: ='Dveře V1'!AS40 -> 18 | H76: ='Dveře V1'!AT40 -> 53 | I76: 27.2 | J76: 56.71 | K76: =J76*'Dveře V1'!AL40 -> 265969.9 | L76: 34 | M76: 1.667941176 | O76: 28.5 | P76: 0.004183281552 | Q76: 33.11848883 | R76: 34
B77: ='Dveře V1'!B41 -> Alex III , kazet. | C77: ='Dveře V1'!AO41 -> 8 | D77: ='Dveře V1'!AP41 -> 7 | E77: ='Dveře V1'!AQ41 -> 3 | F77: ='Dveře V1'!AR41 -> 6 | G77: ='Dveře V1'!AS41 -> 6 | H77: ='Dveře V1'!AT41 -> 11 | I77: 6.4 | J77: 11.77 | K77: =J77*'Dveře V1'!AL41 -> 55201.3 | L77: 8 | M77: 1.47125 | O77: 6.833333333 | P77: 0.001003009027 | Q77: 7.940690304 | R77: 8
B78: ='Dveře V1'!B42 -> Alex IV , zaskl. | C78: ='Dveře V1'!AO42 -> 257 | D78: ='Dveře V1'!AP42 -> 239 | E78: ='Dveře V1'!AQ42 -> 146 | F78: ='Dveře V1'!AR42 -> 206 | G78: ='Dveře V1'!AS42 -> 179 | H78: ='Dveře V1'!AT42 -> 131 | I78: 180 | J78: 140.17 | K78: =J78*'Dveře V1'!AL42 -> 685431.3 | L78: 225 | M78: 0.6229777778 | O78: 193 | P78: 0.02832888911 | Q78: 224.2760823 | R78: 225
B79: ='Dveře V1'!B43 -> Alex IV , kazet. | C79: ='Dveře V1'!AO43 -> 42 | D79: ='Dveře V1'!AP43 -> 25 | E79: ='Dveře V1'!AQ43 -> 22 | F79: ='Dveře V1'!AR43 -> 20 | G79: ='Dveře V1'!AS43 -> 31 | H79: ='Dveře V1'!AT43 -> 17 | I79: 24.8 | J79: 18.19 | K79: =J79*'Dveře V1'!AL43 -> 88949.1 | L79: 31 | M79: 0.5867741935 | O79: 26.16666667 | P79: 0.003840790665 | Q79: 30.4070336 | R79: 31
B80: ='Dveře V1'!B44 -> Trix , zaskl. | C80: ='Dveře V1'!AO44 -> 209 | D80: ='Dveře V1'!AP44 -> 173 | E80: ='Dveře V1'!AQ44 -> 127 | F80: ='Dveře V1'!AR44 -> 127 | G80: ='Dveře V1'!AS44 -> 121 | H80: ='Dveře V1'!AT44 -> 112 | I80: 135.2 | J80: 119.84 | K80: =J80*'Dveře V1'!AL44 -> 615977.6 | L80: 169 | M80: 0.709112426 | O80: 144.8333333 | P80: 0.02125889865 | Q80: 168.3038994 | R80: 169
B81: ='Dveře V1'!B45 -> Trix , kazet. | C81: ='Dveře V1'!AO45 -> 90 | D81: ='Dveře V1'!AP45 -> 52 | E81: ='Dveře V1'!AQ45 -> 42 | F81: ='Dveře V1'!AR45 -> 47 | G81: ='Dveře V1'!AS45 -> 34 | H81: ='Dveře V1'!AT45 -> 68 | I81: 52 | J81: 72.76 | K81: =J81*'Dveře V1'!AL45 -> 373986.4 | L81: 65 | M81: 1.119384615 | O81: 55.5 | P81: 0.008146390391 | Q81: 64.4938993 | R81: 65
B82: ='Dveře V1'!B46 -> Quartex 1-4, zaskl. | C82: ='Dveře V1'!AO46 -> 1021 | D82: ='Dveře V1'!AP46 -> 612 | E82: ='Dveře V1'!AQ46 -> 537 | F82: ='Dveře V1'!AR46 -> 539 | G82: ='Dveře V1'!AS46 -> 410 | H82: ='Dveře V1'!AT46 -> 587 | I82: 574.4 | J82: 628.09 | K82: =J82*'Dveře V1'!AL46 -> 3322596.1 | L82: 718 | M82: 0.8747771588 | O82: 617.6666667 | P82: 0.09066223059 | Q82: 717.7609334 | R82: 718
B83: ='Dveře V1'!B47 -> Quartex 1-4, kazet. | C83: ='Dveře V1'!AO47 -> 207 | D83: ='Dveře V1'!AP47 -> 114 | E83: ='Dveře V1'!AQ47 -> 141 | F83: ='Dveře V1'!AR47 -> 114 | G83: ='Dveře V1'!AS47 -> 78 | H83: ='Dveře V1'!AT47 -> 123 | I83: 120.8 | J83: 131.61 | K83: =J83*'Dveře V1'!AL47 -> 696216.9 | L83: 151 | M83: 0.871589404 | O83: =SUM(C83:H83)/6 -> 129.5 | P83: 0.01900824424 | Q83: 150.485765 | R83: 151
B84: ='Dveře V1'!B48 -> Nexis 1-5, zaskl. | C84: ='Dveře V1'!AO48 -> 332 | D84: ='Dveře V1'!AP48 -> 334 | E84: ='Dveře V1'!AQ48 -> 254 | F84: ='Dveře V1'!AR48 -> 257 | G84: ='Dveře V1'!AS48 -> 229 | H84: ='Dveře V1'!AT48 -> 200 | I84: 249.6 | J84: 214 | K84: =J84*'Dveře V1'!AL48 -> 1153460 | L84: 312 | M84: 0.6858974359 | O84: 267.6666667 | P84: 0.0392885975 | Q84: 311.0426495 | R84: 312
B85: ='Dveře V1'!B49 -> Nexis 1-5, kazet. | C85: ='Dveře V1'!AO49 -> 87 | D85: ='Dveře V1'!AP49 -> 48 | E85: ='Dveře V1'!AQ49 -> 41 | F85: ='Dveře V1'!AR49 -> 60 | G85: ='Dveře V1'!AS49 -> 15 | H85: ='Dveře V1'!AT49 -> 29 | I85: 44 | J85: 31.03 | K85: =J85*'Dveře V1'!AL49 -> 167251.7 | L85: 55 | M85: 0.5641818182 | O85: 46.66666667 | P85: 0.006849817746 | Q85: 54.22910452 | R85: 55
B86: ='Dveře V1'!B50 -> Rubika 1-5, zaskl. | C86: ='Dveře V1'!AO50 -> 509 | D86: ='Dveře V1'!AP50 -> 290 | E86: ='Dveře V1'!AQ50 -> 183 | F86: ='Dveře V1'!AR50 -> 221 | G86: ='Dveře V1'!AS50 -> 288 | H86: ='Dveře V1'!AT50 -> 233 | I86: 267.2 | J86: 249.31 | K86: =J86*'Dveře V1'!AL50 -> 969815.9 | L86: 334 | M86: 0.7464371257 | O86: 287.3333333 | P86: 0.04217530641 | Q86: 333.8963435 | R86: 334
B87: ='Dveře V1'!B51 -> Rubika 1-5, kazet. | C87: ='Dveře V1'!AO51 -> 68 | D87: ='Dveře V1'!AP51 -> 34 | E87: ='Dveře V1'!AQ51 -> 15 | F87: ='Dveře V1'!AR51 -> 26 | G87: ='Dveře V1'!AS51 -> 39 | H87: ='Dveře V1'!AT51 -> 38 | I87: 34.4 | J87: 40.66 | K87: =J87*'Dveře V1'!AL51 -> 158167.4 | L87: 43 | M87: 0.9455813953 | O87: 36.66666667 | P87: 0.005381999658 | Q87: 42.60858212 | R87: 43
B88: ='Dveře V1'!B52 -> Nemo, děr.DTD | C88: ='Dveře V1'!AO52 -> 0 | D88: ='Dveře V1'!AP52 -> 63 | E88: ='Dveře V1'!AQ52 -> 77 | F88: ='Dveře V1'!AR52 -> 158 | G88: ='Dveře V1'!AS52 -> 160 | H88: ='Dveře V1'!AT52 -> 180 | I88: 99.2 | J88: 192.6 | K88: =J88*'Dveře V1'!AL52 -> 1009224 | L88: 124 | M88: 1.553225806 | O88: 106.3333333 | P88: 0.01560779901 | Q88: 123.5648881 | R88: 124 | S88: laminát | T88: 0 | U88: 0.55 | V88: 0.55 | W88: =V88*U88 -> 0.3025
B89: =S89 -> děr.DTD | C89: ='Dveře V1'!AO53 -> 0 | D89: ='Dveře V1'!AP53 -> 310 | E89: ='Dveře V1'!AQ53 -> 528 | F89: ='Dveře V1'!AR53 -> 824 | G89: ='Dveře V1'!AS53 -> 1038 | H89: ='Dveře V1'!AT53 -> 1195 | I89: =SUM(D89:H89)/5 -> 779 | J89: 1278.65 | K89: =J89*T89 -> 575392.5 | S89: děr.DTD | T89: 450
B90: =S90 -> plná DTD | C90: ='Dveře V1'!AO54 -> 0 | D90: ='Dveře V1'!AP54 -> 25 | E90: ='Dveře V1'!AQ54 -> 32 | F90: ='Dveře V1'!AR54 -> 72 | G90: ='Dveře V1'!AS54 -> 64 | H90: ='Dveře V1'!AT54 -> 33 | I90: =SUM(D90:H90)/5 -> 45.2 | J90: 35.31 | K90: =J90*T90 -> 31779 | S90: plná DTD | T90: 900
B91: folie | C91: =(C98-C88)*$W$91 -> 1548.88 | D91: =(D98-D88)*$W$91 -> 1282.5 | E91: 1128.03 | F91: 1222.08 | G91: 1238.23 | H91: 1225.69 | I91: =SUM(C91:H91)/6 -> 1274.235 | J91: 1311.4883 | K91: -1377062.715 | S91: folie | T91: -1050 | U91: 0.19 | W91: =U91 -> 0.19
B92: reliéf | C92: 0 | D92: =D98*$W$92 -> 936.7875 | E92: 826.925 | F92: 906.125 | G92: 918.0875 | H92: 911.7625 | I92: 899.9375 | J92: 975.585875 | K92: 195117.175 | S92: reliéf | T92: 200 | U92: 0.25 | V92: =V88 -> 0.55 | W92: =V92*U92 -> 0.1375
B93: real | C93: 0 | D93: =D98*$W$93 -> 749.43 | E93: 661.54 | F93: 724.9 | G93: 734.47 | H93: 729.41 | I93: 719.95 | J93: 780.4687 | K93: 507304.655 | S93: real | T93: 650 | U93: 0.2 | W93: =V92*U93 -> 0.11
B94: lak H20 | C94: =C98*$W$94 -> 1161.66 | D94: =D98*$W$94 -> 970.8525 | E94: 856.995 | F94: 939.075 | G94: 951.4725 | H94: 944.9175 | I94: =SUM(C94:H94)/6 -> 970.82875 | J94: 1011.061725 | K94: 606637.035 | S94: lak H20 | T94: 600 | U94: 0.57 | V94: 0.25 | W94: =U94*V94 -> 0.1425
B95: lak PU/AC | C95: 0 | D95: =D98*$W$95 -> 630.2025 | E95: 556.295 | F95: 609.575 | G95: 617.6225 | H95: 613.3675 | I95: 605.4125 | J95: 656.303225 | K95: 977891.8052 | S95: lak PU/AC | T95: 1490 | U95: 0.37 | W95: =U95*V94 -> 0.0925
B96: Artemis AC | C96: 0 | D96: =D98*$W$96 -> 102.195 | E96: 90.21 | F96: 98.85 | G96: 100.155 | H96: 99.465 | I96: 98.175 | J96: 106.42755 | K96: 176669.733 | S96: Artemis AC | T96: 1660 | U96: 0.06 | W96: =U96*$V$17 -> 0.015
B97: dýha | C97: 0 | D97: 0 | E97: 0 | F97: 0 | G97: =G98*$W$97 -> 66.77 | H97: 66.31 | I97: =SUM(G97:H97)/2 -> 66.54 | J97: 70.9517 | K97: 395910.486 | S97: dýha | T97: 5580 | U97: 0.01 | W97: =U97 -> 0.01
B98: ∑ OP 3 | C98: =SUM(C65:C88) -> 8152 | D98: =SUM(D65:D88) -> 6813 | E98: 6014 | F98: 6590 | G98: 6677 | H98: 6631 | I98: =SUM(I65:I88) -> 6344 | J98: =SUM(J65:J88) -> 7095.17 | K98: =SUM(K65:K97) -> 30580369.17 | L98: =SUM(L65:L88) -> 7930 | M98: =J98/L98 -> 0.8947250946
B100: ='Kalkulační vzorec'!CY2&" [ks]" -> OP 4 - Alumi rámeč. [ks] | K100: Tržby [Kč] (skutečnost) | L100: kapacita [ks]
B101: model/rok | C101: 2012 | D101: 2013 | E101: 2014 | F101: 2015 | G101: 2016 | H101: 2017 | I101: plán 2018 | J101: skutečnost 2018 | L101: max. | M101: skutečná
B102: ='Dveře V1'!B112 -> Vertik L - plné | C102: ='Dveře V1'!AO112 -> 0 | D102: ='Dveře V1'!AP112 -> 0 | E102: ='Dveře V1'!AQ112 -> 88 | F102: ='Dveře V1'!AR112 -> 65 | G102: ='Dveře V1'!AS112 -> 66 | H102: ='Dveře V1'!AT112 -> 59 | I102: =L102*0.8 -> 53.6 | J102: =H102*1.07 -> 63.13 | K102: =J102*'Dveře V1'!AL112 -> 332695.1 | L102: =R102 -> 67 | M102: =J102/L102 -> 0.942238806 | O102: =SUM(E102:H102)/4 -> 69.5 | P102: =O102/(SUM($C$130:$H$130)/4) -> 0.08944658945 | Q102: =$J$185*P102 -> 66.0287847 | R102: =CEILING(Q102,1) -> 67
B103: ='Dveře V1'!B113 -> Vertik L - FDZ | C103: ='Dveře V1'!AO113 -> 0 | D103: ='Dveře V1'!AP113 -> 0 | E103: ='Dveře V1'!AQ113 -> 13 | F103: ='Dveře V1'!AR113 -> 23 | G103: ='Dveře V1'!AS113 -> 27 | H103: ='Dveře V1'!AT113 -> 8 | I103: =L103*0.8 -> 13.6 | J103: =H103*1.07 -> 8.56 | K103: =J103*'Dveře V1'!AL113 -> 56410.4 | L103: =R103 -> 17 | M103: =J103/L103 -> 0.5035294118 | O103: =SUM(E103:H103)/4 -> 17.75 | P103: 0.02284427284 | Q103: 16.8634666 | R103: =CEILING(Q103,1) -> 17
B104: ='Dveře V1'!B114 -> Vertik L - MDZ | C104: ='Dveře V1'!AO114 -> 0 | D104: ='Dveře V1'!AP114 -> 0 | E104: ='Dveře V1'!AQ114 -> 13 | F104: ='Dveře V1'!AR114 -> 14 | G104: ='Dveře V1'!AS114 -> 17 | H104: ='Dveře V1'!AT114 -> 31 | I104: =L104*0.8 -> 14.4 | J104: 33.17 | K104: =J104*'Dveře V1'!AL114 -> 238492.3 | L104: =R104 -> 18 | M104: =J104/L104 -> 1.842777778 | O104: 18.75 | P104: 0.02413127413 | Q104: 17.81352105 | R104: 18
B105: ='Dveře V1'!B115 -> Vertik S - plné | C105: ='Dveře V1'!AO115 -> 0 | D105: ='Dveře V1'!AP115 -> 0 | E105: ='Dveře V1'!AQ115 -> 58 | F105: ='Dveře V1'!AR115 -> 63 | G105: ='Dveře V1'!AS115 -> 45 | H105: ='Dveře V1'!AT115 -> 49 | I105: 41.6 | J105: 52.43 | K105: =J105*'Dveře V1'!AL115 -> 277354.7 | L105: 52 | M105: 1.008269231 | O105: 53.75 | P105: 0.06917631918 | Q105: 51.06542702 | R105: 52
B106: ='Dveře V1'!B116 -> Vertik S - FDZ | C106: ='Dveře V1'!AO116 -> 0 | D106: ='Dveře V1'!AP116 -> 0 | E106: ='Dveře V1'!AQ116 -> 9 | F106: ='Dveře V1'!AR116 -> 31 | G106: ='Dveře V1'!AS116 -> 13 | H106: ='Dveře V1'!AT116 -> 18 | I106: 13.6 | J106: 19.26 | K106: =J106*'Dveře V1'!AL116 -> 126923.4 | L106: 17 | M106: 1.132941176 | O106: 17.75 | P106: 0.02284427284 | Q106: 16.8634666 | R106: 17
B107: ='Dveře V1'!B117 -> Vertik S - MDZ | C107: ='Dveře V1'!AO117 -> 0 | D107: ='Dveře V1'!AP117 -> 0 | E107: ='Dveře V1'!AQ117 -> 28 | F107: ='Dveře V1'!AR117 -> 35 | G107: ='Dveře V1'!AS117 -> 17 | H107: ='Dveře V1'!AT117 -> 10 | I107: 17.6 | J107: 10.7 | K107: =J107*'Dveře V1'!AL117 -> 76933 | L107: 22 | M107: 0.4863636364 | O107: 22.5 | P107: 0.02895752896 | Q107: 21.37622526 | R107: 22
B108: ='Dveře V1'!B118 -> Horizon L - plné | C108: ='Dveře V1'!AO118 -> 0 | D108: ='Dveře V1'!AP118 -> 0 | E108: ='Dveře V1'!AQ118 -> 85 | F108: ='Dveře V1'!AR118 -> 95 | G108: ='Dveře V1'!AS118 -> 95 | H108: ='Dveře V1'!AT118 -> 20 | I108: 56.8 | J108: 21.4 | K108: =J108*'Dveře V1'!AL118 -> 119626 | L108: 71 | M108: 0.3014084507 | O108: =SUM(E108:H108)/4 -> 73.75 | P108: 0.09491634492 | Q108: 70.06651614 | R108: 71
B109: ='Dveře V1'!B119 -> Horizon L - FDZ | C109: ='Dveře V1'!AO119 -> 0 | D109: ='Dveře V1'!AP119 -> 0 | E109: ='Dveře V1'!AQ119 -> 31 | F109: ='Dveře V1'!AR119 -> 12 | G109: ='Dveře V1'!AS119 -> 17 | H109: ='Dveře V1'!AT119 -> 10 | I109: 13.6 | J109: 10.7 | K109: =J109*'Dveře V1'!AL119 -> 73723 | L109: 17 | M109: 0.6294117647 | O109: 17.5 | P109: 0.02252252252 | Q109: 16.62595298 | R109: 17
B110: ='Dveře V1'!B120 -> Horizon L - MDZ | C110: ='Dveře V1'!AO120 -> 0 | D110: ='Dveře V1'!AP120 -> 0 | E110: ='Dveře V1'!AQ120 -> 33 | F110: ='Dveře V1'!AR120 -> 11 | G110: ='Dveře V1'!AS120 -> 5 | H110: ='Dveře V1'!AT120 -> 19 | I110: 13.6 | J110: 20.33 | K110: =J110*'Dveře V1'!AL120 -> 148205.7 | L110: 17 | M110: 1.195882353 | O110: 17 | P110: 0.02187902188 | Q110: 16.15092575 | R110: 17
B111: ='Dveře V1'!B121 -> Horizon S - plné | C111: ='Dveře V1'!AO121 -> 0 | D111: ='Dveře V1'!AP121 -> 49 | E111: ='Dveře V1'!AQ121 -> 24 | F111: ='Dveře V1'!AR121 -> 87 | G111: ='Dveře V1'!AS121 -> 88 | H111: ='Dveře V1'!AT121 -> 101 | I111: 66.4 | J111: 108.07 | K111: =J111*'Dveře V1'!AL121 -> 604111.3 | L111: 83 | M111: 1.302048193 | O111: =SUM(D111:H111)/5 -> 69.8 | P111: =O111/(SUM($C$130:$H$130)/5) -> 0.1122908623 | Q111: 82.8922513 | R111: 83
B112: ='Dveře V1'!B122 -> Horizon S - FDZ | C112: ='Dveře V1'!AO122 -> 0 | D112: ='Dveře V1'!AP122 -> 8 | E112: ='Dveře V1'!AQ122 -> 2 | F112: ='Dveře V1'!AR122 -> 10 | G112: ='Dveře V1'!AS122 -> 16 | H112: ='Dveře V1'!AT122 -> 11 | I112: 9.6 | J112: 11.77 | K112: =J112*'Dveře V1'!AL122 -> 81095.3 | L112: 12 | M112: 0.9808333333 | O112: =SUM(D112:H112)/5 -> 9.4 | P112: 0.01512226512 | Q112: 11.16313986 | R112: 12
B113: ='Dveře V1'!B123 -> Horizon S - MDZ | C113: ='Dveře V1'!AO123 -> 0 | D113: ='Dveře V1'!AP123 -> 24 | E113: ='Dveře V1'!AQ123 -> 8 | F113: ='Dveře V1'!AR123 -> 28 | G113: ='Dveře V1'!AS123 -> 19 | H113: ='Dveře V1'!AT123 -> 16 | I113: 18.4 | J113: 17.12 | K113: =J113*'Dveře V1'!AL123 -> 124804.8 | L113: 23 | M113: 0.7443478261 | O113: 19 | P113: 0.03056628057 | Q113: 22.56379333 | R113: 23
B114: ='Dveře V1'!B124 -> Horizon GZ1 | C114: ='Dveře V1'!AO124 -> 0 | D114: ='Dveře V1'!AP124 -> 5 | E114: ='Dveře V1'!AQ124 -> 3 | F114: ='Dveře V1'!AR124 -> 10 | G114: ='Dveře V1'!AS124 -> 4 | H114: ='Dveře V1'!AT124 -> 8 | I114: 6.4 | J114: 8.56 | K114: =J114*'Dveře V1'!AL124 -> 58122.4 | L114: 8 | M114: 1.07 | O114: 6 | P114: 0.009652509653 | Q114: 7.125408421 | R114: 8
B115: ='Dveře V1'!B125 -> Horizon GZ2 | C115: ='Dveře V1'!AO125 -> 0 | D115: ='Dveře V1'!AP125 -> 7 | E115: ='Dveře V1'!AQ125 -> 18 | F115: ='Dveře V1'!AR125 -> 19 | G115: ='Dveře V1'!AS125 -> 14 | H115: ='Dveře V1'!AT125 -> 20 | I115: 15.2 | J115: 21.4 | K115: =J115*'Dveře V1'!AL125 -> 154936 | L115: 19 | M115: 1.126315789 | O115: 15.6 | P115: 0.0250965251 | Q115: 18.5260619 | R115: 19
B116: ='Dveře V1'!B126 -> Horizon GZ3 | C116: ='Dveře V1'!AO126 -> 0 | D116: ='Dveře V1'!AP126 -> 1 | E116: ='Dveře V1'!AQ126 -> 6 | F116: ='Dveře V1'!AR126 -> 8 | G116: ='Dveře V1'!AS126 -> 20 | H116: ='Dveře V1'!AT126 -> 13 | I116: 9.6 | J116: 13.91 | K116: =J116*'Dveře V1'!AL126 -> 106967.9 | L116: 12 | M116: 1.159166667 | O116: 9.6 | P116: 0.01544401544 | Q116: 11.40065347 | R116: 12
B117: ='Dveře V1'!B127 -> Horizon GZ4 | C117: ='Dveře V1'!AO127 -> 0 | D117: ='Dveře V1'!AP127 -> 2 | E117: ='Dveře V1'!AQ127 -> 8 | F117: ='Dveře V1'!AR127 -> 2 | G117: ='Dveře V1'!AS127 -> 1 | H117: ='Dveře V1'!AT127 -> 2 | I117: 3.2 | J117: 2.14 | K117: =J117*'Dveře V1'!AL127 -> 17419.6 | L117: 4 | M117: 0.535 | O117: 3 | P117: 0.004826254826 | Q117: 3.562704211 | R117: 4
B118: ='Dveře V1'!B128 -> Horizon GZ5 | C118: ='Dveře V1'!AO128 -> 0 | D118: ='Dveře V1'!AP128 -> 10 | E118: ='Dveře V1'!AQ128 -> 8 | F118: ='Dveře V1'!AR128 -> 26 | G118: ='Dveře V1'!AS128 -> 17 | H118: ='Dveře V1'!AT128 -> 17 | I118: 15.2 | J118: 18.19 | K118: =J118*'Dveře V1'!AL128 -> 156252.1 | L118: 19 | M118: 0.9573684211 | O118: 15.6 | P118: 0.0250965251 | Q118: 18.5260619 | R118: 19
B119: ='Dveře V1'!B129 -> Ruby - plné | C119: ='Dveře V1'!AO129 -> 0 | D119: ='Dveře V1'!AP129 -> 0 | E119: ='Dveře V1'!AQ129 -> 0 | F119: ='Dveře V1'!AR129 -> 101 | G119: ='Dveře V1'!AS129 -> 89 | H119: ='Dveře V1'!AT129 -> 53 | I119: 46.4 | J119: 56.71 | K119: =J119*'Dveře V1'!AL129 -> 311337.9 | L119: 58 | M119: 0.9777586207 | O119: =SUM(F119:H119)/3 -> 81 | P119: =O119/(SUM($C$130:$H$130)/3) -> 0.07818532819 | Q119: 57.71580821 | R119: 58
B120: ='Dveře V1'!B130 -> Ruby - GZ2 | C120: ='Dveře V1'!AO130 -> 0 | D120: ='Dveře V1'!AP130 -> 0 | E120: ='Dveře V1'!AQ130 -> 0 | F120: ='Dveře V1'!AR130 -> 0 | G120: ='Dveře V1'!AS130 -> 15 | H120: ='Dveře V1'!AT130 -> 14 | I120: 5.6 | J120: 14.98 | K120: =J120*'Dveře V1'!AL130 -> 100216.2 | L120: 7 | M120: 2.14 | O120: =SUM(F120:H120)/3 -> 9.666666667 | P120: =O120/(SUM($C$130:$H$130)/3) -> 0.009330759331 | Q120: 6.887894807 | R120: 7
B121: ='Dveře V1'!B131 -> Ruby - GZ4 | C121: ='Dveře V1'!AO131 -> 0 | D121: ='Dveře V1'!AP131 -> 0 | E121: ='Dveře V1'!AQ131 -> 0 | F121: ='Dveře V1'!AR131 -> 41 | G121: ='Dveře V1'!AS131 -> 60 | H121: ='Dveře V1'!AT131 -> 25 | I121: 24 | J121: 26.75 | K121: =J121*'Dveře V1'!AL131 -> 211057.5 | L121: 30 | M121: 0.8916666667 | O121: 42 | P121: =O121/(SUM($C$130:$H$130)/3) -> 0.04054054054 | Q121: 29.92671537 | R121: 30
B122: ='Dveře V1'!B132 -> Monte - GZ | C122: ='Dveře V1'!AO132 -> 0 | D122: ='Dveře V1'!AP132 -> 0 | E122: ='Dveře V1'!AQ132 -> 0 | F122: ='Dveře V1'!AR132 -> 3 | G122: ='Dveře V1'!AS132 -> 5 | H122: ='Dveře V1'!AT132 -> 4 | I122: 2.4 | J122: 4.28 | K122: =J122*'Dveře V1'!AL132 -> 17762 | L122: 3 | M122: 1.426666667 | O122: 4 | P122: =O122/(SUM($C$130:$H$130)/3) -> 0.003861003861 | Q122: 2.850163368 | R122: 3
B123: ='Dveře V1'!B133 -> Monte - DZ | C123: ='Dveře V1'!AO133 -> 0 | D123: ='Dveře V1'!AP133 -> 0 | E123: ='Dveře V1'!AQ133 -> 0 | F123: ='Dveře V1'!AR133 -> 34 | G123: ='Dveře V1'!AS133 -> 42 | H123: ='Dveře V1'!AT133 -> 37 | I123: 21.6 | J123: 39.59 | K123: =J123*'Dveře V1'!AL133 -> 193199.2 | L123: 27 | M123: 1.466296296 | O123: =SUM(F123:H123)/3 -> 37.66666667 | P123: =O123/(SUM($C$130:$H$130)/3) -> 0.03635778636 | Q123: 26.83903839 | R123: 27
B124: ='Dveře V1'!B134 -> Fénix III SZ | C124: ='Dveře V1'!AO134 -> 0 | D124: ='Dveře V1'!AP134 -> 16 | E124: ='Dveře V1'!AQ134 -> 111 | F124: ='Dveře V1'!AR134 -> 144 | G124: ='Dveře V1'!AS134 -> 176 | H124: ='Dveře V1'!AT134 -> 165 | I124: 116.8 | J124: 176.55 | K124: =J124*'Dveře V1'!AL134 -> 880984.5 | L124: 146 | M124: 1.209246575 | O124: =SUM(D124:H124)/5 -> 122.4 | P124: =O124/(SUM($C$130:$H$130)/5) -> 0.1969111969 | Q124: 145.3583318 | R124: 146 | S124: laminát | T124: 0 | U124: 0.45 | V124: 0.9 | W124: =V124*U124 -> 0.405
B125: =S125 -> plná DTD | C125: ='Dveře V1'!AO135 -> 0 | D125: ='Dveře V1'!AP135 -> 14 | E125: ='Dveře V1'!AQ135 -> 15 | F125: ='Dveře V1'!AR135 -> 19 | G125: ='Dveře V1'!AS135 -> 19 | H125: ='Dveře V1'!AT135 -> 7 | I125: =SUM(D125:H125)/5 -> 14.8 | J125: 7.49 | K125: =J125*T125 -> 6741 | S125: plná DTD | T125: 900
B126: =S126 -> reliéf | C126: 0 | D126: =D130*$W$126 -> 32.94 | E126: =E130*$W$126 -> 147.42 | F126: 232.74 | G126: 234.36 | H126: 191.7 | I126: 167.832 | J126: 205.119 | K126: =J126*T126 -> 41023.8 | S126: reliéf | T126: 200 | U126: 0.3 | V126: =V124 -> 0.9 | W126: =V126*U126 -> 0.27
B127: real | C127: 0 | D127: =D130*$W$127 -> 27.45 | E127: =E130*$W$127 -> 122.85 | F127: 193.95 | G127: 195.3 | H127: 159.75 | I127: 139.86 | J127: 170.9325 | K127: 111106.125 | S127: real | T127: 650 | U127: 0.25 | W127: =V126*U127 -> 0.225
B128: lak PU/AC | C128: 0 | D128: =D130*$W$128 -> 6.1 | E128: =E130*$W$128 -> 27.3 | F128: 43.1 | G128: 43.4 | H128: 35.5 | I128: 31.08 | J128: 37.985 | K128: 56597.65 | S128: lak PU/AC | T128: 1490 | U128: 1 | V128: 0.05 | W128: =U128*V128 -> 0.05
B129: dýha | C129: 0 | D129: 0 | E129: 0 | F129: 0 | G129: =G130*$W$129 -> 43.4 | H129: =H130*$W$129 -> 35.5 | I129: =SUM(G129:H129)/2 -> 39.45 | J129: 37.985 | K129: 211956.3 | S129: dýha | T129: 5580 | U129: 0.05 | W129: =U129 -> 0.05
B130: ∑ OP 4 | C130: =SUM(C102:C124) -> 0 | D130: 122 | E130: 546 | F130: 862 | G130: 868 | H130: 710 | I130: 599.2 | J130: 759.7 | K130: =SUM(K102:K129) -> 4896055.175 | L130: =SUM(L102:L124) -> 749 | M130: =J130/L130 -> 1.014285714
B132: ='Kalkulační vzorec'!ED2&" [ks]" -> OP 5 - lakované [ks] | K132: Tržby [Kč] (skutečnost) | L132: kapacita [ks]
B133: model/rok | C133: 2012 | D133: 2013 | E133: 2014 | F133: 2015 | G133: 2016 | H133: 2017 | I133: plán 2018 | J133: skutečnost 2018 | L133: max. | M133: skutečná
B134: ='Dveře V1'!B89 -> Linie L2 QZ | C134: ='Dveře V1'!AO89 -> 0 | D134: ='Dveře V1'!AP89 -> 0 | E134: ='Dveře V1'!AQ89 -> 0 | F134: ='Dveře V1'!AR89 -> 0 | G134: ='Dveře V1'!AS89 -> 0 | H134: ='Dveře V1'!AT89 -> 0 | I134: =L134*0.8 -> 476.8 | J134: =O134*1.1 -> 440 | K134: =J134*'Dveře V1'!AL89 -> 2829200 | L134: =R134 -> 596 | M134: =J134/L134 -> 0.7382550336 | O134: 400 | P134: =O134/((SUM($C$157:$H$157)+2000)/6) -> 0.08100718939 | Q134: =($J$186+2000)*P134 -> 595.4746182 | R134: =CEILING(Q134,1) -> 596
B135: ='Dveře V1'!B90 -> Linie L2 SZ | C135: ='Dveře V1'!AO90 -> 0 | D135: ='Dveře V1'!AP90 -> 0 | E135: ='Dveře V1'!AQ90 -> 0 | F135: ='Dveře V1'!AR90 -> 0 | G135: ='Dveře V1'!AS90 -> 0 | H135: ='Dveře V1'!AT90 -> 0 | I135: =L135*0.8 -> 715.2 | J135: =O135*1.1 -> 660 | K135: =J135*'Dveře V1'!AL90 -> 4085400 | L135: =R135 -> 894 | M135: =J135/L135 -> 0.7382550336 | O135: 600 | P135: 0.1215107841 | Q135: 893.2119274 | R135: =CEILING(Q135,1) -> 894
B136: ='Dveře V1'!B91 -> Linie P s drážkami | C136: ='Dveře V1'!AO91 -> 0 | D136: ='Dveře V1'!AP91 -> 0 | E136: ='Dveře V1'!AQ91 -> 0 | F136: ='Dveře V1'!AR91 -> 0 | G136: ='Dveře V1'!AS91 -> 0 | H136: ='Dveře V1'!AT91 -> 0 | I136: 1191.2 | J136: 1100 | K136: =J136*'Dveře V1'!AL91 -> 5478000 | L136: 1489 | M136: 0.7387508395 | O136: 1000 | P136: 0.2025179735 | Q136: 1488.686546 | R136: 1489
B137: ='Dveře V1'!B92 -> Klasik P | C137: ='Dveře V1'!AO92 -> 3116 | D137: ='Dveře V1'!AP92 -> 2563 | E137: ='Dveře V1'!AQ92 -> 1924 | F137: ='Dveře V1'!AR92 -> 1658 | G137: ='Dveře V1'!AS92 -> 1905 | H137: ='Dveře V1'!AT92 -> 1579 | I137: 2530.4 | J137: =H137*1.1 -> 1736.9 | K137: =J137*'Dveře V1'!AL92 -> 3456431 | L137: 3163 | M137: 0.5491305722 | O137: 2124.166667 | P137: 0.4301819286 | Q137: 3162.218337 | R137: 3163
B138: ='Dveře V1'!B93 -> Klasik BZ | C138: ='Dveře V1'!AO93 -> 1682 | D138: ='Dveře V1'!AP93 -> 1373 | E138: ='Dveře V1'!AQ93 -> 934 | F138: ='Dveře V1'!AR93 -> 729 | G138: ='Dveře V1'!AS93 -> 667 | H138: ='Dveře V1'!AT93 -> 546 | I138: =L138*0.8 -> 1177.6 | J138: =H138*1.1 -> 600.6 | K138: =J138*'Dveře V1'!AL93 -> 1975974 | L138: =R138 -> 1472 | M138: =J138/L138 -> 0.4080163043 | O138: 988.5 | P138: 0.2001890168 | Q138: 1471.56665 | R138: 1472
B139: ='Dveře V1'!B94 -> Klasik EZ | C139: ='Dveře V1'!AO94 -> 109 | D139: ='Dveře V1'!AP94 -> 108 | E139: ='Dveře V1'!AQ94 -> 82 | F139: ='Dveře V1'!AR94 -> 64 | G139: ='Dveře V1'!AS94 -> 89 | H139: ='Dveře V1'!AT94 -> 91 | I139: 108 | J139: 100.1 | K139: =J139*'Dveře V1'!AL94 -> 369369 | L139: 135 | M139: 0.7414814815 | O139: 90.5 | P139: 0.0183278766 | Q139: 134.7261324 | R139: 135
B140: ='Dveře V1'!B95 -> Kvadrant P | C140: ='Dveře V1'!AO95 -> 0 | D140: ='Dveře V1'!AP95 -> 11 | E140: ='Dveře V1'!AQ95 -> 169 | F140: ='Dveře V1'!AR95 -> 76 | G140: ='Dveře V1'!AS95 -> 111 | H140: ='Dveře V1'!AT95 -> 56 | I140: 70.4 | J140: 61.6 | K140: =J140*'Dveře V1'!AL95 -> 178024 | L140: 88 | M140: 0.7 | O140: =SUM(D140:H140)/6 -> 70.5 | P140: =O140/((SUM($C$157:$H$157)+2000)/5) -> 0.01189793094 | Q140: 87.46033455 | R140: 88
B141: ='Dveře V1'!B96 -> Kvadrant GZ1 | C141: ='Dveře V1'!AO96 -> 0 | D141: ='Dveře V1'!AP96 -> 1 | E141: ='Dveře V1'!AQ96 -> 30 | F141: ='Dveře V1'!AR96 -> 14 | G141: ='Dveře V1'!AS96 -> 11 | H141: ='Dveře V1'!AT96 -> 27 | I141: 14.4 | J141: 29.7 | K141: =J141*'Dveře V1'!AL96 -> 100683 | L141: 18 | M141: 1.65 | O141: =SUM(D141:H141)/6 -> 13.83333333 | P141: 0.002334582194 | Q141: 17.16124768 | R141: 18
B142: ='Dveře V1'!B97 -> Kvadrant GZ2 | C142: ='Dveře V1'!AO97 -> 0 | D142: ='Dveře V1'!AP97 -> 3 | E142: ='Dveře V1'!AQ97 -> 24 | F142: ='Dveře V1'!AR97 -> 6 | G142: ='Dveře V1'!AS97 -> 14 | H142: ='Dveře V1'!AT97 -> 13 | I142: 10.4 | J142: 14.3 | K142: =J142*'Dveře V1'!AL97 -> 55627 | L142: 13 | M142: 1.1 | O142: 10 | P142: 0.001687649779 | Q142: 12.40572121 | R142: 13
B143: ='Dveře V1'!B98 -> Kvadrant GZ3 | C143: ='Dveře V1'!AO98 -> 0 | D143: ='Dveře V1'!AP98 -> 0 | E143: ='Dveře V1'!AQ98 -> 20 | F143: ='Dveře V1'!AR98 -> 12 | G143: ='Dveře V1'!AS98 -> 11 | H143: ='Dveře V1'!AT98 -> 16 | I143: 10.4 | J143: 17.6 | K143: =J143*'Dveře V1'!AL98 -> 77264 | L143: 13 | M143: 1.353846154 | O143: 9.833333333 | P143: 0.001659522283 | Q143: 12.19895919 | R143: 13
B144: ='Dveře V1'!B99 -> Kvadrant GZ4 | C144: ='Dveře V1'!AO99 -> 0 | D144: ='Dveře V1'!AP99 -> 3 | E144: ='Dveře V1'!AQ99 -> 74 | F144: ='Dveře V1'!AR99 -> 20 | G144: ='Dveře V1'!AS99 -> 25 | H144: ='Dveře V1'!AT99 -> 6 | I144: 21.6 | J144: 6.6 | K144: =J144*'Dveře V1'!AL99 -> 32274 | L144: 27 | M144: 0.2444444444 | O144: 21.33333333 | P144: 0.003600319528 | Q144: 26.46553859 | R144: 27
B145: ='Dveře V1'!B100 -> Kubik P | C145: ='Dveře V1'!AO100 -> 0 | D145: ='Dveře V1'!AP100 -> 0 | E145: ='Dveře V1'!AQ100 -> 0 | F145: ='Dveře V1'!AR100 -> 0 | G145: ='Dveře V1'!AS100 -> 15 | H145: ='Dveře V1'!AT100 -> 121 | I145: 23.2 | J145: 133.1 | K145: =J145*'Dveře V1'!AL100 -> 516428 | L145: 29 | M145: 4.589655172 | O145: 22.66666667 | P145: 0.003825339499 | Q145: 28.11963475 | R145: 29
B146: ='Dveře V1'!B101 -> Kubik BZ | C146: ='Dveře V1'!AO101 -> 0 | D146: ='Dveře V1'!AP101 -> 0 | E146: ='Dveře V1'!AQ101 -> 0 | F146: ='Dveře V1'!AR101 -> 0 | G146: ='Dveře V1'!AS101 -> 4 | H146: ='Dveře V1'!AT101 -> 18 | I146: 4 | J146: 19.8 | K146: =J146*'Dveře V1'!AL101 -> 100584 | L146: 5 | M146: 3.96 | O146: 3.666666667 | P146: 0.0006188049189 | Q146: 4.548764445 | R146: 5
B147: ='Dveře V1'!B102 -> Kubik EZ | C147: ='Dveře V1'!AO102 -> 0 | D147: ='Dveře V1'!AP102 -> 0 | E147: ='Dveře V1'!AQ102 -> 0 | F147: ='Dveře V1'!AR102 -> 0 | G147: ='Dveře V1'!AS102 -> 5 | H147: ='Dveře V1'!AT102 -> 19 | I147: 4 | J147: 20.9 | K147: =J147*'Dveře V1'!AL102 -> 114532 | L147: 5 | M147: 4.18 | O147: 4 | P147: 0.0006750599116 | Q147: 4.962288485 | R147: 5
B148: ='Dveře V1'!B103 -> Klermont P | C148: ='Dveře V1'!AO103 -> 803 | D148: ='Dveře V1'!AP103 -> 926 | E148: ='Dveře V1'!AQ103 -> 1047 | F148: ='Dveře V1'!AR103 -> 874 | G148: ='Dveře V1'!AS103 -> 926 | H148: ='Dveře V1'!AT103 -> 1031 | I148: 1113.6 | J148: 1134.1 | K148: =J148*'Dveře V1'!AL103 -> 2483679 | L148: 1392 | M148: 0.8147270115 | O148: 934.5 | P148: =O148/((SUM($C$157:$H$157)+2000)/6) -> 0.1892530462 | Q148: 1391.177577 | R148: 1392
B149: ='Dveře V1'!B104 -> Klermont BZ | C149: ='Dveře V1'!AO104 -> 219 | D149: ='Dveře V1'!AP104 -> 192 | E149: ='Dveře V1'!AQ104 -> 230 | F149: ='Dveře V1'!AR104 -> 115 | G149: ='Dveře V1'!AS104 -> 165 | H149: ='Dveře V1'!AT104 -> 149 | I149: 212.8 | J149: 163.9 | K149: =J149*'Dveře V1'!AL104 -> 555621 | L149: 266 | M149: 0.6161654135 | O149: 178.3333333 | P149: =O149/((SUM($C$157:$H$157)+2000)/6) -> 0.03611570527 | Q149: 265.482434 | R149: 266
B150: ='Dveře V1'!B105 -> Klermont EZ | C150: ='Dveře V1'!AO105 -> 72 | D150: ='Dveře V1'!AP105 -> 46 | E150: ='Dveře V1'!AQ105 -> 80 | F150: ='Dveře V1'!AR105 -> 45 | G150: ='Dveře V1'!AS105 -> 71 | H150: ='Dveře V1'!AT105 -> 48 | I150: 72 | J150: 52.8 | K150: =J150*'Dveře V1'!AL105 -> 200112 | L150: 90 | M150: 0.5866666667 | O150: 60.33333333 | P150: =O150/((SUM($C$157:$H$157)+2000)/6) -> 0.0122185844 | Q150: 89.81742158 | R150: 90
B151: ='Dveře V1'!B106 -> Retro P | C151: ='Dveře V1'!AO106 -> 0 | D151: ='Dveře V1'!AP106 -> 16 | E151: ='Dveře V1'!AQ106 -> 70 | F151: ='Dveře V1'!AR106 -> 13 | G151: ='Dveře V1'!AS106 -> 52 | H151: ='Dveře V1'!AT106 -> 13 | I151: 27.2 | J151: 14.3 | K151: =J151*'Dveře V1'!AL106 -> 47047 | L151: 34 | M151: 0.4205882353 | O151: =SUM(D151:H151)/6 -> 27.33333333 | P151: =O151/((SUM($C$157:$H$157)+2000)/5) -> 0.004612909396 | Q151: 33.90897132 | R151: 34
B152: ='Dveře V1'!B107 -> Retro YZ | C152: ='Dveře V1'!AO107 -> 0 | D152: ='Dveře V1'!AP107 -> 3 | E152: ='Dveře V1'!AQ107 -> 16 | F152: ='Dveře V1'!AR107 -> 5 | G152: ='Dveře V1'!AS107 -> 16 | H152: ='Dveře V1'!AT107 -> 9 | I152: 8.8 | J152: 9.9 | K152: =J152*'Dveře V1'!AL107 -> 48411 | L152: 11 | M152: 0.9 | O152: =SUM(D152:H152)/6 -> 8.166666667 | P152: =O152/((SUM($C$157:$H$157)+2000)/5) -> 0.001378247319 | Q152: 10.13133899 | R152: 11
B153: ='Dveře V1'!B108 -> Retro ZZ | C153: ='Dveře V1'!AO108 -> 0 | D153: ='Dveře V1'!AP108 -> 12 | E153: ='Dveře V1'!AQ108 -> 74 | F153: ='Dveře V1'!AR108 -> 46 | G153: ='Dveře V1'!AS108 -> 62 | H153: ='Dveře V1'!AT108 -> 27 | I153: 36.8 | J153: 29.7 | K153: =J153*'Dveře V1'!AL108 -> 155925 | L153: 46 | M153: 0.6456521739 | O153: 36.83333333 | P153: =O153/((SUM($C$157:$H$157)+2000)/5) -> 0.006216176686 | Q153: 45.69440647 | R153: 46
B154: =S154 -> děr.DTD | C154: ='Dveře V1'!AO109 -> 0 | D154: ='Dveře V1'!AP109 -> 0 | E154: ='Dveře V1'!AQ109 -> 6 | F154: ='Dveře V1'!AR109 -> 16 | G154: ='Dveře V1'!AS109 -> 35 | H154: ='Dveře V1'!AT109 -> 7 | I154: =SUM(D154:H154)/5 -> 12.8 | J154: 7.7 | K154: =J154*T154 -> 3465 | S154: děr.DTD | T154: 450
B155: =S155 -> plná DTD | C155: ='Dveře V1'!AO110 -> 0 | D155: ='Dveře V1'!AP110 -> 1 | E155: ='Dveře V1'!AQ110 -> 2 | F155: ='Dveře V1'!AR110 -> 0 | G155: ='Dveře V1'!AS110 -> 1 | H155: ='Dveře V1'!AT110 -> 0 | I155: 0.8 | J155: 0 | K155: =J155*T155 -> 0 | S155: plná DTD | T155: 900
B156: lak PU/AC | C156: 0 | D156: =D157*$W$156 -> 2628.5 | E156: =E157*$W$156 -> 2387 | F156: 1838.5 | G156: 2074.5 | H156: 1884.5 | I156: 2162.6 | J156: 2072.95 | K156: 1844925.5 | S156: lak PU/AC | T156: 890 | U156: 0.5 | V156: 1 | W156: =U156*V156 -> 0.5
B157: ∑ OP 5 | C157: =SUM(C134:C153) -> 6001 | D157: 5257 | E157: 4774 | F157: 3677 | G157: 4149 | H157: 3769 | I157: 7828.8 | J157: 6345.9 | K157: =SUM(K134:K156) -> 24708975.5 | L157: =SUM(L134:L153) -> 9786 | M157: =J157/L157 -> 0.648467198
B159: ='Kalkulační vzorec'!FD2&" [ks]" -> OP 6 - plné dveře [ks] | K159: Tržby [Kč] (skutečnost) | L159: kapacita [ks]
B160: model/rok | C160: 2012 | D160: 2013 | E160: 2014 | F160: 2015 | G160: 2016 | H160: 2017 | I160: plán 2018 | J160: skutečnost 2018 | L160: max. | M160: skutečná
B161: ='Dveře V1'!B18 -> Primum P | C161: ='Dveře V1'!AO18 -> 13057 | D161: ='Dveře V1'!AP18 -> 10760 | E161: ='Dveře V1'!AQ18 -> 11075 | F161: ='Dveře V1'!AR18 -> 12617 | G161: ='Dveře V1'!AS18 -> 12600 | H161: ='Dveře V1'!AT18 -> 12060 | I161: =L161*0.8 -> 12040.8 | J161: =H161*1.07 -> 12904.2 | K161: =J161*'Dveře V1'!AL18 -> 30841038 | L161: =R161 -> 15051 | M161: =J161/L161 -> 0.8573649591 | O161: 12028.16667 | P161: =O161/(SUM($C$178:$H$178)/6) -> 0.7622251325 | Q161: =($J$187+2000)*P161 -> 15050.59703 | R161: =CEILING(Q161,1) -> 15051
B162: ='Dveře V1'!B19 -> Pyroboard P | C162: ='Dveře V1'!AO19 -> 3714 | D162: ='Dveře V1'!AP19 -> 2471 | E162: ='Dveře V1'!AQ19 -> 1686 | F162: ='Dveře V1'!AR19 -> 2511 | G162: ='Dveře V1'!AS19 -> 2201 | H162: ='Dveře V1'!AT19 -> 2371 | I162: =L162*0.8 -> 2495.2 | J162: =H162*1.07 -> 2536.97 | K162: =J162*'Dveře V1'!AL19 -> 10376207.3 | L162: =R162 -> 3119 | M162: =J162/L162 -> 0.8133921129 | O162: 2492.333333 | P162: =O162/(SUM($C$178:$H$178)/6) -> 0.157939207 | Q162: 3118.60533 | R162: =CEILING(Q162,1) -> 3119
B163: ='Dveře V1'!B20 -> Pyrosafe BT2 | C163: ='Dveře V1'!AO20 -> 0 | D163: ='Dveře V1'!AP20 -> 628 | E163: ='Dveře V1'!AQ20 -> 1203 | F163: ='Dveře V1'!AR20 -> 1075 | G163: ='Dveře V1'!AS20 -> 1547 | H163: ='Dveře V1'!AT20 -> 1301 | I163: =L163*0.8 -> 960 | J163: 1392.07 | K163: =J163*'Dveře V1'!AL20 -> 11832595 | L163: =R163 -> 1200 | M163: =J163/L163 -> 1.160058333 | O163: =SUM(D163:H163)/5 -> 1150.8 | P163: =O163/(SUM($C$178:$H$178)/5) -> 0.06077184681 | Q163: 1199.976934 | R163: 1200
B164: ='Dveře V1'!B21 -> Pyrosafe BT3 | C164: ='Dveře V1'!AO21 -> 0 | D164: ='Dveře V1'!AP21 -> 47 | E164: ='Dveře V1'!AQ21 -> 115 | F164: ='Dveře V1'!AR21 -> 227 | G164: ='Dveře V1'!AS21 -> 289 | H164: ='Dveře V1'!AT21 -> 246 | I164: 154.4 | J164: 263.22 | K164: =J164*'Dveře V1'!AL21 -> 2698005 | L164: 193 | M164: 1.363834197 | O164: =SUM(D164:H164)/5 -> 184.8 | P164: =O164/(SUM($C$178:$H$178)/5) -> 0.0097589827 | Q164: 192.6970258 | R164: 193
B165: ='Dveře V1'!B22 -> Pyropane | C165: ='Dveře V1'!AO22 -> 37 | D165: ='Dveře V1'!AP22 -> 40 | E165: ='Dveře V1'!AQ22 -> 32 | F165: ='Dveře V1'!AR22 -> 34 | G165: ='Dveře V1'!AS22 -> 38 | H165: ='Dveře V1'!AT22 -> 42 | I165: 37.6 | J165: 44.94 | K165: =J165*'Dveře V1'!AL22 -> 651630 | L165: 47 | M165: 0.9561702128 | O165: =SUM(C165:H165)/6 -> 37.16666667 | P165: =O165/(SUM($C$178:$H$178)/6) -> 0.002355252318 | Q165: 46.50588394 | R165: 47
B166: ='Dveře V1'!B23 -> Pyroglass | C166: ='Dveře V1'!AO23 -> 12 | D166: ='Dveře V1'!AP23 -> 2 | E166: ='Dveře V1'!AQ23 -> 5 | F166: ='Dveře V1'!AR23 -> 9 | G166: ='Dveře V1'!AS23 -> 19 | H166: ='Dveře V1'!AT23 -> 18 | I166: 11.2 | J166: 19.26 | K166: =J166*'Dveře V1'!AL23 -> 453765.6 | L166: 14 | M166: 1.375714286 | O166: 10.83333333 | P166: =O166/(SUM($C$178:$H$178)/6) -> 0.0006865085233 | Q166: 13.55552671 | R166: 14
B167: ='Dveře V1'!B24 -> Pyrosmoke | C167: ='Dveře V1'!AO24 -> 0 | D167: ='Dveře V1'!AP24 -> 7 | E167: ='Dveře V1'!AQ24 -> 52 | F167: ='Dveře V1'!AR24 -> 93 | G167: ='Dveře V1'!AS24 -> 61 | H167: ='Dveře V1'!AT24 -> 59 | I167: 45.6 | J167: 63.13 | K167: =J167*'Dveře V1'!AL24 -> 416026.7 | L167: 57 | M167: 1.10754386 | O167: =SUM(D167:H167)/5 -> 54.4 | P167: =O167/(SUM($C$178:$H$178)/5) -> 0.002872774128 | Q167: 56.72466562 | R167: 57
B168: ='Dveře V1'!B25 -> Celoskleněné dveře | C168: ='Dveře V1'!AO25 -> 0 | D168: ='Dveře V1'!AP25 -> 46 | E168: ='Dveře V1'!AQ25 -> 33 | F168: ='Dveře V1'!AR25 -> 61 | G168: ='Dveře V1'!AS25 -> 79 | H168: ='Dveře V1'!AT25 -> 102 | I168: 53.6 | J168: 109.14 | K168: =J168*'Dveře V1'!AL25 -> 566436.6 | L168: 67 | M168: 1.628955224 | O168: =SUM(D168:H168)/5 -> 64.2 | P168: =O168/(SUM($C$178:$H$178)/5) -> 0.003390295938 | Q168: 66.94344729 | R168: 67 | S168: laminát | T168: 0 | U168: 0.55 | V168: 0.55 | W168: =V168*U168 -> 0.3025
B169: =S169 -> děr.DTD | C169: ='Dveře V1'!AO26 -> 0 | D169: ='Dveře V1'!AP26 -> 1231 | E169: ='Dveře V1'!AQ26 -> 2132 | F169: ='Dveře V1'!AR26 -> 3109 | G169: ='Dveře V1'!AS26 -> 3291 | H169: ='Dveře V1'!AT26 -> 3826 | I169: =SUM(D169:H169)/5 -> 2717.8 | J169: 4093.82 | K169: =J169*T169 -> 1842219 | S169: děr.DTD | T169: 450
B170: =S170 -> plná DTD | C170: ='Dveře V1'!AO27 -> 0 | D170: ='Dveře V1'!AP27 -> 234 | E170: ='Dveře V1'!AQ27 -> 275 | F170: ='Dveře V1'!AR27 -> 361 | G170: ='Dveře V1'!AS27 -> 415 | H170: ='Dveře V1'!AT27 -> 389 | I170: 334.8 | J170: 416.23 | K170: =J170*T170 -> 374607 | S170: plná DTD | T170: 900
B171: folie | C171: =(C178-C168)*$W$171 -> 3195.8 | D171: =(D178-D168)*$W$171 -> 2651.45 | E171: 2691.92 | F171: 3147.54 | G171: 3183.45 | H171: 3058.43 | I171: =SUM(C171:H171)/5 -> 3585.718 | J171: 3272.5201 | K171: -3436146.105 | S171: folie | T171: -1050 | U171: 0.19 | W171: =U171 -> 0.19
B172: reliéf | C172: 0 | D172: =(D178-D168)*$W$172 -> 1918.8125 | E172: 1948.1 | F172: 2277.825 | G172: 2303.8125 | H172: 2213.3375 | I172: 2132.3775 | J172: 2368.271125 | K172: 473654.225 | S172: reliéf | T172: 200 | U172: 0.25 | V172: =V168 -> 0.55 | W172: =V172*U172 -> 0.1375
B173: real | C173: 0 | D173: =(D178-D168)*$W$173 -> 1535.05 | E173: 1558.48 | F173: 1822.26 | G173: 1843.05 | H173: 1770.67 | I173: 1705.902 | J173: 1894.6169 | K173: 1231500.985 | S173: real | T173: 650 | U173: 0.2 | W173: =V172*U173 -> 0.11
B174: lak H20 | C174: =(C178-C168)*$W$174 -> 2396.85 | D174: =(D178-D168)*$W$174 -> 1988.5875 | E174: 2018.94 | F174: 2360.655 | G174: 2387.5875 | H174: 2293.8225 | I174: =SUM(C174:H174)/6 -> 2241.07375 | J174: 2454.390075 | K174: 1472634.045 | S174: lak H20 | T174: 600 | U174: 0.57 | V174: 0.25 | W174: =U174*V174 -> 0.1425
B175: lak PU/AC | C175: 0 | D175: =(D178-D168)*$W$175 -> 1290.8375 | E175: 1310.54 | F175: 1532.355 | G175: 1549.8375 | H175: 1488.9725 | I175: 1434.5085 | J175: 1593.200575 | K175: 2373868.857 | S175: lak PU/AC | T175: 1490 | U175: 0.37 | W175: =U175*V174 -> 0.0925
B176: Artemis AC | C176: 0 | D176: =(D178-D168)*$W$176 -> 209.325 | E176: 212.52 | F176: 248.49 | G176: 251.325 | H176: 241.455 | I176: 232.623 | J176: 258.35685 | K176: 428872.371 | S176: Artemis AC | T176: 1660 | U176: 0.06 | W176: =U176*$V$17 -> 0.015
B177: dýha | C177: 0 | D177: 0 | E177: 0 | F177: 0 | G177: =(G178-G168)*$W$177 -> 167.55 | H177: 160.97 | I177: =SUM(G177:H177)/2 -> 164.26 | J177: 172.2379 | K177: 961087.482 | S177: dýha | T177: 5580 | U177: 0.01 | W177: =U177 -> 0.01
B178: ∑ OP 6 | C178: =SUM(C161:C167) -> 16820 | D178: =SUM(D161:D168) -> 14001 | E178: =SUM(E161:E168) -> 14201 | F178: 16627 | G178: 16834 | H178: 16199 | I178: =SUM(I161:I168) -> 15798.4 | J178: =SUM(J161:J168) -> 17332.93 | K178: =SUM(K161:K177) -> 63558002.06 | L178: 19748 | M178: =J178/L178 -> 0.8777055904
B180: Celkem / rok | C180: =SUM('dveře podrobně'!F2:F120) -> 38154 | D180: =SUM('dveře podrobně'!F121:F375) -> 30651 | E180: =SUM('dveře podrobně'!F376:F632) -> 28333 | F180: =SUM('dveře podrobně'!F633:F881) -> 30165 | G180: =SUM('dveře podrobně'!F882:F1135) -> 31157 | H180: =SUM('dveře podrobně'!F1136:F1376) -> 29359 | L180: 35000 | M180: =AVERAGE(M4:M167) -> 0.9310365978
I181: průměr
B182: OP1 | C182: =C20/C188 -> 0.03196984089 | D182: 0.07645800075 | E182: 0.0446761522 | F182: 0.04013445378 | G182: 0.04563762749 | H182: 0.03621944521 | I182: =SUM(C182:H182)/6 -> 0.04584925339 | J182: =$L$180*I182 -> 1604.723869
B183: OP2 | C183: =C61/C188 -> 0.04862265495 | D183: 0.03386433885 | E183: 0.03084609536 | F183: 0.0268907563 | G183: 0.02770739947 | H183: 0.02622905795 | I183: =SUM(C183:H183)/6 -> 0.03236005048 | J183: =$L$180*I183 -> 1132.601767
B184: OP3 | C184: =C98/C188 -> 0.2419852767 | D184: 0.2314119765 | E184: 0.2177328844 | F184: 0.221512605 | G184: 0.2168842981 | H184: 0.2276503708 | I184: 0.2261962352 | J184: 7916.868233
B185: OP4 | C185: =C130/C188 -> 0 | D185: 0.004143880982 | E185: 0.01976756815 | F185: 0.02897478992 | G185: 0.02819463392 | H185: 0.02437517166 | I185: =SUM(D185:H185)/5 -> 0.02109120893 | J185: 738.1923124
B186: OP5 | C186: =C157/C188 -> 0.1781346474 | D186: 0.1785605109 | E186: 0.1728395062 | F186: 0.1235966387 | G186: 0.1347690509 | H186: 0.1293943971 | I186: 0.1528824585 | J186: 5350.886048
B187: OP6 | C187: =C178/C180 -> 0.4408449966 | D187: =D178/D180 -> 0.4567877068 | E187: 0.5012176614 | F187: 0.5512017239 | G187: 0.5402959207 | H187: 0.55175585 | I187: 0.5070173099 | J187: 17745.60585
B188: Celkem / rok | C188: =C20+C61+C98+C130+C157+C178 -> 33688 | D188: 29441 | E188: 27621 | F188: 29750 | G188: 30786 | H188: 29128 | J188: =J20+J61+J98+J130+J157+J178 -> 33480.03 | L188: =L20+L61+L98+L130+L157+L178 -> 40969
B190: ='Kalkulační vzorec'!FX2&" [ks]" -> OP 7 - FABI S, H [ks] | K190: Tržby [Kč] (skutečnost) | L190: kapacita [ks]
B191: model/rok | C191: 2012 | D191: 2013 | E191: 2014 | F191: 2015 | G191: 2016 | H191: 2017 | I191: plán 2018 | J191: skutečnost 2018 | L191: max. | M191: skutečná
B192: ='Zárubně V1'!A84 -> FABI S | C192: ='Zárubně V1'!P84 -> 21259 | D192: ='Zárubně V1'!Q84 -> 16340 | E192: ='Zárubně V1'!R84 -> 15601 | F192: ='Zárubně V1'!S84 -> 16335 | G192: ='Zárubně V1'!T84 -> 16238 | H192: ='Zárubně V1'!U84 -> 15418 | I192: =L192*0.8 -> 16459.2 | J192: =H192*1.1 -> 16959.8 | K192: =J192*'Zárubně V1'!M84 -> 48335430 | L192: =R192 -> 20574 | M192: =J192/L192 -> 0.8243316808 | O192: =SUM(C192:H192)/6 -> 16865.16667 | P192: =O192/(SUM($C$201:$H$201)/6) -> 0.9877496437 | Q192: =($J$223)*P192 -> 20573.0863 | R192: =CEILING(Q192,1) -> 20574
B193: ='Zárubně V1'!A85 -> FABI H | C193: ='Zárubně V1'!P85 -> 0 | D193: ='Zárubně V1'!Q85 -> 0 | E193: ='Zárubně V1'!R85 -> 0 | F193: ='Zárubně V1'!S85 -> 171 | G193: ='Zárubně V1'!T85 -> 537 | H193: ='Zárubně V1'!U85 -> 547 | I193: =L193*0.8 -> 204.8 | J193: =H193*1.1 -> 601.7 | K193: =J193*'Zárubně V1'!M85 -> 1967559 | L193: =R193 -> 256 | M193: =J193/L193 -> 2.350390625 | O193: =SUM(F193:H193)/3 -> 418.3333333 | P193: =O193/(SUM($C$201:$H$201)/3) -> 0.01225035629 | Q193: =($J$223)*P193 -> 255.1533566 | R193: =CEILING(Q193,1) -> 256
B194: ='Zárubně V1'!A86 -> EI/EW 30 | C194: ='Zárubně V1'!P86 -> 474 | D194: ='Zárubně V1'!Q86 -> 394 | E194: ='Zárubně V1'!R86 -> 362 | F194: ='Zárubně V1'!S86 -> 642 | G194: ='Zárubně V1'!T86 -> 493 | H194: ='Zárubně V1'!U86 -> 410 | I194: =SUM(C194:H194)/6 -> 462.5 | J194: =H194*1.07 -> 438.7 | K194: =J194*'Zárubně V1'!M86 -> 679985 | L194: 0 | S194: laminát | T194: 0 | U194: 0.55 | V194: 0.55 | W194: =V194*U194 -> 0.3025
B195: ='Zárubně V1'!A87 -> folie | C195: =C192*$W$195 -> 3188.85 | D195: =D192*$W$195 -> 2451 | E195: 2340.15 | F195: 2450.25 | G195: 2435.7 | H195: 2312.7 | I195: =SUM(C195:H195)/6 -> 2529.775 | J195: 2474.589 | K195: =J195*'Zárubně V1'!M87 -> -866106.15 | L195: 0 | S195: folie | T195: -1050 | U195: 0.15 | W195: =U195 -> 0.15
B196: ='Zárubně V1'!A88 -> lam. reliéf | C196: 0 | D196: =D192*$W$196 -> 2246.75 | E196: 2145.1375 | F196: 2246.0625 | G196: 2232.725 | H196: 2119.975 | I196: =SUM(D196:H196)/5 -> 2198.13 | J196: 2268.37325 | K196: =J196*'Zárubně V1'!M88 -> 453674.65 | L196: 0 | S196: reliéf | T196: 200 | U196: 0.25 | V196: =V194 -> 0.55 | W196: =V196*U196 -> 0.1375
B197: ='Zárubně V1'!A89 -> lam. real | C197: 0 | D197: =D192*$W$197 -> 1797.4 | E197: 1716.11 | F197: 1796.85 | G197: 1786.18 | H197: 1695.98 | I197: =SUM(D197:H197)/5 -> 1758.504 | J197: 1814.6986 | K197: =J197*'Zárubně V1'!M89 -> 635144.51 | L197: 0 | S197: real | T197: 650 | U197: 0.2 | W197: =V196*U197 -> 0.11
B198: ='Zárubně V1'!A90 -> lak H20 | C198: =C192*$W$198 -> 3029.4075 | D198: =D192*$W$198 -> 2328.45 | E198: 2223.1425 | F198: 2327.7375 | G198: 2313.915 | H198: 2197.065 | I198: =SUM(C198:H198)/6 -> 2403.28625 | J198: 2350.85955 | K198: =J198*'Zárubně V1'!M90 -> 916835.2245 | L198: 0 | S198: lak H20 | T198: 600 | U198: 0.57 | V198: 0.25 | W198: =U198*V198 -> 0.1425
B199: ='Zárubně V1'!A91 -> lak AC/PU | C199: 0 | D199: =D192*$W$199 -> 1511.45 | E199: 1443.0925 | F199: 1510.9875 | G199: 1502.015 | H199: 1426.165 | I199: =SUM(D199:H199)/5 -> 1478.742 | J199: 1525.99655 | K199: =J199*'Zárubně V1'!M91 -> 1953275.584 | L199: 0 | S199: lak PU/AC | T199: 1490 | U199: 0.37 | W199: =U199*V198 -> 0.0925
B200: ='Zárubně V1'!A92 -> dýha | C200: 0 | D200: 0 | E200: 0 | F200: 0 | G200: =G193*$W$200 -> 26.85 | H200: =H193*$W$200 -> 27.35 | I200: =SUM(G200:H200)/2 -> 27.1 | J200: 29.2645 | K200: =J200*'Zárubně V1'!M92 -> 89549.37 | L200: 0 | S200: dýha | T200: 5580 | U200: 0.05 | W200: =U200 -> 0.05
B201: ∑ OP 7 | C201: =SUM(C192:C193) -> 21259 | D201: =SUM(D192:D193) -> 16340 | E201: 15601 | F201: 16506 | G201: 16775 | H201: 15965 | I201: =SUM(I192:I193) -> 16664 | J201: =SUM(J192:J193) -> 17561.5 | K201: =SUM(K192:K200) -> 54165347.19 | L201: =SUM(L192:L193) -> 20830 | M201: =J201/L201 -> 0.8430868939
B203: ='Kalkulační vzorec'!GJ2&" [ks]" -> OP 8 - FABI P, O, ost. [ks] | K203: Tržby [Kč] (skutečnost) | L203: kapacita [ks]
B204: model/rok | C204: 2012 | D204: 2013 | E204: 2014 | F204: 2015 | G204: 2016 | H204: 2017 | I204: plán 2018 | J204: skutečnost 2018 | L204: max. | M204: skutečná
B205: ='Zárubně V1'!A95 -> FABI C | C205: ='Zárubně V1'!P95 -> 0 | D205: ='Zárubně V1'!Q95 -> 67 | E205: ='Zárubně V1'!R95 -> 78 | F205: ='Zárubně V1'!S95 -> 73 | G205: ='Zárubně V1'!T95 -> 48 | H205: ='Zárubně V1'!U95 -> 70 | I205: =L205*0.8 -> 55.2 | J205: =H205*1.07 -> 74.9 | K205: =J205*'Zárubně V1'!M95 -> 213465 | L205: =R205 -> 69 | M205: =J205/L205 -> 1.085507246 | O205: =SUM(D205:H205)/5 -> 67.2 | P205: =O205/(SUM($C$220:$H$220)/5) -> 0.01651511428 | Q205: =($J$224)*P205 -> 68.89709879 | R205: =CEILING(Q205,1) -> 69
B206: ='Zárubně V1'!A96 -> FABI M Champ. | C206: ='Zárubně V1'!P96 -> 0 | D206: ='Zárubně V1'!Q96 -> 0 | E206: ='Zárubně V1'!R96 -> 0 | F206: ='Zárubně V1'!S96 -> 4 | G206: ='Zárubně V1'!T96 -> 27 | H206: ='Zárubně V1'!U96 -> 13 | I206: =L206*0.8 -> 8 | J206: =H206*1.07 -> 13.91 | K206: =J206*'Zárubně V1'!M96 -> 94866.2 | L206: =R206 -> 10 | M206: =J206/L206 -> 1.391 | O206: =SUM(F206:H206)/3 -> 14.66666667 | P206: =O206/(SUM($C$220:$H$220)/3) -> 0.002162693536 | Q206: =($J$224)*P206 -> 9.022239128 | R206: =CEILING(Q206,1) -> 10
B207: ='Zárubně V1'!A97 -> FABI M stříbr. | C207: ='Zárubně V1'!P97 -> 0 | D207: ='Zárubně V1'!Q97 -> 0 | E207: ='Zárubně V1'!R97 -> 0 | F207: ='Zárubně V1'!S97 -> 0 | G207: ='Zárubně V1'!T97 -> 24 | H207: ='Zárubně V1'!U97 -> 25 | I207: 8.8 | J207: 26.75 | K207: =J207*'Zárubně V1'!M97 -> 182435 | L207: 11 | M207: 2.431818182 | O207: =SUM(G207:H207)/2 -> 24.5 | P207: =O207/(SUM($C$220:$H$220)/2) -> 0.002408454166 | Q207: 10.04749357 | R207: 11
B208: ='Zárubně V1'!A98 -> FABI O (OKZ) | C208: ='Zárubně V1'!P98 -> 1648 | D208: ='Zárubně V1'!Q98 -> 1271 | E208: ='Zárubně V1'!R98 -> 1355 | F208: ='Zárubně V1'!S98 -> 1321 | G208: ='Zárubně V1'!T98 -> 1383 | H208: ='Zárubně V1'!U98 -> 1223 | I208: 1345.6 | J208: 1308.61 | K208: =J208*'Zárubně V1'!M98 -> 4449274 | L208: 1682 | M208: 0.7780083234 | O208: =SUM(C208:H208)/6 -> 1366.833333 | P208: =O208/(SUM($C$220:$H$220)/6) -> 0.4030965839 | Q208: 1681.622343 | R208: 1682
B209: ='Zárubně V1'!A99 -> FABI P | C209: ='Zárubně V1'!P99 -> 1621 | D209: ='Zárubně V1'!Q99 -> 1196 | E209: ='Zárubně V1'!R99 -> 1048 | F209: ='Zárubně V1'!S99 -> 1202 | G209: ='Zárubně V1'!T99 -> 1463 | H209: ='Zárubně V1'!U99 -> 1249 | I209: 1276.8 | J209: 1336.43 | K209: =J209*'Zárubně V1'!M99 -> 4396854.7 | L209: 1596 | M209: 0.8373621554 | O209: =SUM(C209:H209)/6 -> 1296.5 | P209: 0.3823543868 | Q209: 1595.090868 | R209: 1596
... 27 more rows

Sheet Kalkulační vzorec
B2: typy výrobků | D2: HNS | F2: Jedn. čas [min] | H2: OP 1 -Triumf + Kitty | J2: ='Dveře V1'!B3 -> Triumf I | K2: ='Dveře V1'!B4 -> Triumf II | L2: ='Dveře V1'!B5 -> Triumf III | M2: ='Dveře V1'!B6 -> Triumf IV | N2: ='Dveře V1'!B7 -> Triumf V | O2: =TRANSPOSE('Dveře V1'!B8:B11) -> Kitty I | P2: Kitty II | Q2: Kitty III | R2: Kitty IV | S2: děr.DTD | T2: plná DTD | U2: lam.reliéf | V2: lam.real | W2: lak PU x AC | X2: Artemis AC | Y2: dýha | AA2: OP 2 - BEPEWE | AC2: =TRANSPOSE('Dveře V1'!B56:B85) -> Betty P2N | AD2: Betty AN | AE2: Betty BN | AF2: Betty P1N | AG2: Betty E | AH2: Betty D | AI2: Betty P2K | AJ2: Betty AK | AK2: Betty BK | AL2: Betty P1K | AM2: Peggy P2N | AN2: Peggy AN | AO2: Peggy BN | AP2: Peggy P1N | AQ2: Peggy E | AR2: Peggy D | AS2: Peggy P2K | AT2: Peggy AK | AU2: Peggy BK | AV2: Peggy P1K | AW2: Wendy P2N | AX2: Wendy AN | AY2: Wendy BN | AZ2: Wendy P1N | BA2: Wendy E | BB2: Wendy D | BC2: Wendy P2K | BD2: Wendy AK | BE2: Wendy BK | BF2: Wendy P1K | BG2: děr.DTD | BH2: plná DTD | BI2: folie | BJ2: lam.reliéf | BK2: lam.real | BL2: lak H20 | BM2: lak PU x AC | BO2: OP 3 - STD výřezy | BQ2: =TRANSPOSE('Dveře V1'!B29:B52) -> Primum 2/3 | BR2: Primum 3/3 | BS2: Maxim zaskl. | BT2: Maxim kazet. | BU2: Fénix I, zaskl. | BV2: Fénix I, kazet. | BW2: Fénix II, zaskl. | BX2: Fénix II, kazet. | BY2: Mada F ZZ | BZ2: Mada M ZZ | CA2: Mada U ZZ | CB2: Alex III , zaskl. | CC2: Alex III , kazet. | CD2: Alex IV , zaskl. | CE2: Alex IV , kazet. | CF2: Trix , zaskl. | CG2: Trix , kazet. | CH2: Quartex 1-4, zaskl. | CI2: Quartex 1-4, kazet. | CJ2: Nexis 1-5, zaskl. | CK2: Nexis 1-5, kazet. | CL2: Rubika 1-5, zaskl. | CM2: Rubika 1-5, kazet. | CN2: Nemo, děr.DTD | CO2: děr.DTD | CP2: plná DTD | CQ2: folie | CR2: lam.reliéf | CS2: lam.real | CT2: lak H20 | CU2: lak PU x AC | CV2: Artemis AC | CW2: dýha | CY2: OP 4 - Alumi rámeč. | DA2: =TRANSPOSE('Dveře V1'!B112:B134) -> Vertik L - plné | DB2: Vertik L - FDZ | DC2: Vertik L - MDZ | DD2: Vertik S - plné | DE2: Vertik S - FDZ | DF2: Vertik S - MDZ | DG2: Horizon L - plné | DH2: Horizon L - FDZ | DI2: Horizon L - MDZ | DJ2: Horizon S - plné | DK2: Horizon S - FDZ | DL2: Horizon S - MDZ | DM2: Horizon GZ1 | DN2: Horizon GZ2 | DO2: Horizon GZ3 | DP2: Horizon GZ4 | DQ2: Horizon GZ5 | DR2: Ruby - plné | DS2: Ruby - GZ2 | DT2: Ruby - GZ4 | DU2: Monte - GZ | DV2: Monte - DZ | DW2: Fénix III SZ | DX2: plná DTD | DY2: lam.reliéf | DZ2: lam.real | EA2: lak PU x AC | EB2: dýha | ED2: OP 5 - lakované | EF2: =TRANSPOSE('Dveře V1'!B89:B108) -> Linie L2 QZ | EG2: Linie L2 SZ | EH2: Linie P s drážkami | EI2: Klasik P | EJ2: Klasik BZ | EK2: Klasik EZ | EL2: Kvadrant P | EM2: Kvadrant GZ1 | EN2: Kvadrant GZ2 | EO2: Kvadrant GZ3 | EP2: Kvadrant GZ4 | EQ2: Kubik P | ER2: Kubik BZ | ES2: Kubik EZ | ET2: Klermont P | EU2: Klermont BZ | EV2: Klermont EZ | EW2: Retro P | EX2: Retro YZ | EY2: Retro ZZ | EZ2: děr.DTD | FA2: plná DTD | FB2: lak PU x AC | FD2: OP 6 - plné dveře | FF2: =TRANSPOSE('Dveře V1'!B18:B25) -> Primum P | FG2: Pyroboard P | FH2: Pyrosafe BT2 | FI2: Pyrosafe BT3 | FJ2: Pyropane | FK2: Pyroglass | FL2: Pyrosmoke | FM2: Celoskleněné dveře | FN2: děr.DTD | FO2: plná DTD | FP2: folie | FQ2: lam.reliéf | FR2: lam.real | FS2: lak H20 | FT2: lak PU x AC | FU2: Artemis AC | FV2: dýha | FX2: OP 7 - FABI S, H | FZ2: =TRANSPOSE('Zárubně V1'!A84:A92) -> FABI S | GA2: FABI H | GB2: EI/EW 30 | GC2: folie | GD2: lam. reliéf | GE2: lam. real | GF2: lak H20 | GG2: lak AC/PU | GH2: dýha | GJ2: OP 8 - FABI P, O, ost. | GL2: =TRANSPOSE('Zárubně V1'!A95:A109) -> FABI C | GM2: FABI M Champ. | GN2: FABI M stříbr. | GO2: FABI O (OKZ) | GP2: FABI P | GQ2: FABI PC | GR2: FABI Z | GS2: Doraz. noha | GT2: Garnyž | GU2: folie | GV2: lam. reliéf | GW2: lam. real | GX2: lak H20 | GY2: lak AC/PU | GZ2: dýha | HB2: OP 9 - skříně | HE2: OP 10 - přeprodej | HH2: Celkem/rok [Kč]
H3: 1 ks [Kč] | I3: ∑/rok [Kč] | J3: 1 ks [Kč] | K3: 1 ks [Kč] | L3: 1 ks [Kč] | M3: 1 ks [Kč] | N3: 1 ks [Kč] | O3: 1 ks [Kč] | P3: 1 ks [Kč] | Q3: 1 ks [Kč] | R3: 1 ks [Kč] | S3: 1 ks [Kč] | T3: 1 ks [Kč] | U3: 1 ks [Kč] | V3: 1 ks [Kč] | W3: 1 ks [Kč] | X3: 1 ks [Kč] | Y3: 1 ks [Kč] | AA3: 1 ks [Kč] | AB3: ∑/rok [Kč] | AC3: 1 ks [Kč] | AD3: 1 ks [Kč] | AE3: 1 ks [Kč] | AF3: 1 ks [Kč] | AG3: 1 ks [Kč] | AH3: 1 ks [Kč] | AI3: 1 ks [Kč] | AJ3: 1 ks [Kč] | AK3: 1 ks [Kč] | AL3: 1 ks [Kč] | AM3: 1 ks [Kč] | AN3: 1 ks [Kč] | AO3: 1 ks [Kč] | AP3: 1 ks [Kč] | AQ3: 1 ks [Kč] | AR3: 1 ks [Kč] | AS3: 1 ks [Kč] | AT3: 1 ks [Kč] | AU3: 1 ks [Kč] | AV3: 1 ks [Kč] | AW3: 1 ks [Kč] | AX3: 1 ks [Kč] | AY3: 1 ks [Kč] | AZ3: 1 ks [Kč] | BA3: 1 ks [Kč] | BB3: 1 ks [Kč] | BC3: 1 ks [Kč] | BD3: 1 ks [Kč] | BE3: 1 ks [Kč] | BF3: 1 ks [Kč] | BG3: 1 ks [Kč] | BH3: 1 ks [Kč] | BI3: 1 ks [Kč] | BJ3: 1 ks [Kč] | BK3: 1 ks [Kč] | BL3: 1 ks [Kč] | BM3: 1 ks [Kč] | BO3: 1 ks [Kč] | BP3: ∑/rok [Kč] | BQ3: 1 ks [Kč] | BR3: 1 ks [Kč] | BS3: 1 ks [Kč] | BT3: 1 ks [Kč] | BU3: 1 ks [Kč] | BV3: 1 ks [Kč] | BW3: 1 ks [Kč] | BX3: 1 ks [Kč] | BY3: 1 ks [Kč] | BZ3: 1 ks [Kč] | CA3: 1 ks [Kč] | CB3: 1 ks [Kč] | CC3: 1 ks [Kč] | CD3: 1 ks [Kč] | CE3: 1 ks [Kč] | CF3: 1 ks [Kč] | CG3: 1 ks [Kč] | CH3: 1 ks [Kč] | CI3: 1 ks [Kč] | CJ3: 1 ks [Kč] | CK3: 1 ks [Kč] | CL3: 1 ks [Kč] | CM3: 1 ks [Kč] | CN3: 1 ks [Kč] | CO3: 1 ks [Kč] | CP3: 1 ks [Kč] | CQ3: 1 ks [Kč] | CR3: 1 ks [Kč] | CS3: 1 ks [Kč] | CT3: 1 ks [Kč] | CU3: 1 ks [Kč] | CV3: 1 ks [Kč] | CW3: 1 ks [Kč] | CY3: 1 ks [Kč] | CZ3: ∑/rok [Kč] | DA3: 1 ks [Kč] | DB3: 1 ks [Kč] | DC3: 1 ks [Kč] | DD3: 1 ks [Kč] | DE3: 1 ks [Kč] | DF3: 1 ks [Kč] | DG3: 1 ks [Kč] | DH3: 1 ks [Kč] | DI3: 1 ks [Kč] | DJ3: 1 ks [Kč] | DK3: 1 ks [Kč] | DL3: 1 ks [Kč] | DM3: 1 ks [Kč] | DN3: 1 ks [Kč] | DO3: 1 ks [Kč] | DP3: 1 ks [Kč] | DQ3: 1 ks [Kč] | DR3: 1 ks [Kč] | DS3: 1 ks [Kč] | DT3: 1 ks [Kč] | DU3: 1 ks [Kč] | DV3: 1 ks [Kč] | DW3: 1 ks [Kč] | DX3: 1 ks [Kč] | DY3: 1 ks [Kč] | DZ3: 1 ks [Kč] | EA3: 1 ks [Kč] | EB3: 1 ks [Kč] | ED3: 1 ks [Kč] | EE3: ∑/rok [Kč] | EF3: 1 ks [Kč] | EG3: 1 ks [Kč] | EH3: 1 ks [Kč] | EI3: 1 ks [Kč] | EJ3: 1 ks [Kč] | EK3: 1 ks [Kč] | EL3: 1 ks [Kč] | EM3: 1 ks [Kč] | EN3: 1 ks [Kč] | EO3: 1 ks [Kč] | EP3: 1 ks [Kč] | EQ3: 1 ks [Kč] | ER3: 1 ks [Kč] | ES3: 1 ks [Kč] | ET3: 1 ks [Kč] | EU3: 1 ks [Kč] | EV3: 1 ks [Kč] | EW3: 1 ks [Kč] | EX3: 1 ks [Kč] | EY3: 1 ks [Kč] | EZ3: 1 ks [Kč] | FA3: 1 ks [Kč] | FB3: 1 ks [Kč] | FD3: 1 ks [Kč] | FE3: ∑/rok [Kč] | FF3: 1 ks [Kč] | FG3: 1 ks [Kč] | FH3: 1 ks [Kč] | FI3: 1 ks [Kč] | FJ3: 1 ks [Kč] | FK3: 1 ks [Kč] | FL3: 1 ks [Kč] | FM3: 1 ks [Kč] | FN3: 1 ks [Kč] | FO3: 1 ks [Kč] | FP3: 1 ks [Kč] | FQ3: 1 ks [Kč] | FR3: 1 ks [Kč] | FS3: 1 ks [Kč] | FT3: 1 ks [Kč] | FU3: 1 ks [Kč] | FV3: 1 ks [Kč] | FX3: 1 ks [Kč] | FY3: ∑/rok [Kč] | FZ3: 1 ks [Kč] | GA3: 1 ks [Kč] | GB3: 1 ks [Kč] | GC3: 1 ks [Kč] | GD3: 1 ks [Kč] | GE3: 1 ks [Kč] | GF3: 1 ks [Kč] | GG3: 1 ks [Kč] | GH3: 1 ks [Kč] | GJ3: 1 ks [Kč] | GK3: ∑/rok [Kč] | GL3: 1 ks [Kč] | GM3: 1 ks [Kč] | GN3: 1 ks [Kč] | GO3: 1 ks [Kč] | GP3: 1 ks [Kč] | GQ3: 1 ks [Kč] | GR3: 1 ks [Kč] | GS3: 1 ks [Kč] | GT3: 1 ks [Kč] | GU3: 1 ks [Kč] | GV3: 1 ks [Kč] | GW3: 1 ks [Kč] | GX3: 1 ks [Kč] | GY3: 1 ks [Kč] | GZ3: 1 ks [Kč] | HB3: 1 ks [Kč] | HC3: ∑/rok [Kč] | HE3: 1 ks [Kč] | HF3: ∑/rok [Kč]
B4: kusy [ks] | H4: 1 | I4: =SUM(J4:R4) -> 1128.85 | J4: =TRANSPOSE('tržby + kapacita'!J4:J12) -> 297.46 | K4: 150.87 | L4: 98.44 | M4: 101.65 | N4: 46.01 | O4: 144.45 | P4: 264.29 | Q4: 25.68 | R4: 0 | S4: =TRANSPOSE('tržby + kapacita'!J13:J19) -> 27.82 | T4: 0 | U4: 211.659375 | V4: 169.3275 | W4: 138.886 | X4: 34.7215 | Y4: 34.7215 | AA4: 1 | AB4: =SUM(AC4:BF4) -> 817.48 | AC4: =TRANSPOSE('tržby + kapacita'!J24:J53) -> 107 | AD4: 19.26 | AE4: 39.59 | AF4: 86.67 | AG4: 66.34 | AH4: 103.79 | AI4: 43.87 | AJ4: 9.63 | AK4: 37.45 | AL4: 22.47 | AM4: 31.03 | AN4: 1.07 | AO4: 1.07 | AP4: 10.7 | AQ4: 25.68 | AR4: 2.14 | AS4: 19.26 | AT4: 0 | AU4: 29.96 | AV4: 7.49 | AW4: 39.59 | AX4: 6.42 | AY4: 25.68 | AZ4: 6.42 | BA4: 23.54 | BB4: 2.14 | BC4: 11.77 | BD4: 9.63 | BE4: 7.49 | BF4: 20.33 | BG4: =TRANSPOSE('tržby + kapacita'!J54:J60) -> 101.65 | BH4: 12.84 | BI4: 163.496 | BJ4: 132.8405 | BK4: 106.2724 | BL4: 122.622 | BM4: 49.0488 | BO4: 1 | BP4: =SUM(BQ4:CN4) -> 7095.17 | BQ4: =TRANSPOSE('tržby + kapacita'!J65:J88) -> 1182.35 | BR4: 740.44 | BS4: 839.95 | BT4: 47.08 | BU4: 1596.44 | BV4: 80.25 | BW4: 232.19 | BX4: 1.07 | BY4: 108.07 | BZ4: 221.49 | CA4: 139.1 | CB4: 56.71 | CC4: 11.77 | CD4: 140.17 | CE4: 18.19 | CF4: 119.84 | CG4: 72.76 | CH4: 628.09 | CI4: 131.61 | CJ4: 214 | CK4: 31.03 | CL4: 249.31 | CM4: 40.66 | CN4: 192.6 | CO4: =TRANSPOSE('tržby + kapacita'!J89:J97) -> 1278.65 | CP4: 35.31 | CQ4: 1311.4883 | CR4: 975.585875 | CS4: 780.4687 | CT4: 1011.061725 | CU4: 656.303225 | CV4: 106.42755 | CW4: 70.9517 | CY4: 1 | CZ4: =SUM(DA4:DW4) -> 759.7 | DA4: =TRANSPOSE('tržby + kapacita'!J102:J124) -> 63.13 | DB4: 8.56 | DC4: 33.17 | DD4: 52.43 | DE4: 19.26 | DF4: 10.7 | DG4: 21.4 | DH4: 10.7 | DI4: 20.33 | DJ4: 108.07 | DK4: 11.77 | DL4: 17.12 | DM4: 8.56 | DN4: 21.4 | DO4: 13.91 | DP4: 2.14 | DQ4: 18.19 | DR4: 56.71 | DS4: 14.98 | DT4: 26.75 | DU4: 4.28 | DV4: 39.59 | DW4: 176.55 | DX4: =TRANSPOSE('tržby + kapacita'!J125:J129) -> 7.49 | DY4: 205.119 | DZ4: 170.9325 | EA4: 37.985 | EB4: 37.985 | ED4: 1 | EE4: =SUM(EF4:EY4) -> 6345.9 | EF4: =TRANSPOSE('tržby + kapacita'!J134:J153) -> 440 | EG4: 660 | EH4: 1100 | EI4: 1736.9 | EJ4: 600.6 | EK4: 100.1 | EL4: 61.6 | EM4: 29.7 | EN4: 14.3 | EO4: 17.6 | EP4: 6.6 | EQ4: 133.1 | ER4: 19.8 | ES4: 20.9 | ET4: 1134.1 | EU4: 163.9 | EV4: 52.8 | EW4: 14.3 | EX4: 9.9 | EY4: 29.7 | EZ4: =TRANSPOSE('tržby + kapacita'!J154:J156) -> 7.7 | FA4: 0 | FB4: 2072.95 | FD4: 1 | FE4: =SUM(FF4:FM4) -> 17332.93 | FF4: =TRANSPOSE('tržby + kapacita'!J161:J168) -> 12904.2 | FG4: 2536.97 | FH4: 1392.07 | FI4: 263.22 | FJ4: 44.94 | FK4: 19.26 | FL4: 63.13 | FM4: 109.14 | FN4: =TRANSPOSE('tržby + kapacita'!J169:J177) -> 4093.82 | FO4: 416.23 | FP4: 3272.5201 | FQ4: 2368.271125 | FR4: 1894.6169 | FS4: 2454.390075 | FT4: 1593.200575 | FU4: 258.35685 | FV4: 172.2379 | FX4: 1 | FY4: =SUM(FZ4:GA4) -> 17561.5 | FZ4: =TRANSPOSE('tržby + kapacita'!J192:J200) -> 16959.8 | GA4: 601.7 | GB4: 438.7 | GC4: 2474.589 | GD4: 2268.37325 | GE4: 1814.6986 | GF4: 2350.85955 | GG4: 1525.99655 | GH4: 29.2645 | GJ4: 1 | GK4: =SUM(GL4:GT4) -> 3730.02 | GL4: =TRANSPOSE('tržby + kapacita'!J205:J219) -> 74.9 | GM4: 13.91 | GN4: 26.75 | GO4: 1308.61 | GP4: 1336.43 | GQ4: 6.42 | GR4: 98.44 | GS4: 135.89 | GT4: 728.67 | GU4: 700.9784 | GV4: 475.57755 | GW4: 380.46204 | GX4: 531.52785 | GY4: 345.02685 | GZ4: 4.922 | HB4: 1 | HC4: ='tržby + kapacita'!J229 -> 289.8 | HE4: 1 | HF4: ='tržby + kapacita'!J237 -> 2571.4 | HH4: =I4+AB4+BP4+CZ4+EE4+FE4+FY4+GK4+HC4+HF4 -> 57632.75
B5: tržby | H5: =I5/I4 -> 6656.148815 | I5: =SUMPRODUCT(J5:Y5,J4:Y4) -> 7513793.59 | J5: =TRANSPOSE('Dveře V1'!AL3:AL11) -> 6250 | K5: 5830 | L5: 6130 | M5: 6130 | N5: 5200 | O5: 6490 | P5: 6490 | Q5: 6490 | R5: 6490 | S5: =TRANSPOSE('tržby + kapacita'!T13:T19) -> 450 | T5: 900 | U5: 200 | V5: 650 | W5: 600 | X5: 1300 | Y5: 5660 | AA5: =AB5/$AB$4 -> 5220.22199 | AB5: =SUMPRODUCT(AC5:BM5,$AC$4:$BM$4) -> 4267427.072 | AC5: =TRANSPOSE('Dveře V1'!AL56:AL85) -> 4290 | AD5: 4920 | AE5: 5550 | AF5: 3890 | AG5: 5550 | AH5: 4850 | AI5: 5230 | AJ5: 5660 | AK5: 5890 | AL5: 4890 | AM5: 4690 | AN5: 5550 | AO5: 6150 | AP5: 4390 | AQ5: 5790 | AR5: 5190 | AS5: 5690 | AT5: 6190 | AU5: 6450 | AV5: 5230 | AW5: 4690 | AX5: 5550 | AY5: 6150 | AZ5: 4390 | BA5: 5790 | BB5: 5190 | BC5: 5690 | BD5: 6190 | BE5: 6450 | BF5: 5230 | BG5: =TRANSPOSE('tržby + kapacita'!T54:T60) -> 450 | BH5: 900 | BI5: -1050 | BJ5: 200 | BK5: 650 | BL5: 600 | BM5: 1490 | BO5: =BP5/$BP$4 -> 4310.026282 | BP5: =SUMPRODUCT(BQ5:CW5,$BQ$4:$CW$4) -> 30580369.17 | BQ5: =TRANSPOSE('Dveře V1'!AL29:AL52) -> 3050 | BR5: 3690 | BS5: 3770 | BT5: 3770 | BU5: 3690 | BV5: 3690 | BW5: 3690 | BX5: 3690 | BY5: 4290 | BZ5: 4610 | CA5: 5130 | CB5: 4690 | CC5: 4690 | CD5: 4890 | CE5: 4890 | CF5: 5140 | CG5: 5140 | CH5: 5290 | CI5: 5290 | CJ5: 5390 | CK5: 5390 | CL5: 3890 | CM5: 3890 | CN5: 5240 | CO5: =TRANSPOSE('tržby + kapacita'!T89:T97) -> 450 | CP5: 900 | CQ5: -1050 | CR5: 200 | CS5: 650 | CT5: 600 | CU5: 1490 | CV5: 1660 | CW5: 5580 | CY5: =CZ5/$CZ$4 -> 6444.721831 | CZ5: =SUMPRODUCT(DA5:EB5,$DA$4:$EB$4) -> 4896055.175 | DA5: =TRANSPOSE('Dveře V1'!AL112:AL134) -> 5270 | DB5: 6590 | DC5: 7190 | DD5: 5290 | DE5: 6590 | DF5: 7190 | DG5: 5590 | DH5: 6890 | DI5: 7290 | DJ5: 5590 | DK5: 6890 | DL5: 7290 | DM5: 6790 | DN5: 7240 | DO5: 7690 | DP5: 8140 | DQ5: 8590 | DR5: 5490 | DS5: 6690 | DT5: 7890 | DU5: 4150 | DV5: 4880 | DW5: 4990 | DX5: =TRANSPOSE('tržby + kapacita'!T125:T129) -> 900 | DY5: 200 | DZ5: 650 | EA5: 1490 | EB5: 5580 | ED5: =EE5/$EE$4 -> 3893.691281 | EE5: =SUMPRODUCT(EF5:FB5,$EF$4:$FB$4) -> 24708975.5 | EF5: =TRANSPOSE('Dveře V1'!AL89:AL108) -> 6430 | EG5: 6190 | EH5: 4980 | EI5: 1990 | EJ5: 3290 | EK5: 3690 | EL5: 2890 | EM5: 3390 | EN5: 3890 | EO5: 4390 | EP5: 4890 | EQ5: 3880 | ER5: 5080 | ES5: 5480 | ET5: 2190 | EU5: 3390 | EV5: 3790 | EW5: 3290 | EX5: 4890 | EY5: 5250 | EZ5: =TRANSPOSE('tržby + kapacita'!T154:T156) -> 450 | FA5: 900 | FB5: 890 | FD5: =FE5/$FE$4 -> 3666.893137 | FE5: =SUMPRODUCT(FF5:FV5,$FF$4:$FV$4) -> 63558002.06 | FF5: =TRANSPOSE('Dveře V1'!AL18:AL25) -> 2390 | FG5: 4090 | FH5: 8500 | FI5: 10250 | FJ5: 14500 | FK5: 23560 | FL5: 6590 | FM5: 5190 | FN5: =TRANSPOSE('tržby + kapacita'!T169:T177) -> 450 | FO5: 900 | FP5: -1050 | FQ5: 200 | FR5: 650 | FS5: 600 | FT5: 1490 | FU5: 1660 | FV5: 5580 | FX5: =FY5/$FY$4 -> 3084.323502 | FY5: =SUMPRODUCT(FZ5:GH5,$FZ$4:$GH$4) -> 54165347.19 | FZ5: =TRANSPOSE('Zárubně V1'!M84:M92) -> 2850 | GA5: 3270 | GB5: 1550 | GC5: -350 | GD5: 200 | GE5: 350 | GF5: 390 | GG5: 1280 | GH5: 3060 | GJ5: =GK5/$GK$4 -> 3080.032717 | GK5: =SUMPRODUCT(GL5:GZ5,$GL$4:$GZ$4) -> 11488583.63 | GL5: =TRANSPOSE('Zárubně V1'!M95:M109) -> 2850 | GM5: 6820 | GN5: 6820 | GO5: 3400 | GP5: 3290 | GQ5: 3290 | GR5: 3190 | GS5: 1100 | GT5: 1400 | GU5: -350 | GV5: 200 | GW5: 350 | GX5: 390 | GY5: 1280 | GZ5: 3060 | HB5: =HC5/$HC$4 -> 28481.85074 | HC5: ='tržby + kapacita'!K229*1.2 -> 8254040.346 | HE5: =HF5/$HF$4 -> 2967.607382 | HF5: ='tržby + kapacita'!K237 -> 7630905.622 | HH5: =I5+AB5+BP5+CZ5+EE5+FE5+FY5+GK5+HC5+HF5 -> 217063499.4
B6: průměrná obchodní sleva (20%) | H6: =H5*0.2 -> 1331.229763 | I6: =I5*0.2 -> 1502758.718 | J6: =J5*0.2 -> 1250 | K6: =K5*0.2 -> 1166 | L6: 1226 | M6: 1226 | N6: 1040 | O6: =O5*0.2 -> 1298 | P6: =P5*0.2 -> 1298 | Q6: =Q5*0.2 -> 1298 | R6: =R5*0.2 -> 1298 | S6: 90 | T6: 180 | U6: 40 | V6: 130 | W6: 120 | X6: 260 | Y6: 1132 | AA6: =AA5*0.2 -> 1044.044398 | AB6: 853485.4144 | AC6: 858 | AD6: 984 | AE6: 1110 | AF6: 778 | AG6: 1110 | AH6: 970 | AI6: 1046 | AJ6: 1132 | AK6: 1178 | AL6: 978 | AM6: 938 | AN6: 1110 | AO6: 1230 | AP6: 878 | AQ6: 1158 | AR6: 1038 | AS6: 1138 | AT6: 1238 | AU6: 1290 | AV6: 1046 | AW6: 938 | AX6: 1110 | AY6: 1230 | AZ6: 878 | BA6: 1158 | BB6: 1038 | BC6: 1138 | BD6: 1238 | BE6: 1290 | BF6: 1046 | BG6: 90 | BH6: 180 | BI6: -210 | BJ6: 40 | BK6: 130 | BL6: 120 | BM6: 298 | BO6: =BO5*0.15 -> 646.5039423 | BP6: =BP5*0.2 -> 6116073.835 | BQ6: =BQ5*0.2 -> 610 | BR6: 738 | BS6: 754 | BT6: 754 | BU6: 738 | BV6: 738 | BW6: 738 | BX6: 738 | BY6: 858 | BZ6: 922 | CA6: 1026 | CB6: 938 | CC6: 938 | CD6: 978 | CE6: 978 | CF6: 1028 | CG6: 1028 | CH6: 1058 | CI6: 1058 | CJ6: 1078 | CK6: 1078 | CL6: 778 | CM6: 778 | CN6: 1048 | CO6: =CO5*0.2 -> 90 | CP6: 180 | CQ6: -210 | CR6: =CR5*0.2 -> 40 | CS6: =CS5*0.2 -> 130 | CT6: =CT5*0.2 -> 120 | CU6: =CU5*0.2 -> 298 | CV6: 332 | CW6: 1116 | CY6: =CY5*0.2 -> 1288.944366 | CZ6: =CZ5*0.2 -> 979211.035 | DA6: =DA5*0.2 -> 1054 | DB6: 1318 | DC6: 1438 | DD6: 1058 | DE6: 1318 | DF6: 1438 | DG6: 1118 | DH6: 1378 | DI6: 1458 | DJ6: 1118 | DK6: 1378 | DL6: 1458 | DM6: 1358 | DN6: 1448 | DO6: 1538 | DP6: 1628 | DQ6: 1718 | DR6: 1098 | DS6: 1338 | DT6: 1578 | DU6: 830 | DV6: 976 | DW6: 998 | DX6: 180 | DY6: =DY5*0.2 -> 40 | DZ6: 130 | EA6: 298 | EB6: 1116 | ED6: =ED5*0.2 -> 778.7382562 | EE6: =EE5*0.2 -> 4941795.1 | EF6: =EF5*0.2 -> 1286 | EG6: 1238 | EH6: 996 | EI6: 398 | EJ6: 658 | EK6: 738 | EL6: 578 | EM6: 678 | EN6: 778 | EO6: 878 | EP6: 978 | EQ6: 776 | ER6: 1016 | ES6: 1096 | ET6: 438 | EU6: 678 | EV6: 758 | EW6: 658 | EX6: 978 | EY6: 1050 | EZ6: 90 | FA6: 180 | FB6: 178 | FD6: =FD5*0.2 -> 733.3786274 | FE6: =FE5*0.2 -> 12711600.41 | FF6: =FF5*0.2 -> 478 | FG6: 818 | FH6: 1700 | FI6: 2050 | FJ6: 2900 | FK6: 4712 | FL6: 1318 | FM6: 1038 | FN6: 90 | FO6: 180 | FP6: -210 | FQ6: 40 | FR6: 130 | FS6: 120 | FT6: 298 | FU6: 332 | FV6: 1116 | FX6: =FX5*0.2 -> 616.8647005 | FY6: =FY5*0.2 -> 10833069.44 | FZ6: =FZ5*0.2 -> 570 | GA6: 654 | GB6: 310 | GC6: -70 | GD6: 40 | GE6: 70 | GF6: 78 | GG6: 256 | GH6: 612 | GJ6: =GJ5*0.2 -> 616.0065433 | GK6: =GK5*0.2 -> 2297716.727 | GL6: =GL5*0.2 -> 570 | GM6: =GM5*0.2 -> 1364 | GN6: 1364 | GO6: 680 | GP6: 658 | GQ6: 658 | GR6: 638 | GS6: 220 | GT6: 280 | GU6: -70 | GV6: 40 | GW6: 70 | GX6: 78 | GY6: 256 | GZ6: 612 | HB6: =HB5*0.2 -> 5696.370149 | HC6: =HC5*0.2 -> 1650808.069 | HE6: =HE5*0.2 -> 593.5214764 | HF6: =HF5*0.2 -> 1526181.124 | HH6: =I6+AB6+BP6+CZ6+EE6+FE6+FY6+GK6+HC6+HF6 -> 43412699.87
B7: ∑ přímý materiál 111 | H7: =I7/$I$4 -> 141.9842654 | I7: =SUMPRODUCT(J7:Y7,$J$4:$Y$4) -> 160278.938 | J7: =TRANSPOSE('Dveře V1'!N3:N7) -> 141 | K7: 141 | L7: 141 | M7: 141 | N7: 141 | O7: ='Dveře V1'!N8:N11 -> 141 | P7: 141 | Q7: 141 | R7: 141 | Y7: ='Dveře V1'!N142 -> 32 | AA7: =AB7/$AB$4 -> 101.8856021 | AB7: =SUMPRODUCT(AC7:BM7,$AC$4:$BM$4) -> 83289.442 | AC7: =TRANSPOSE('Dveře V1'!N56:N85) -> 103 | AD7: 99.7 | AE7: 99.7 | AF7: 103 | AG7: 99.7 | AH7: 103 | AI7: 99.7 | AJ7: 99.7 | AK7: 99.7 | AL7: 99.7 | AM7: 103 | AN7: 103 | AO7: 103 | AP7: 103 | AQ7: 103 | AR7: 103 | AS7: 103 | AT7: 103 | AU7: 103 | AV7: 103 | AW7: 103 | AX7: 99.7 | AY7: 103 | AZ7: 103 | BA7: 99.7 | BB7: 103 | BC7: 103 | BD7: 103 | BE7: 99.7 | BF7: 103 | BO7: =BP7/$BP$4 -> 102.4257005 | BP7: =SUMPRODUCT(BQ7:CW7,$BQ$4:$CW$4) -> 726727.7574 | BQ7: =TRANSPOSE('Dveře V1'!N29:N52) -> 99.7 | BR7: 99.7 | BS7: 103 | BT7: 103 | BU7: 103 | BV7: 103 | BW7: 103 | BX7: 103 | BY7: 103 | BZ7: 103 | CA7: 103 | CB7: 103 | CC7: 103 | CD7: 103 | CE7: 103 | CF7: 103 | CG7: 103 | CH7: 103 | CI7: 103 | CJ7: 103 | CK7: 103 | CL7: 103 | CM7: 103 | CN7: 103 | CW7: ='Dveře V1'!N142 -> 32 | CY7: =CZ7/$CZ$4 -> 104.6 | CZ7: =SUMPRODUCT(DA7:EB7,$DA$4:$EB$4) -> 79464.62 | DA7: =TRANSPOSE('Dveře V1'!N112:N134) -> 103 | DB7: 103 | DC7: 103 | DD7: 103 | DE7: 103 | DF7: 103 | DG7: 103 | DH7: 103 | DI7: 103 | DJ7: 103 | DK7: 103 | DL7: 103 | DM7: 103 | DN7: 103 | DO7: 103 | DP7: 103 | DQ7: 103 | DR7: 103 | DS7: 103 | DT7: 103 | DU7: 103 | DV7: 103 | DW7: 103 | EB7: ='Dveře V1'!N142 -> 32 | ED7: =EE7/$EE$4 -> 115.7631565 | EE7: =SUMPRODUCT(EF7:FB7,$EF$4:$FB$4) -> 734621.415 | EF7: =TRANSPOSE('Dveře V1'!N89:N108) -> 115.1 | EG7: 115.1 | EH7: 115.1 | EI7: 121.35 | EJ7: 103 | EK7: 103 | EL7: 121.35 | EM7: 103 | EN7: 103 | EO7: 103 | EP7: 103 | EQ7: 103 | ER7: 103 | ES7: 103 | ET7: 121.35 | EU7: 103 | EV7: 103 | EW7: 119.35 | EX7: 99.7 | EY7: 115.1 | FD7: =FE7/$FE$4 -> 307.3228033 | FE7: =SUMPRODUCT(FF7:FV7,$FF$4:$FV$4) -> 5326804.636 | FF7: =TRANSPOSE('Dveře V1'!N18:N25) -> 119.35 | FG7: 412.63 | FH7: 1653.35 | FI7: 1449 | FJ7: 394.28 | FK7: 394.28 | FL7: 412.63 | FM7: 0 | FV7: ='Dveře V1'!N142 -> 32 | FX7: =FY7/$FY$4 -> 0 | FY7: =SUMPRODUCT(FZ7:GH7,$FZ$4:$GH$4) -> 0 | GJ7: =GK7/$GK$4 -> 0 | GK7: =SUMPRODUCT(GL7:GZ7,$GL$4:$GZ$4) -> 0 | HH7: =I7+AB7+BP7+CZ7+EE7+FE7+FY7+GK7+HC7+HF7 -> 7111186.809
B8: ∑ variabilní mzdové N 111 | H8: =I8/$I$4 -> 220.1539033 | I8: 248520.7338 | J8: =TRANSPOSE('Dveře V1'!H3:H7) -> 180.498 | K8: 125.96 | L8: 180.498 | M8: 180.498 | N8: 266.258 | O8: =TRANSPOSE('Dveře V1'!H8:H11) -> 266.258 | P8: 266.258 | Q8: 266.258 | R8: 266.258 | S8: ='Dveře V1'!H140 -> 49.446 | T8: ='Dveře V1'!H141 -> 98.892 | Y8: ='Dveře V1'!H142 -> 300 | AA8: =AB8/$AB$4 -> 86.07184817 | AB8: =SUMPRODUCT(AC8:BM8,$AC$4:$BM$4) -> 70362.01444 | AC8: =TRANSPOSE('Dveře V1'!H56:H85) -> 79.864 | AD8: 77.586 | AE8: 77.586 | AF8: 79.864 | AG8: 77.586 | AH8: 77.586 | AI8: 77.586 | AJ8: 77.586 | AK8: 77.586 | AL8: 77.586 | AM8: 79.864 | AN8: 77.586 | AO8: 77.586 | AP8: 79.864 | AQ8: 77.586 | AR8: 77.586 | AS8: 77.586 | AT8: 77.586 | AU8: 77.586 | AV8: 77.586 | AW8: 79.864 | AX8: 77.586 | AY8: 77.586 | AZ8: 79.864 | BA8: 77.586 | BB8: 77.586 | BC8: 77.586 | BD8: 77.586 | BE8: 77.586 | BF8: 77.586 | BG8: ='Dveře V1'!H140 -> 49.446 | BH8: ='Dveře V1'!H141 -> 98.892 | BO8: =BP8/$BP$4 -> 92.40174453 | BP8: =SUMPRODUCT(BQ8:CW8,$BQ$4:$CW$4) -> 655606.0858 | BQ8: =TRANSPOSE('Dveře V1'!H29:H52) -> 77.586 | BR8: 77.586 | BS8: 77.586 | BT8: 77.586 | BU8: 77.586 | BV8: 77.586 | BW8: 77.586 | BX8: 77.586 | BY8: 77.586 | BZ8: 77.586 | CA8: 77.586 | CB8: 80.266 | CC8: 81.472 | CD8: 80.266 | CE8: 81.472 | CF8: 80.266 | CG8: 81.472 | CH8: 80.266 | CI8: 81.472 | CJ8: 80.266 | CK8: 81.472 | CL8: 80.266 | CM8: 81.472 | CN8: 140.7 | CO8: ='Dveře V1'!H140 -> 49.446 | CP8: ='Dveře V1'!H141 -> 98.892 | CW8: ='Dveře V1'!H142 -> 300 | CY8: =CZ8/$CZ$4 -> 182.2025577 | CZ8: 138419.2831 | DA8: =TRANSPOSE('Dveře V1'!H112:H134) -> 160.264 | DB8: 176.612 | DC8: 176.612 | DD8: 160.264 | DE8: 176.612 | DF8: 176.612 | DG8: 160.264 | DH8: 176.612 | DI8: 176.612 | DJ8: 160.264 | DK8: 176.612 | DL8: 176.612 | DM8: 176.612 | DN8: 176.612 | DO8: 176.612 | DP8: 176.612 | DQ8: 176.612 | DR8: 160.264 | DS8: 176.612 | DT8: 176.612 | DU8: 160.264 | DV8: 176.612 | DW8: 160.264 | DX8: ='Dveře V1'!H141 -> 98.892 | EB8: ='Dveře V1'!H142 -> 300 | ED8: =EE8/$EE$4 -> 51.89447197 | EE8: =SUMPRODUCT(EF8:FB8,$EF$4:$FB$4) -> 329317.1297 | EF8: =TRANSPOSE('Dveře V1'!H89:H108) -> 80.266 | EG8: 80.266 | EH8: 81.472 | EI8: 33.9288 | EJ8: 41.6204 | EK8: 41.6204 | EL8: 33.9288 | EM8: 41.6204 | EN8: 41.6204 | EO8: 41.6204 | EP8: 41.6204 | EQ8: 33.9288 | ER8: 41.6204 | ES8: 41.6204 | ET8: 33.9288 | EU8: 41.6204 | EV8: 41.6204 | EW8: 79.864 | EX8: 77.586 | EY8: 80.266 | EZ8: ='Dveře V1'!H140 -> 49.446 | FA8: ='Dveře V1'!H141 -> 98.892 | FD8: =FE8/$FE$4 -> 120.59797 | FE8: =SUMPRODUCT(FF8:FV8,$FF$4:$FV$4) -> 2090316.172 | FF8: =TRANSPOSE('Dveře V1'!H18:H25) -> 79.864 | FG8: 152.894 | FH8: 211.72 | FI8: 234.232 | FJ8: 164.418 | FK8: 164.418 | FL8: 152.894 | FM8: 0 | FN8: ='Dveře V1'!H140 -> 49.446 | FO8: ='Dveře V1'!H141 -> 98.892 | FV8: ='Dveře V1'!H142 -> 300 | FX8: =FY8/$FY$4 -> 0 | FY8: =SUMPRODUCT(FZ8:GH8,$FZ$4:$GH$4) -> 0 | GJ8: =GK8/$GK$4 -> 0 | GK8: =SUMPRODUCT(GL8:GZ8,$GL$4:$GZ$4) -> 0 | HH8: =I8+AB8+BP8+CZ8+EE8+FE8+FY8+GK8+HC8+HF8 -> 3532541.419
B9: ∑ přímý materiál 113 | H9: 808.4215462 | I9: 912586.6624 | J9: =TRANSPOSE('Dveře V1'!AA3:AA7) -> 1495.71048 | K9: 321.01608 | L9: 789.02728 | M9: 789.02728 | N9: 390.11 | O9: =TRANSPOSE('Dveře V1'!AA8:AA11) -> 496.860368 | P9: 569.902096 | Q9: 642.943824 | R9: 715.985552 | X9: 130 | AA9: 723.3338687 | AB9: 591310.971 | AC9: =TRANSPOSE('Dveře V1'!AA56:AA85) -> 691.75 | AD9: 589.1372 | AE9: 589.1372 | AF9: 691.75 | AG9: 589.1372 | AH9: 833.05 | AI9: 634.198 | AJ9: 589.1372 | AK9: 589.1372 | AL9: 634.198 | AM9: 691.75 | AN9: 923.8067 | AO9: 833.05 | AP9: 691.75 | AQ9: 923.8067 | AR9: 833.05 | AS9: 1020.25 | AT9: 923.8067 | AU9: 923.8067 | AV9: 1020.25 | AW9: 691.75 | AX9: 634.198 | AY9: 833.05 | AZ9: 691.75 | BA9: 634.198 | BB9: 833.05 | BC9: 923.8067 | BD9: 833.05 | BE9: 589.1372 | BF9: 923.8067 | BO9: 544.2074658 | BP9: 3861244.485 | BQ9: =TRANSPOSE('Dveře V1'!AA29:AA52) -> 421.1372 | BR9: 644.302 | BS9: 455.7892 | BT9: 511.75 | BU9: 312.9492 | BV9: 432.75 | BW9: 373.9492 | BX9: 493.75 | BY9: 417.142 | BZ9: 417.142 | CA9: 644.302 | CB9: 485.47175 | CC9: 599.25 | CD9: 632.379 | CE9: 724.75 | CF9: 738.33725 | CG9: 731.25 | CH9: 850.711 | CI9: 848.75 | CJ9: 948.47875 | CK9: 970.25 | CL9: 533.798 | CM9: 660.75 | CN9: 1555.25 | CV9: 130 | CY9: 239.3811462 | CZ9: 181857.8568 | DA9: =TRANSPOSE('Dveře V1'!AA112:AA134) -> 44.75 | DB9: 578.294841 | DC9: 578.294841 | DD9: 44.75 | DE9: 578.294841 | DF9: 578.294841 | DG9: 44.75 | DH9: 578.294841 | DI9: 578.294841 | DJ9: 44.75 | DK9: 578.294841 | DL9: 578.294841 | DM9: 578.294841 | DN9: 578.294841 | DO9: 578.294841 | DP9: 578.294841 | DQ9: 578.294841 | DR9: 44.75 | DS9: 578.294841 | DT9: 578.294841 | DU9: 44.75 | DV9: 578.294841 | DW9: 44.75 | ED9: 272.4957424 | EE9: 1729230.732 | EF9: =TRANSPOSE('Dveře V1'!AA89:AA108) -> 820.487 | EG9: 820.487 | EH9: 0 | EI9: 0 | EJ9: 765.2067 | EK9: 998.1567 | EL9: 0 | EM9: 431.45591 | EN9: 431.45591 | EO9: 431.45591 | EP9: 431.45591 | EQ9: 0 | ER9: 661.7527 | ES9: 861.7527 | ET9: 0 | EU9: 765.2067 | EV9: 998.1567 | EW9: 0 | EX9: 421.1372 | EY9: 820.487 | FD9: 20.33962064 | FE9: =SUMPRODUCT(FF9:FV9,$FF$4:$FV$4) -> 352545.2208 | FF9: =TRANSPOSE('Dveře V1'!AA18:AA25) -> 0 | FG9: 0 | FH9: 0 | FI9: 691.75 | FJ9: 1503.9572 | FK9: 3597.5368 | FL9: 0 | FM9: 0 | FU9: 130 | FX9: 0 | FY9: 0 | GJ9: 0 | GK9: 0 | HH9: 7628775.928
B10: ∑ variabilní mzdové N 113 | H10: 237.3013087 | I10: 267877.5824 | J10: =TRANSPOSE('Dveře V1'!O3:O7) -> 271.752 | K10: 236.376 | L10: 271.752 | M10: 271.752 | N10: 271.752 | O10: =TRANSPOSE('Dveře V1'!O8:O11) -> 271.752 | P10: =TRANSPOSE('Dveře V1'!P8:P11) -> 171.20376 | Q10: =TRANSPOSE('Dveře V1'!Q8:Q11) -> 0 | R10: =TRANSPOSE('Dveře V1'!R8:R11) -> 0 | AA10: 79.27245314 | AB10: 64803.64499 | AC10: =TRANSPOSE('Dveře V1'!O56:O85) -> 54.1762 | AD10: 69.814 | AE10: 69.814 | AF10: 54.1762 | AG10: 69.814 | AH10: 95.7162 | AI10: 139.494 | AJ10: 69.814 | AK10: 69.814 | AL10: 139.494 | AM10: 54.1762 | AN10: 66.2362 | AO10: 95.7162 | AP10: 54.1762 | AQ10: 66.2362 | AR10: 95.7162 | AS10: 144.5324 | AT10: 66.2362 | AU10: 66.2362 | AV10: 144.5324 | AW10: 54.1762 | AX10: 139.494 | AY10: 95.7162 | AZ10: 54.1762 | BA10: 139.494 | BB10: 95.7162 | BC10: 66.2362 | BD10: 95.7162 | BE10: 69.814 | BF10: 66.2362 | BO10: 75.51435515 | BP10: 535787.1872 | BQ10: =TRANSPOSE('Dveře V1'!O29:O52) -> 41.808 | BR10: 54.1762 | BS10: 54.1762 | BT10: 95.7162 | BU10: 54.1762 | BV10: 95.7162 | BW10: 60.434 | BX10: 101.974 | BY10: 54.1762 | BZ10: 54.1762 | CA10: 54.1762 | CB10: 82.3162 | CC10: 162.7162 | CD10: 105.994 | CE10: 213.194 | CF10: 81.874 | CG10: 162.274 | CH10: 105.994 | CI10: 213.194 | CJ10: 130.114 | CK10: 264.114 | CL10: 167.165 | CM10: 315.034 | CN10: 158.0128 | CY10: 222.1985915 | CZ10: 168804.27 | DA10: =TRANSPOSE('Dveře V1'!O112:O134) -> 141 | DB10: 244 | DC10: 244 | DD10: 234 | DE10: 356 | DF10: 356 | DG10: 141 | DH10: 244 | DI10: 244 | DJ10: 234 | DK10: 356 | DL10: 356 | DM10: 356 | DN10: 356 | DO10: 356 | DP10: 356 | DQ10: 356 | DR10: 141 | DS10: 244 | DT10: 244 | DU10: 141 | DV10: 356 | DW10: 141 | ED10: 49.10327294 | EE10: 311604.4598 | EF10: =TRANSPOSE('Dveře V1'!O89:O108) -> 154.234 | EG10: 154.234 | EH10: 0 | EI10: 25.2858 | EJ10: 53.7072 | EK10: 68.34 | EL10: 25.2858 | EM10: 50.049 | EN10: 75 | EO10: 100 | EP10: 125 | EQ10: 25.2858 | ER10: 68.34 | ES10: 68.34 | ET10: 25.2858 | EU10: 53.7072 | EV10: 68.34 | EW10: 0 | EX10: 41.808 | EY10: 154.234 | FD10: 1.016130131 | FE10: =SUMPRODUCT(FF10:FV10,$FF$4:$FV$4) -> 17612.51244 | FF10: =TRANSPOSE('Dveře V1'!O18:O25) -> 0 | FG10: 0 | FH10: 0 | FI10: 53.734 | FJ10: 54.0288 | FK10: 54.0288 | FL10: 0 | FM10: 0 | FX10: 0 | FY10: 0 | GJ10: 0 | GK10: 0 | HH10: 1366489.657
B11: ∑ přímý materiál 114 | H11: 0 | I11: 0 | AA11: 0 | AB11: 0 | BO11: 0 | BP11: 0 | CY11: 0 | CZ11: 0 | ED11: 0 | EE11: 0 | FD11: 0 | FE11: 0 | FX11: 0 | FY11: 0 | GJ11: 0 | GK11: 0 | HB11: =$HB$5*0.28 -> 7974.918208 | HC11: =HB11*$HC$4 -> 2311131.297 | HH11: 2311131.297
B12: ∑ variabilní mzdové N 114 | H12: 0 | I12: 0 | AA12: 0 | AB12: 0 | BO12: 0 | BP12: 0 | CY12: 0 | CZ12: 0 | ED12: 0 | EE12: 0 | FD12: 0 | FE12: 0 | FX12: 0 | FY12: 0 | GJ12: 0 | GK12: 0 | HB12: =$HB$5*0.38 -> 10823.10328 | HC12: =HB12*$HC$4 -> 3136535.331 | HH12: 3136535.331
B13: ∑ přímý materiál 121 | H13: 59.71415166 | I13: 67408.3201 | W13: =SUM('Dveře V1'!AE3:AE7)/5 -> 388.28 | X13: =SUM('Dveře V1'!AE3:AE7)/5 -> 388.28 | AA13: 68.268 | AB13: 55807.72464 | BL13: =SUM('Dveře V1'!AC56:AC79)/12 -> 259.0666667 | BM13: =SUM('Dveře V1'!AE56:AE79)/12 -> 490.1333333 | BO13: 75.741 | BP13: 537395.271 | CT13: =SUM('Dveře V1'!AC31:AC51)/21 -> 245 | CU13: =SUM('Dveře V1'!AE31:AE51)/21 -> 379.8 | CV13: =SUM('Dveře V1'!AE31:AE51)/21 -> 379.8 | CY13: 21.11 | CZ13: 16037.267 | EA13: =SUM('Dveře V1'!AE132:AE134)/3 -> 422.2 | ED13: 177.2733541 | EE13: 1124958.978 | EF13: =TRANSPOSE('Dveře V1'!AC89:AC108) -> 142 | EG13: 142 | EH13: 142 | EI13: 142 | EJ13: 128.4 | EK13: 114.8 | EL13: 142 | EM13: 128.4 | EN13: 128.4 | EO13: 128.4 | EP13: 128.4 | EQ13: 142 | ER13: 114.8 | ES13: 114.8 | ET13: 142 | EU13: 128.4 | EV13: 114.8 | EW13: 142 | EX13: 128.4 | EY13: 114.8 | FB13: =((SUM('Dveře V1'!AE89:AE108))-(SUM('Dveře V1'!AC89:AC108)))/20 -> 116.44 | FD13: 82.11835842 | FE13: 1423351.758 | FS13: =SUM('Dveře V1'!AC18:AC23)/6 -> 266.75 | FT13: =SUM('Dveře V1'!AE18:AE23)/6 -> 415.1333333 | FU13: =SUM('Dveře V1'!AE18:AE23)/6 -> 415.1333333 | FX13: 0 | FY13: 0 | GJ13: 0 | GK13: 0 | HH13: 3224959.319
B14: ∑ variabilní mzdové N 121 | H14: 14.67324408 | I14: 16563.89158 | W14: =SUM('Dveře V1'!AD3:AD7)/5 -> 95.41 | X14: =SUM('Dveře V1'!AD3:AD7)/5 -> 95.41 | AA14: 22.001028 | AB14: 17985.40037 | BL14: =SUM('Dveře V1'!AB56:AB79)/12 -> 95.1668 | BM14: =SUM('Dveře V1'!AD56:AD79)/12 -> 128.7668 | BO14: 19.738525 | BP14: 140048.1904 | CT14: =SUM('Dveře V1'!AB31:AB51)/21 -> 66.54 | CU14: =SUM('Dveře V1'!AD31:AD51)/21 -> 95.41 | CV14: =SUM('Dveře V1'!AD31:AD51)/21 -> 95.41 | CY14: 4.7705 | CZ14: 3624.14885 | EA14: =SUM('Dveře V1'!AD132:AD134)/3 -> 95.41 | ED14: 55.62275826 | EE14: 352976.4616 | EF14: =TRANSPOSE('Dveře V1'!AB89:AB108) -> 47.5834 | EG14: 47.5834 | EH14: 47.5834 | EI14: 47.5834 | EJ14: 47.5834 | EK14: 47.5834 | EL14: 47.5834 | EM14: 47.5834 | EN14: 47.5834 | EO14: 47.5834 | EP14: 47.5834 | EQ14: 127.8494 | ER14: 127.8494 | ES14: 127.8494 | ET14: 47.5834 | EU14: 47.5834 | EV14: 47.5834 | EW14: 89.1636 | EX14: 89.1636 | EY14: 89.1636 | FB14: =((SUM('Dveře V1'!AD89:AD108))-(SUM('Dveře V1'!AB89:AB108)))/20 -> 16.8 | FD14: 19.61423773 | FE14: =SUMPRODUCT(FF14:FV14,$FF$4:$FV$4) -> 339972.2095 | FS14: =SUM('Dveře V1'!AB18:AB23)/6 -> 66.54 | FT14: =SUM('Dveře V1'!AD18:AD23)/6 -> 95.41 | FU14: =SUM('Dveře V1'!AD18:AD23)/6 -> 95.41 | FX14: 0 | FY14: 0 | GJ14: 0 | GK14: 0 | HH14: 871170.3024
B15: ∑ přímý materiál 122 | H15: 11.94283033 | I15: 13481.66402 | Y15: =SUM('Dveře V1'!AG3:AG7)/5 -> 388.28 | AA15: 0 | AB15: 0 | BO15: 0 | BP15: 0 | CY15: 0 | CZ15: 0 | ED15: 0 | EE15: 0 | FD15: 0 | FE15: =SUMPRODUCT(FF15:FV15,$FF$4:$FV$4) -> 0 | FX15: 0 | FY15: 0 | GJ15: 0 | GK15: 0 | HH15: 13481.66402
B16: ∑ variabilní mzdové N 122 | H16: 2.934648815 | I16: 3312.778315 | Y16: =SUM('Dveře V1'!AF3:AF7)/5 -> 95.41 | AA16: 0 | AB16: 0 | BO16: 0 | BP16: 0 | CY16: 0 | CZ16: 0 | ED16: 0 | EE16: 0 | FD16: 0 | FE16: 0 | FX16: 0 | FY16: 0 | GJ16: 0 | GK16: 0 | HH16: 3312.778315
B17: ∑ přímý materiál 130 | H17: =I17/$I$4 -> 0 | I17: =SUMPRODUCT(J17:Y17,$J$4:$Y$4) -> 0 | AA17: =AB17/$AB$4 -> 0 | AB17: =SUMPRODUCT(AC17:BM17,$AC$4:$BM$4) -> 0 | BO17: =BP17/$BP$4 -> 0 | BP17: =SUMPRODUCT(BQ17:CW17,$BQ$4:$CW$4) -> 0 | CY17: =CZ17/$CZ$4 -> 0 | CZ17: =SUMPRODUCT(DA17:EB17,$DA$4:$EB$4) -> 0 | ED17: =EE17/$EE$4 -> 0 | EE17: =SUMPRODUCT(EF17:FB17,$EF$4:$FB$4) -> 0 | FD17: =FE17/$FE$4 -> 0 | FE17: =SUMPRODUCT(FF17:FV17,$FF$4:$FV$4) -> 0 | FX17: =FY17/$FY$4 -> 805.9635686 | FY17: =SUMPRODUCT(FZ17:GH17,$FZ$4:$GH$4) -> 14153929.21 | FZ17: =TRANSPOSE('Zárubně V1'!G84:G92) -> 718.697966 | GA17: 768.934064 | GB17: 627.8551594 | GC17: -100 | GD17: 46 | GE17: 96 | GF17: 247.2 | GG17: 383.3 | GH17: 1015 | GJ17: =GK17/$GK$4 -> 871.4295654 | GK17: =SUMPRODUCT(GL17:GZ17,$GL$4:$GZ$4) -> 3250449.707 | GL17: =TRANSPOSE('Zárubně V1'!G95:G109) -> 718.697966 | GM17: 2467.866444 | GN17: 2467.866444 | GO17: 967.7916798 | GP17: 936.408 | GQ17: 936.408 | GR17: 834.80607 | GS17: 214.05 | GT17: 280.17 | GU17: -100 | GV17: 46 | GW17: 96 | GX17: 247.2 | GY17: 383.3 | GZ17: 1015 | HH17: 17404378.92
B18: ∑ variabilní mzdové N 130 | H18: =I18/$I$4 -> 0 | I18: =SUMPRODUCT(J18:Y18,$J$4:$Y$4) -> 0 | AA18: =AB18/$AB$4 -> 0 | AB18: =SUMPRODUCT(AC18:BM18,$AC$4:$BM$4) -> 0 | BO18: =BP18/$BP$4 -> 0 | BP18: =SUMPRODUCT(BQ18:CW18,$BQ$4:$CW$4) -> 0 | CY18: =CZ18/$CZ$4 -> 0 | CZ18: =SUMPRODUCT(DA18:EB18,$DA$4:$EB$4) -> 0 | ED18: =EE18/$EE$4 -> 0 | EE18: =SUMPRODUCT(EF18:FB18,$EF$4:$FB$4) -> 0 | FD18: =FE18/$FE$4 -> 0 | FE18: =SUMPRODUCT(FF18:FV18,$FF$4:$FV$4) -> 0 | FX18: =FY18/$FY$4 -> 306.3147643 | FY18: =SUMPRODUCT(FZ18:GH18,$FZ$4:$GH$4) -> 5379346.733 | FZ18: =TRANSPOSE('Zárubně V1'!F84:F92) -> 283.9674 | GA18: 372.8496 | GB18: 64.25166 | GC18: 0 | GD18: 0 | GE18: 0 | GF18: 66.54 | GG18: 95.4 | GH18: 300 | GJ18: =GK18/$GK$4 -> 335.9497968 | GK18: 1253099.461 | GL18: =TRANSPOSE('Zárubně V1'!F95:F109) -> 283.9674 | GM18: 115.1316 | GN18: 115.1316 | GO18: 290.46122 | GP18: 434.4 | GQ18: 434.4 | GR18: 308.373 | GS18: 157.2 | GT18: 195.2 | GU18: 0 | GV18: 0 | GW18: 0 | GX18: 66.54 | GY18: 95.4 | GZ18: 300 | HH18: 6632446.194
B19: ∑ přímý materiál 131 | H19: 799.2395024 | I19: 902221.5123 | J19: =TRANSPOSE('Dveře V1'!G3:G7) -> 409 | K19: 524 | L19: 734 | M19: 734 | N19: 409 | O19: =TRANSPOSE('Dveře V1'!G8:G11) -> 1092.5 | P19: 930 | Q19: 834.75 | R19: 739.5 | S19: ='Dveře V1'!G140 -> 183.7 | T19: ='Dveře V1'!G141 -> 367.4 | U19: ='Dveře V1'!G143 -> 46 | V19: ='Dveře V1'!G144 -> 365 | Y19: ='Dveře V1'!G142 -> 983 | AA19: 550.1010471 | AB19: 449696.604 | AC19: =TRANSPOSE('Dveře V1'!G56:G85) -> 446.3 | AD19: 483.3 | AE19: 483.3 | AF19: 446.3 | AG19: 483.3 | AH19: 483.3 | AI19: 483.3 | AJ19: 483.3 | AK19: 483.3 | AL19: 483.3 | AM19: 446.3 | AN19: 483.3 | AO19: 483.3 | AP19: 446.3 | AQ19: 483.3 | AR19: 483.3 | AS19: 483.3 | AT19: 483.3 | AU19: 483.3 | AV19: 483.3 | AW19: 446.3 | AX19: 483.3 | AY19: 483.3 | AZ19: 446.3 | BA19: 483.3 | BB19: 483.3 | BC19: 483.3 | BD19: 483.3 | BE19: 483.3 | BF19: 483.3 | BG19: ='Dveře V1'!G140 -> 183.7 | BH19: ='Dveře V1'!G141 -> 367.4 | BI19: ='Dveře V1'!G145 -> -20 | BJ19: ='Dveře V1'!G143 -> 46 | BK19: ='Dveře V1'!G144 -> 365 | BO19: 574.8241072 | BP19: 4078474.761 | BQ19: =TRANSPOSE('Dveře V1'!G29:G52) -> 483.3 | BR19: 483.3 | BS19: 483.3 | BT19: 483.3 | BU19: 483.3 | BV19: 483.3 | BW19: 483.3 | BX19: 483.3 | BY19: 483.3 | BZ19: 483.3 | CA19: 483.3 | CB19: 483.3 | CC19: 483.3 | CD19: 483.3 | CE19: 483.3 | CF19: 483.3 | CG19: 483.3 | CH19: 483.3 | CI19: 483.3 | CJ19: 483.3 | CK19: 483.3 | CL19: 483.3 | CM19: 483.3 | CN19: 630 | CO19: ='Dveře V1'!G140 -> 183.7 | CP19: ='Dveře V1'!G141 -> 367.4 | CQ19: ='Dveře V1'!G145 -> -20 | CR19: ='Dveře V1'!G143 -> 46 | CS19: ='Dveře V1'!G144 -> 365 | CW19: ='Dveře V1'!G142 -> 983 | CY19: 777.3172535 | CZ19: 590527.9175 | DA19: =TRANSPOSE('Dveře V1'!G112:G134) -> 630 | DB19: 630 | DC19: 630 | DD19: 630 | DE19: 630 | DF19: 630 | DG19: 630 | DH19: 630 | DI19: 630 | DJ19: 630 | DK19: 630 | DL19: 630 | DM19: 630 | DN19: 630 | DO19: 630 | DP19: 630 | DQ19: 630 | DR19: 630 | DS19: 630 | DT19: 630 | DU19: 630 | DV19: 630 | DW19: 630 | DX19: ='Dveře V1'!G141 -> 367.4 | DY19: ='Dveře V1'!G143 -> 46 | DZ19: ='Dveře V1'!G144 -> 365 | EB19: ='Dveře V1'!G142 -> 983 | ED19: 402.7374935 | EE19: 2555731.86 | EF19: =TRANSPOSE('Dveře V1'!G89:G108) -> 483.3 | EG19: 483.3 | EH19: 483.3 | EI19: 357 | EJ19: 357 | EK19: 357 | EL19: 357 | EM19: 357 | EN19: 357 | EO19: 357 | EP19: 357 | EQ19: 384 | ER19: 384 | ES19: 384 | ET19: 357 | EU19: 357 | EV19: 357 | EW19: 446.3 | EX19: 483.3 | EY19: 483.3 | EZ19: ='Dveře V1'!G140 -> 183.7 | FA19: ='Dveře V1'!G141 -> 367.4 | FD19: 712.7555272 | FE19: =SUMPRODUCT(FF19:FV19,$FF$4:$FV$4) -> 12354141.66 | FF19: =TRANSPOSE('Dveře V1'!G18:G25) -> 446.3 | FG19: 994 | FH19: 1057 | FI19: 1245 | FJ19: 889 | FK19: 1156 | FL19: 994 | FM19: 3114 | FN19: ='Dveře V1'!G140 -> 183.7 | FO19: ='Dveře V1'!G141 -> 367.4 | FP19: ='Dveře V1'!G145 -> -20 | FQ19: ='Dveře V1'!G143 -> 46 | FR19: ='Dveře V1'!G144 -> 365 | FV19: ='Dveře V1'!G142 -> 983 | FX19: 0 | FY19: 0 | GJ19: 0 | GK19: 0 | HH19: 20930794.31
B20: ∑ variabilní mzdové N 131 | H20: 92.34543318 | I20: 104244.1422 | J20: =TRANSPOSE('Dveře V1'!C3:C7) -> 61.238 | K20: 50.518 | L20: 77.318 | M20: 77.318 | N20: 105.257 | O20: =TRANSPOSE('Dveře V1'!C8:C11) -> 153.095 | P20: 122.476 | Q20: 107.1665 | R20: 91.857 | S20: ='Dveře V1'!C140 -> 30.82 | T20: ='Dveře V1'!C141 -> 61.64 | Y20: ='Dveře V1'!C142 -> 0 | AA20: 44.09336649 | AB20: 36045.44524 | AC20: =TRANSPOSE('Dveře V1'!C56:C85) -> 35.778 | AD20: 41.138 | AE20: 41.138 | AF20: 35.778 | AG20: 41.138 | AH20: 41.138 | AI20: 41.138 | AJ20: 41.138 | AK20: 41.138 | AL20: 41.138 | AM20: 35.778 | AN20: 41.138 | AO20: 41.138 | AP20: 35.778 | AQ20: 41.138 | AR20: 41.138 | AS20: 41.138 | AT20: 41.138 | AU20: 41.138 | AV20: 41.138 | AW20: 35.778 | AX20: 41.138 | AY20: 41.138 | AZ20: 35.778 | BA20: 41.138 | BB20: 41.138 | BC20: 41.138 | BD20: 41.138 | BE20: 41.138 | BF20: 41.138 | BG20: ='Dveře V1'!C140 -> 30.82 | BH20: ='Dveře V1'!C141 -> 61.64 | BO20: 47.69007661 | BP20: 338369.2009 | BQ20: =TRANSPOSE('Dveře V1'!C29:C52) -> 41.138 | BR20: 41.138 | BS20: 41.138 | BT20: 41.138 | BU20: 41.138 | BV20: 41.138 | BW20: 41.138 | BX20: 41.138 | BY20: 41.138 | BZ20: 41.138 | CA20: 41.138 | CB20: 41.138 | CC20: 41.138 | CD20: 41.138 | CE20: 41.138 | CF20: 41.138 | CG20: 41.138 | CH20: 41.138 | CI20: 41.138 | CJ20: 41.138 | CK20: 41.138 | CL20: 41.138 | CM20: 41.138 | CN20: 66.598 | CO20: ='Dveře V1'!C140 -> 30.82 | CP20: ='Dveře V1'!C141 -> 61.64 | CW20: ='Dveře V1'!C142 -> 0 | CY20: 67.20571831 | CZ20: 51056.1842 | DA20: =TRANSPOSE('Dveře V1'!C112:C134) -> 66.598 | DB20: 66.598 | DC20: 66.598 | DD20: 66.598 | DE20: 66.598 | DF20: 66.598 | DG20: 66.598 | DH20: 66.598 | DI20: 66.598 | DJ20: 66.598 | DK20: 66.598 | DL20: 66.598 | DM20: 66.598 | DN20: 66.598 | DO20: 66.598 | DP20: 66.598 | DQ20: 66.598 | DR20: 66.598 | DS20: 66.598 | DT20: 66.598 | DU20: 66.598 | DV20: 66.598 | DW20: 66.598 | DX20: ='Dveře V1'!C141 -> 61.64 | EB20: ='Dveře V1'!C142 -> 0 | ED20: 14.63647461 | EE20: 92881.6042 | EF20: =TRANSPOSE('Dveře V1'!C89:C108) -> 41.138 | EG20: 41.138 | EH20: 41.138 | EI20: 0 | EJ20: 0 | EK20: 0 | EL20: 0 | EM20: 0 | EN20: 0 | EO20: 0 | EP20: 0 | EQ20: 0 | ER20: 0 | ES20: 0 | ET20: 0 | EU20: 0 | EV20: 0 | EW20: 35.778 | EX20: 41.138 | EY20: 41.138 | EZ20: ='Dveře V1'!C140 -> 30.82 | FA20: ='Dveře V1'!C141 -> 61.64 | FD20: 56.18046163 | FE20: =SUMPRODUCT(FF20:FV20,$FF$4:$FV$4) -> 973772.0089 | FF20: =TRANSPOSE('Dveře V1'!C18:C25) -> 35.778 | FG20: 50.518 | FH20: 116.714 | FI20: 229.274 | FJ20: 94.738 | FK20: 94.738 | FL20: 50.518 | FM20: 0 | FN20: ='Dveře V1'!C140 -> 30.82 | FO20: ='Dveře V1'!C141 -> 61.64 | FV20: ='Dveře V1'!C142 -> 0 | FX20: 0 | FY20: 0 | GJ20: 0 | GK20: 0 | HH20: 1596368.586
B21: ∑ variabilní mzdové N 310 | H21: 6.7 | I21: 7563.295 | J21: =TRANSPOSE('Dveře V1'!AH3:AH7) -> 6.7 | K21: 6.7 | L21: 6.7 | M21: 6.7 | N21: 6.7 | O21: =TRANSPOSE('Dveře V1'!AH8:AH11) -> 6.7 | P21: 6.7 | Q21: 6.7 | R21: 6.7 | AA21: 6.7 | AB21: 5477.116 | AC21: =TRANSPOSE('Dveře V1'!AH56:AH85) -> 6.7 | AD21: 6.7 | AE21: 6.7 | AF21: 6.7 | AG21: 6.7 | AH21: 6.7 | AI21: 6.7 | AJ21: 6.7 | AK21: 6.7 | AL21: 6.7 | AM21: 6.7 | AN21: 6.7 | AO21: 6.7 | AP21: 6.7 | AQ21: 6.7 | AR21: 6.7 | AS21: 6.7 | AT21: 6.7 | AU21: 6.7 | AV21: 6.7 | AW21: 6.7 | AX21: 6.7 | AY21: 6.7 | AZ21: 6.7 | BA21: 6.7 | BB21: 6.7 | BC21: 6.7 | BD21: 6.7 | BE21: 6.7 | BF21: 6.7 | BO21: 6.7 | BP21: 47537.639 | BQ21: =TRANSPOSE('Dveře V1'!AH29:AH52) -> 6.7 | BR21: 6.7 | BS21: 6.7 | BT21: 6.7 | BU21: 6.7 | BV21: 6.7 | BW21: 6.7 | BX21: 6.7 | BY21: 6.7 | BZ21: 6.7 | CA21: 6.7 | CB21: 6.7 | CC21: 6.7 | CD21: 6.7 | CE21: 6.7 | CF21: 6.7 | CG21: 6.7 | CH21: 6.7 | CI21: 6.7 | CJ21: 6.7 | CK21: 6.7 | CL21: 6.7 | CM21: 6.7 | CN21: 6.7 | CY21: 6.7 | CZ21: 5089.99 | DA21: =TRANSPOSE('Dveře V1'!AH112:AH134) -> 6.7 | DB21: 6.7 | DC21: 6.7 | DD21: 6.7 | DE21: 6.7 | DF21: 6.7 | DG21: 6.7 | DH21: 6.7 | DI21: 6.7 | DJ21: 6.7 | DK21: 6.7 | DL21: 6.7 | DM21: 6.7 | DN21: 6.7 | DO21: 6.7 | DP21: 6.7 | DQ21: 6.7 | DR21: 6.7 | DS21: 6.7 | DT21: 6.7 | DU21: 6.7 | DV21: 6.7 | DW21: 6.7 | ED21: 6.7 | EE21: 42517.53 | EF21: =TRANSPOSE('Dveře V1'!AH89:AH108) -> 6.7 | EG21: 6.7 | EH21: 6.7 | EI21: 6.7 | EJ21: 6.7 | EK21: 6.7 | EL21: 6.7 | EM21: 6.7 | EN21: 6.7 | EO21: 6.7 | EP21: 6.7 | EQ21: 6.7 | ER21: 6.7 | ES21: 6.7 | ET21: 6.7 | EU21: 6.7 | EV21: 6.7 | EW21: 6.7 | EX21: 6.7 | EY21: 6.7 | FD21: 6.7 | FE21: 116130.631 | FF21: =TRANSPOSE('Dveře V1'!AH18:AH25) -> 6.7 | FG21: 6.7 | FH21: 6.7 | FI21: 6.7 | FJ21: 6.7 | FK21: 6.7 | FL21: 6.7 | FM21: 6.7 | FX21: 7.8 | FY21: 136979.7 | FZ21: =TRANSPOSE('Zárubně V1'!H84:H92) -> 7.8 | GA21: 7.8 | GB21: 0 | GC21: 0 | GD21: 0 | GE21: 0 | GF21: 0 | GG21: 0 | GH21: 0 | GJ21: 7.8 | GK21: 29094.156 | GL21: =TRANSPOSE('Zárubně V1'!H95:H109) -> 7.8 | GM21: 7.8 | GN21: 7.8 | GO21: 7.8 | GP21: 7.8 | GQ21: 7.8 | GR21: 7.8 | GS21: 7.8 | GT21: 7.8 | GU21: 0 | GV21: 0 | GW21: 0 | GX21: 0 | GY21: 0 | GZ21: 0 | HE21: =HE4*4 -> 4 | HF21: =HF4*HE21 -> 10285.6 | HH21: 400675.657
B22: ostatní přímé N | H22: 61.17251185 | I22: 69054.59 | J22: ='Dveře V1'!AJ3+'Dveře V1'!AK3 -> 55.4 | K22: ='Dveře V1'!AJ4+'Dveře V1'!AK4 -> 55.4 | L22: ='Dveře V1'!AJ5+'Dveře V1'!AK5 -> 55.4 | M22: ='Dveře V1'!AJ6+'Dveře V1'!AK6 -> 55.4 | N22: ='Dveře V1'!AJ7+'Dveře V1'!AK7 -> 55.4 | O22: ='Dveře V1'!AJ8+'Dveře V1'!AK8 -> 70.4 | P22: ='Dveře V1'!AJ9+'Dveře V1'!AK9 -> 70.4 | Q22: ='Dveře V1'!AJ10+'Dveře V1'!AK10 -> 70.4 | R22: ='Dveře V1'!AJ11+'Dveře V1'!AK11 -> 70.4 | AA22: 86.0524 | AB22: 70346.11595 | AC22: =TRANSPOSE('Dveře V1'!AJ56:AJ85) -> 25.4 | AD22: 25.4 | AE22: 25.4 | AF22: 25.4 | AG22: 25.4 | AH22: 221.1402 | AI22: 25.4 | AJ22: 25.4 | AK22: 25.4 | AL22: 25.4 | AM22: 25.4 | AN22: 191.6602 | AO22: 221.1402 | AP22: 25.4 | AQ22: 191.6602 | AR22: 221.1402 | AS22: 269.9564 | AT22: 191.6602 | AU22: 191.6602 | AV22: 269.9564 | AW22: 25.4 | AX22: 25.4 | AY22: 221.1402 | AZ22: 25.4 | BA22: 25.4 | BB22: 221.1402 | BC22: 191.6602 | BD22: 221.1402 | BE22: 25.4 | BF22: 191.6602 | BO22: 25.4 | BP22: 180217.318 | BQ22: =TRANSPOSE('Dveře V1'!AJ29:AJ52) -> 25.4 | BR22: 25.4 | BS22: 25.4 | BT22: 25.4 | BU22: 25.4 | BV22: 25.4 | BW22: 25.4 | BX22: 25.4 | BY22: 25.4 | BZ22: 25.4 | CA22: 25.4 | CB22: 25.4 | CC22: 25.4 | CD22: 25.4 | CE22: 25.4 | CF22: 25.4 | CG22: 25.4 | CH22: 25.4 | CI22: 25.4 | CJ22: 25.4 | CK22: 25.4 | CL22: 25.4 | CM22: 25.4 | CN22: 25.4 | CY22: 25.4 | CZ22: 19296.38 | DA22: =TRANSPOSE('Dveře V1'!AJ112:AJ134) -> 25.4 | DB22: 25.4 | DC22: 25.4 | DD22: 25.4 | DE22: 25.4 | DF22: 25.4 | DG22: 25.4 | DH22: 25.4 | DI22: 25.4 | DJ22: 25.4 | DK22: 25.4 | DL22: 25.4 | DM22: 25.4 | DN22: 25.4 | DO22: 25.4 | DP22: 25.4 | DQ22: 25.4 | DR22: 25.4 | DS22: 25.4 | DT22: 25.4 | DU22: 25.4 | DV22: 25.4 | DW22: 25.4 | ED22: 25.4 | EE22: 161185.86 | EF22: =TRANSPOSE('Dveře V1'!AJ89:AJ108) -> 25.4 | EG22: 25.4 | EH22: 25.4 | EI22: 25.4 | EJ22: 25.4 | EK22: 25.4 | EL22: 25.4 | EM22: 25.4 | EN22: 25.4 | EO22: 25.4 | EP22: 25.4 | EQ22: 25.4 | ER22: 25.4 | ES22: 25.4 | ET22: 25.4 | EU22: 25.4 | EV22: 25.4 | EW22: 25.4 | EX22: 25.4 | EY22: 25.4 | FD22: 25.2400642 | FE22: 437484.266 | FF22: =TRANSPOSE('Dveře V1'!AJ18:AJ25) -> 25.4 | FG22: 25.4 | FH22: 25.4 | FI22: 25.4 | FJ22: 25.4 | FK22: 25.4 | FL22: 25.4 | FM22: 0 | FX22: 0 | FY22: 0 | GJ22: 0 | GK22: 0 | HE22: =HE5*0.6 -> 1780.564429 | HF22: =HF4*HE22 -> 4578543.373 | HH22: 5516127.903
B23: celkové přímé variabilní N | H23: =SUM(H7:H22) -> 2456.583346 | I23: 2773114.11 | J23: 2621.29848 | K23: 1460.97008 | L23: 2255.69528 | M23: 2255.69528 | N23: 1645.477 | O23: 2498.565368 | P23: 2277.939856 | Q23: 2069.218324 | R23: 2031.700552 | S23: 263.966 | T23: 527.932 | U23: 46 | V23: 365 | W23: 483.69 | X23: 613.69 | Y23: 1798.69 | AA23: =SUM(AA7:AA22) -> 1767.779614 | AB23: 1445124.479 | AC23: 1442.9682 | AD23: 1392.7752 | AE23: 1392.7752 | AF23: 1442.9682 | AG23: 1392.7752 | AH23: 1861.6304 | AI23: 1507.516 | AJ23: 1392.7752 | AK23: 1392.7752 | AL23: 1507.516 | AM23: 1442.9682 | AN23: 1893.4271 | AO23: 1861.6304 | AP23: 1442.9682 | AQ23: 1893.4271 | AR23: 1861.6304 | AS23: 2146.4628 | AT23: 1893.4271 | AU23: 1893.4271 | AV23: 2146.4628 | AW23: 1442.9682 | AX23: 1507.516 | AY23: 1861.6304 | AZ23: 1442.9682 | BA23: 1507.516 | BB23: 1861.6304 | BC23: 1893.4271 | BD23: 1861.6304 | BE23: 1392.7752 | BF23: 1893.4271 | BG23: 263.966 | BH23: 527.932 | BI23: -20 | BJ23: 46 | BK23: 365 | BL23: 354.2334667 | BM23: 618.9001333 | BO23: =SUM(BO7:BO22) -> 1564.642975 | BP23: 11101407.9 | BQ23: 1196.7692 | BR23: 1432.3022 | BS23: 1247.0894 | BT23: 1344.5902 | BU23: 1104.2494 | BV23: 1265.5902 | BW23: 1171.5072 | BX23: 1332.848 | BY23: 1208.4422 | BZ23: 1208.4422 | CA23: 1435.6022 | CB23: 1307.59195 | CC23: 1502.9762 | CD23: 1478.177 | CE23: 1678.954 | CF23: 1560.01525 | CG23: 1634.534 | CH23: 1696.509 | CI23: 1802.954 | CJ23: 1818.39675 | CK23: 1975.374 | CL23: 1440.767 | CM23: 1716.794 | CN23: 2685.6608 | CO23: 263.966 | CP23: 527.932 | CQ23: -20 | CR23: 46 | CS23: 365 | CT23: 311.54 | CU23: 475.21 | CV23: 605.21 | CW23: 1315 | CY23: =SUM(CY7:CY22) -> 1650.885767 | CZ23: 1254177.917 | DA23: 1177.712 | DB23: 1830.604841 | DC23: 1830.604841 | DD23: 1270.712 | DE23: 1942.604841 | DF23: 1942.604841 | DG23: 1177.712 | DH23: 1830.604841 | DI23: 1830.604841 | DJ23: 1270.712 | DK23: 1942.604841 | DL23: 1942.604841 | DM23: 1942.604841 | DN23: 1942.604841 | DO23: 1942.604841 | DP23: 1942.604841 | DQ23: 1942.604841 | DR23: 1177.712 | DS23: 1830.604841 | DT23: 1830.604841 | DU23: 1177.712 | DV23: 1942.604841 | DW23: 1177.712 | DX23: 527.932 | DY23: 46 | DZ23: 365 | EA23: 517.61 | EB23: 1315 | ED23: =SUM(ED7:ED22) -> 1171.626724 | EE23: 7435026.03 | EF23: 1916.2084 | EG23: 1916.2084 | EH23: 942.6934 | EI23: 759.248 | EJ23: 1528.6177 | EK23: 1762.6005 | EL23: 759.248 | EM23: 1191.20871 | EN23: 1216.15971 | EO23: 1241.15971 | EP23: 1266.15971 | EQ23: 848.164 | ER23: 1533.4625 | ES23: 1733.4625 | ET23: 759.248 | EU23: 1528.6177 | EV23: 1762.6005 | EW23: 944.5556 | EX23: 1414.3328 | EY23: 1930.5886 | EZ23: 263.966 | FA23: 527.932 | FB23: 133.24 | FD23: =SUM(FD7:FD22) -> 1351.885173 | FE23: 23432131.08 | FF23: 713.392 | FG23: 1642.142 | FH23: 3070.884 | FI23: 3935.09 | FJ23: 3132.522 | FK23: 5493.1016 | FL23: 1642.142 | FM23: 3120.7 | FN23: 263.966 | FO23: 527.932 | FP23: -20 | FQ23: 46 | FR23: 365 | FS23: 333.29 | FT23: 510.5433333 | FU23: 640.5433333 | FV23: 1315 | FX23: =SUM(FX7:FX22) -> 1120.078333 | FY23: =SUM(FY7:FY22) -> 19670255.64 | FZ23: =SUM(FZ7:FZ22) -> 1010.465366 | GA23: =SUM(GA7:GA22) -> 1149.583664 | GB23: 692.1068194 | GC23: -100 | GD23: 46 | GE23: 96 | GF23: 313.74 | GG23: 478.7 | GH23: 1315 | GJ23: =SUM(GJ7:GJ22) -> 1215.179362 | GK23: =SUM(GK7:GK22) -> 4532643.324 | GL23: =SUM(GL7:GL22) -> 1010.465366 | GM23: =SUM(GM7:GM22) -> 2590.798044 | GN23: =SUM(GN7:GN22) -> 2590.798044 | GO23: =SUM(GO7:GO22) -> 1266.0529 | GP23: =SUM(GP7:GP22) -> 1378.608 | GQ23: =SUM(GQ7:GQ22) -> 1378.608 | GR23: =SUM(GR7:GR22) -> 1150.97907 | GS23: =SUM(GS7:GS22) -> 379.05 | GT23: =SUM(GT7:GT22) -> 483.17 | GU23: =SUM(GU7:GU22) -> -100 | GV23: =SUM(GV7:GV22) -> 46 | GW23: =SUM(GW7:GW22) -> 96 | GX23: =SUM(GX7:GX22) -> 313.74 | GY23: =SUM(GY7:GY22) -> 478.7 | GZ23: =SUM(GZ7:GZ22) -> 1315 | HB23: =SUM(HB7:HB22) -> 18798.02149 | HC23: =SUM(HC7:HC22) -> 5447666.628 | HE23: =SUM(HE7:HE22) -> 1784.564429 | HF23: =SUM(HF7:HF22) -> 4588828.973 | HH23: 81680376.08
B24: PÚ1 | H24: =H5-H6-H23 -> 2868.335706 | I24: 3237920.762 | J24: 2378.70152 | K24: 3203.02992 | L24: 2648.30472 | M24: 2648.30472 | N24: 2514.523 | O24: 2693.434632 | P24: 2914.060144 | Q24: 3122.781676 | R24: 3160.299448 | S24: 96.034 | T24: 192.068 | U24: 114 | V24: 155 | W24: -3.69 | X24: 426.31 | Y24: 2729.31 | AA24: =AA5-AA6-AA23 -> 2408.397978 | AB24: 1968817.179 | AC24: 1989.0318 | AD24: 2543.2248 | AE24: 3047.2248 | AF24: 1669.0318 | AG24: 3047.2248 | AH24: 2018.3696 | AI24: 2676.484 | AJ24: 3135.2248 | AK24: 3319.2248 | AL24: 2404.484 | AM24: 2309.0318 | AN24: 2546.5729 | AO24: 3058.3696 | AP24: 2069.0318 | AQ24: 2738.5729 | AR24: 2290.3696 | AS24: 2405.5372 | AT24: 3058.5729 | AU24: 3266.5729 | AV24: 2037.5372 | AW24: 2309.0318 | AX24: 2932.484 | AY24: 3058.3696 | AZ24: 2069.0318 | BA24: 3124.484 | BB24: 2290.3696 | BC24: 2658.5729 | BD24: 3090.3696 | BE24: 3767.2248 | BF24: 2290.5729 | BG24: 96.034 | BH24: 192.068 | BI24: -820 | BJ24: 114 | BK24: 155 | BL24: 125.7665333 | BM24: 573.0998667 | BO24: =BO5-BO6-BO23 -> 2098.879365 | BP24: 13362887.44 | BQ24: 1243.2308 | BR24: 1519.6978 | BS24: 1768.9106 | BT24: 1671.4098 | BU24: 1847.7506 | BV24: 1686.4098 | BW24: 1780.4928 | BX24: 1619.152 | BY24: 2223.5578 | BZ24: 2479.5578 | CA24: 2668.3978 | CB24: 2444.40805 | CC24: 2249.0238 | CD24: 2433.823 | CE24: 2233.046 | CF24: 2551.98475 | CG24: 2477.466 | CH24: 2535.491 | CI24: 2429.046 | CJ24: 2493.60325 | CK24: 2336.626 | CL24: 1671.233 | CM24: 1395.206 | CN24: 1506.3392 | CO24: 96.034 | CP24: 192.068 | CQ24: -820 | CR24: 114 | CS24: 155 | CT24: 168.46 | CU24: 716.79 | CV24: 722.79 | CW24: 3149 | CY24: =CY5-CY6-CY23 -> 3504.891697 | CZ24: 2662666.223 | DA24: 3038.288 | DB24: 3441.395159 | DC24: 3921.395159 | DD24: 2961.288 | DE24: 3329.395159 | DF24: 3809.395159 | DG24: 3294.288 | DH24: 3681.395159 | DI24: 4001.395159 | DJ24: 3201.288 | DK24: 3569.395159 | DL24: 3889.395159 | DM24: 3489.395159 | DN24: 3849.395159 | DO24: 4209.395159 | DP24: 4569.395159 | DQ24: 4929.395159 | DR24: 3214.288 | DS24: 3521.395159 | DT24: 4481.395159 | DU24: 2142.288 | DV24: 1961.395159 | DW24: 2814.288 | DX24: 192.068 | DY24: 114 | DZ24: 155 | EA24: 674.39 | EB24: 3149 | ED24: =ED5-ED6-ED23 -> 1943.3263 | EE24: 12332154.37 | EF24: 3227.7916 | EG24: 3035.7916 | EH24: 3041.3066 | EI24: 832.752 | EJ24: 1103.3823 | EK24: 1189.3995 | EL24: 1552.752 | EM24: 1520.79129 | EN24: 1895.84029 | EO24: 2270.84029 | EP24: 2645.84029 | EQ24: 2255.836 | ER24: 2530.5375 | ES24: 2650.5375 | ET24: 992.752 | EU24: 1183.3823 | EV24: 1269.3995 | EW24: 1687.4444 | EX24: 2497.6672 | EY24: 2269.4114 | EZ24: 96.034 | FA24: 192.068 | FB24: 578.76 | FD24: =FD5-FD6-FD23 -> 1581.629336 | FE24: 27414270.57 | FF24: 1198.608 | FG24: 1629.858 | FH24: 3729.116 | FI24: 4264.91 | FJ24: 8467.478 | FK24: 13354.8984 | FL24: 3629.858 | FM24: 1031.3 | FN24: 96.034 | FO24: 192.068 | FP24: -820 | FQ24: 114 | FR24: 155 | FS24: 146.71 | FT24: 681.4566667 | FU24: 687.4566667 | FV24: 3149 | FX24: =FX5-FX6-FX23 -> 1347.380469 | FY24: =FY5-FY6-FY23 -> 23662022.11 | FZ24: =FZ5-FZ6-FZ23 -> 1269.534634 | GA24: =GA5-GA6-GA23 -> 1466.416336 | GB24: 547.8931806 | GC24: -180 | GD24: 114 | GE24: 184 | GF24: -1.74 | GG24: 545.3 | GH24: 1133 | GJ24: =GJ5-GJ6-GJ23 -> 1248.846811 | GK24: =GK5-GK6-GK23 -> 4658223.582 | GL24: =GL5-GL6-GL23 -> 1269.534634 | GM24: 2865.201956 | GN24: 2865.201956 | GO24: 1453.9471 | GP24: 1253.392 | GQ24: 1253.392 | GR24: 1401.02093 | GS24: 500.95 | GT24: 636.83 | GU24: -180 | GV24: 114 | GW24: 184 | GX24: -1.74 | GY24: 545.3 | GZ24: 1133 | HB24: =HB5-HB6-HB23 -> 3987.459104 | HC24: =HC5-HC6-HC23 -> 1155565.648 | HE24: =HE5-HE6-HE23 -> 589.5214764 | HF24: =HF5-HF6-HF23 -> 1515895.524 | HH24: 91970423.41
B25: =HNS!C7&" "&HNS!D7 -> 111 výroba dveří | D25: =HNS!J7 -> 112.5760417 | F25: =(((HNS!H7*12)/(I4+AB4+BP4+CZ4+EE4+FE4-FM4))/D25)*60 -> 37.97321558 | H25: =H4*$F$25*($D$25/60) -> 71.24790499 | I25: =SUMPRODUCT(J25:R25,$J$4:$R$4) -> 80428.19754 | J25: =$F$25*($D$25/60) -> 71.24790499 | K25: =$F$25*($D$25/60) -> 71.24790499 | L25: 71.24790499 | M25: 71.24790499 | N25: 71.24790499 | O25: 71.24790499 | P25: 71.24790499 | Q25: 71.24790499 | R25: 71.24790499 | AA25: =AA4*$F$25*($D$25/60) -> 71.24790499 | AB25: =SUMPRODUCT(AC25:BF25,$AC$4:$BF$4) -> 58243.73737 | AC25: =$F$25*($D$25/60) -> 71.24790499 | AD25: =$F$25*($D$25/60) -> 71.24790499 | AE25: 71.24790499 | AF25: 71.24790499 | AG25: 71.24790499 | AH25: 71.24790499 | AI25: 71.24790499 | AJ25: 71.24790499 | AK25: 71.24790499 | AL25: 71.24790499 | AM25: 71.24790499 | AN25: 71.24790499 | AO25: 71.24790499 | AP25: 71.24790499 | AQ25: 71.24790499 | AR25: 71.24790499 | AS25: 71.24790499 | AT25: 71.24790499 | AU25: 71.24790499 | AV25: 71.24790499 | AW25: 71.24790499 | AX25: 71.24790499 | AY25: 71.24790499 | AZ25: 71.24790499 | BA25: 71.24790499 | BB25: 71.24790499 | BC25: 71.24790499 | BD25: 71.24790499 | BE25: 71.24790499 | BF25: 71.24790499 | BO25: =BO4*$F$25*($D$25/60) -> 71.24790499 | BP25: =SUMPRODUCT(BQ25:CN25,$BQ$4:$CN$4) -> 505515.998 | BQ25: =$F$25*($D$25/60) -> 71.24790499 | BR25: =$F$25*($D$25/60) -> 71.24790499 | BS25: 71.24790499 | BT25: 71.24790499 | BU25: 71.24790499 | BV25: 71.24790499 | BW25: 71.24790499 | BX25: 71.24790499 | BY25: 71.24790499 | BZ25: 71.24790499 | CA25: 71.24790499 | CB25: 71.24790499 | CC25: 71.24790499 | CD25: 71.24790499 | CE25: 71.24790499 | CF25: 71.24790499 | CG25: 71.24790499 | CH25: 71.24790499 | CI25: 71.24790499 | CJ25: 71.24790499 | CK25: 71.24790499 | CL25: 71.24790499 | CM25: 71.24790499 | CN25: 71.24790499 | CY25: =CY4*$F$25*($D$25/60) -> 71.24790499 | CZ25: =SUMPRODUCT(DA25:DW25,$DA$4:$DW$4) -> 54127.03342 | DA25: =$F$25*($D$25/60) -> 71.24790499 | DB25: =$F$25*($D$25/60) -> 71.24790499 | DC25: 71.24790499 | DD25: 71.24790499 | DE25: 71.24790499 | DF25: 71.24790499 | DG25: 71.24790499 | DH25: 71.24790499 | DI25: 71.24790499 | DJ25: 71.24790499 | DK25: 71.24790499 | DL25: 71.24790499 | DM25: 71.24790499 | DN25: 71.24790499 | DO25: 71.24790499 | DP25: 71.24790499 | DQ25: 71.24790499 | DR25: 71.24790499 | DS25: 71.24790499 | DT25: 71.24790499 | DU25: 71.24790499 | DV25: 71.24790499 | DW25: 71.24790499 | ED25: =ED4*$F$25*($D$25/60) -> 71.24790499 | EE25: =SUMPRODUCT(EF25:EY25,$EF$4:$EY$4) -> 452132.0802 | EF25: =$F$25*($D$25/60) -> 71.24790499 | EG25: =$F$25*($D$25/60) -> 71.24790499 | EH25: 71.24790499 | EI25: 71.24790499 | EJ25: 71.24790499 | EK25: 71.24790499 | EL25: 71.24790499 | EM25: 71.24790499 | EN25: 71.24790499 | EO25: 71.24790499 | EP25: 71.24790499 | EQ25: 71.24790499 | ER25: 71.24790499 | ES25: 71.24790499 | ET25: 71.24790499 | EU25: 71.24790499 | EV25: 71.24790499 | EW25: 71.24790499 | EX25: 71.24790499 | EY25: 71.24790499 | FD25: =FD4*$F$25*($D$25/60) -> 71.24790499 | FE25: =SUMPRODUCT(FF25:FM25,$FF$4:$FM$4) -> 1227158.953 | FF25: =$F$25*($D$25/60) -> 71.24790499 | FG25: =$F$25*($D$25/60) -> 71.24790499 | FH25: 71.24790499 | FI25: 71.24790499 | FJ25: 71.24790499 | FK25: 71.24790499 | FL25: 71.24790499 | HH25: 2377606
B26: =HNS!C8&" "&HNS!D8 -> 113 zasklívání | D26: =HNS!J8 -> 85.44886364 | F26: =(((HNS!H8*12)/(I4+AB4+BP4+CZ4+EE4-EH4-EI4-EL4-EQ4-ET4-EW4+FK4))/D26)*60 -> 35.2400562 | H26: =H4*$F$26*($D$26/60) -> 50.18704594 | I26: =SUMPRODUCT(J26:R26,$J$4:$R$4) -> 56653.64681 | J26: =$F$26*($D$26/60) -> 50.18704594 | K26: =$F$26*($D$26/60) -> 50.18704594 | L26: 50.18704594 | M26: 50.18704594 | N26: 50.18704594 | O26: 50.18704594 | P26: 50.18704594 | Q26: 50.18704594 | R26: 50.18704594 | AA26: =AA4*$F$26*($D$26/60) -> 50.18704594 | AB26: =SUMPRODUCT(AC26:BF26,$AC$4:$BF$4) -> 41026.90632 | AC26: =$F$26*($D$26/60) -> 50.18704594 | AD26: =$F$26*($D$26/60) -> 50.18704594 | AE26: 50.18704594 | AF26: 50.18704594 | AG26: 50.18704594 | AH26: 50.18704594 | AI26: 50.18704594 | AJ26: 50.18704594 | AK26: 50.18704594 | AL26: 50.18704594 | AM26: 50.18704594 | AN26: 50.18704594 | AO26: 50.18704594 | AP26: 50.18704594 | AQ26: 50.18704594 | AR26: 50.18704594 | AS26: 50.18704594 | AT26: 50.18704594 | AU26: 50.18704594 | AV26: 50.18704594 | AW26: 50.18704594 | AX26: 50.18704594 | AY26: 50.18704594 | AZ26: 50.18704594 | BA26: 50.18704594 | BB26: 50.18704594 | BC26: 50.18704594 | BD26: 50.18704594 | BE26: 50.18704594 | BF26: 50.18704594 | BO26: =BO4*$F$26*($D$26/60) -> 50.18704594 | BP26: =SUMPRODUCT(BQ26:CN26,$BQ$4:$CN$4) -> 356085.6228 | BQ26: =$F$26*($D$26/60) -> 50.18704594 | BR26: =$F$26*($D$26/60) -> 50.18704594 | BS26: 50.18704594 | BT26: 50.18704594 | BU26: 50.18704594 | BV26: 50.18704594 | BW26: 50.18704594 | BX26: 50.18704594 | BY26: 50.18704594 | BZ26: 50.18704594 | CA26: 50.18704594 | CB26: 50.18704594 | CC26: 50.18704594 | CD26: 50.18704594 | CE26: 50.18704594 | CF26: 50.18704594 | CG26: 50.18704594 | CH26: 50.18704594 | CI26: 50.18704594 | CJ26: 50.18704594 | CK26: 50.18704594 | CL26: 50.18704594 | CM26: 50.18704594 | CN26: 50.18704594 | CY26: =CY4*$F$26*($D$26/60) -> 50.18704594 | CZ26: =SUMPRODUCT(DA26:DW26,$DA$4:$DW$4) -> 38127.0988 | DA26: =$F$26*($D$26/60) -> 50.18704594 | DB26: =$F$26*($D$26/60) -> 50.18704594 | DC26: 50.18704594 | DD26: 50.18704594 | DE26: 50.18704594 | DF26: 50.18704594 | DG26: 50.18704594 | DH26: 50.18704594 | DI26: 50.18704594 | DJ26: 50.18704594 | DK26: 50.18704594 | DL26: 50.18704594 | DM26: 50.18704594 | DN26: 50.18704594 | DO26: 50.18704594 | DP26: 50.18704594 | DQ26: 50.18704594 | DR26: 50.18704594 | DS26: 50.18704594 | DT26: 50.18704594 | DU26: 50.18704594 | DV26: 50.18704594 | DW26: 50.18704594 | ED26: =ED4*$F$26*($D$26/60) -> 50.18704594 | EE26: =SUMPRODUCT(EF26:EY26,$EF$4:$EY$4) -> 108700.1228 | EF26: =$F$26*($D$26/60) -> 50.18704594 | EG26: =$F$26*($D$26/60) -> 50.18704594 | EJ26: 50.18704594 | EK26: 50.18704594 | EM26: 50.18704594 | EN26: 50.18704594 | EO26: 50.18704594 | EP26: 50.18704594 | ER26: 50.18704594 | ES26: 50.18704594 | EU26: 50.18704594 | EV26: 50.18704594 | EX26: 50.18704594 | EY26: 50.18704594 | FD26: =FD4*$F$26*($D$26/60) -> 50.18704594 | FE26: =SUMPRODUCT(FF26:FM26,$FF$4:$FM$4) -> 966.6025048 | FK26: =$F$26*($D$26/60) -> 50.18704594 | HH26: 601560
B27: =HNS!C9&" "&HNS!D9 -> 114 výroba skříní | D27: =HNS!J9 -> 88.01897727 | F27: =(((HNS!H9*12)/HC4/D27)*60) -> 1821.94617 | HB27: =HB4*$F$27*($D$27/60) -> 2672.763975 | HC27: =$F$27*($D$27/60)*HC4 -> 774567 | HH27: 774567
B28: =HNS!C10&" "&HNS!D10 -> 121 lakovna PU, AC, H20 | D28: =HNS!J10 -> 69.46022727 | F28: =(((HNS!H10*12)/(EE4+W4+X4+BL4+BM4+CT4+CU4+CV4+EA4+FS4+FT4+FU4+GF4+GG4+GX4+GY4))/D28)*60 -> 24.05150014 | H28: =I28/I$4 -> 4.282125237 | I28: =SUMPRODUCT(W28:X28,$W$4:$X$4) -> 4833.877074 | W28: =$F$28*($D$28/60) -> 27.8437111 | X28: =$F$28*($D$28/60) -> 27.8437111 | AA28: =AB28/AB$4 -> 5.84717933 | AB28: =SUMPRODUCT(BL28:BM28,$BL$4:$BM$4) -> 4779.952159 | BL28: =$F$28*($D$28/60) -> 27.8437111 | BM28: =$F$28*($D$28/60) -> 27.8437111 | BO28: =BP28/BP$4 -> 6.960927774 | BP28: =SUMPRODUCT(CT28:CV28,$CT$4:$CV$4) -> 49388.96592 | CT28: =$F$28*($D$28/60) -> 27.8437111 | CU28: =$F$28*($D$28/60) -> 27.8437111 | CV28: =$F$28*($D$28/60) -> 27.8437111 | CY28: =CZ28/CZ$4 -> 1.392185555 | CZ28: =SUMPRODUCT(EA28,$EA$4) -> 1057.643366 | EA28: =$F$28*($D$28/60) -> 27.8437111 | ED28: =EE28/EE$4 -> 27.8437111 | EE28: 176693.4063 | EF28: =$F$28*($D$28/60) -> 27.8437111 | EG28: =$F$28*($D$28/60) -> 27.8437111 | EH28: 27.8437111 | EI28: 27.8437111 | EJ28: 27.8437111 | EK28: 27.8437111 | EL28: 27.8437111 | EM28: 27.8437111 | EN28: 27.8437111 | EO28: 27.8437111 | EP28: 27.8437111 | EQ28: 27.8437111 | ER28: 27.8437111 | ES28: 27.8437111 | ET28: 27.8437111 | EU28: 27.8437111 | EV28: 27.8437111 | EW28: 27.8437111 | EX28: 27.8437111 | EY28: 27.8437111 | FD28: =FE28/FE$4 -> 6.917097005 | FE28: =SUMPRODUCT(FS28:FU28,$FS$4:$FU$4) -> 119893.5582 | FS28: =$F$28*($D$28/60) -> 27.8437111 | FT28: =$F$28*($D$28/60) -> 27.8437111 | FU28: =$F$28*($D$28/60) -> 27.8437111 | FX28: =FY28/$FY$4 -> 6.146744937 | FY28: =SUMPRODUCT(GF28:GG28,$GF$4:$GG$4) -> 107946.0612 | GF28: =$F$28*($D$28/60) -> 27.8437111 | GG28: =$F$28*($D$28/60) -> 27.8437111 | GJ28: =GK28/$FY$4 -> 1.389775123 | GK28: =SUMPRODUCT(GX28:GY28,$GX$4:$GY$4) -> 24406.53583 | GX28: =$F$28*($D$28/60) -> 27.8437111 | GY28: =$F$28*($D$28/60) -> 27.8437111 | HH28: 489000
B29: =HNS!C11&" "&HNS!D11 -> 122 lakovna dýha | D29: =HNS!J11 -> 27.27272727 | F29: =(((HNS!H11*12)/(Y4+CW4+EB4+FV4+GH4+GZ4))/D29)*60 -> 301.6430979 | H29: =I29/I$4 -> 4.217285019 | I29: =SUMPRODUCT(Y29,$Y$4) -> 4760.682193 | Y29: =$F$29*($D$29/60) -> 137.1104991 | BO29: =BP29/BP$4 -> 1.371104991 | BP29: =SUMPRODUCT(CW29,$CW$4) -> 9728.222997 | CW29: =$F$29*($D$29/60) -> 137.1104991 | CY29: =CZ29/CZ$4 -> 6.855524953 | CZ29: =SUMPRODUCT(EB29,$EB$4) -> 5208.142307 | EB29: =$F$29*($D$29/60) -> 137.1104991 | FD29: =FE29/FE$4 -> 1.362471574 | FE29: =SUMPRODUCT(FV29,$FV$4) -> 23615.62443 | FV29: =$F$29*($D$29/60) -> 137.1104991 | FX29: =FY29/$FY$4 -> 0.2284810637 | FY29: =SUMPRODUCT(GH29,$GH$4) -> 4012.4702 | GH29: =$F$29*($D$29/60) -> 137.1104991 | GJ29: =GK29/$FY$4 -> 0.03842825934 | GK29: =SUMPRODUCT(GZ29,$GZ$4) -> 674.8578764 | GZ29: =$F$29*($D$29/60) -> 137.1104991 | HH29: 48000
B30: =HNS!C12&" "&HNS!D12 -> 130 výroba zárubní | D30: =HNS!J12 -> 72.40329545 | F30: =(((HNS!H12*12)/(FY4+GK4))/D30)*60 -> 74.3958158 | FX30: =FX4*$F$30*($D$30/60) -> 89.7750372 | FY30: =SUMPRODUCT(FZ30:GA30,$FZ$4:$GA$4) -> 1576584.316 | FZ30: =$F$30*($D$30/60) -> 89.7750372 | GA30: =$F$30*($D$30/60) -> 89.7750372 | GJ30: =GJ4*$F$30*($D$30/60) -> 89.7750372 | GK30: =SUMPRODUCT(GL30:GT30,$GL$4:$GT$4) -> 334862.6842 | GL30: =$F$30*($D$30/60) -> 89.7750372 | GM30: =$F$30*($D$30/60) -> 89.7750372 | GN30: =$F$30*($D$30/60) -> 89.7750372 | GO30: 89.7750372 | GP30: 89.7750372 | GQ30: 89.7750372 | GR30: 89.7750372 | GS30: 89.7750372 | GT30: 89.7750372 | HH30: 1911447
B31: =HNS!C13&" "&HNS!D13 -> 131 lisovna | D31: =HNS!J13 -> 98.01136364 | F31: =(((HNS!H13*12)/(I4+AB4+BP4+CZ4+EF4+EG4+EH4+EW4+EX4+EY4+FE4-FM4))/D31)*60 -> 14.42677642 | H31: =H4*$F$31*($D$31/60) -> 23.56646717 | I31: =SUMPRODUCT(J31:R31,$J$4:$R$4) -> 26603.00647 | J31: =$F$31*($D$31/60) -> 23.56646717 | K31: =$F$31*($D$31/60) -> 23.56646717 | L31: 23.56646717 | M31: 23.56646717 | N31: 23.56646717 | O31: 23.56646717 | P31: 23.56646717 | Q31: 23.56646717 | R31: 23.56646717 | AA31: =AA4*$F$31*($D$31/60) -> 23.56646717 | AB31: =SUMPRODUCT(AC31:BF31,$AC$4:$BF$4) -> 19265.11558 | AC31: =$F$31*($D$31/60) -> 23.56646717 | AD31: =$F$31*($D$31/60) -> 23.56646717 | AE31: 23.56646717 | AF31: 23.56646717 | AG31: 23.56646717 | AH31: 23.56646717 | AI31: 23.56646717 | AJ31: 23.56646717 | AK31: 23.56646717 | AL31: 23.56646717 | AM31: 23.56646717 | AN31: 23.56646717 | AO31: 23.56646717 | AP31: 23.56646717 | AQ31: 23.56646717 | AR31: 23.56646717 | AS31: 23.56646717 | AT31: 23.56646717 | AU31: 23.56646717 | AV31: 23.56646717 | AW31: 23.56646717 | AX31: 23.56646717 | AY31: 23.56646717 | AZ31: 23.56646717 | BA31: 23.56646717 | BB31: 23.56646717 | BC31: 23.56646717 | BD31: 23.56646717 | BE31: 23.56646717 | BF31: 23.56646717 | BO31: =BO4*$F$31*($D$31/60) -> 23.56646717 | BP31: =SUMPRODUCT(BQ31:CN31,$BQ$4:$CN$4) -> 167208.0909 | BQ31: =$F$31*($D$31/60) -> 23.56646717 | BR31: =$F$31*($D$31/60) -> 23.56646717 | BS31: 23.56646717 | BT31: 23.56646717 | BU31: 23.56646717 | BV31: 23.56646717 | BW31: 23.56646717 | BX31: 23.56646717 | BY31: 23.56646717 | BZ31: 23.56646717 | CA31: 23.56646717 | CB31: 23.56646717 | CC31: 23.56646717 | CD31: 23.56646717 | CE31: 23.56646717 | CF31: 23.56646717 | CG31: 23.56646717 | CH31: 23.56646717 | CI31: 23.56646717 | CJ31: 23.56646717 | CK31: 23.56646717 | CL31: 23.56646717 | CM31: 23.56646717 | CN31: 23.56646717 | CY31: =CY4*$F$31*($D$31/60) -> 23.56646717 | CZ31: =SUMPRODUCT(DA31:DW31,$DA$4:$DW$4) -> 17903.44511 | DA31: =$F$31*($D$31/60) -> 23.56646717 | DB31: =$F$31*($D$31/60) -> 23.56646717 | DC31: 23.56646717 | DD31: 23.56646717 | DE31: 23.56646717 | DF31: 23.56646717 | DG31: 23.56646717 | DH31: 23.56646717 | DI31: 23.56646717 | DJ31: 23.56646717 | DK31: 23.56646717 | DL31: 23.56646717 | DM31: 23.56646717 | DN31: 23.56646717 | DO31: 23.56646717 | DP31: 23.56646717 | DQ31: 23.56646717 | DR31: 23.56646717 | DS31: 23.56646717 | DT31: 23.56646717 | DU31: 23.56646717 | DV31: 23.56646717 | DW31: 23.56646717 | ED31: =ED4*$F$31*($D$31/60) -> 23.56646717 | EE31: 149550.444 | EF31: =$F$31*($D$31/60) -> 23.56646717 | EG31: =$F$31*($D$31/60) -> 23.56646717 | EH31: 23.56646717 | EI31: 23.56646717 | EJ31: 23.56646717 | EK31: 23.56646717 | EL31: 23.56646717 | EM31: 23.56646717 | EN31: 23.56646717 | EO31: 23.56646717 | EP31: 23.56646717 | EQ31: 23.56646717 | ER31: 23.56646717 | ES31: 23.56646717 | ET31: 23.56646717 | EU31: 23.56646717 | EV31: 23.56646717 | EW31: 23.56646717 | EX31: 23.56646717 | EY31: 23.56646717 | FD31: =FD4*$F$31*($D$31/60) -> 23.56646717 | FE31: =SUMPRODUCT(FF31:FM31,$FF$4:$FM$4) -> 405903.8816 | FF31: =$F$31*($D$31/60) -> 23.56646717 | FG31: =$F$31*($D$31/60) -> 23.56646717 | FH31: 23.56646717 | FI31: 23.56646717 | FJ31: 23.56646717 | FK31: 23.56646717 | FL31: 23.56646717 | HH31: 786433.9837
B32: celkové nepřímé N na výr. | H32: =SUM(H25:H31) -> 153.5008284 | I32: =SUM(I25:I31) -> 173279.4101 | J32: 145.0014181 | K32: 145.0014181 | L32: 145.0014181 | M32: 145.0014181 | N32: 145.0014181 | O32: 145.0014181 | P32: 145.0014181 | Q32: 145.0014181 | R32: 145.0014181 | S32: 0 | T32: 0 | U32: 0 | V32: 0 | W32: 27.8437111 | X32: 27.8437111 | Y32: 137.1104991 | AA32: =SUM(AA25:AA31) -> 150.8485974 | AB32: =SUM(AB25:AB31) -> 123315.7114 | AC32: 145.0014181 | AD32: 145.0014181 | AE32: 145.0014181 | AF32: 145.0014181 | AG32: 145.0014181 | AH32: 145.0014181 | AI32: 145.0014181 | AJ32: 145.0014181 | AK32: 145.0014181 | AL32: 145.0014181 | AM32: 145.0014181 | AN32: 145.0014181 | AO32: 145.0014181 | AP32: 145.0014181 | AQ32: 145.0014181 | AR32: 145.0014181 | AS32: 145.0014181 | AT32: 145.0014181 | AU32: 145.0014181 | AV32: 145.0014181 | AW32: 145.0014181 | AX32: 145.0014181 | AY32: 145.0014181 | AZ32: 145.0014181 | BA32: 145.0014181 | BB32: 145.0014181 | BC32: 145.0014181 | BD32: 145.0014181 | BE32: 145.0014181 | BF32: 145.0014181 | BG32: 0 | BH32: 0 | BI32: 0 | BJ32: 0 | BK32: 0 | BL32: 27.8437111 | BM32: 27.8437111 | BO32: =SUM(BO25:BO31) -> 153.3334509 | BP32: =SUM(BP25:BP31) -> 1087926.901 | BQ32: =SUM(BQ25:BQ31) -> 145.0014181 | BR32: 145.0014181 | BS32: 145.0014181 | BT32: 145.0014181 | BU32: 145.0014181 | BV32: 145.0014181 | BW32: 145.0014181 | BX32: 145.0014181 | BY32: 145.0014181 | BZ32: 145.0014181 | CA32: 145.0014181 | CB32: 145.0014181 | CC32: 145.0014181 | CD32: 145.0014181 | CE32: 145.0014181 | CF32: 145.0014181 | CG32: 145.0014181 | CH32: 145.0014181 | CI32: 145.0014181 | CJ32: 145.0014181 | CK32: 145.0014181 | CL32: 145.0014181 | CM32: 145.0014181 | CN32: 145.0014181 | CY32: =SUM(CY25:CY31) -> 153.2491286 | CZ32: =SUM(CZ25:CZ31) -> 116423.363 | DA32: =SUM(DA25:DA31) -> 145.0014181 | DB32: 145.0014181 | DC32: 145.0014181 | DD32: 145.0014181 | DE32: 145.0014181 | DF32: 145.0014181 | DG32: 145.0014181 | DH32: 145.0014181 | DI32: 145.0014181 | DJ32: 145.0014181 | DK32: 145.0014181 | DL32: 145.0014181 | DM32: 145.0014181 | DN32: 145.0014181 | DO32: 145.0014181 | DP32: 145.0014181 | DQ32: 145.0014181 | DR32: 145.0014181 | DS32: 145.0014181 | DT32: 145.0014181 | DU32: 145.0014181 | DV32: 145.0014181 | DW32: 145.0014181 | DX32: =SUM(DX25:DX31) -> 0 | DY32: 0 | DZ32: 0 | EA32: 27.8437111 | EB32: 137.1104991 | ED32: =SUM(ED25:ED31) -> 172.8451292 | EE32: =SUM(EE25:EE31) -> 887076.0533 | EF32: =SUM(EF25:EF31) -> 172.8451292 | EG32: 172.8451292 | EH32: 122.6580833 | EI32: 122.6580833 | EJ32: 172.8451292 | EK32: 172.8451292 | EL32: 122.6580833 | EM32: 172.8451292 | EN32: 172.8451292 | EO32: 172.8451292 | EP32: 172.8451292 | EQ32: 122.6580833 | ER32: 172.8451292 | ES32: 172.8451292 | ET32: 122.6580833 | EU32: 172.8451292 | EV32: 172.8451292 | EW32: 122.6580833 | EX32: 172.8451292 | EY32: 172.8451292 | FD32: =SUM(FD25:FD31) -> 153.2809867 | FE32: =SUM(FE25:FE31) -> 1777538.62 | FF32: =SUM(FF25:FF31) -> 94.81437216 | FG32: 94.81437216 | FH32: 94.81437216 | FI32: 94.81437216 | FJ32: 94.81437216 | FK32: 145.0014181 | FL32: 94.81437216 | FM32: 0 | FN32: =SUM(FN25:FN31) -> 0 | FO32: 0 | FP32: 0 | FQ32: 0 | FR32: 0 | FS32: 27.8437111 | FT32: 27.8437111 | FU32: 27.8437111 | FV32: 137.1104991 | FX32: =SUM(FX25:FX31) -> 96.1502632 | FY32: =SUM(FY25:FY31) -> 1688542.847 | FZ32: =SUM(FZ25:FZ31) -> 89.7750372 | GA32: =SUM(GA25:GA31) -> 89.7750372 | GB32: 0 | GC32: 0 | GD32: 0 | GE32: 0 | GF32: 27.8437111 | GG32: 27.8437111 | GH32: 137.1104991 | GJ32: =SUM(GJ25:GJ31) -> 91.20324058 | GK32: =SUM(GK25:GK31) -> 359944.078 | GL32: =SUM(GL25:GL31) -> 89.7750372 | GM32: 89.7750372 | GN32: 89.7750372 | GO32: 89.7750372 | GP32: 89.7750372 | GQ32: 89.7750372 | GR32: 89.7750372 | GS32: 89.7750372 | GT32: 89.7750372 | GU32: 0 | GV32: 0 | GW32: 0 | GX32: 27.8437111 | GY32: 27.8437111 | GZ32: 137.1104991 | HB32: =SUM(HB25:HB31) -> 2672.763975 | HC32: =SUM(HC25:HC31) -> 774567 | HE32: =SUM(HE25:HE31) -> 0 | HF32: =SUM(HF25:HF31) -> 0 | HH32: 6988613.984
B33: PÚ2 | H33: =H24-H32 -> 2714.834878 | I33: =I24-I32 -> 3064641.352 | J33: 2233.700102 | K33: 3058.028502 | L33: 2503.303302 | M33: 2503.303302 | N33: 2369.521582 | O33: 2548.433214 | P33: 2769.058726 | Q33: 2977.780258 | R33: 3015.29803 | S33: 96.034 | T33: 192.068 | U33: 114 | V33: 155 | W33: -31.5337111 | X33: 398.4662889 | Y33: 2592.199501 | AA33: =AA24-AA32 -> 2257.54938 | AB33: =AB24-AB32 -> 1845501.468 | AC33: 1844.030382 | AD33: 2398.223382 | AE33: 2902.223382 | AF33: 1524.030382 | AG33: 2902.223382 | AH33: 1873.368182 | AI33: 2531.482582 | AJ33: 2990.223382 | AK33: 3174.223382 | AL33: 2259.482582 | AM33: 2164.030382 | AN33: 2401.571482 | AO33: 2913.368182 | AP33: 1924.030382 | AQ33: 2593.571482 | AR33: 2145.368182 | AS33: 2260.535782 | AT33: 2913.571482 | AU33: 3121.571482 | AV33: 1892.535782 | AW33: 2164.030382 | AX33: 2787.482582 | AY33: 2913.368182 | AZ33: 1924.030382 | BA33: 2979.482582 | BB33: 2145.368182 | BC33: 2513.571482 | BD33: 2945.368182 | BE33: 3622.223382 | BF33: 2145.571482 | BG33: 96.034 | BH33: 192.068 | BI33: -820 | BJ33: 114 | BK33: 155 | BL33: 97.92282224 | BM33: 545.2561556 | BO33: =BO24-BO32 -> 1945.545914 | BP33: =BP24-BP32 -> 12274960.54 | BQ33: =BQ24-BQ32 -> 1098.229382 | BR33: 1374.696382 | BS33: 1623.909182 | BT33: 1526.408382 | BU33: 1702.749182 | BV33: 1541.408382 | BW33: 1635.491382 | BX33: 1474.150582 | BY33: 2078.556382 | BZ33: 2334.556382 | CA33: 2523.396382 | CB33: 2299.406632 | CC33: 2104.022382 | CD33: 2288.821582 | CE33: 2088.044582 | CF33: 2406.983332 | CG33: 2332.464582 | CH33: 2390.489582 | CI33: 2284.044582 | CJ33: 2348.601832 | CK33: 2191.624582 | CL33: 1526.231582 | CM33: 1250.204582 | CN33: 1361.337782 | CY33: =CY24-CY32 -> 3351.642569 | CZ33: =CZ24-CZ32 -> 2546242.86 | DA33: =DA24-DA32 -> 2893.286582 | DB33: 3296.393741 | DC33: 3776.393741 | DD33: 2816.286582 | DE33: 3184.393741 | DF33: 3664.393741 | DG33: 3149.286582 | DH33: 3536.393741 | DI33: 3856.393741 | DJ33: 3056.286582 | DK33: 3424.393741 | DL33: 3744.393741 | DM33: 3344.393741 | DN33: 3704.393741 | DO33: 4064.393741 | DP33: 4424.393741 | DQ33: 4784.393741 | DR33: 3069.286582 | DS33: 3376.393741 | DT33: 4336.393741 | DU33: 1997.286582 | DV33: 1816.393741 | DW33: 2669.286582 | DX33: =DX24-DX32 -> 192.068 | DY33: 114 | DZ33: 155 | EA33: 646.5462889 | EB33: 3011.889501 | ED33: =ED24-ED32 -> 1770.481171 | EE33: =EE24-EE32 -> 11445078.32 | EF33: =EF24-EF32 -> 3054.946471 | EG33: 2862.946471 | EH33: 2918.648517 | EI33: 710.0939167 | EJ33: 930.5371708 | EK33: 1016.554371 | EL33: 1430.093917 | EM33: 1347.946161 | EN33: 1722.995161 | EO33: 2097.995161 | EP33: 2472.995161 | EQ33: 2133.177917 | ER33: 2357.692371 | ES33: 2477.692371 | ET33: 870.0939167 | EU33: 1010.537171 | EV33: 1096.554371 | EW33: 1564.786317 | EX33: 2324.822071 | EY33: 2096.566271 | FD33: =FD24-FD32 -> 1428.34835 | FE33: =FE24-FE32 -> 25636731.95 | FF33: =FF24-FF32 -> 1103.793628 | FG33: 1535.043628 | FH33: 3634.301628 | FI33: 4170.095628 | FJ33: 8372.663628 | FK33: 13209.89698 | FL33: 3535.043628 | FM33: 1031.3 | FN33: =FN24-FN32 -> 96.034 | FO33: 192.068 | FP33: -820 | FQ33: 114 | FR33: 155 | FS33: 118.8662889 | FT33: 653.6129556 | FU33: 659.6129556 | FV33: 3011.889501 | FX33: =FX24-FX32 -> 1251.230206 | FY33: =FY24-FY32 -> 21973479.26 | FZ33: =FZ24-FZ32 -> 1179.759597 | GA33: =GA24-GA32 -> 1376.641299 | GB33: 547.8931806 | GC33: -180 | GD33: 114 | GE33: 184 | GF33: -29.5837111 | GG33: 517.4562889 | GH33: 995.8895009 | GJ33: =GJ24-GJ32 -> 1157.643571 | GK33: =GK24-GK32 -> 4298279.505 | GL33: =GL24-GL32 -> 1179.759597 | GM33: 2775.426919 | GN33: 2775.426919 | GO33: 1364.172063 | GP33: 1163.616963 | GQ33: 1163.616963 | GR33: 1311.245893 | GS33: 411.1749628 | GT33: 547.0549628 | GU33: -180 | GV33: 114 | GW33: 184 | GX33: -29.5837111 | GY33: 517.4562889 | GZ33: 995.8895009 | HB33: =HB24-HB32 -> 1314.695129 | HC33: =HC24-HC32 -> 380998.6484 | HE33: =HE24-HE32 -> 589.5214764 | HF33: =HF24-HF32 -> 1515895.524 | HH33: 84981809.43
B34: =HNS!C18&" "&HNS!D18 -> 110 dřevovýroba | D34: =HNS!J18 -> 164.6590909 | F34: =(((HNS!H18*12)/(FY4))/D30)*60 -> 13.67507415 | FX34: =FX4*$F$34*($D$34/60) -> 37.52875462 | FY34: =SUMPRODUCT(FZ34:GA34,$FZ$4:$GA$4) -> 659061.2243 | FZ34: =$F$34*($D$34/60) -> 37.52875462 | GA34: =$F$34*($D$34/60) -> 37.52875462 | HH34: 659061.2243
B35: =HNS!C19&" "&HNS!D19 -> 120 výroba rámečků | D35: =HNS!J19 -> 111.9174242 | F35: =(((HNS!H19*12)/(I4+AB4+BP4+CZ4+EE4-EH4-EI4-EL4-EQ4-ET4-EW4+FK4))/D35)*60 -> 26.43004215 | H35: =H4*$F$35*($D$35/60) -> 49.299704 | I35: =SUMPRODUCT(J35:R35,$J$4:$R$4) -> 55651.97086 | J35: =$F$35*($D$35/60) -> 49.299704 | K35: =$F$35*($D$35/60) -> 49.299704 | L35: 49.299704 | M35: 49.299704 | N35: 49.299704 | O35: 49.299704 | P35: 49.299704 | Q35: 49.299704 | R35: 49.299704 | AA35: =AA4*$F$35*($D$35/60) -> 49.299704 | AB35: =SUMPRODUCT(AC35:BF35,$AC$4:$BF$4) -> 40301.52202 | AC35: =$F$35*($D$35/60) -> 49.299704 | AD35: =$F$35*($D$35/60) -> 49.299704 | AE35: 49.299704 | AF35: 49.299704 | AG35: 49.299704 | AH35: 49.299704 | AI35: 49.299704 | AJ35: 49.299704 | AK35: 49.299704 | AL35: 49.299704 | AM35: 49.299704 | AN35: 49.299704 | AO35: 49.299704 | AP35: 49.299704 | AQ35: 49.299704 | AR35: 49.299704 | AS35: 49.299704 | AT35: 49.299704 | AU35: 49.299704 | AV35: 49.299704 | AW35: 49.299704 | AX35: 49.299704 | AY35: 49.299704 | AZ35: 49.299704 | BA35: 49.299704 | BB35: 49.299704 | BC35: 49.299704 | BD35: 49.299704 | BE35: 49.299704 | BF35: 49.299704 | BO35: =BO4*$F$35*($D$35/60) -> 49.299704 | BP35: =SUMPRODUCT(BQ35:CN35,$BQ$4:$CN$4) -> 349789.7808 | BQ35: =$F$35*($D$35/60) -> 49.299704 | BR35: =$F$35*($D$35/60) -> 49.299704 | BS35: 49.299704 | BT35: 49.299704 | BU35: 49.299704 | BV35: 49.299704 | BW35: 49.299704 | BX35: 49.299704 | BY35: 49.299704 | BZ35: 49.299704 | CA35: 49.299704 | CB35: 49.299704 | CC35: 49.299704 | CD35: 49.299704 | CE35: 49.299704 | CF35: 49.299704 | CG35: 49.299704 | CH35: 49.299704 | CI35: 49.299704 | CJ35: 49.299704 | CK35: 49.299704 | CL35: 49.299704 | CM35: 49.299704 | CN35: 49.299704 | CY35: =CY4*$F$35*($D$35/60) -> 49.299704 | CZ35: =SUMPRODUCT(DA35:DW35,$DA$4:$DW$4) -> 37452.98513 | DA35: =$F$35*($D$35/60) -> 49.299704 | DB35: =$F$35*($D$35/60) -> 49.299704 | DC35: 49.299704 | DD35: 49.299704 | DE35: 49.299704 | DF35: 49.299704 | DG35: 49.299704 | DH35: 49.299704 | DI35: 49.299704 | DJ35: 49.299704 | DK35: 49.299704 | DL35: 49.299704 | DM35: 49.299704 | DN35: 49.299704 | DO35: 49.299704 | DP35: 49.299704 | DQ35: 49.299704 | DR35: 49.299704 | DS35: 49.299704 | DT35: 49.299704 | DU35: 49.299704 | DV35: 49.299704 | DW35: 49.299704 | ED35: =ED4*$F$35*($D$35/60) -> 49.299704 | EE35: =SUMPRODUCT(EF35:EY35,$EF$4:$EY$4) -> 106778.2289 | EF35: =$F$35*($D$35/60) -> 49.299704 | EG35: =$F$35*($D$35/60) -> 49.299704 | EJ35: 49.299704 | EK35: 49.299704 | EM35: 49.299704 | EN35: 49.299704 | EO35: 49.299704 | EP35: 49.299704 | ER35: 49.299704 | ES35: 49.299704 | EU35: 49.299704 | EV35: 49.299704 | EX35: 49.299704 | EY35: 49.299704 | FD35: =FD4*$F$35*($D$35/60) -> 49.299704 | FE35: =SUMPRODUCT(FF35:FM35,$FF$4:$FM$4) -> 949.512299 | FK35: =$F$35*($D$35/60) -> 49.299704 | HH35: 590924
B36: =HNS!C20&" "&HNS!D20 -> 230 brusírna | D36: =HNS!J20 -> 213.4090909 | F36: =(((HNS!H20*12)/(I4+AB4+BP4+CZ4+EE4+FE4-FM4))/D36)*60 -> 3.164434632 | H36: =H4*$F$36*($D$36/60) -> 11.25531863 | I36: =SUMPRODUCT(J36:R36,$J$4:$R$4) -> 12705.56644 | J36: =$F$36*($D$36/60) -> 11.25531863 | K36: =$F$36*($D$36/60) -> 11.25531863 | L36: 11.25531863 | M36: 11.25531863 | N36: 11.25531863 | O36: 11.25531863 | P36: 11.25531863 | Q36: 11.25531863 | R36: 11.25531863 | AA36: =AA4*$F$36*($D$36/60) -> 11.25531863 | AB36: =SUMPRODUCT(AC36:BF36,$AC$4:$BF$4) -> 9200.997876 | AC36: =$F$36*($D$36/60) -> 11.25531863 | AD36: =$F$36*($D$36/60) -> 11.25531863 | AE36: 11.25531863 | AF36: 11.25531863 | AG36: 11.25531863 | AH36: 11.25531863 | AI36: 11.25531863 | AJ36: 11.25531863 | AK36: 11.25531863 | AL36: 11.25531863 | AM36: 11.25531863 | AN36: 11.25531863 | AO36: 11.25531863 | AP36: 11.25531863 | AQ36: 11.25531863 | AR36: 11.25531863 | AS36: 11.25531863 | AT36: 11.25531863 | AU36: 11.25531863 | AV36: 11.25531863 | AW36: 11.25531863 | AX36: 11.25531863 | AY36: 11.25531863 | AZ36: 11.25531863 | BA36: 11.25531863 | BB36: 11.25531863 | BC36: 11.25531863 | BD36: 11.25531863 | BE36: 11.25531863 | BF36: 11.25531863 | BO36: =BO4*$F$36*($D$36/60) -> 11.25531863 | BP36: =SUMPRODUCT(BQ36:CN36,$BQ$4:$CN$4) -> 79858.3991 | BQ36: =$F$36*($D$36/60) -> 11.25531863 | BR36: =$F$36*($D$36/60) -> 11.25531863 | BS36: 11.25531863 | BT36: 11.25531863 | BU36: 11.25531863 | BV36: 11.25531863 | BW36: 11.25531863 | BX36: 11.25531863 | BY36: 11.25531863 | BZ36: 11.25531863 | CA36: 11.25531863 | CB36: 11.25531863 | CC36: 11.25531863 | CD36: 11.25531863 | CE36: 11.25531863 | CF36: 11.25531863 | CG36: 11.25531863 | CH36: 11.25531863 | CI36: 11.25531863 | CJ36: 11.25531863 | CK36: 11.25531863 | CL36: 11.25531863 | CM36: 11.25531863 | CN36: 11.25531863 | CY36: =CY4*$F$36*($D$36/60) -> 11.25531863 | CZ36: =SUMPRODUCT(DA36:DW36,$DA$4:$DW$4) -> 8550.665565 | DA36: =$F$36*($D$36/60) -> 11.25531863 | DB36: =$F$36*($D$36/60) -> 11.25531863 | DC36: 11.25531863 | DD36: 11.25531863 | DE36: 11.25531863 | DF36: 11.25531863 | DG36: 11.25531863 | DH36: 11.25531863 | DI36: 11.25531863 | DJ36: 11.25531863 | DK36: 11.25531863 | DL36: 11.25531863 | DM36: 11.25531863 | DN36: 11.25531863 | DO36: 11.25531863 | DP36: 11.25531863 | DQ36: 11.25531863 | DR36: 11.25531863 | DS36: 11.25531863 | DT36: 11.25531863 | DU36: 11.25531863 | DV36: 11.25531863 | DW36: 11.25531863 | ED36: =ED4*$F$36*($D$36/60) -> 11.25531863 | EE36: 71425.12651 | EF36: =$F$36*($D$36/60) -> 11.25531863 | EG36: =$F$36*($D$36/60) -> 11.25531863 | EH36: 11.25531863 | EI36: 11.25531863 | EJ36: 11.25531863 | EK36: 11.25531863 | EL36: 11.25531863 | EM36: 11.25531863 | EN36: 11.25531863 | EO36: 11.25531863 | EP36: 11.25531863 | EQ36: 11.25531863 | ER36: 11.25531863 | ES36: 11.25531863 | ET36: 11.25531863 | EU36: 11.25531863 | EV36: 11.25531863 | EW36: 11.25531863 | EX36: 11.25531863 | EY36: 11.25531863 | FD36: =FD4*$F$36*($D$36/60) -> 11.25531863 | FE36: =SUMPRODUCT(FF36:FM36,$FF$4:$FM$4) -> 193859.2445 | FF36: =$F$36*($D$36/60) -> 11.25531863 | FG36: =$F$36*($D$36/60) -> 11.25531863 | FH36: 11.25531863 | FI36: 11.25531863 | FJ36: 11.25531863 | FK36: 11.25531863 | FL36: 11.25531863 | HH36: 375600
B37: =HNS!C21&" "&HNS!D21 -> 210 kovodílna | D37: =HNS!J21 -> 312.3231818 | F37: =(((HNS!H21*12)/(I4+AB4+BP4+CZ4+EE4+FE4))/D37)*60 -> 15.77059519 | H37: =H4*$F$37*($D$37/60) -> 82.09204114 | I37: 92669.60064 | J37: =$F$37*($D$37/60) -> 82.09204114 | K37: =$F$37*($D$37/60) -> 82.09204114 | L37: 82.09204114 | M37: 82.09204114 | N37: 82.09204114 | O37: 82.09204114 | P37: 82.09204114 | Q37: 82.09204114 | R37: 82.09204114 | AA37: =AA4*$F$37*($D$37/60) -> 82.09204114 | AB37: 67108.60179 | AC37: =$F$37*($D$37/60) -> 82.09204114 | AD37: =$F$37*($D$37/60) -> 82.09204114 | AE37: 82.09204114 | AF37: 82.09204114 | AG37: 82.09204114 | AH37: 82.09204114 | AI37: 82.09204114 | AJ37: 82.09204114 | AK37: 82.09204114 | AL37: 82.09204114 | AM37: 82.09204114 | AN37: 82.09204114 | AO37: 82.09204114 | AP37: 82.09204114 | AQ37: 82.09204114 | AR37: 82.09204114 | AS37: 82.09204114 | AT37: 82.09204114 | AU37: 82.09204114 | AV37: 82.09204114 | AW37: 82.09204114 | AX37: 82.09204114 | AY37: 82.09204114 | AZ37: 82.09204114 | BA37: 82.09204114 | BB37: 82.09204114 | BC37: 82.09204114 | BD37: 82.09204114 | BE37: 82.09204114 | BF37: 82.09204114 | BO37: =BO4*$F$37*($D$37/60) -> 82.09204114 | BP37: 582456.9875 | BQ37: =$F$37*($D$37/60) -> 82.09204114 | BR37: =$F$37*($D$37/60) -> 82.09204114 | BS37: 82.09204114 | BT37: 82.09204114 | BU37: 82.09204114 | BV37: 82.09204114 | BW37: 82.09204114 | BX37: 82.09204114 | BY37: 82.09204114 | BZ37: 82.09204114 | CA37: 82.09204114 | CB37: 82.09204114 | CC37: 82.09204114 | CD37: 82.09204114 | CE37: 82.09204114 | CF37: 82.09204114 | CG37: 82.09204114 | CH37: 82.09204114 | CI37: 82.09204114 | CJ37: 82.09204114 | CK37: 82.09204114 | CL37: 82.09204114 | CM37: 82.09204114 | CN37: 82.09204114 | CY37: =CY4*$F$37*($D$37/60) -> 82.09204114 | CZ37: 62365.32365 | DA37: =$F$37*($D$37/60) -> 82.09204114 | DB37: =$F$37*($D$37/60) -> 82.09204114 | DC37: 82.09204114 | DD37: 82.09204114 | DE37: 82.09204114 | DF37: 82.09204114 | DG37: 82.09204114 | DH37: 82.09204114 | DI37: 82.09204114 | DJ37: 82.09204114 | DK37: 82.09204114 | DL37: 82.09204114 | DM37: 82.09204114 | DN37: 82.09204114 | DO37: 82.09204114 | DP37: 82.09204114 | DQ37: 82.09204114 | DR37: 82.09204114 | DS37: 82.09204114 | DT37: 82.09204114 | DU37: 82.09204114 | DV37: 82.09204114 | DW37: 82.09204114 | ED37: =ED4*$F$37*($D$37/60) -> 82.09204114 | EE37: 520947.8838 | EF37: =$F$37*($D$37/60) -> 82.09204114 | EG37: =$F$37*($D$37/60) -> 82.09204114 | EH37: 82.09204114 | EI37: 82.09204114 | EJ37: 82.09204114 | EK37: 82.09204114 | EL37: 82.09204114 | EM37: 82.09204114 | EN37: 82.09204114 | EO37: 82.09204114 | EP37: 82.09204114 | EQ37: 82.09204114 | ER37: 82.09204114 | ES37: 82.09204114 | ET37: 82.09204114 | EU37: 82.09204114 | EV37: 82.09204114 | EW37: 82.09204114 | EX37: 82.09204114 | EY37: 82.09204114 | FD37: =FD4*$F$37*($D$37/60) -> 82.09204114 | FE37: 1422895.603 | FF37: =$F$37*($D$37/60) -> 82.09204114 | FG37: =$F$37*($D$37/60) -> 82.09204114 | FH37: 82.09204114 | FI37: 82.09204114 | FJ37: 82.09204114 | FK37: 82.09204114 | FL37: 82.09204114 | FM37: 82.09204114 | HH37: 2748444
B38: celkové nepřímé N na provoz | H38: =SUM(H34:H37) -> 142.6470638 | I38: =SUM(I34:I37) -> 161027.1379 | J38: =SUM(J34:J37) -> 142.6470638 | K38: 142.6470638 | L38: 142.6470638 | M38: 142.6470638 | N38: 142.6470638 | O38: 142.6470638 | P38: 142.6470638 | Q38: 142.6470638 | R38: 142.6470638 | S38: 0 | T38: 0 | U38: 0 | V38: 0 | W38: 0 | X38: 0 | Y38: 0 | AA38: =SUM(AA34:AA37) -> 142.6470638 | AB38: =SUM(AB34:AB37) -> 116611.1217 | AC38: =SUM(AC34:AC37) -> 142.6470638 | AD38: 142.6470638 | AE38: 142.6470638 | AF38: 142.6470638 | AG38: 142.6470638 | AH38: 142.6470638 | AI38: 142.6470638 | AJ38: 142.6470638 | AK38: 142.6470638 | AL38: 142.6470638 | AM38: 142.6470638 | AN38: 142.6470638 | AO38: 142.6470638 | AP38: 142.6470638 | AQ38: 142.6470638 | AR38: 142.6470638 | AS38: 142.6470638 | AT38: 142.6470638 | AU38: 142.6470638 | AV38: 142.6470638 | AW38: 142.6470638 | AX38: 142.6470638 | AY38: 142.6470638 | AZ38: 142.6470638 | BA38: 142.6470638 | BB38: 142.6470638 | BC38: 142.6470638 | BD38: 142.6470638 | BE38: 142.6470638 | BF38: 142.6470638 | BG38: 0 | BH38: 0 | BI38: 0 | BJ38: 0 | BK38: 0 | BL38: 0 | BM38: 0 | BO38: =SUM(BO34:BO37) -> 142.6470638 | BP38: =SUM(BP34:BP37) -> 1012105.167 | BQ38: =SUM(BQ34:BQ37) -> 142.6470638 | BR38: =SUM(BR34:BR37) -> 142.6470638 | BS38: =SUM(BS34:BS37) -> 142.6470638 | BT38: =SUM(BT34:BT37) -> 142.6470638 | BU38: =SUM(BU34:BU37) -> 142.6470638 | BV38: =SUM(BV34:BV37) -> 142.6470638 | BW38: =SUM(BW34:BW37) -> 142.6470638 | BX38: =SUM(BX34:BX37) -> 142.6470638 | BY38: =SUM(BY34:BY37) -> 142.6470638 | BZ38: =SUM(BZ34:BZ37) -> 142.6470638 | CA38: =SUM(CA34:CA37) -> 142.6470638 | CB38: =SUM(CB34:CB37) -> 142.6470638 | CC38: =SUM(CC34:CC37) -> 142.6470638 | CD38: =SUM(CD34:CD37) -> 142.6470638 | CE38: =SUM(CE34:CE37) -> 142.6470638 | CF38: =SUM(CF34:CF37) -> 142.6470638 | CG38: =SUM(CG34:CG37) -> 142.6470638 | CH38: =SUM(CH34:CH37) -> 142.6470638 | CI38: =SUM(CI34:CI37) -> 142.6470638 | CJ38: =SUM(CJ34:CJ37) -> 142.6470638 | CK38: =SUM(CK34:CK37) -> 142.6470638 | CL38: =SUM(CL34:CL37) -> 142.6470638 | CM38: =SUM(CM34:CM37) -> 142.6470638 | CN38: =SUM(CN34:CN37) -> 142.6470638 | CY38: =SUM(CY34:CY37) -> 142.6470638 | CZ38: =SUM(CZ34:CZ37) -> 108368.9743 | DA38: =SUM(DA34:DA37) -> 142.6470638 | DB38: =SUM(DB34:DB37) -> 142.6470638 | DC38: =SUM(DC34:DC37) -> 142.6470638 | DD38: =SUM(DD34:DD37) -> 142.6470638 | DE38: =SUM(DE34:DE37) -> 142.6470638 | DF38: =SUM(DF34:DF37) -> 142.6470638 | DG38: =SUM(DG34:DG37) -> 142.6470638 | DH38: =SUM(DH34:DH37) -> 142.6470638 | DI38: =SUM(DI34:DI37) -> 142.6470638 | DJ38: =SUM(DJ34:DJ37) -> 142.6470638 | DK38: =SUM(DK34:DK37) -> 142.6470638 | DL38: =SUM(DL34:DL37) -> 142.6470638 | DM38: =SUM(DM34:DM37) -> 142.6470638 | DN38: =SUM(DN34:DN37) -> 142.6470638 | DO38: =SUM(DO34:DO37) -> 142.6470638 | DP38: =SUM(DP34:DP37) -> 142.6470638 | DQ38: =SUM(DQ34:DQ37) -> 142.6470638 | DR38: =SUM(DR34:DR37) -> 142.6470638 | DS38: =SUM(DS34:DS37) -> 142.6470638 | DT38: =SUM(DT34:DT37) -> 142.6470638 | DU38: =SUM(DU34:DU37) -> 142.6470638 | DV38: =SUM(DV34:DV37) -> 142.6470638 | DW38: =SUM(DW34:DW37) -> 142.6470638 | DX38: =SUM(DX34:DX37) -> 0 | DY38: =SUM(DY34:DY37) -> 0 | DZ38: =SUM(DZ34:DZ37) -> 0 | EA38: =SUM(EA34:EA37) -> 0 | EB38: =SUM(EB34:EB37) -> 0 | ED38: =SUM(ED34:ED37) -> 142.6470638 | EE38: =SUM(EE34:EE37) -> 699151.2392 | EF38: =SUM(EF34:EF37) -> 142.6470638 | EG38: =SUM(EG34:EG37) -> 142.6470638 | EH38: =SUM(EH34:EH37) -> 93.34735977 | EI38: =SUM(EI34:EI37) -> 93.34735977 | EJ38: =SUM(EJ34:EJ37) -> 142.6470638 | EK38: =SUM(EK34:EK37) -> 142.6470638 | EL38: =SUM(EL34:EL37) -> 93.34735977 | EM38: =SUM(EM34:EM37) -> 142.6470638 | EN38: =SUM(EN34:EN37) -> 142.6470638 | EO38: =SUM(EO34:EO37) -> 142.6470638 | EP38: =SUM(EP34:EP37) -> 142.6470638 | EQ38: =SUM(EQ34:EQ37) -> 93.34735977 | ER38: =SUM(ER34:ER37) -> 142.6470638 | ES38: =SUM(ES34:ES37) -> 142.6470638 | ET38: =SUM(ET34:ET37) -> 93.34735977 | EU38: =SUM(EU34:EU37) -> 142.6470638 | EV38: =SUM(EV34:EV37) -> 142.6470638 | EW38: =SUM(EW34:EW37) -> 93.34735977 | EX38: =SUM(EX34:EX37) -> 142.6470638 | EY38: =SUM(EY34:EY37) -> 142.6470638 | FD38: =SUM(FD34:FD37) -> 142.6470638 | FE38: =SUM(FE34:FE37) -> 1617704.359 | FF38: =SUM(FF34:FF37) -> 93.34735977 | FG38: =SUM(FG34:FG37) -> 93.34735977 | FH38: =SUM(FH34:FH37) -> 93.34735977 | FI38: =SUM(FI34:FI37) -> 93.34735977 | FJ38: =SUM(FJ34:FJ37) -> 93.34735977 | FK38: =SUM(FK34:FK37) -> 142.6470638 | FL38: =SUM(FL34:FL37) -> 93.34735977 | FM38: =SUM(FM34:FM37) -> 82.09204114 | FN38: =SUM(FN34:FN37) -> 0 | FO38: =SUM(FO34:FO37) -> 0 | FP38: =SUM(FP34:FP37) -> 0 | FQ38: =SUM(FQ34:FQ37) -> 0 | FR38: =SUM(FR34:FR37) -> 0 | FS38: =SUM(FS34:FS37) -> 0 | FT38: =SUM(FT34:FT37) -> 0 | FU38: =SUM(FU34:FU37) -> 0 | FV38: =SUM(FV34:FV37) -> 0 | FX38: =SUM(FX34:FX37) -> 37.52875462 | FY38: =SUM(FY34:FY37) -> 659061.2243 | FZ38: =SUM(FZ34:FZ37) -> 37.52875462 | GA38: =SUM(GA34:GA37) -> 37.52875462 | GB38: =SUM(GB34:GB37) -> 0 | GC38: 0 | GD38: 0 | GE38: 0 | GF38: 0 | GG38: 0 | GH38: 0 | GJ38: =SUM(GJ34:GJ37) -> 0 | GK38: =SUM(GK34:GK37) -> 0 | GL38: =SUM(GL34:GL37) -> 0 | GM38: =SUM(GM34:GM37) -> 0 | GN38: =SUM(GN34:GN37) -> 0 | GO38: =SUM(GO34:GO37) -> 0 | GP38: =SUM(GP34:GP37) -> 0 | GQ38: =SUM(GQ34:GQ37) -> 0 | GR38: =SUM(GR34:GR37) -> 0 | GS38: =SUM(GS34:GS37) -> 0 | GT38: =SUM(GT34:GT37) -> 0 | GU38: =SUM(GU34:GU37) -> 0 | GV38: =SUM(GV34:GV37) -> 0 | GW38: =SUM(GW34:GW37) -> 0 | GX38: =SUM(GX34:GX37) -> 0 | GY38: =SUM(GY34:GY37) -> 0 | GZ38: =SUM(GZ34:GZ37) -> 0 | HB38: =SUM(HB34:HB37) -> 0 | HC38: =SUM(HC34:HC37) -> 0 | HE38: =SUM(HE34:HE37) -> 0 | HF38: =SUM(HF34:HF37) -> 0 | HH38: 4374029.224
B39: PÚ3 | H39: =H33-H38 -> 2572.187814 | I39: =I33-I38 -> 2903614.214 | J39: =J33-J38 -> 2091.053038 | K39: 2915.381438 | L39: 2360.656238 | M39: 2360.656238 | N39: 2226.874518 | O39: 2405.78615 | P39: 2626.411662 | Q39: 2835.133194 | R39: 2872.650966 | S39: 96.034 | T39: 192.068 | U39: 114 | V39: 155 | W39: -31.5337111 | X39: 398.4662889 | Y39: 2592.199501 | AA39: =AA33-AA38 -> 2114.902317 | AB39: =AB33-AB38 -> 1728890.346 | AC39: =AC33-AC38 -> 1701.383318 | AD39: 2255.576318 | AE39: 2759.576318 | AF39: 1381.383318 | AG39: 2759.576318 | AH39: 1730.721118 | AI39: 2388.835518 | AJ39: 2847.576318 | AK39: 3031.576318 | AL39: 2116.835518 | AM39: 2021.383318 | AN39: 2258.924418 | AO39: 2770.721118 | AP39: 1781.383318 | AQ39: 2450.924418 | AR39: 2002.721118 | AS39: 2117.888718 | AT39: 2770.924418 | AU39: 2978.924418 | AV39: 1749.888718 | AW39: 2021.383318 | AX39: 2644.835518 | AY39: 2770.721118 | AZ39: 1781.383318 | BA39: 2836.835518 | BB39: 2002.721118 | BC39: 2370.924418 | BD39: 2802.721118 | BE39: 3479.576318 | BF39: 2002.924418 | BG39: 96.034 | BH39: 192.068 | BI39: -820 | BJ39: 114 | BK39: 155 | BL39: 97.92282224 | BM39: 545.2561556 | BO39: =BO33-BO38 -> 1802.89885 | BP39: =BP33-BP38 -> 11262855.38 | BQ39: =BQ33-BQ38 -> 955.5823181 | BR39: =BR33-BR38 -> 1232.049318 | BS39: =BS33-BS38 -> 1481.262118 | BT39: =BT33-BT38 -> 1383.761318 | BU39: =BU33-BU38 -> 1560.102118 | BV39: =BV33-BV38 -> 1398.761318 | BW39: =BW33-BW38 -> 1492.844318 | BX39: =BX33-BX38 -> 1331.503518 | BY39: =BY33-BY38 -> 1935.909318 | BZ39: =BZ33-BZ38 -> 2191.909318 | CA39: =CA33-CA38 -> 2380.749318 | CB39: =CB33-CB38 -> 2156.759568 | CC39: =CC33-CC38 -> 1961.375318 | CD39: =CD33-CD38 -> 2146.174518 | CE39: =CE33-CE38 -> 1945.397518 | CF39: =CF33-CF38 -> 2264.336268 | CG39: =CG33-CG38 -> 2189.817518 | CH39: =CH33-CH38 -> 2247.842518 | CI39: =CI33-CI38 -> 2141.397518 | CJ39: =CJ33-CJ38 -> 2205.954768 | CK39: =CK33-CK38 -> 2048.977518 | CL39: =CL33-CL38 -> 1383.584518 | CM39: =CM33-CM38 -> 1107.557518 | CN39: =CN33-CN38 -> 1218.690718 | CY39: =CY33-CY38 -> 3208.995505 | CZ39: =CZ33-CZ38 -> 2437873.885 | DA39: =DA33-DA38 -> 2750.639518 | DB39: =DB33-DB38 -> 3153.746677 | DC39: =DC33-DC38 -> 3633.746677 | DD39: =DD33-DD38 -> 2673.639518 | DE39: =DE33-DE38 -> 3041.746677 | DF39: =DF33-DF38 -> 3521.746677 | DG39: =DG33-DG38 -> 3006.639518 | DH39: =DH33-DH38 -> 3393.746677 | DI39: =DI33-DI38 -> 3713.746677 | DJ39: =DJ33-DJ38 -> 2913.639518 | DK39: =DK33-DK38 -> 3281.746677 | DL39: =DL33-DL38 -> 3601.746677 | DM39: =DM33-DM38 -> 3201.746677 | DN39: =DN33-DN38 -> 3561.746677 | DO39: =DO33-DO38 -> 3921.746677 | DP39: =DP33-DP38 -> 4281.746677 | DQ39: =DQ33-DQ38 -> 4641.746677 | DR39: =DR33-DR38 -> 2926.639518 | DS39: =DS33-DS38 -> 3233.746677 | DT39: =DT33-DT38 -> 4193.746677 | DU39: =DU33-DU38 -> 1854.639518 | DV39: =DV33-DV38 -> 1673.746677 | DW39: =DW33-DW38 -> 2526.639518 | DX39: =DX33-DX38 -> 192.068 | DY39: =DY33-DY38 -> 114 | DZ39: =DZ33-DZ38 -> 155 | EA39: =EA33-EA38 -> 646.5462889 | EB39: =EB33-EB38 -> 3011.889501 | ED39: =ED33-ED38 -> 1627.834107 | EE39: =EE33-EE38 -> 10745927.08 | EF39: =EF33-EF38 -> 2912.299407 | EG39: =EG33-EG38 -> 2720.299407 | EH39: =EH33-EH38 -> 2825.301157 | EI39: =EI33-EI38 -> 616.746557 | EJ39: =EJ33-EJ38 -> 787.890107 | EK39: =EK33-EK38 -> 873.907307 | EL39: =EL33-EL38 -> 1336.746557 | EM39: =EM33-EM38 -> 1205.299097 | EN39: =EN33-EN38 -> 1580.348097 | EO39: =EO33-EO38 -> 1955.348097 | EP39: =EP33-EP38 -> 2330.348097 | EQ39: =EQ33-EQ38 -> 2039.830557 | ER39: =ER33-ER38 -> 2215.045307 | ES39: =ES33-ES38 -> 2335.045307 | ET39: =ET33-ET38 -> 776.746557 | EU39: =EU33-EU38 -> 867.890107 | EV39: =EV33-EV38 -> 953.907307 | EW39: =EW33-EW38 -> 1471.438957 | EX39: =EX33-EX38 -> 2182.175007 | EY39: =EY33-EY38 -> 1953.919207 | FD39: =FD33-FD38 -> 1285.701286 | FE39: =FE33-FE38 -> 24019027.59 | FF39: =FF33-FF38 -> 1010.446268 | FG39: =FG33-FG38 -> 1441.696268 | FH39: =FH33-FH38 -> 3540.954268 | FI39: =FI33-FI38 -> 4076.748268 | FJ39: =FJ33-FJ38 -> 8279.316268 | FK39: =FK33-FK38 -> 13067.24992 | FL39: =FL33-FL38 -> 3441.696268 | FM39: =FM33-FM38 -> 949.2079589 | FN39: =FN33-FN38 -> 96.034 | FO39: =FO33-FO38 -> 192.068 | FP39: =FP33-FP38 -> -820 | FQ39: =FQ33-FQ38 -> 114 | FR39: =FR33-FR38 -> 155 | FS39: =FS33-FS38 -> 118.8662889 | FT39: =FT33-FT38 -> 653.6129556 | FU39: =FU33-FU38 -> 659.6129556 | FV39: =FV33-FV38 -> 3011.889501 | FX39: =FX33-FX38 -> 1213.701451 | FY39: =FY33-FY38 -> 21314418.04 | FZ39: =FZ33-FZ38 -> 1142.230842 | GA39: =GA33-GA38 -> 1339.112544 | GB39: =GB33-GB38 -> 547.8931806 | GC39: -180 | GD39: 114 | GE39: 184 | GF39: -29.5837111 | GG39: 517.4562889 | GH39: 995.8895009 | GJ39: =GJ33-GJ38 -> 1157.643571 | GK39: =GK33-GK38 -> 4298279.505 | GL39: =GL33-GL38 -> 1179.759597 | GM39: =GM33-GM38 -> 2775.426919 | GN39: =GN33-GN38 -> 2775.426919 | GO39: =GO33-GO38 -> 1364.172063 | GP39: =GP33-GP38 -> 1163.616963 | GQ39: =GQ33-GQ38 -> 1163.616963 | GR39: =GR33-GR38 -> 1311.245893 | GS39: =GS33-GS38 -> 411.1749628 | GT39: =GT33-GT38 -> 547.0549628 | GU39: =GU33-GU38 -> -180 | GV39: =GV33-GV38 -> 114 | GW39: =GW33-GW38 -> 184 | GX39: =GX33-GX38 -> -29.5837111 | GY39: =GY33-GY38 -> 517.4562889 | GZ39: =GZ33-GZ38 -> 995.8895009 | HB39: =HB33-HB38 -> 1314.695129 | HC39: =HC33-HC38 -> 380998.6484 | HE39: =HE33-HE38 -> 589.5214764 | HF39: =HF33-HF38 -> 1515895.524 | HH39: 80607780.21
B40: =HNS!C14&" "&HNS!D14 -> 313 expedice | HH40: =HNS!H14*12 -> 222360
B41: =HNS!C15&" "&HNS!D15 -> 310 sklad dveří + sklad zárubní | HH41: =HNS!H15*12 -> 1468800
B42: =HNS!C16&" "&HNS!D16 -> 150 rozvozový řidiči | HH42: =HNS!H16*12 -> 2908043
B43: =HNS!C17&" "&HNS!D17 -> ext. montážníci | HH43: =HNS!H17*12 -> 7244196
B44: celkové N na logistiku | HH44: =SUM(HH40:HH43) -> 11843399
B45: PÚ4 | HH45: =HH39-HH44 -> 68764381.21
B46: =HNS!C3&" "&HNS!D3 -> 11x maloobchodní pobočky | HH46: =HNS!H3*12 -> 15226466
B47: =HNS!C4&" "&HNS!D4 -> 319 velkoobchod | HH47: =HNS!H4*12 -> 889440
B48: =HNS!C5&" "&HNS!D5 -> ext. zaměřovací technik | HH48: =HNS!H5*12 -> 1399500
B49: =HNS!C6&" "&HNS!D6 -> 301 technik zadávacího centra výroby | HH49: =HNS!H6*12 -> 1811808
B50: celkové N na obchodní činnosti | HH50: =SUM(HH46:HH49) -> 19327214
B51: PÚ5 | HH51: =HH45-HH50 -> 49437167.21
B52: Interní reklamace | HH52: =(HH23+HH32+HH38)*0.005 -> 465215.0964
B53: Externí reklamace | HH53: =(HH23+HH32+HH38)*0.015 -> 1395645.289
B54: celkové N na reklamace | HH54: =SUM(HH52:HH53) -> 1860860.386
B55: PÚ6 | HH55: =HH51-HH54 -> 47576306.82
B56: =HNS!C22&" "&HNS!D22&" + "&HNS!D23 -> 200 IT oddělení + výzkum a vývoj | HH56: =HNS!H22*12 -> 1673246
B57: =HNS!C24&" "&HNS!D24&" + "&HNS!D25&" + "&HNS!D26&" + "&HNS!D27&" + "&HNS!D28 -> 300 uklízečka + marketing + účetní oddělení + obchodní ředitel + asistentka OŘ | HH57: =HNS!H24*12 -> 8740463
B58: =HNS!C29&" "&HNS!D29 -> 301 reklamační oddělení | HH58: =HNS!H29*12 -> 1207872
B59: =HNS!C30&" "&HNS!D30 -> 11 vedení výroby dveří | HH59: =HNS!H30*12 -> 2842503
B60: =HNS!C31&" "&HNS!D31 -> 13 vedení výroby zárubní | HH60: =HNS!H31*12 -> 1220473 | HN60: ;
B61: =HNS!C32&" "&HNS!D32&" + "&HNS!D33&" + "&HNS!D34&" + "&HNS!D35&" + "&HNS!D36 -> 9 ekonomické oddělení + technické kreslení + vedoucí výroby + právní oddělení + vedení společnosti | HH61: =HNS!H32*12 -> 11674147
B62: ostatní N (nepřiřaditelné) | HH62: =SUM(HH56:HH61) -> 27358704
B63: Přidaná hodnota [Kč] | HH63: =HH55-HH62 -> 20217602.82 | HJ63: =HH63/HH5 -> 0.09314142119

Sheet dveře podrobně (hidden)
A1: Rok | B1: Řada | C1: Model | D1: Protip | E1: Konstrukce | F1: Vyrob | G1: % z celku
A2: 2012 | B2: ALEX III | C2: GZ3 | D2: N | E2: -standardní konstrukce | F2: 40 | G2: 0.10499
A3: 2012 | B3: ALEX III | C3: PK | D3: N | E3: -standardní konstrukce | F3: 8 | G3: 0.021
A4: 2012 | B4: ALEX IV | C4: GZ4 | D4: N | E4: -standardní konstrukce | F4: 257 | G4: 0.67454
A5: 2012 | B5: ALEX IV | C5: PK | D5: N | E5: -standardní konstrukce | F5: 42 | G5: 0.11024
A6: 2012 | B6: BETTY | C6: A | D6: N | E6: -standardní konstrukce | F6: 3 | G6: 0.00787
A7: 2012 | B7: BETTY | C7: AGZ | D7: N | E7: -standardní konstrukce | F7: 5 | G7: 0.01312
A8: 2012 | B8: BETTY | C8: AK | D8: N | E8: -standardní konstrukce | F8: 21 | G8: 0.05512
A9: 2012 | B9: BETTY | C9: AN | D9: N | E9: -standardní konstrukce | F9: 19 | G9: 0.04987
A10: 2012 | B10: BETTY | C10: B | D10: N | E10: -standardní konstrukce | F10: 15 | G10: 0.03937
A11: 2012 | B11: BETTY | C11: BK | D11: N | E11: -standardní konstrukce | F11: 48 | G11: 0.12598
A12: 2012 | B12: BETTY | C12: BN | D12: N | E12: -standardní konstrukce | F12: 48 | G12: 0.12598
A13: 2012 | B13: BETTY | C13: D | D13: N | E13: -standardní konstrukce | F13: 56 | G13: 0.14698
A14: 2012 | B14: BETTY | C14: E | D14: N | E14: -standardní konstrukce | F14: 229 | G14: 0.60105
A15: 2012 | B15: BETTY | C15: IK | D15: N | E15: -standardní konstrukce | F15: 3 | G15: 0.00787
A16: 2012 | B16: BETTY | C16: IN | D16: N | E16: -standardní konstrukce | F16: 4 | G16: 0.0105
A17: 2012 | B17: BETTY | C17: L | D17: N | E17: -standardní konstrukce | F17: 14 | G17: 0.03675
A18: 2012 | B18: BETTY | C18: P2K | D18: N | E18: -standardní konstrukce | F18: 148 | G18: 0.38845
A19: 2012 | B19: BETTY | C19: P2N | D19: A | E19: PYROBOARD s grenamatem | F19: 20 | G19: 0.05249
A20: 2012 | B20: BETTY | C20: P2N | D20: N | E20: -standardní konstrukce | F20: 197 | G20: 0.51706
A21: 2012 | B21: FANTASY | D21: A | E21: PYROBOARD s grenamatem | F21: 30 | G21: 0.07874
A22: 2012 | B22: FANTASY | D22: N | E22: -standardní konstrukce | F22: 873 | G22: 2.29134
A23: 2012 | B23: FANTASY | C23: AZ | D23: N | E23: -standardní konstrukce | F23: 45 | G23: 0.11811
A24: 2012 | B24: FANTASY | C24: AZGN | D24: N | E24: -standardní konstrukce | F24: 1 | G24: 0.00262
A25: 2012 | B25: FANTASY | C25: DK | D25: N | E25: -standardní konstrukce | F25: 9 | G25: 0.02362
A26: 2012 | B26: FANTASY | C26: DZ | D26: N | E26: -standardní konstrukce | F26: 2722 | G26: 7.14436
A27: 2012 | B27: FANTASY | C27: EZ | D27: N | E27: -standardní konstrukce | F27: 2 | G27: 0.00525
A28: 2012 | B28: FANTASY | C28: FZ | D28: N | E28: -standardní konstrukce | F28: 15 | G28: 0.03937
A29: 2012 | B29: FANTASY | C29: GK | D29: N | E29: -standardní konstrukce | F29: 8 | G29: 0.021
A30: 2012 | B30: FANTASY | C30: GN | D30: N | E30: -standardní konstrukce | F30: 3 | G30: 0.00787
A31: 2012 | B31: FANTASY | C31: GZ | D31: N | E31: -standardní konstrukce | F31: 137 | G31: 0.35958
A32: 2012 | B32: FANTASY | C32: GZGK | D32: N | E32: -standardní konstrukce | F32: 1 | G32: 0.00262
A33: 2012 | B33: FANTASY | C33: IZ | D33: N | E33: -standardní konstrukce | F33: 1 | G33: 0.00262
A34: 2012 | B34: FANTASY | C34: S | D34: N | E34: -standardní konstrukce | F34: 9 | G34: 0.02362
A35: 2012 | B35: FENIX I | C35: PK | D35: N | E35: -standardní konstrukce | F35: 109 | G35: 0.28609
A36: 2012 | B36: FENIX I | C36: SZ | D36: A | E36: PYROPANE (1/3) (2/3) | F36: 2 | G36: 0.00525
A37: 2012 | B37: FENIX I | C37: SZ | D37: N | E37: -standardní konstrukce | F37: 1560 | G37: 4.09449
A38: 2012 | B38: FENIX II | C38: EK | D38: N | E38: -standardní konstrukce | F38: 13 | G38: 0.03412
A39: 2012 | B39: FENIX II | C39: EZ | D39: A | E39: PYROPANE (1/3) (2/3) | F39: 5 | G39: 0.01312
A40: 2012 | B40: FENIX II | C40: EZ | D40: N | E40: -standardní konstrukce | F40: 190 | G40: 0.49869
A41: 2012 | B41: FENIX II | C41: PK | D41: N | E41: -standardní konstrukce | F41: 14 | G41: 0.03675
A42: 2012 | B42: HIT I (UKONČENO) | C42: P2K | D42: N | E42: -standardní konstrukce | F42: 135 | G42: 0.35433
A43: 2012 | B43: HIT I (UKONČENO) | C43: RK | D43: N | E43: -standardní konstrukce | F43: 221 | G43: 0.58005
A44: 2012 | B44: HIT I (UKONČENO) | C44: SZ | D44: N | E44: -standardní konstrukce | F44: 106 | G44: 0.27822
A45: 2012 | B45: HIT II (UKONČENO) | C45: MK | D45: N | E45: -standardní konstrukce | F45: 8 | G45: 0.021
A46: 2012 | B46: HIT II (UKONČENO) | C46: P2K | D46: N | E46: -standardní konstrukce | F46: 24 | G46: 0.06299
A47: 2012 | B47: HIT II (UKONČENO) | C47: PZ | D47: N | E47: -standardní konstrukce | F47: 12 | G47: 0.0315
A48: 2012 | B48: HORIZONT | C48: GZ2 | D48: N | E48: -standardní konstrukce | F48: 2 | G48: 0.00525
A49: 2012 | B49: HORIZONT | C49: GZ3 | D49: N | E49: -standardní konstrukce | F49: 5 | G49: 0.01312
A50: 2012 | B50: HORIZONT | C50: GZ4 | D50: N | E50: -standardní konstrukce | F50: 2 | G50: 0.00525
A51: 2012 | B51: HORIZONT | C51: GZ6 | D51: A | E51: PYROPANE (1/3) (2/3) | F51: 28 | G51: 0.07349
A52: 2012 | B52: HORIZONT | C52: GZ6 | D52: N | E52: -standardní konstrukce | F52: 35 | G52: 0.09186
A53: 2012 | B53: HORIZONT | C53: PK | D53: N | E53: -standardní konstrukce | F53: 2 | G53: 0.00525
A54: 2012 | B54: JERRY | C54: SZ | D54: N | E54: -standardní konstrukce | F54: 58 | G54: 0.15223
A55: 2012 | B55: JERRY II | C55: CZ | D55: N | E55: -standardní konstrukce | F55: 5 | G55: 0.01312
A56: 2012 | B56: KLASIK | C56: BZ | D56: N | E56: -standardní konstrukce | F56: 1682 | G56: 4.4147
A57: 2012 | B57: KLASIK | C57: EZ | D57: N | E57: -standardní konstrukce | F57: 109 | G57: 0.28609
A58: 2012 | B58: KLASIK | C58: P | D58: N | E58: -standardní konstrukce | F58: 3116 | G58: 8.17848
A59: 2012 | B59: KLERMONT | C59: BZ | D59: N | E59: -standardní konstrukce | F59: 219 | G59: 0.5748
A60: 2012 | B60: KLERMONT | C60: EZ | D60: N | E60: -standardní konstrukce | F60: 72 | G60: 0.18898
A61: 2012 | B61: KLERMONT | C61: P | D61: N | E61: -standardní konstrukce | F61: 803 | G61: 2.10761
A62: 2012 | B62: MADA M | C62: MWZ | D62: N | E62: -standardní konstrukce | F62: 15 | G62: 0.03937
A63: 2012 | B63: MADA M | C63: MZZ | D63: N | E63: -standardní konstrukce | F63: 42 | G63: 0.11024
A64: 2012 | B64: MAXIM | C64: PK | D64: N | E64: -standardní konstrukce | F64: 117 | G64: 0.30709
A65: 2012 | B65: MAXIM | C65: QZ | D65: A | E65: PYROPANE (1/3) (2/3) | F65: 3 | G65: 0.00787
A66: 2012 | B66: MAXIM | C66: QZ | D66: N | E66: -standardní konstrukce | F66: 466 | G66: 1.2231
A67: 2012 | B67: MAXIM | C67: RZ | D67: N | E67: -standardní konstrukce | F67: 479 | G67: 1.25722
A68: 2012 | B68: NEXIS | C68: GZ1 | D68: N | E68: -standardní konstrukce | F68: 9 | G68: 0.02362
A69: 2012 | B69: NEXIS | C69: GZ2 | D69: N | E69: -standardní konstrukce | F69: 17 | G69: 0.04462
A70: 2012 | B70: NEXIS | C70: GZ3 | D70: N | E70: -standardní konstrukce | F70: 53 | G70: 0.13911
A71: 2012 | B71: NEXIS | C71: GZ4 | D71: N | E71: -standardní konstrukce | F71: 6 | G71: 0.01575
A72: 2012 | B72: NEXIS | C72: GZ5 | D72: N | E72: -standardní konstrukce | F72: 247 | G72: 0.64829
A73: 2012 | B73: NEXIS | C73: PK | D73: A | E73: PYROBOARD s grenamatem | F73: 2 | G73: 0.00525
A74: 2012 | B74: NEXIS | C74: PK | D74: N | E74: -standardní konstrukce | F74: 87 | G74: 0.22835
A75: 2012 | B75: PEGGY | C75: AK | D75: N | E75: -standardní konstrukce | F75: 5 | G75: 0.01312
A76: 2012 | B76: PEGGY | C76: AN | D76: N | E76: -standardní konstrukce | F76: 14 | G76: 0.03675
A77: 2012 | B77: PEGGY | C77: BK | D77: N | E77: -standardní konstrukce | F77: 72 | G77: 0.18898
A78: 2012 | B78: PEGGY | C78: BN | D78: N | E78: -standardní konstrukce | F78: 60 | G78: 0.15748
A79: 2012 | B79: PEGGY | C79: D | D79: N | E79: -standardní konstrukce | F79: 9 | G79: 0.02362
A80: 2012 | B80: PEGGY | C80: E | D80: N | E80: -standardní konstrukce | F80: 53 | G80: 0.13911
A81: 2012 | B81: PEGGY | C81: IK | D81: N | E81: -standardní konstrukce | F81: 1 | G81: 0.00262
A82: 2012 | B82: PEGGY | C82: IN | D82: N | E82: -standardní konstrukce | F82: 7 | G82: 0.01837
A83: 2012 | B83: PEGGY | C83: L | D83: N | E83: -standardní konstrukce | F83: 3 | G83: 0.00787
A84: 2012 | B84: PEGGY | C84: P2K | D84: N | E84: -standardní konstrukce | F84: 79 | G84: 0.20735
A85: 2012 | B85: PEGGY | C85: P2N | D85: A | E85: PYROBOARD s grenamatem | F85: 3 | G85: 0.00787
A86: 2012 | B86: PEGGY | C86: P2N | D86: N | E86: -standardní konstrukce | F86: 53 | G86: 0.13911
A87: 2012 | B87: PRIMUM | C87: AZ | D87: A | E87: PYROPANE (1/3) (2/3) | F87: 25 | G87: 0.06562
A88: 2012 | B88: PRIMUM | C88: AZ | D88: N | E88: -standardní konstrukce | F88: 1086 | G88: 2.85039
A89: 2012 | B89: PRIMUM | C89: DZ | D89: A | E89: PYROGLASS (3/3) | F89: 12 | G89: 0.0315
A90: 2012 | B90: PRIMUM | C90: DZ | D90: N | E90: -standardní konstrukce | F90: 1062 | G90: 2.7874
A91: 2012 | B91: PRIMUM | C91: GZ | D91: N | E91: -standardní konstrukce | F91: 66 | G91: 0.17323
A92: 2012 | B92: PRIMUM | C92: P | D92: A | E92: PYROBOARD s grenamatem | F92: 3687 | G92: 9.67717
A93: 2012 | B93: PRIMUM | C93: P | D93: N | E93: -standardní konstrukce | F93: 13057 | G93: 34.27034
A94: 2012 | B94: QUARTEX | C94: GZ1 | D94: N | E94: -standardní konstrukce | F94: 53 | G94: 0.13911
A95: 2012 | B95: QUARTEX | C95: GZ2 | D95: N | E95: -standardní konstrukce | F95: 54 | G95: 0.14173
A96: 2012 | B96: QUARTEX | C96: GZ3 | D96: N | E96: -standardní konstrukce | F96: 115 | G96: 0.30184
A97: 2012 | B97: QUARTEX | C97: GZ4 | D97: N | E97: -standardní konstrukce | F97: 799 | G97: 2.09711
A98: 2012 | B98: QUARTEX | C98: PK | D98: N | E98: -standardní konstrukce | F98: 207 | G98: 0.54331
A99: 2012 | B99: RUBIKA | C99: GZ2 | D99: N | E99: -standardní konstrukce | F99: 46 | G99: 0.12073
A100: 2012 | B100: RUBIKA | C100: GZ3 | D100: N | E100: -standardní konstrukce | F100: 54 | G100: 0.14173
A101: 2012 | B101: RUBIKA | C101: GZ4 | D101: N | E101: -standardní konstrukce | F101: 42 | G101: 0.11024
A102: 2012 | B102: RUBIKA | C102: GZ6 | D102: N | E102: -standardní konstrukce | F102: 367 | G102: 0.96325
A103: 2012 | B103: RUBIKA | C103: PK | D103: N | E103: -standardní konstrukce | F103: 68 | G103: 0.17848
A104: 2012 | B104: TRIUMF I | C104: T1 | D104: N | E104: konstr.TRIUMF I | F104: 809 | G104: 2.12336
A105: 2012 | B105: TRIUMF II | C105: T2 | D105: N | E105: -standardní konstrukce | F105: 268 | G105: 0.70341
A106: 2012 | B106: TRIX | C106: GZ1 | D106: N | E106: -standardní konstrukce | F106: 32 | G106: 0.08399
A107: 2012 | B107: TRIX | C107: GZ2 | D107: N | E107: -standardní konstrukce | F107: 68 | G107: 0.17848
A108: 2012 | B108: TRIX | C108: GZ3 | D108: A | E108: PYROPANE (1/3) (2/3) | F108: 2 | G108: 0.00525
A109: 2012 | B109: TRIX | C109: GZ3 | D109: N | E109: -standardní konstrukce | F109: 109 | G109: 0.28609
A110: 2012 | B110: TRIX | C110: PK | D110: N | E110: -standardní konstrukce | F110: 90 | G110: 0.23622
A111: 2012 | B111: WENDY | C111: AK | D111: N | E111: -standardní konstrukce | F111: 23 | G111: 0.06037
A112: 2012 | B112: WENDY | C112: AN | D112: N | E112: -standardní konstrukce | F112: 36 | G112: 0.09449
A113: 2012 | B113: WENDY | C113: BK | D113: N | E113: -standardní konstrukce | F113: 54 | G113: 0.14173
A114: 2012 | B114: WENDY | C114: BN | D114: N | E114: -standardní konstrukce | F114: 70 | G114: 0.18373
A115: 2012 | B115: WENDY | C115: D | D115: N | E115: -standardní konstrukce | F115: 16 | G115: 0.04199
A116: 2012 | B116: WENDY | C116: E | D116: N | E116: -standardní konstrukce | F116: 68 | G116: 0.17848
A117: 2012 | B117: WENDY | C117: L | D117: N | E117: -standardní konstrukce | F117: 7 | G117: 0.01837
A118: 2012 | B118: WENDY | C118: P2K | D118: N | E118: -standardní konstrukce | F118: 101 | G118: 0.26509
A119: 2012 | B119: WENDY | C119: P2N | D119: A | E119: PYROBOARD s grenamatem | F119: 2 | G119: 0.00525
A120: 2012 | B120: WENDY | C120: P2N | D120: N | E120: -standardní konstrukce | F120: 127 | G120: 0.33333
A121: 2013 | B121: ALEX III | C121: GZ1 | D121: N | E121: -standardní konstrukce | F121: 5 | G121: 0.01634
A122: 2013 | B122: ALEX III | C122: GZ1 | D122: N | E122: s děrovanou DTD | F122: 2 | G122: 0.00654
A123: 2013 | B123: ALEX III | C123: GZ3 | D123: A | E123: PYROPANE (1/3) (2/3) | F123: 1 | G123: 0.00327
A124: 2013 | B124: ALEX III | C124: GZ3 | D124: N | E124: -standardní konstrukce | F124: 18 | G124: 0.05882
A125: 2013 | B125: ALEX III | C125: GZ3 | D125: N | E125: s děrovanou DTD | F125: 1 | G125: 0.00327
A126: 2013 | B126: ALEX III | C126: PK | D126: N | E126: -standardní konstrukce | F126: 7 | G126: 0.02288
A127: 2013 | B127: ALEX IV | C127: GN4 | D127: N | E127: -standardní konstrukce | F127: 1 | G127: 0.00327
A128: 2013 | B128: ALEX IV | C128: GZ1 | D128: N | E128: -standardní konstrukce | F128: 4 | G128: 0.01307
A129: 2013 | B129: ALEX IV | C129: GZ2 | D129: N | E129: -standardní konstrukce | F129: 8 | G129: 0.02614
A130: 2013 | B130: ALEX IV | C130: GZ4 | D130: N | E130: -standardní konstrukce | F130: 218 | G130: 0.71242
A131: 2013 | B131: ALEX IV | C131: GZ4 | D131: N | E131: s děrovanou DTD | F131: 7 | G131: 0.02288
A132: 2013 | B132: ALEX IV | C132: GZ4 | D132: N | E132: s plnou DTD | F132: 1 | G132: 0.00327
A133: 2013 | B133: ALEX IV | C133: PK | D133: N | E133: -standardní konstrukce | F133: 25 | G133: 0.0817
A134: 2013 | B134: ALUMI HORIZON L | C134: FDZ | D134: N | E134: s děrovanou DTD | F134: 19 | G134: 0.06209
A135: 2013 | B135: ALUMI HORIZON L | C135: MDZ | D135: N | E135: s děrovanou DTD | F135: 11 | G135: 0.03595
A136: 2013 | B136: ALUMI HORIZON L | C136: P | D136: A | E136: PYROBOARD s grenamatem | F136: 2 | G136: 0.00654
A137: 2013 | B137: ALUMI HORIZON L | C137: P | D137: A | E137: PYROSAFE B2 | F137: 1 | G137: 0.00327
A138: 2013 | B138: ALUMI HORIZON L | C138: P | D138: N | E138: s děrovanou DTD | F138: 74 | G138: 0.24183
A139: 2013 | B139: ALUMI HORIZON L | C139: P | D139: N | E139: s plnou DTD | F139: 4 | G139: 0.01307
A140: 2013 | B140: ALUMI HORIZON S | C140: FDZ | D140: N | E140: s děrovanou DTD | F140: 8 | G140: 0.02614
A141: 2013 | B141: ALUMI HORIZON S | C141: GZ1 | D141: N | E141: s děrovanou DTD | F141: 5 | G141: 0.01634
A142: 2013 | B142: ALUMI HORIZON S | C142: GZ2 | D142: N | E142: s děrovanou DTD | F142: 7 | G142: 0.02288
A143: 2013 | B143: ALUMI HORIZON S | C143: GZ3 | D143: N | E143: s děrovanou DTD | F143: 1 | G143: 0.00327
A144: 2013 | B144: ALUMI HORIZON S | C144: GZ4 | D144: N | E144: s děrovanou DTD | F144: 2 | G144: 0.00654
A145: 2013 | B145: ALUMI HORIZON S | C145: GZ5 | D145: N | E145: s děrovanou DTD | F145: 10 | G145: 0.03268
A146: 2013 | B146: ALUMI HORIZON S | C146: MDZ | D146: N | E146: s děrovanou DTD | F146: 24 | G146: 0.07843
A147: 2013 | B147: ALUMI HORIZON S | C147: P | D147: N | E147: s děrovanou DTD | F147: 46 | G147: 0.15033
A148: 2013 | B148: ALUMI HORIZON S | C148: P | D148: N | E148: s plnou DTD | F148: 3 | G148: 0.0098
A149: 2013 | B149: ALUMI RUBY | C149: GZ2 | D149: N | E149: s děrovanou DTD | F149: 1 | G149: 0.00327
A150: 2013 | B150: ALUMI RUBY | C150: GZ4 | D150: N | E150: s děrovanou DTD | F150: 2 | G150: 0.00654
A151: 2013 | B151: ALUMI VERTIK L | C151: FDZ | D151: N | E151: s děrovanou DTD | F151: 29 | G151: 0.09477
A152: 2013 | B152: ALUMI VERTIK L | C152: MDZ | D152: N | E152: s děrovanou DTD | F152: 31 | G152: 0.10131
A153: 2013 | B153: ALUMI VERTIK L | C153: P | D153: A | E153: PYROBOARD s grenamatem | F153: 2 | G153: 0.00654
A154: 2013 | B154: ALUMI VERTIK L | C154: P | D154: N | E154: s děrovanou DTD | F154: 93 | G154: 0.30392
A155: 2013 | B155: ALUMI VERTIK L | C155: P | D155: N | E155: s plnou DTD | F155: 7 | G155: 0.02288
A156: 2013 | B156: ALUMI VERTIK S | C156: FDZ | D156: N | E156: s děrovanou DTD | F156: 10 | G156: 0.03268
A157: 2013 | B157: ALUMI VERTIK S | C157: MDZ | D157: N | E157: s děrovanou DTD | F157: 35 | G157: 0.11438
A158: 2013 | B158: ALUMI VERTIK S | C158: P | D158: A | E158: PYROSAFE B2 | F158: 1 | G158: 0.00327
A159: 2013 | B159: ALUMI VERTIK S | C159: P | D159: N | E159: s děrovanou DTD | F159: 30 | G159: 0.09804
A160: 2013 | B160: ARKTIK HORIZON (DOPRODEJ) | C160: P | D160: N | E160: -standardní konstrukce | F160: 1 | G160: 0.00327
A161: 2013 | B161: ARTEMIS | C161: AZ | D161: N | E161: -standardní konstrukce | F161: 1 | G161: 0.00327
A162: 2013 | B162: ARTEMIS | C162: DZ | D162: N | E162: -standardní konstrukce | F162: 16 | G162: 0.05229
A163: 2013 | B163: ARTEMIS | C163: DZ | D163: N | E163: s děrovanou DTD | F163: 1 | G163: 0.00327
A164: 2013 | B164: ARTEMIS | C164: FZ | D164: N | E164: -standardní konstrukce | F164: 41 | G164: 0.13399
A165: 2013 | B165: ARTEMIS | C165: FZ | D165: N | E165: s děrovanou DTD | F165: 16 | G165: 0.05229
A166: 2013 | B166: ARTEMIS | C166: MZ | D166: N | E166: -standardní konstrukce | F166: 29 | G166: 0.09477
A167: 2013 | B167: ARTEMIS | C167: MZ | D167: N | E167: s děrovanou DTD | F167: 1 | G167: 0.00327
A168: 2013 | B168: ARTEMIS | C168: P | D168: A | E168: PYROBOARD s grenamatem | F168: 5 | G168: 0.01634
A169: 2013 | B169: ARTEMIS | C169: P | D169: N | E169: -standardní konstrukce | F169: 175 | G169: 0.5719
A170: 2013 | B170: ARTEMIS | C170: P | D170: N | E170: s děrovanou DTD | F170: 23 | G170: 0.07516
A171: 2013 | B171: BETTY | C171: A | D171: N | E171: -standardní konstrukce | F171: 13 | G171: 0.04248
A172: 2013 | B172: BETTY | C172: AGZ | D172: N | E172: -standardní konstrukce | F172: 2 | G172: 0.00654
A173: 2013 | B173: BETTY | C173: AK | D173: N | E173: -standardní konstrukce | F173: 15 | G173: 0.04902
A174: 2013 | B174: BETTY | C174: AN | D174: N | E174: -standardní konstrukce | F174: 6 | G174: 0.01961
A175: 2013 | B175: BETTY | C175: B | D175: N | E175: -standardní konstrukce | F175: 4 | G175: 0.01307
A176: 2013 | B176: BETTY | C176: BK | D176: N | E176: -standardní konstrukce | F176: 34 | G176: 0.11111
A177: 2013 | B177: BETTY | C177: BK | D177: N | E177: s plnou DTD | F177: 1 | G177: 0.00327
A178: 2013 | B178: BETTY | C178: BN | D178: N | E178: -standardní konstrukce | F178: 35 | G178: 0.11438
A179: 2013 | B179: BETTY | C179: BN | D179: N | E179: s děrovanou DTD | F179: 2 | G179: 0.00654
A180: 2013 | B180: BETTY | C180: BZ | D180: N | E180: -standardní konstrukce | F180: 3 | G180: 0.0098
A181: 2013 | B181: BETTY | C181: D | D181: N | E181: -standardní konstrukce | F181: 39 | G181: 0.12745
A182: 2013 | B182: BETTY | C182: D | D182: N | E182: s děrovanou DTD | F182: 6 | G182: 0.01961
A183: 2013 | B183: BETTY | C183: D | D183: N | E183: s plnou DTD | F183: 1 | G183: 0.00327
A184: 2013 | B184: BETTY | C184: E | D184: N | E184: -standardní konstrukce | F184: 170 | G184: 0.55556
A185: 2013 | B185: BETTY | C185: E | D185: N | E185: s děrovanou DTD | F185: 8 | G185: 0.02614
A186: 2013 | B186: BETTY | C186: P1K | D186: N | E186: -standardní konstrukce | F186: 26 | G186: 0.08497
A187: 2013 | B187: BETTY | C187: P1K | D187: N | E187: s děrovanou DTD | F187: 3 | G187: 0.0098
A188: 2013 | B188: BETTY | C188: P1N | D188: A | E188: PYROBOARD s grenamatem | F188: 4 | G188: 0.01307
A189: 2013 | B189: BETTY | C189: P1N | D189: N | E189: -standardní konstrukce | F189: 30 | G189: 0.09804
A190: 2013 | B190: BETTY | C190: P1N | D190: N | E190: s děrovanou DTD | F190: 1 | G190: 0.00327
A191: 2013 | B191: BETTY | C191: P2K | D191: N | E191: -standardní konstrukce | F191: 83 | G191: 0.27124
A192: 2013 | B192: BETTY | C192: P2N | D192: A | E192: PYROBOARD s grenamatem | F192: 2 | G192: 0.00654
A193: 2013 | B193: BETTY | C193: P2N | D193: A | E193: PYROSAFE B2 | F193: 1 | G193: 0.00327
A194: 2013 | B194: BETTY | C194: P2N | D194: N | E194: -standardní konstrukce | F194: 70 | G194: 0.22876
A195: 2013 | B195: BETTY | C195: P2N | D195: N | E195: s děrovanou DTD | F195: 9 | G195: 0.02941
A196: 2013 | B196: CELOSKLO | C196: 1 | D196: N | E196: celoskleněné | F196: 46 | G196: 0.15033
A197: 2013 | B197: ELISA | C197: P | D197: N | E197: -standardní konstrukce | F197: 2 | G197: 0.00654
A198: 2013 | B198: FANTASY | D198: A | E198: PYROBOARD s grenamatem | F198: 2 | G198: 0.00654
A199: 2013 | B199: FANTASY | D199: N | E199: -standardní konstrukce | F199: 346 | G199: 1.13072
A200: 2013 | B200: FANTASY | C200: AZ | D200: N | E200: -standardní konstrukce | F200: 16 | G200: 0.05229
... 1176 more rows

Sheet zárubně podrobně (hidden)
A1: Rok | B1: Řada | C1: Protip | D1: Vyrob | E1: % z celku
A2: 2012 | B2: .FABI S | C2: A | D2: 470 | E2: 1.91837
A3: 2012 | B3: .FABI S | C3: N | D3: 20320 | E3: 82.93878
A4: 2012 | B4: FABI O OKZ (obklad kovové zárubně) | C4: N | D4: 1648 | E4: 6.72653
A5: 2012 | B5: FABI P zárubeň pro posuvné dveře do zdi | C5: N | D5: 1621 | E5: 6.61633
A6: 2012 | B6: FABI R RADIUS | C6: A | D6: 4 | E6: 0.01633
A7: 2012 | B7: FABI R RADIUS | C7: N | D7: 469 | E7: 1.91429
A8: 2013 | B8: .FABI S | C8: A | D8: 394 | E8: 2.04145
A9: 2013 | B9: .FABI S | C9: N | D9: 15779 | E9: 81.75648
A10: 2013 | B10: FABI C - pro celosklo | C10: N | D10: 67 | E10: 0.34715
A11: 2013 | B11: FABI O OKZ (obklad kovové zárubně) | C11: N | D11: 1271 | E11: 6.58549
A12: 2013 | B12: FABI P zárubeň pro posuvné dveře do zdi | C12: N | D12: 1196 | E12: 6.19689
A13: 2013 | B13: FABI R RADIUS | C13: N | D13: 167 | E13: 0.86528
A14: 2013 | B14: FABI Z - pro skládací dveře | C14: N | D14: 69 | E14: 0.35751
A15: 2013 | B15: JEN DORAZOVÁ NOHA | C15: N | D15: 63 | E15: 0.32642
A16: 2013 | B16: JEN GARNYŽ | C16: N | D16: 30 | E16: 0.15544
A17: 2013 | B17: JEN GARNYŽ | C17: N | D17: 330 | E17: 1.70984
A18: 2014 | B18: .FABI S | C18: A | D18: 362 | E18: 1.92553
A19: 2014 | B19: .FABI S | C19: N | D19: 15100 | E19: 80.31915
A20: 2014 | B20: FABI C - pro celosklo | C20: N | D20: 78 | E20: 0.41489
A21: 2014 | B21: FABI O OKZ (obklad kovové zárubně) | C21: N | D21: 1355 | E21: 7.20745
A22: 2014 | B22: FABI P zárubeň pro posuvné dveře do zdi | C22: N | D22: 1048 | E22: 5.57447
A23: 2014 | B23: FABI R RADIUS | C23: N | D23: 139 | E23: 0.73936
A24: 2014 | B24: FABI Z - pro skládací dveře | C24: N | D24: 91 | E24: 0.48404
A25: 2014 | B25: JEN DORAZOVÁ NOHA | C25: N | D25: 123 | E25: 0.65426
A26: 2014 | B26: JEN GARNYŽ | C26: N | D26: 537 | E26: 2.85638
A27: 2015 | B27: .FABI S | C27: A | D27: 637 | E27: 3.20101
A28: 2015 | B28: .FABI S | C28: N | D28: 15595 | E28: 78.36683
A29: 2015 | B29: FABI C - pro celosklo | C29: N | D29: 73 | E29: 0.36683
A30: 2015 | B30: FABI H ostrá hrana | C30: A | D30: 4 | E30: 0.0201
A31: 2015 | B31: FABI H ostrá hrana | C31: N | D31: 167 | E31: 0.8392
A32: 2015 | B32: FABI M Champagne | C32: N | D32: 4 | E32: 0.0201
A33: 2015 | B33: FABI O OKZ (obklad kovové zárubně) | C33: N | D33: 1321 | E33: 6.63819
A34: 2015 | B34: FABI P zárubeň pro posuvné dveře do zdi | C34: N | D34: 1202 | E34: 6.0402
A35: 2015 | B35: FABI R RADIUS | C35: A | D35: 1 | E35: 0.00503
A36: 2015 | B36: FABI R RADIUS | C36: N | D36: 103 | E36: 0.51759
A37: 2015 | B37: FABI Z - pro skládací dveře | C37: N | D37: 83 | E37: 0.41709
A38: 2015 | B38: JEN DORAZOVÁ NOHA | C38: N | D38: 145 | E38: 0.72864
A39: 2015 | B39: JEN GARNYŽ | C39: N | D39: 648 | E39: 3.25628
A40: 2016 | B40: .FABI S | C40: A | D40: 437 | E40: 2.12136
A41: 2016 | B41: .FABI S | C41: N | D41: 15729 | E41: 76.35437
A42: 2016 | B42: FABI C - pro celosklo | C42: N | D42: 48 | E42: 0.23301
A43: 2016 | B43: FABI H ostrá hrana | C43: A | D43: 56 | E43: 0.27184
A44: 2016 | B44: FABI H ostrá hrana | C44: N | D44: 481 | E44: 2.33495
A45: 2016 | B45: FABI M Champagne | C45: N | D45: 27 | E45: 0.13107
A46: 2016 | B46: FABI M Stříbrné | C46: N | D46: 24 | E46: 0.1165
A47: 2016 | B47: FABI O OKZ (obklad kovové zárubně) | C47: N | D47: 1383 | E47: 6.71359
A48: 2016 | B48: FABI P zárubeň pro posuvné dveře do zdi | C48: N | D48: 1463 | E48: 7.10194
A49: 2016 | B49: FABI R RADIUS | C49: N | D49: 72 | E49: 0.34951
A50: 2016 | B50: FABI Z - pro skládací dveře | C50: N | D50: 80 | E50: 0.38835
A51: 2016 | B51: JEN DORAZOVÁ NOHA | C51: N | D51: 179 | E51: 0.86893
A52: 2016 | B52: JEN GARNYŽ | C52: N | D52: 652 | E52: 3.16505
A53: 2017 | B53: .FABI S | C53: A | D53: 382 | E53: 1.96907
A54: 2017 | B54: .FABI S | C54: N | D54: 15002 | E54: 77.3299
A55: 2017 | B55: FABI C - pro celosklo | C55: N | D55: 70 | E55: 0.36082
A56: 2017 | B56: FABI H ostrá hrana | C56: A | D56: 28 | E56: 0.14433
A57: 2017 | B57: FABI H ostrá hrana | C57: N | D57: 519 | E57: 2.67526
A58: 2017 | B58: FABI M Champagne | C58: N | D58: 13 | E58: 0.06701
A59: 2017 | B59: FABI M Stříbrné | C59: N | D59: 25 | E59: 0.12887
A60: 2017 | B60: FABI O OKZ (obklad kovové zárubně) | C60: N | D60: 1223 | E60: 6.30412
A61: 2017 | B61: FABI P zárubeň pro posuvné dveře do zdi | C61: N | D61: 1249 | E61: 6.43814
A62: 2017 | B62: FABI PC zárubeň pro posuvné CELOSKL.dveře do zdi | C62: N | D62: 6 | E62: 0.03093
A63: 2017 | B63: FABI R RADIUS | C63: N | D63: 34 | E63: 0.17526
A64: 2017 | B64: FABI Z - pro skládací dveře | C64: N | D64: 92 | E64: 0.47423
A65: 2017 | B65: JEN DORAZOVÁ NOHA | C65: N | D65: 127 | E65: 0.65464
A66: 2017 | B66: JEN GARNYŽ | C66: N | D66: 681 | E66: 3.51031

Sheet Dveře V1 (hidden)
C1: 131 | H1: 111 | O1: 113 | AB1: 121 (H20) | AD1: 121 (AC/PU) | AF1: 122 (dýha) | AH1: 310 | AL1: cena | AM1: počet | AO1: 2012 | AP1: 2013 | AQ1: 2014 | AR1: 2015 | AS1: 2016 | AT1: 2017
C2: MN | D2: PK1 | E2: rám | F2: povrch | G2: ∑ MAT | H2: MN | I2: PK1 | J2: páska | K2: zámek | L2: pant | M2: balení | N2: ∑ MAT | O2: MN | P2: PK1 | Q2: rámeček | U2: výplň | Y2: Pomocné | Z2: Balení | AA2: ∑ MAT | AB2: MN | AC2: ∑ MAT | AD2: MN | AE2: ∑ MAT | AF2: MN | AG2: ∑ MAT | AH2: MN | AI2: PK | AJ2: energie | AK2: pomoc.mat
B3: Triumf I | C3: =TRIUMF!B8 -> 61.238 | D3: =TRIUMF!C8 -> 29.39424 | E3: =TRIUMF!D8 -> 269 | F3: =TRIUMF!E8 -> 140 | G3: =SUM(E3:F3) -> 409 | H3: =TRIUMF!G8 -> 180.498 | I3: =TRIUMF!H8 -> 97.46892 | J3: =TRIUMF!I8 -> 63 | K3: =TRIUMF!J8 -> 57 | L3: =TRIUMF!K8 -> 21 | N3: =SUM(J3:M3) -> 141 | O3: =TRIUMF!M8 -> 271.752 | P3: =TRIUMF!N8 -> 171.20376 | U3: =TRIUMF!O8 -> 1437.10048 | Y3: =TRIUMF!P8 -> 40.26 | Z3: =TRIUMF!Q8 -> 18.35 | AA3: =SUM(Q3:Z3) -> 1495.71048 | AD3: 95.41 | AE3: 337.4 | AF3: 95.41 | AG3: 337.4 | AH3: =TRIUMF!S8 -> 6.7 | AI3: =TRIUMF!T8 -> 25.795 | AJ3: =TRIUMF!X8 -> 25.4 | AK3: =TRIUMF!Y8 -> 30 | AL3: 6250 | AM3: 1 | AO3: ='dveře podrobně'!F104 -> 809 | AP3: ='dveře podrobně'!$F$349 -> 643 | AQ3: ='dveře podrobně'!$F$598 -> 399 | AR3: ='dveře podrobně'!$F$853 -> 442 | AS3: ='dveře podrobně'!$F$1104 -> 335 | AT3: ='dveře podrobně'!$F$1350 -> 278
B4: Triumf II | C4: =TRIUMF!B17 -> 50.518 | D4: =TRIUMF!C17 -> 24.24864 | E4: =TRIUMF!D17 -> 244 | F4: =TRIUMF!E17 -> 280 | G4: 524 | H4: =TRIUMF!G17 -> 125.96 | I4: =TRIUMF!H17 -> 68.0184 | J4: =TRIUMF!I17 -> 63 | K4: =TRIUMF!J17 -> 57 | L4: =TRIUMF!K17 -> 21 | N4: 141 | O4: =TRIUMF!M17 -> 236.376 | P4: =TRIUMF!N17 -> 148.91688 | U4: =TRIUMF!O17 -> 262.40608 | Y4: =TRIUMF!P17 -> 40.26 | Z4: =TRIUMF!Q17 -> 18.35 | AA4: 321.01608 | AD4: 95.41 | AE4: 422.2 | AF4: 95.41 | AG4: 422.2 | AH4: =TRIUMF!S17 -> 6.7 | AI4: =TRIUMF!T17 -> 25.795 | AJ4: =TRIUMF!X17 -> 25.4 | AK4: =TRIUMF!Y17 -> 30 | AL4: 5830 | AM4: 1 | AO4: ='dveře podrobně'!F105 -> 268 | AP4: ='dveře podrobně'!$F$350+'dveře podrobně'!$F$351 -> 340 | AQ4: ='dveře podrobně'!$F$599+'dveře podrobně'!$F$600+'dveře podrobně'!$F$601 -> 248 | AR4: ='dveře podrobně'!$F$854+'dveře podrobně'!$F$855 -> 154 | AS4: ='dveře podrobně'!$F$1105+'dveře podrobně'!$F$1106 -> 178 | AT4: ='dveře podrobně'!$F$1351+'dveře podrobně'!$F$1352 -> 141
B5: Triumf III | C5: =TRIUMF!B26 -> 77.318 | D5: =TRIUMF!C26 -> 37.11264 | E5: =TRIUMF!D26 -> 454 | F5: =TRIUMF!E26 -> 280 | G5: 734 | H5: =TRIUMF!G26 -> 180.498 | I5: =TRIUMF!H26 -> 97.46892 | J5: =TRIUMF!I26 -> 63 | K5: =TRIUMF!J26 -> 57 | L5: =TRIUMF!K26 -> 21 | N5: 141 | O5: =TRIUMF!M26 -> 271.752 | P5: =TRIUMF!N26 -> 171.20376 | U5: =TRIUMF!O26 -> 730.41728 | Y5: =TRIUMF!P26 -> 40.26 | Z5: =TRIUMF!Q26 -> 18.35 | AA5: 789.02728 | AD5: 95.41 | AE5: 379.8 | AF5: 95.41 | AG5: 379.8 | AH5: =TRIUMF!S26 -> 6.7 | AI5: =TRIUMF!T26 -> 25.795 | AJ5: =TRIUMF!X26 -> 25.4 | AK5: =TRIUMF!Y26 -> 30 | AL5: 6130 | AM5: 1 | AP5: ='dveře podrobně'!$F$351 -> 96 | AQ5: ='dveře podrobně'!$F$602 -> 96 | AR5: ='dveře podrobně'!$F$856 -> 33 | AS5: =+'dveře podrobně'!$F$1107 -> 80 | AT5: ='dveře podrobně'!$F$1353 -> 92
B6: Triumf IV | C6: =TRIUMF!B35 -> 77.318 | D6: =TRIUMF!C35 -> 37.11264 | E6: =TRIUMF!D35 -> 454 | F6: =TRIUMF!E35 -> 280 | G6: 734 | H6: =TRIUMF!G35 -> 180.498 | I6: =TRIUMF!H35 -> 97.46892 | J6: =TRIUMF!I35 -> 63 | K6: =TRIUMF!J35 -> 57 | L6: =TRIUMF!K35 -> 21 | N6: 141 | O6: =TRIUMF!M35 -> 271.752 | P6: =TRIUMF!N35 -> 171.20376 | U6: =TRIUMF!O35 -> 730.41728 | Y6: =TRIUMF!P35 -> 40.26 | Z6: =TRIUMF!Q35 -> 18.35 | AA6: 789.02728 | AD6: 95.41 | AE6: 379.8 | AF6: 95.41 | AG6: 379.8 | AH6: =TRIUMF!S35 -> 6.7 | AI6: =TRIUMF!T35 -> 25.795 | AJ6: =TRIUMF!X35 -> 25.4 | AK6: =TRIUMF!Y35 -> 30 | AL6: 6130 | AM6: 1 | AP6: ='dveře podrobně'!$F$352 -> 37 | AQ6: ='dveře podrobně'!$F$603 -> 143 | AR6: ='dveře podrobně'!$F$857 -> 161 | AS6: ='dveře podrobně'!$F$1108 -> 183 | AT6: ='dveře podrobně'!$F$1354 -> 95
B7: Triumf V | C7: =TRIUMF!B44 -> 105.257 | D7: =TRIUMF!C44 -> 50.52336 | E7: =TRIUMF!D44 -> 269 | F7: =TRIUMF!E44 -> 140 | G7: 409 | H7: =TRIUMF!G44 -> 266.258 | I7: =TRIUMF!H44 -> 143.77932 | J7: =TRIUMF!I44 -> 63 | K7: =TRIUMF!J44 -> 57 | L7: =TRIUMF!K44 -> 21 | N7: 141 | O7: =TRIUMF!M44 -> 271.752 | P7: =TRIUMF!N44 -> 171.20376 | U7: =TRIUMF!O44 -> 331.5 | Y7: =TRIUMF!P44 -> 40.26 | Z7: =TRIUMF!Q44 -> 18.35 | AA7: 390.11 | AD7: 95.41 | AE7: 422.2 | AF7: 95.41 | AG7: 422.2 | AH7: =TRIUMF!S44 -> 6.7 | AI7: =TRIUMF!T44 -> 25.795 | AJ7: =TRIUMF!X44 -> 25.4 | AK7: =TRIUMF!Y44 -> 30 | AL7: 5200 | AM7: 1 | AP7: ='dveře podrobně'!$F$353 -> 120 | AQ7: ='dveře podrobně'!$F$604+'dveře podrobně'!$F$605 -> 23 | AR7: ='dveře podrobně'!$F$858+'dveře podrobně'!$F$859 -> 24 | AS7: ='dveře podrobně'!$F$1109+'dveře podrobně'!$F$1110 -> 90 | AT7: ='dveře podrobně'!$F$1355 -> 43
B8: Kitty I | C8: =C3*2.5 -> 153.095 | D8: =D3*2.5 -> 73.4856 | E8: =E3*2.5 -> 672.5 | F8: =F4*1.5 -> 420 | G8: 1092.5 | H8: =H7 -> 266.258 | I8: =I7 -> 143.77932 | J8: =J7 -> 63 | K8: =K7 -> 57 | L8: =L7 -> 21 | N8: 141 | O8: =O5 -> 271.752 | P8: =P5 -> 171.20376 | U8: =U6*0.6 -> 438.250368 | Y8: =Y3 -> 40.26 | Z8: 18.35 | AA8: 496.860368 | AH8: =AH3 -> 6.7 | AI8: 25.795 | AJ8: 25.4 | AK8: =AK3*1.5 -> 45 | AL8: 6490 | AM8: 1 | AP8: ='dveře podrobně'!$F$240+'dveře podrobně'!$F$241+'dveře podrobně'!$F$242 -> 110 | AQ8: ='dveře podrobně'!$F$474+'dveře podrobně'!$F$475+'dveře podrobně'!$F$476 -> 135 | AR8: ='dveře podrobně'!$F$735+'dveře podrobně'!$F$736+'dveře podrobně'!$F$737 -> 92 | AS8: ='dveře podrobně'!$F$979+'dveře podrobně'!$F$980+'dveře podrobně'!$F$981 -> 176 | AT8: ='dveře podrobně'!$F$1226+'dveře podrobně'!$F$1227+'dveře podrobně'!$F$1228 -> 135
B9: Kitty II | C9: =C3*2 -> 122.476 | D9: =D3*2 -> 58.78848 | E9: =E3*2 -> 538 | F9: =F4*1.4 -> 392 | G9: 930 | H9: =H7 -> 266.258 | I9: =I7 -> 143.77932 | J9: =J7 -> 63 | K9: =K7 -> 57 | L9: =L7 -> 21 | N9: 141 | O9: =O5 -> 271.752 | P9: =P5 -> 171.20376 | U9: =U6*0.7 -> 511.292096 | Y9: 40.26 | Z9: 18.35 | AA9: 569.902096 | AH9: 6.7 | AI9: 25.795 | AJ9: 25.4 | AK9: =AK4*1.5 -> 45 | AL9: 6490 | AM9: 1 | AP9: ='dveře podrobně'!$F$243+'dveře podrobně'!$F$244+'dveře podrobně'!$F$245 -> 94 | AQ9: ='dveře podrobně'!$F$477+'dveře podrobně'!$F$478+'dveře podrobně'!$F$479 -> 160 | AR9: ='dveře podrobně'!$F$738+'dveře podrobně'!$F$739+'dveře podrobně'!$F$740 -> 215 | AS9: ='dveře podrobně'!$F$982+'dveře podrobně'!$F$983+'dveře podrobně'!$F$984 -> 279 | AT9: =+'dveře podrobně'!$F$1229+'dveře podrobně'!$F$1230+'dveře podrobně'!$F$1231 -> 247
B10: Kitty III | C10: =C3*1.75 -> 107.1665 | D10: =D3*1.75 -> 51.43992 | E10: =E3*1.75 -> 470.75 | F10: =F4*1.3 -> 364 | G10: 834.75 | H10: =H7 -> 266.258 | I10: =I7 -> 143.77932 | J10: =J7 -> 63 | K10: =K7 -> 57 | L10: =L7 -> 21 | N10: 141 | O10: =O5 -> 271.752 | P10: =P5 -> 171.20376 | U10: =U6*0.8 -> 584.333824 | Y10: 40.26 | Z10: 18.35 | AA10: 642.943824 | AH10: 6.7 | AI10: 25.795 | AJ10: 25.4 | AK10: =AK5*1.5 -> 45 | AL10: 6490 | AM10: 1 | AP10: ='dveře podrobně'!$F$247+'dveře podrobně'!$F$104 -> 811 | AQ10: ='dveře podrobně'!$F$480+'dveře podrobně'!$F$481+'dveře podrobně'!$F$482 -> 23 | AR10: ='dveře podrobně'!$F$741+'dveře podrobně'!$F$742+'dveře podrobně'!$F$743 -> 73 | AS10: ='dveře podrobně'!$F$985+'dveře podrobně'!$F$986+'dveře podrobně'!$F$987 -> 84 | AT10: =+'dveře podrobně'!$F$1234+'dveře podrobně'!$F$1235+'dveře podrobně'!$F$1236 -> 24
B11: Kitty IV | C11: =C3*1.5 -> 91.857 | D11: =D3*1.5 -> 44.09136 | E11: =E3*1.5 -> 403.5 | F11: =F4*1.2 -> 336 | G11: 739.5 | H11: =H7 -> 266.258 | I11: =I7 -> 143.77932 | J11: =J7 -> 63 | K11: =K7 -> 57 | L11: =L7 -> 21 | N11: 141 | O11: =O5 -> 271.752 | P11: =P5 -> 171.20376 | U11: =U6*0.9 -> 657.375552 | Y11: 40.26 | Z11: 18.35 | AA11: 715.985552 | AH11: 6.7 | AI11: 25.795 | AJ11: 25.4 | AK11: =AK6*1.5 -> 45 | AL11: 6490 | AM11: 1 | AQ11: ='dveře podrobně'!$F$483+'dveře podrobně'!$F$484+'dveře podrobně'!$F$485 -> 7
AN12: děr.DTD | AP12: ='dveře podrobně'!$F$351+'dveře podrobně'!$F$354 -> 97 | AQ12: ='dveře podrobně'!$F$600+'dveře podrobně'!$F$605 -> 37 | AR12: ='dveře podrobně'!$F$855+'dveře podrobně'!$F$859 -> 42 | AS12: ='dveře podrobně'!$F$1106+'dveře podrobně'!$F$1110 -> 45 | AT12: =+'dveře podrobně'!$F$1352 -> 26
AN13: plná DTD | AQ13: ='dveře podrobně'!$F$601 -> 1
B15: Peggy EI/EW 30 | C15: =PEGGY!B53 -> 50.518 | D15: =PEGGY!C53 -> 24.24864 | E15: =PEGGY!D53 -> 714 | F15: =PEGGY!E53 -> 280 | G15: =SUM(E15:F15) -> 994 | H15: =PEGGY!G53 -> 152.894 | I15: =PEGGY!H53 -> 82.56276 | J15: =PEGGY!I53 -> 110 | K15: =PEGGY!J53 -> 103 | L15: =PEGGY!K53 -> 189 | M15: =PEGGY!L53 -> 0 | N15: =SUM(J15:M15) -> 402 | O15: =PEGGY!N53 -> 53.734 | P15: =PEGGY!O53 -> 33.85242 | Q15: =PEGGY!P53+PEGGY!R53 -> 637 | U15: =PEGGY!T53+PEGGY!U53 -> 0 | Y15: =PEGGY!V53 -> 10 | Z15: =PEGGY!W53 -> 44.75 | AA15: =SUM(Q15:Z15) -> 691.75 | AB15: 66.54 | AC15: 271.1 | AD15: 95.41 | AE15: 422.2 | AF15: 95.41 | AG15: 422.2 | AH15: =PEGGY!Y53 -> 6.7 | AI15: =PEGGY!Z53 -> 25.795 | AJ15: =PEGGY!AA53 -> 263.846
B16: Primum P - děr.DTD | C16: =PRIMUM!B39 -> 66.598 | D16: =PRIMUM!C39 -> 31.96704 | E16: =PRIMUM!D39 -> 350 | F16: =PRIMUM!E39 -> 280 | G16: 630 | H16: =PRIMUM!H39 -> 129.31 | I16: =PRIMUM!J39 -> 69.8274 | J16: =PRIMUM!K39 -> 33.7 | K16: =PRIMUM!L39 -> 57 | L16: =PRIMUM!M39 -> 9 | M16: =PRIMUM!N39 -> 16.35 | N16: 116.05 | AA16: 0 | AB16: 66.54 | AC16: 271.1 | AD16: 95.41 | AE16: 422.2 | AF16: 95.41 | AG16: 422.2 | AH16: =PRIMUM!$AA$39 -> 6.7 | AI16: =PRIMUM!$AB$39 -> 25.795 | AJ16: =PRIMUM!$AF$39 -> 25.4
B17: Primum P - dýha | C17: ='PRIMUM DÝHA'!B8 -> 35.778 | D17: ='PRIMUM DÝHA'!C8 -> 17.17344 | E17: ='PRIMUM DÝHA'!D8 -> 166.3 | F17: ='PRIMUM DÝHA'!E8 -> 1263 | G17: 1429.3 | H17: ='PRIMUM DÝHA'!H8 -> 379.864 | I17: ='PRIMUM DÝHA'!J8 -> 205.12656 | J17: ='PRIMUM DÝHA'!K8 -> 69 | K17: ='PRIMUM DÝHA'!L8 -> 57 | L17: ='PRIMUM DÝHA'!M8 -> 9 | M17: ='PRIMUM DÝHA'!N8 -> 16.35 | N17: 151.35 | AB17: 66.54 | AC17: 271.1 | AD17: 95.41 | AE17: 422.2 | AF17: 95.41 | AG17: 422.2 | AH17: ='PRIMUM DÝHA'!AA8 -> 6.7 | AI17: ='PRIMUM DÝHA'!AB8 -> 25.795 | AJ17: ='PRIMUM DÝHA'!AF8 -> 25.4
B18: Primum P | C18: =PRIMUM!B8 -> 35.778 | D18: =PRIMUM!C8 -> 17.17344 | E18: =PRIMUM!D8 -> 166.3 | F18: =PRIMUM!E8 -> 280 | G18: 446.3 | H18: =PRIMUM!H8 -> 79.864 | I18: =PRIMUM!J8 -> 43.12656 | J18: =PRIMUM!K8 -> 37 | K18: =PRIMUM!L8 -> 57 | L18: =PRIMUM!M8 -> 9 | M18: =PRIMUM!N8 -> 16.35 | N18: 119.35 | AA18: =SUM(Q18:Z18) -> 0 | AB18: 66.54 | AC18: 271.1 | AD18: 95.41 | AE18: 422.2 | AF18: 95.41 | AG18: 422.2 | AH18: =PRIMUM!AA8 -> 6.7 | AI18: =PRIMUM!AB8 -> 25.795 | AJ18: =PRIMUM!AF8 -> 25.4 | AL18: 2390 | AM18: 1 | AO18: ='dveře podrobně'!$F$93 -> 13057 | AP18: ='dveře podrobně'!$F$315+'dveře podrobně'!$F$316+'dveře podrobně'!$F$317+'dveře podrobně'!$F$321+'dveře podrobně'!$F$322+'dveře podrobně'!$F$327+'dveře podrobně'!$F$328+'dveře podrobně'!$F$329 -> 10760 | AQ18: ='dveře podrobně'!$F$560+'dveře podrobně'!$F$561+'dveře podrobně'!$F$566+'dveře podrobně'!$F$567+'dveře podrobně'!$F$572+'dveře podrobně'!$F$573+'dveře podrobně'!$F$574 -> 11075 | AR18: ='dveře podrobně'!$F$816+'dveře podrobně'!$F$817+'dveře podrobně'!$F$821+'dveře podrobně'!$F$822+'dveře podrobně'!$F$827+'dveře podrobně'!$F$828+'dveře podrobně'!$F$829 -> 12617 | AS18: ='dveře podrobně'!$F$1062+'dveře podrobně'!$F$1063+'dveře podrobně'!$F$1067+'dveře podrobně'!$F$1068+'dveře podrobně'!$F$1073+'dveře podrobně'!$F$1074+'dveře podrobně'!$F$1075 -> 12600 | AT18: ='dveře podrobně'!$F$1312+'dveře podrobně'!$F$1313+'dveře podrobně'!$F$1318+'dveře podrobně'!$F$1319+'dveře podrobně'!$F$1324+'dveře podrobně'!$F$1325+'dveře podrobně'!$F$1326 -> 12060
B19: Pyroboard P | C19: =PRIMUM!B48 -> 50.518 | D19: =PRIMUM!C48 -> 24.24864 | E19: =PRIMUM!D48 -> 714 | F19: =PRIMUM!E48 -> 280 | G19: 994 | H19: =PRIMUM!H48 -> 152.894 | I19: =PRIMUM!J48 -> 82.56276 | J19: =PRIMUM!K48 -> 102.28 | K19: =PRIMUM!L48 -> 103 | L19: =PRIMUM!M48 -> 189 | M19: =PRIMUM!N48 -> 18.35 | N19: 412.63 | AA19: 0 | AB19: 66.54 | AC19: 271.1 | AD19: 95.41 | AE19: 422.2 | AF19: 95.41 | AG19: 422.2 | AH19: =PRIMUM!$AA$48 -> 6.7 | AI19: =PRIMUM!$AB$48 -> 25.795 | AJ19: =PRIMUM!$AF$49 -> 25.4 | AL19: 4090 | AM19: 1 | AO19: ='dveře podrobně'!$F$73+'dveře podrobně'!$F$92+'dveře podrobně'!$F$119+'dveře podrobně'!$F$19+'dveře podrobně'!$F$85 -> 3714 | AP19: =+'dveře podrobně'!$F$323+'dveře podrobně'!$F$369+'dveře podrobně'!$F$373+'dveře podrobně'!$F$188+'dveře podrobně'!$F$192+'dveře podrobně'!$F$304+'dveře podrobně'!$F$136+'dveře podrobně'!$F$153 -> 2471 | AQ19: =+'dveře podrobně'!$F$568+'dveře podrobně'!$F$624+'dveře podrobně'!$F$629+'dveře podrobně'!$F$434+'dveře podrobně'!$F$439+'dveře podrobně'!$F$584+'dveře podrobně'!$F$385 -> 1686 | AR19: =+'dveře podrobně'!$F$823+'dveře podrobně'!$F$694+'dveře podrobně'!$F$700+'dveře podrobně'!$F$805+'dveře podrobně'!$F$656+'dveře podrobně'!$F$661+'dveře podrobně'!$F$665 -> 2511 | AS19: =+'dveře podrobně'!$F$1069+'dveře podrobně'!$F$1132+'dveře podrobně'!$F$941+'dveře podrobně'!$F$946+'dveře podrobně'!$F$1051+'dveře podrobně'!$F$1088+'dveře podrobně'!$F$893+'dveře podrobně'!$F$904+'dveře podrobně'!$F$910+'dveře podrobně'!$F$916+'dveře podrobně'!$F$922 -> 2201 | AT19: =+'dveře podrobně'!$F$1320+'dveře podrobně'!$F$1371+'dveře podrobně'!$F$1196+'dveře podrobně'!$F$1300+'dveře podrobně'!$F$1159+'dveře podrobně'!$F$1164+'dveře podrobně'!$F$1172 -> 2371
B20: Pyrosafe BT2 | C20: =PRIMUM!B57 -> 116.714 | D20: =PRIMUM!C57 -> 56.02272 | E20: =PRIMUM!D57 -> 714 | F20: =PRIMUM!E57 -> 343 | G20: 1057 | H20: =PRIMUM!H57 -> 211.72 | I20: =PRIMUM!J57 -> 114.3288 | J20: =PRIMUM!K57 -> 101 | K20: =PRIMUM!L57 -> 1299 | L20: =PRIMUM!M57 -> 235 | M20: =PRIMUM!N57 -> 18.35 | N20: 1653.35 | AA20: 0 | AB20: 66.54 | AC20: 271.1 | AD20: 95.41 | AE20: 422.2 | AF20: 95.41 | AG20: 422.2 | AH20: =PRIMUM!$AA$57 -> 6.7 | AI20: =PRIMUM!$AB$57 -> 25.795 | AJ20: =PRIMUM!$AF$57 -> 25.4 | AL20: 8500 | AM20: 1 | AP20: ='dveře podrobně'!$F$324+'dveře podrobně'!$F$193+'dveře podrobně'!$F$137+'dveře podrobně'!$F$158 -> 628 | AQ20: ='dveře podrobně'!$F$569 -> 1203 | AR20: ='dveře podrobně'!$F$824+'dveře podrobně'!$F$875+'dveře podrobně'!$F$701+'dveře podrobně'!$F$666 -> 1075 | AS20: ='dveře podrobně'!$F$1070+'dveře podrobně'!$F$1133 -> 1547 | AT20: ='dveře podrobně'!$F$1321+'dveře podrobně'!$F$1374+'dveře podrobně'!$F$1168 -> 1301
B21: Pyrosafe BT3 | C21: =PEGGY!B61 -> 229.274 | D21: =PEGGY!C61 -> 110.05152 | E21: =PEGGY!D61 -> 965 | F21: =PEGGY!E61 -> 280 | G21: 1245 | H21: =PEGGY!G61 -> 234.232 | I21: =PEGGY!H61 -> 126.48528 | J21: =PEGGY!I61 -> 112 | K21: =PEGGY!J61 -> 1299 | L21: =PEGGY!K61 -> 38 | M21: =PEGGY!L61 -> 0 | N21: 1449 | O21: =PEGGY!N61 -> 53.734 | P21: =PEGGY!O61 -> 33.85242 | Q21: =PEGGY!P61+PEGGY!R61 -> 637 | U21: =PEGGY!T61+PEGGY!U61 -> 0 | Y21: =PEGGY!V61 -> 10 | Z21: =PEGGY!W61 -> 44.75 | AA21: 691.75 | AB21: 66.54 | AC21: 271.1 | AD21: 95.41 | AE21: 422.2 | AF21: 95.41 | AG21: 422.2 | AH21: =PEGGY!Y61 -> 6.7 | AI21: =PEGGY!Z61 -> 25.795 | AJ21: 25.4 | AL21: 10250 | AM21: 1 | AP21: ='dveře podrobně'!$F$325 -> 47 | AQ21: ='dveře podrobně'!$F$570 -> 115 | AR21: ='dveře podrobně'!$F$825+'dveře podrobně'!$F$667+'dveře podrobně'!$F$672 -> 227 | AS21: ='dveře podrobně'!$F$1071+'dveře podrobně'!$F$905+'dveře podrobně'!$F$911+'dveře podrobně'!$F$917 -> 289 | AT21: ='dveře podrobně'!$F$1322 -> 246
B22: Pyropane | C22: =PRIMUM!B100 -> 94.738 | D22: =PRIMUM!C100 -> 45.47424 | E22: =PRIMUM!D100 -> 609 | F22: =PRIMUM!E100 -> 280 | G22: 889 | H22: =PRIMUM!H100 -> 164.418 | I22: =PRIMUM!J100 -> 88.78572 | J22: =PRIMUM!K100 -> 102.28 | K22: =PRIMUM!L100 -> 103 | L22: =PRIMUM!M100 -> 189 | M22: =PRIMUM!N100 -> 0 | N22: 394.28 | O22: =PRIMUM!$P$100 -> 54.0288 | P22: =PRIMUM!$Q$100 -> 34.038144 | U22: =PRIMUM!$V$100 -> 1403.5072 | Y22: =PRIMUM!$X$100 -> 55.7 | Z22: =PRIMUM!$Y$100 -> 44.75 | AA22: 1503.9572 | AB22: 66.54 | AC22: 271.1 | AD22: 95.41 | AE22: 422.2 | AF22: 95.41 | AG22: 422.2 | AH22: =PRIMUM!$AA$100 -> 6.7 | AI22: =PRIMUM!$AB$100 -> 25.795 | AJ22: =PRIMUM!$AF$100 -> 25.4 | AL22: 14500 | AM22: 1 | AO22: ='dveře podrobně'!$F$108+'dveře podrobně'!$F$36+'dveře podrobně'!$F$39+'dveře podrobně'!$F$65+'dveře podrobně'!$F$87 -> 37 | AP22: ='dveře podrobně'!$F$123+'dveře podrobně'!$F$212+'dveře podrobně'!$F$275+'dveře podrobně'!$F$307+'dveře podrobně'!$F$318 -> 40 | AQ22: =+'dveře podrobně'!$F$447+'dveře podrobně'!$F$513+'dveře podrobně'!$F$552+'dveře podrobně'!$F$562 -> 32 | AR22: =+'dveře podrobně'!$F$709+'dveře podrobně'!$F$772+'dveře podrobně'!$F$809+'dveře podrobně'!$F$818 -> 34 | AS22: ='dveře podrobně'!$F$1115+'dveře podrobně'!$F$953+'dveře podrobně'!$F$963+'dveře podrobně'!$F$1019+'dveře podrobně'!$F$1055+'dveře podrobně'!$F$1064+'dveře podrobně'!$F$912 -> 38 | AT22: ='dveře podrobně'!$F$1144+'dveře podrobně'!$F$1203+'dveře podrobně'!$F$1211+'dveře podrobně'!$F$1271+'dveře podrobně'!$F$1304+'dveře podrobně'!$F$1314 -> 42
B23: Pyroglass | C23: =PRIMUM!B66 -> 94.738 | D23: =PRIMUM!C66 -> 45.47424 | E23: =PRIMUM!D66 -> 876 | F23: =PRIMUM!E66 -> 280 | G23: 1156 | H23: =PRIMUM!H66 -> 164.418 | I23: =PRIMUM!J66 -> 88.78572 | J23: =PRIMUM!K66 -> 102.28 | K23: =PRIMUM!L66 -> 103 | L23: =PRIMUM!M66 -> 189 | M23: =PRIMUM!N66 -> 0 | N23: 394.28 | O23: =PRIMUM!$P$66 -> 54.0288 | P23: =PRIMUM!$Q$66 -> 34.038144 | U23: =PRIMUM!$V$66 -> 3497.0868 | Y23: =PRIMUM!$X$66 -> 55.7 | Z23: =PRIMUM!$Y$66 -> 44.75 | AA23: 3597.5368 | AB23: 66.54 | AC23: 245 | AD23: 95.41 | AE23: 379.8 | AF23: 95.41 | AG23: 379.8 | AH23: =PRIMUM!$AA$66 -> 6.7 | AI23: =PRIMUM!$AB$66 -> 25.795 | AJ23: =PRIMUM!$AF$66 -> 25.4 | AL23: 23560 | AM23: 1 | AO23: ='dveře podrobně'!$F$89 -> 12 | AP23: ='dveře podrobně'!$F$311 -> 2 | AQ23: ='dveře podrobně'!$F$556 -> 5 | AR23: ='dveře podrobně'!$F$813 -> 9 | AS23: ='dveře podrobně'!$F$1059 -> 19 | AT23: ='dveře podrobně'!$F$1308 -> 18
B24: Pyrosmoke | C24: 50.518 | D24: 24.24864 | E24: 714 | F24: 280 | G24: 994 | H24: 152.894 | I24: 82.56276 | J24: 102.28 | K24: 103 | L24: 189 | M24: 18.35 | N24: 412.63 | AA24: 0 | AB24: 66.54 | AC24: 271.1 | AD24: 95.41 | AE24: 422.2 | AF24: 95.41 | AG24: 422.2 | AH24: 6.7 | AI24: 25.795 | AJ24: 25.4 | AL24: =AL19+2500 -> 6590 | AM24: 1 | AP24: ='dveře podrobně'!$F$326 -> 7 | AQ24: ='dveře podrobně'!$F$571 -> 52 | AR24: ='dveře podrobně'!$F$826 -> 93 | AS24: ='dveře podrobně'!$F$1072 -> 61 | AT24: ='dveře podrobně'!$F$1323 -> 59
B25: Celoskleněné dveře | G25: =AL25*0.6 -> 3114 | AH25: 6.7 | AL25: 5190 | AM25: 1 | AP25: ='dveře podrobně'!F196 -> 46 | AQ25: ='dveře podrobně'!F443 -> 33 | AR25: ='dveře podrobně'!F705 -> 61 | AS25: ='dveře podrobně'!F950 -> 79 | AT25: ='dveře podrobně'!F1200 -> 102
AN26: děr.DTD | AP26: ='dveře podrobně'!$F$316+'dveře podrobně'!$F$328+'dveře podrobně'!$F$322 -> 1231 | AQ26: ='dveře podrobně'!$F$561+'dveře podrobně'!$F$567+'dveře podrobně'!$F$573 -> 2132 | AR26: =+'dveře podrobně'!$F$817+'dveře podrobně'!$F$822+'dveře podrobně'!$F$828 -> 3109 | AS26: =+'dveře podrobně'!$F$1063+'dveře podrobně'!$F$1068+'dveře podrobně'!$F$1074 -> 3291 | AT26: =+'dveře podrobně'!$F$1313+'dveře podrobně'!$F$1319+'dveře podrobně'!$F$1325 -> 3826
AN27: plná DTD | AP27: ='dveře podrobně'!$F$317+'dveře podrobně'!$F$329 -> 234 | AQ27: =+'dveře podrobně'!$F$574 -> 275 | AR27: =+'dveře podrobně'!$F$829 -> 361 | AS27: =+'dveře podrobně'!$F$1075 -> 415 | AT27: =+'dveře podrobně'!$F$1326 -> 389
B29: Primum 2/3 | C29: =PRIMUM!B18 -> 41.138 | D29: =PRIMUM!C18 -> 19.74624 | E29: =PRIMUM!D18 -> 203.3 | F29: =PRIMUM!E18 -> 280 | G29: =SUM(E29:F29) -> 483.3 | H29: =PRIMUM!H18 -> 77.586 | I29: =PRIMUM!J18 -> 41.89644 | J29: =PRIMUM!K18 -> 33.7 | K29: =PRIMUM!L18 -> 57 | L29: =PRIMUM!M18 -> 9 | M29: =PRIMUM!N18 -> 0 | N29: =SUM(J29:M29) -> 99.7 | O29: =PRIMUM!P18 -> 41.808 | P29: =PRIMUM!Q18 -> 26.33904 | Q29: =PRIMUM!R18 -> 226 | U29: =PRIMUM!V18 -> 129.948 | Y29: =PRIMUM!X18 -> 20.4392 | Z29: =PRIMUM!Y18 -> 44.75 | AA29: =SUM(Q29:Z29) -> 421.1372 | AB29: 66.54 | AC29: 271.1 | AD29: 95.41 | AE29: 422.2 | AF29: 95.41 | AG29: 422.2 | AH29: =PRIMUM!AA18 -> 6.7 | AI29: =PRIMUM!AB18 -> 25.795 | AJ29: =PRIMUM!AF18 -> 25.4 | AL29: 3050 | AM29: 1 | AO29: ='dveře podrobně'!$F$88+'dveře podrobně'!$F$91 -> 1152 | AP29: =+'dveře podrobně'!$F$308+'dveře podrobně'!$F$309+'dveře podrobně'!$F$310+'dveře podrobně'!$F$319+'dveře podrobně'!$F$320 -> 1013 | AQ29: =+'dveře podrobně'!$F$553+'dveře podrobně'!$F$554+'dveře podrobně'!$F$555+'dveře podrobně'!$F$563+'dveře podrobně'!$F$564+'dveře podrobně'!$F$565 -> 926 | AR29: =+'dveře podrobně'!$F$810+'dveře podrobně'!$F$811+'dveře podrobně'!$F$812+'dveře podrobně'!$F$819+'dveře podrobně'!$F$820 -> 1069 | AS29: =+'dveře podrobně'!$F$1056+'dveře podrobně'!$F$1057+'dveře podrobně'!$F$1058+'dveře podrobně'!$F$1065+'dveře podrobně'!$F$1066 -> 949 | AT29: =+'dveře podrobně'!$F$1305+'dveře podrobně'!$F$1306+'dveře podrobně'!$F$1307+'dveře podrobně'!$F$1315+'dveře podrobně'!$F$1316+'dveře podrobně'!$F$1317 -> 1105
B30: Primum 3/3 | C30: 41.138 | D30: 19.74624 | E30: 203.3 | F30: 280 | G30: 483.3 | H30: 77.586 | I30: 41.89644 | J30: 33.7 | K30: 57 | L30: 9 | M30: 0 | N30: 99.7 | O30: 54.1762 | P30: 34.131006 | Q30: 389 | U30: 199.92 | Y30: 10.632 | Z30: 44.75 | AA30: 644.302 | AB30: 66.54 | AC30: 245 | AD30: 95.41 | AE30: 379.8 | AF30: 95.41 | AG30: 379.8 | AH30: 6.7 | AI30: 25.795 | AJ30: 25.4 | AL30: 3690 | AM30: 1 | AO30: =+'dveře podrobně'!$F$90 -> 1062 | AP30: =+'dveře podrobně'!$F$312+'dveře podrobně'!$F$313+'dveře podrobně'!$F$314 -> 628 | AQ30: =+'dveře podrobně'!$F$557+'dveře podrobně'!$F$558+'dveře podrobně'!$F$559 -> 709 | AR30: =+'dveře podrobně'!$F$814+'dveře podrobně'!$F$815 -> 728 | AS30: =+'dveře podrobně'!$F$1060+'dveře podrobně'!$F$1061 -> 653 | AT30: =+'dveře podrobně'!$F$1309+'dveře podrobně'!$F$1310+'dveře podrobně'!$F$1311 -> 692
B31: Maxim zaskl. | C31: =MAXIM!B8 -> 41.138 | D31: =MAXIM!C8 -> 19.74624 | E31: =MAXIM!D8 -> 203.3 | F31: =MAXIM!E8 -> 280 | G31: =SUM(E31:F31) -> 483.3 | H31: =MAXIM!G8 -> 77.586 | I31: =MAXIM!H8 -> 41.89644 | J31: =MAXIM!I8 -> 37 | K31: =MAXIM!J8 -> 57 | L31: =MAXIM!K8 -> 9 | M31: =MAXIM!L8 -> 0 | N31: =SUM(J31:M31) -> 103 | O31: =MAXIM!N8 -> 54.1762 | P31: =MAXIM!O8 -> 34.131006 | Q31: =MAXIM!P8 -> 273 | U31: =MAXIM!T8 -> 117.6 | Y31: =MAXIM!V8 -> 20.4392 | Z31: =MAXIM!W8 -> 44.75 | AA31: =SUM(Q31:Z31) -> 455.7892 | AB31: 66.54 | AC31: 245 | AD31: 95.41 | AE31: 379.8 | AF31: 95.41 | AG31: 379.8 | AH31: =MAXIM!Y8 -> 6.7 | AI31: =MAXIM!Z8 -> 25.795 | AJ31: =MAXIM!AD8 -> 25.4 | AL31: 3770 | AM31: 1 | AO31: =+'dveře podrobně'!$F$66+'dveře podrobně'!$F$67 -> 945 | AP31: =+'dveře podrobně'!$F$276+'dveře podrobně'!$F$277+'dveře podrobně'!$F$278+'dveře podrobně'!$F$279 -> 834 | AQ31: =+'dveře podrobně'!$F$514+'dveře podrobně'!$F$515+'dveře podrobně'!$F$516+'dveře podrobně'!$F$517+'dveře podrobně'!$F$518 -> 842 | AR31: =+'dveře podrobně'!$F$773+'dveře podrobně'!$F$774+'dveře podrobně'!$F$775+'dveře podrobně'!$F$776 -> 872 | AS31: =+'dveře podrobně'!$F$1020+'dveře podrobně'!$F$1021+'dveře podrobně'!$F$1022+'dveře podrobně'!$F$1023+'dveře podrobně'!$F$1024 -> 909 | AT31: =+'dveře podrobně'!$F$1272+'dveře podrobně'!$F$1273+'dveře podrobně'!$F$1274+'dveře podrobně'!$F$1275 -> 785
B32: Maxim kazet. | C32: =MAXIM!B17 -> 41.138 | D32: =MAXIM!C17 -> 19.74624 | E32: =MAXIM!D17 -> 203.3 | F32: =MAXIM!E17 -> 280 | G32: 483.3 | H32: =MAXIM!G17 -> 77.586 | I32: =MAXIM!H17 -> 41.89644 | J32: =MAXIM!I17 -> 37 | K32: =MAXIM!J17 -> 57 | L32: =MAXIM!K17 -> 9 | M32: =MAXIM!L17 -> 0 | N32: 103 | O32: =MAXIM!N17 -> 95.7162 | P32: =MAXIM!O17 -> 60.301206 | Q32: =MAXIM!P17 -> 273 | U32: =MAXIM!T17 -> 178 | Y32: =MAXIM!V17 -> 16 | Z32: =MAXIM!W17 -> 44.75 | AA32: 511.75 | AB32: 66.54 | AC32: 245 | AD32: 95.41 | AE32: 379.8 | AF32: 95.41 | AG32: 379.8 | AH32: =MAXIM!Y17 -> 6.7 | AI32: =MAXIM!Z17 -> 25.795 | AJ32: =MAXIM!AD17 -> 25.4 | AL32: 3770 | AM32: 1 | AO32: =+'dveře podrobně'!$F$64 -> 117 | AP32: =+'dveře podrobně'!$F$273+'dveře podrobně'!$F$274 -> 97 | AQ32: =+'dveře podrobně'!$F$510+'dveře podrobně'!$F$511+'dveře podrobně'!$F$512 -> 80 | AR32: =+'dveře podrobně'!$F$771 -> 38 | AS32: =+'dveře podrobně'!$F$1017+'dveře podrobně'!$F$1018 -> 39 | AT32: =+'dveře podrobně'!$F$1269+'dveře podrobně'!$F$1270 -> 44
B33: Fénix I, zaskl. | C33: ='FENIX I'!B8 -> 41.138 | D33: ='FENIX I'!C8 -> 19.74624 | E33: ='FENIX I'!D8 -> 203.3 | F33: ='FENIX I'!E8 -> 280 | G33: 483.3 | H33: ='FENIX I'!G8 -> 77.586 | I33: ='FENIX I'!H8 -> 41.89644 | J33: ='FENIX I'!I8 -> 37 | K33: ='FENIX I'!J8 -> 57 | L33: ='FENIX I'!K8 -> 9 | M33: ='FENIX I'!L8 -> 0 | N33: 103 | O33: ='FENIX I'!N8 -> 54.1762 | P33: ='FENIX I'!O8 -> 34.131006 | Q33: ='FENIX I'!P8 -> 194 | U33: ='FENIX I'!T8 -> 53.76 | Y33: ='FENIX I'!V8 -> 20.4392 | Z33: ='FENIX I'!W8 -> 44.75 | AA33: 312.9492 | AB33: 66.54 | AC33: 271.1 | AD33: 95.41 | AE33: 422.2 | AF33: 95.41 | AG33: 422.2 | AH33: ='FENIX I'!Y8 -> 6.7 | AI33: ='FENIX I'!Z8 -> 25.795 | AJ33: ='FENIX I'!AD8 -> 25.4 | AL33: 3690 | AM33: 1 | AO33: ='dveře podrobně'!$F$37+'dveře podrobně'!$F$54 -> 1618 | AP33: =+'dveře podrobně'!$F$213+'dveře podrobně'!$F$214+'dveře podrobně'!$F$215+'dveře podrobně'!$F$237+'dveře podrobně'!$F$238 -> 1501 | AQ33: =+'dveře podrobně'!$F$448+'dveře podrobně'!$F$449+'dveře podrobně'!$F$450+'dveře podrobně'!$F$473 -> 1101 | AR33: =+'dveře podrobně'!$F$710+'dveře podrobně'!$F$711+'dveře podrobně'!$F$712 -> 1401 | AS33: =+'dveře podrobně'!$F$954+'dveře podrobně'!$F$955+'dveře podrobně'!$F$956 -> 1708 | AT33: =+'dveře podrobně'!$F$1204+'dveře podrobně'!$F$1205+'dveře podrobně'!$F$1206 -> 1492
B34: Fénix I, kazet. | C34: ='FENIX I'!B17 -> 41.138 | D34: ='FENIX I'!C17 -> 19.74624 | E34: ='FENIX I'!D17 -> 203.3 | F34: ='FENIX I'!E17 -> 280 | G34: 483.3 | H34: ='FENIX I'!G17 -> 77.586 | I34: ='FENIX I'!H17 -> 41.89644 | J34: ='FENIX I'!I17 -> 37 | K34: ='FENIX I'!J17 -> 57 | L34: ='FENIX I'!K17 -> 9 | M34: ='FENIX I'!L17 -> 0 | N34: 103 | O34: ='FENIX I'!N17 -> 95.7162 | P34: ='FENIX I'!O17 -> 60.301206 | Q34: ='FENIX I'!P17 -> 194 | U34: ='FENIX I'!T17 -> 178 | Y34: ='FENIX I'!V17 -> 16 | Z34: ='FENIX I'!W17 -> 44.75 | AA34: 432.75 | AB34: 66.54 | AC34: 271.1 | AD34: 95.41 | AE34: 422.2 | AF34: 95.41 | AG34: 422.2 | AH34: ='FENIX I'!Y17 -> 6.7 | AI34: ='FENIX I'!Z17 -> 25.795 | AJ34: ='FENIX I'!AD17 -> 25.4 | AL34: 3690 | AM34: 1 | AO34: ='dveře podrobně'!$F$35 -> 109 | AP34: =+'dveře podrobně'!$F$209+'dveře podrobně'!$F$210+'dveře podrobně'!$F$211 -> 108 | AQ34: =+'dveře podrobně'!$F$445+'dveře podrobně'!$F$446 -> 70 | AR34: =+'dveře podrobně'!$F$707+'dveře podrobně'!$F$708 -> 94 | AS34: =+'dveře podrobně'!$F$952 -> 42 | AT34: =+'dveře podrobně'!$F$1201+'dveře podrobně'!$F$1202 -> 75
B35: Fénix II, zaskl. | C35: ='FENIX II'!B8 -> 41.138 | D35: ='FENIX II'!C8 -> 19.74624 | E35: ='FENIX II'!D8 -> 203.3 | F35: ='FENIX II'!E8 -> 280 | G35: 483.3 | H35: ='FENIX II'!G8 -> 77.586 | I35: ='FENIX II'!H8 -> 41.89644 | J35: ='FENIX II'!I8 -> 37 | K35: ='FENIX II'!J8 -> 57 | L35: ='FENIX II'!K8 -> 9 | M35: ='FENIX II'!L8 -> 0 | N35: 103 | O35: ='FENIX II'!N8 -> 60.434 | P35: ='FENIX II'!O8 -> 38.07342 | Q35: ='FENIX II'!P8 -> 255 | U35: 53.76 | Y35: 20.4392 | Z35: 44.75 | AA35: 373.9492 | AB35: 66.54 | AC35: 271.1 | AD35: 95.41 | AE35: 422.2 | AF35: 95.41 | AG35: 422.2 | AH35: ='FENIX II'!Y8 -> 6.7 | AI35: ='FENIX II'!Z8 -> 25.795 | AJ35: ='FENIX II'!AD8 -> 25.4 | AL35: 3690 | AM35: 1 | AO35: =+'dveře podrobně'!$F$38+'dveře podrobně'!$F$40+'dveře podrobně'!$F$55 -> 208 | AP35: =+'dveře podrobně'!$F$216+'dveře podrobně'!$F$217+'dveře podrobně'!$F$218+'dveře podrobně'!$F$220+'dveře podrobně'!$F$221 -> 228 | AQ35: =+'dveře podrobně'!$F$451+'dveře podrobně'!$F$452+'dveře podrobně'!$F$453+'dveře podrobně'!$F$454+'dveře podrobně'!$F$455+'dveře podrobně'!$F$458+'dveře podrobně'!$F$459+'dveře podrobně'!$F$460 -> 246 | AR35: =+'dveře podrobně'!$F$713+'dveře podrobně'!$F$714+'dveře podrobně'!$F$715+'dveře podrobně'!$F$718+'dveře podrobně'!$F$719+'dveře podrobně'!$F$720 -> 246 | AS35: =+'dveře podrobně'!$F$957+'dveře podrobně'!$F$958+'dveře podrobně'!$F$959+'dveře podrobně'!$F$964+'dveře podrobně'!$F$965+'dveře podrobně'!$F$966 -> 408 | AT35: =+'dveře podrobně'!$F$1207+'dveře podrobně'!$F$1208+'dveře podrobně'!$F$1209+'dveře podrobně'!$F$1212+'dveře podrobně'!$F$1213+'dveře podrobně'!$F$1214 -> 217
B36: Fénix II, kazet. | C36: ='FENIX II'!B17 -> 41.138 | D36: ='FENIX II'!C17 -> 19.74624 | E36: ='FENIX II'!D17 -> 203.3 | F36: ='FENIX II'!E17 -> 280 | G36: 483.3 | H36: ='FENIX II'!G17 -> 77.586 | I36: ='FENIX II'!H17 -> 41.89644 | J36: ='FENIX II'!I17 -> 37 | K36: ='FENIX II'!J17 -> 57 | L36: ='FENIX II'!K17 -> 9 | M36: ='FENIX II'!L17 -> 0 | N36: 103 | O36: ='FENIX II'!N17 -> 101.974 | P36: ='FENIX II'!O17 -> 0 | Q36: ='FENIX II'!P17 -> 255 | U36: 178 | Y36: 16 | Z36: 44.75 | AA36: 493.75 | AB36: 66.54 | AC36: 271.1 | AD36: 95.41 | AE36: 422.2 | AF36: 95.41 | AG36: 422.2 | AH36: ='FENIX II'!Y17 -> 6.7 | AI36: ='FENIX II'!Z17 -> 25.795 | AJ36: ='FENIX II'!AD17 -> 25.4 | AL36: 3690 | AM36: 1 | AO36: ='dveře podrobně'!$F$41 -> 14 | AP36: ='dveře podrobně'!$F$219 -> 7 | AQ36: =+'dveře podrobně'!$F$456+'dveře podrobně'!$F$457 -> 24 | AR36: =+'dveře podrobně'!$F$716+'dveře podrobně'!$F$717 -> 6 | AS36: =+'dveře podrobně'!$F$960+'dveře podrobně'!$F$961+'dveře podrobně'!$F$962 -> 12 | AT36: =+'dveře podrobně'!$F$1210 -> 1
B37: Mada F ZZ | C37: =MADA!B8 -> 41.138 | D37: =MADA!C8 -> 19.74624 | E37: =MADA!D8 -> 203.3 | F37: =MADA!E8 -> 280 | G37: 483.3 | H37: =MADA!G8 -> 77.586 | I37: =MADA!H8 -> 41.89644 | J37: =MADA!I8 -> 37 | K37: =MADA!J8 -> 57 | L37: =MADA!K8 -> 9 | M37: =MADA!L8 -> 0 | N37: 103 | O37: =MADA!N8 -> 54.1762 | P37: =MADA!O8 -> 34.131006 | Q37: =MADA!P8 -> 308 | U37: =MADA!T8 -> 53.76 | Y37: =MADA!X8 -> 10.632 | Z37: =MADA!Y8 -> 44.75 | AA37: 417.142 | AB37: 66.54 | AC37: 245 | AD37: 95.41 | AE37: 379.8 | AF37: 95.41 | AG37: 379.8 | AH37: =MADA!AA8 -> 6.7 | AI37: =MADA!AB8 -> 25.795 | AJ37: =MADA!AF8 -> 25.4 | AL37: 4290 | AM37: 1 | AP37: =SUM('dveře podrobně'!$F$258:$F$262) -> 56 | AQ37: =SUM('dveře podrobně'!$F$497:$F$499) -> 65 | AR37: =SUM('dveře podrobně'!$F$755:$F$758) -> 118 | AS37: =SUM('dveře podrobně'!$F$1002:$F$1005) -> 89 | AT37: =SUM('dveře podrobně'!$F$1251:$F$1255) -> 101
